Workbook

Sheet Info
B2: =taal!A419 -> Pergofast
B4: =taal!A424 -> Le programme vous aide à rédiger rapidement une offre de prix pour la toiture Pergolux®. Si vous remplissez
B5: =taal!A425 -> correctement toutes les données à la page "input data", vous obtiendrez immédiatement une proposition adéquate.
B6: =taal!A426 -> Pergofast calcule la solution idéale pour votre toiture et vous offre une offre avec un aperçu de tous les accessoires,
B7: =taal!A427 -> un détail de toutes les dimensions nécessaires pour le montage ainsi qu'une possibilité de commander par e-mail.
B8: =taal!A428 -> Vous pouvez également déconnecter "proposition Pergofast" et faire vous-même votre choix par set ou article.
B9: =taal!A429 -> Configurez la page "reset" avec votre propre choix en Pergolux et mémorisez le programme.
B10: =taal!A430 -> Avec le bouton "reset" vous pouvez toujours démarer de votre propre configuration
B12: =taal!A432 -> Sur la page "sets" (choix de set), vous pouvez, si nécessaire, adapter la proposition Pergofast.
B13: =taal!A433 -> Attention. Si vous modifiez le programme au 'niveau set', il n'y a que les sets standard qui sont présentés.
B14: =taal!A434 -> Ces sets sont mentionnés à la page "sets".
B15: =taal!A435 -> De plus, vous pouvez effectuer des modifications à la page "articles" (choix des articles).
B16: =taal!A436 -> Sauf déconnectée, la proposition Pergofast continue à servir de base lors de modfications au "niveau d'articles".
B17: =taal!A437 -> La page "offer" (offre) vous rédige une offre après avoir cliqué sur un des 2 touches.
B18: =taal!A438 -> La touche "short list" vous rédige un aperçu des articles et des données pour le montage.
B19: =taal!A439 -> La touche "print" fait la même chose et imprime également votre offre.
B20: =taal!A440 -> Vous pouvez nous passer cette offre qui équivaut une commande par la touche e-mail (la barre d'outils Standard).
B21: =taal!A442 -> La page "KS" vous offre un aperçu des plaques synthétiques avec la possibilité d'appliquer vos propres prix.
B22: =taal!A443 -> 
B23: =taal!A444 -> Les longueurs de plaques déterminées par le programme ne sont valables que pour les plaques et verre
B24: =taal!A446 -> Il faut toujours suivre les consignes du fabricant du vitrage.
B25: =taal!A443 -> 
B26: =taal!A448 -> Notre savoir et nos expériences avec Pergolux sont intégrés dans ce programme.
B27: =taal!A449 -> Vu les multiples variations et la possibilité d'intervenir personnellement, nous vous conseillons de
B28: =taal!A450 -> contrôler minutieusement les offres.
B29: =taal!A451 -> 
B30: =taal!A454 -> 
B31: =taal!A455 -> Conditions d'usage
B32: =taal!A456 -> Veillez à ce que vous utilisez et installez toujours la dernière version du programme.
B33: =taal!A457 -> A.G.Plastics enregistre et prévient tous les usagers lorsqu'une nouvelle version de tarif est publiée sur le website.
B34: =taal!A458 -> Ce programme ne sera plus utilisable à partir du - et cela par mesure de sécurité- :
B35: =pckeuze!A2 -> 2024-04-30
B36: =taal!A459 -> L'usager se déclare automatiquement d'accord sur le fait qu'il ne peut pas poursuivre AG en justice
B37: =taal!A460 -> en se basant sur ce programme.
B40: X | C40: =taal!A462 -> l'usager se déclare d'accord sur les conditions d'usage (remplir "X").

Sheet reset
B1: =taal!A1 -> LANGAGE | F1: 1 | H1: taal
B2: =taal!A90 -> PROPOSITION PERGOFAST | F2: 1 | H2: pc
B3: =taal!A89 -> TVA INDIQUER % | F3: 1 | H3: percent
B4: =taal!A13 -> SIMPLE OU DOUBLE PENTE | F4: 1 | H4: zadel
B5: =taal!A14 -> TYPE DE TOITURE | F5: 4 | H5: type
B6: =taal!A51&" "&taal!A15 -> CHOIX DE COULEURS EXTERIEURE | D6: 9010 | F6: 2 | G6: =D6 -> 9010 | H6: ral
B7: =taal!A51&" "&taal!A16 -> CHOIX DE COULEURS INTERIEURE | D7: 9010 | F7: 7 | G7: =D7 -> 9010 | H7: ralin
B8: =IF(type=3,"*",taal!A21) -> CONSTRUCTION | F8: 1 | H8: muur
C9: =taal!A567 -> LARGEUR DES PORTEURS BOIS EN mm | D9: 56 | G9: =D9 -> 56 | H9: balkbreedte
B10: =taal!A395 -> DETERMINEZ LA CHARGE (N/m²) | C10: =taal!A113 -> CHARGE NEIGE ET VITRAGE | D10: 350 | G10: =D10 -> 350 | H10: belasting
B11: =IF(type=3,"*",taal!A42) -> FINITION | F11: 1 | H11: cl
B12: =taal!A120 -> DIMENSIONS EXT. OSSATURE EN BOIS | C12: =taal!A78 -> LARGEUR EN mm | D12: 0 | G12: =D12 -> 0 | H12: breedte
B13: =IF(zadel=2,taal!A80,"") ->  | C13: =taal!A79 -> PROFONDEUR EN mm | D13: 0 | G13: =D13 -> 0 | H13: diepte
B14: =taal!A138 -> ANGLE (STANDARD 10°) | D14: 10 | F14: 2 | G14: =D14 -> 10 | H14: hoek
B15: =taal!A45 -> TYPE DE PLAQUE | F15: 1 | H15: plaat
C16: =IF(plaat=1,taal!A104,taal!A49) -> EPAISSEUR DU VERRE EN mm | D16: 32 | G16: =D16 -> 32 | H16: dik
C17: =IF(plaat=1,taal!A48,"*") -> LARGEUR DE PLAQUE EN mm | D17: 1230 | G17: =D17 -> 1230 | H17: breed
B18: =taal!A50 -> LARGEUR RÉPARTITION VITRAGE | D18: =IF(nul=0,"*",IF(AND(rest=2,ROUND(calcul!D51,0)=0)=TRUE,"*",IF(rest=1,ROUND(calcul!B53,0),IF(rest=2,calcul!D51,IF(rest=3,calcul!D52,"*"))))) -> * | F18: 3 | H18: rest
B19: =IF(AND(rest=1,calcul!B53>'input data'!D20+0.5,plaat=1)=TRUE,taal!A118,"*") -> * | C19: =IF(rest=1,taal!A100,"*") -> * | D19: 8 | G19: =D19 -> 8
B20: =IF(plaat=2,"",taal!A76) -> CHOIX ENTRE PLAQUES SYNTHETIQUES | D20: =IF(ISNA(#REF!)=TRUE,"",IF('input data'!H64=2," ! OFFER : "&KS!DM119&" €/m²","*")) -> * | F20: 1 | H20: ks
B21: =IF(plaat=1,taal!A383,"") -> FINITION PLAQUES | F21: 1
B22: =taal!A72 -> CHOIX ENTRE GOUTTIERES | F22: 1 | H22: goot
B23: =taal!A176 -> PIECE DE REHAUSSE GOUTTIERE | F23: 2 | H23: gr
F24: 2 | H24: verw
F25: 2 | H25: verzagen
B27: =taal!A122&" "&taal!A34 -> REDUCTION PROFILES | C27: 0
B28: =taal!A122&" "&taal!A33 -> REDUCTION PLAQUES SYNTHETIQUES | C28: 0
B29: =taal!A107&" ±" -> PRIX BRUT ± | C29: 0
B103: 1

Sheet input data
G1: =" "&taal!A135 -> CLIENT
G2: =" "&taal!A136 -> PERSONNE À CONTACTER | P2: =INDEX(P3:P7,taal) -> Bonjour, | Q2: =INDEX(Q3:Q7,taal) -> En annexe vous trouvez notre offre de prix pour une toiture Pergolux. | V2: =INDEX(V3:V7,taal) -> meilleures salutations | X2: =IF(B144=1,"",B145) -> 
A3: 4/2024 | G3: =" "&taal!A3 -> REFERENCE | N3: =D5 -> 0 | P3: Geachte, | Q3: ="In bijlage sturen wij onze offerte voor een Pergolux dak." -> In bijlage sturen wij onze offerte voor een Pergolux dak. | V3: Met vriendelijke groeten
G4: =" "&taal!A148 -> DELAI DE LIVRAISON | P4: Bonjour, | Q4: ="En annexe vous trouvez notre offre de prix pour une toiture Pergolux." -> En annexe vous trouvez notre offre de prix pour une toiture Pergolux. | V4: meilleures salutations
B5: =taal!A1 -> LANGAGE | G5: EMAIL | P5: Sehr geehrte Damen und Herren, | Q5: ="Anbei finden Sie unser Angebot fur eine Pergolux Überdachung." -> Anbei finden Sie unser Angebot fur eine Pergolux Überdachung. | V5: mit freundlichen Grußen
B6: =taal!A90 -> PROPOSITION PERGOFAST | D6: =taal!A149 -> VALIDITÉ DE L'OFFRE : 1 MOIS | P6: Dear, | Q6: ="Please find our offer of a Pergolux roof in the attached file." -> Please find our offer of a Pergolux roof in the attached file. | V6: best regards
B7: =taal!A89 -> TVA INDIQUER % | G7: =IF(I71=0,"",I71) ->  | P7: Witam serdecznie, | Q7: ="W załączniku przesyłam ofertę na zadaszenie "&IF(type<3,"Climax roof ",IF(type=3,"Climalux roof","Climalite roof ")) -> W załączniku przesyłam ofertę na zadaszenie Climalite roof | V7: Pozdrawiam serdecznie,
B8: =taal!A13 -> SIMPLE OU DOUBLE PENTE | G8: =IF(I73=0,"",I73) -> 
B9: =taal!A14 -> TYPE DE TOITURE | D9: RAL | E9: =IF(AND(type=5,OR(E10="",E10=0,E11="",E11=0)),taal!A10&" ?",taal!A10) -> CODE POUDRE
B10: =taal!A51&" "&taal!A15 -> CHOIX DE COULEURS EXTERIEURE | D10: 9010 | E10: RWB964 | G10: =IF(D10=0,taal!$A$12,"") -> 
B11: =taal!A51&" "&taal!A16 -> CHOIX DE COULEURS INTERIEURE | D11: =0 -> 0 | E11: 0 | G11: =IF(AND(type=5,D11=0),taal!$A$12,"") -> 
B12: =IF(type=3,"*",taal!A21) -> CONSTRUCTION | D12: =articles!L2 -> RAL 9010 blanc
C13: =taal!A567 -> LARGEUR DES PORTEURS BOIS EN mm | D13: 56 | E13: =IF(type=5,taal!A577,taal!A576) -> Le standard est 56 mm
B14: =taal!A42 -> FINITION
B15: =taal!A120 -> DIMENSIONS EXT. OSSATURE EN BOIS | C15: =taal!A78 -> LARGEUR EN mm | D15: 0 | E15: =IF(nul=0,"*",IF(muur>2,taal!A339&" "&D15+10&" mm",IF(muur=2,taal!A340&" "&D15+5&" mm",""))) -> *
B16: =IF(zadel=2,taal!A80,"") ->  | C16: =taal!$A$79 -> PROFONDEUR EN mm | D16: 0 | E16: =IF(ISNA(calcul!D312)=TRUE,"",IF(calcul!D312=0,""&taal!A118,""))&IF(D16<100,taal!A569&" ?",IF(calcul!E37=0,taal!A117,""))&IF(OR(AND(type=5,calcul!B2>6100),calcul!B2>7000)," "&taal!A398,"") -> PROFONDEUR ?
B17: =taal!A138 -> ANGLE (STANDARD 10°) | D17: 10 | E17: =IF(AND(calcul!D6>9.8,calcul!D6<10.2),"",taal!A139&IF(maat2<>2," ="&ROUND(calcul!D6,2)&"°","")) -> 
B18: =taal!A45 -> TYPE DE PLAQUE | D18: =IF(OR(nul=0,type=1),"*",IF(plaat=1,IF(calcul!B9>KS!C21*10,taal!A142,IF(rest=1,"*"," "&calcul!B50&" mm "&calcul!A50)),"")) -> *
C19: =IF(plaat>1,taal!A104,taal!A49) -> EPAISSEUR DE PLAQUE EN mm | D19: 32 | E19: =IF(OR(plaat=2,plaat=3),calcul!L33&" "&calcul!K34&" "&calcul!K35&calcul!K36,"") -> 
C20: =IF(plaat=1,taal!A48,"*") -> LARGEUR DE PLAQUE EN mm | D20: 1230 | E20: =IF(AND(plaat=1,E90="")=TRUE,taal!A115,"") -> 
B21: =taal!A50 -> LARGEUR RÉPARTITION VITRAGE | D21: =IF(nul=0,"*",IF(AND(rest=2,ROUND(calcul!D51,0)=-22)=TRUE,"*",IF(rest=1,ROUND(calcul!B53,0),IF(rest=2,calcul!D51,IF(rest=3,calcul!D52,"*"))))) -> * | E21: =IF(nul=0,"*",IF(AND(type>1,calcul!B50=D15,rest=3)=TRUE,taal!A121,IF(AND(rest=2,calcul!D51<60)=TRUE,taal!A110,IF(AND(rest=2,calcul!D51<250,calcul!D51>0)=TRUE,taal!A111,IF(AND(plaat=1,rest=1)=TRUE,taal!A112,"")))))&IF(rest=1," "&taal!A144&" : "&calcul!B56&" mm","") -> *
B22: =IF(AND(rest=1,calcul!B53>'input data'!D20+0.5,plaat=1)=TRUE,taal!A118,"*") -> * | C22: =IF(rest=1,taal!A100,"*") -> * | D22: 7 | E22: =IF(plaat=1,IF(AND(rest=1,breed>D20),taal!A397,""),IF(D21>750,taal!A397,"")) -> 
B23: =IF(plaat=2,"",taal!A76) -> CHOIX ENTRE PLAQUES SYNTHETIQUES | D23: =IF(ISNA(H64)=TRUE,"",IF('input data'!H64=2," ! OFFER : "&KS!DM119&" €/m²",""))&IF(KS!C23=0,taal!A421,"")&IF(AND(KS!C25=1,D25>499),taal!A118,IF(KS!C25=1,taal!A422,"")) -> 
B24: =IF(plaat=1,taal!A383,"") -> FINITION PLAQUES
B25: =taal!A395 -> DETERMINEZ LA CHARGE (N/m²) | C25: =taal!A113 -> CHARGE NEIGE ET VITRAGE | D25: 350
B26: =taal!A72 -> CHOIX ENTRE GOUTTIERES | E26: =IF(nul=0,"*",IF(E143=TRUE,taal!A285,IF(INDEX(E123:E125,B123)=taal!A404,taal!A155,""))) -> *
B27: =taal!A176 -> PIECE DE REHAUSSE GOUTTIERE | F27: =IF((verzagen=1),"%","") -> 
D29: =taal!A122 -> REDUCTION | E29: =IF(reset!C27+D30=0,taal!A126,taal!A127)&IF(D30<>0,"",IF(reset!C27=0,""," !")) -> BRUT
A30: 0 | B30: =IF(type=3,taal!A124,taal!A123)&IF(reset!C29=0,""," !") -> PROFILES PERGOLUX BRUT | C30: =IF(reset!$C$29=0,articles!W311,articles!W311*(100+reset!$C$29*100)/100) -> 0 | E30: =IF(D30<>0,((articles!W311*(1-D30/100))*(1-extrakorting)*(1+INDEX(E128:E137,B128))),((articles!W311*(1-(reset!C27*100)/100)*(1+(reset!C29*100)/100))*(1-extrakorting)*(1+INDEX(E128:E137,B128)))) -> 0 | F30: =IF(INDEX(E128:E137,B128)>0.001," "&taal!A128&" "&INDEX(E128:E137,B128)*100&" %","") -> 
B31: =taal!A289&" / "&taal!A290 -> CHANGEMENT COULEUR / POUDRE SPÉCIALE | C31: =IF(reset!$C$29=0,articles!W312,articles!W312*(100+reset!$C$29*100)/100) -> 0 | E31: =C31*(1+INDEX(E128:E137,B128)) -> 0
B32: =IF(D16=0,"",IF(articles!N311=TRUE,taal!A406,IF(A143>0,taal!A405,""))) -> 
B33: =IF(AND(ral=4,SUM(articles!T251:T255)>0),taal!A228,"") ->  | C33: =IF(plaat>1,taal!A362,"") ->  | D33: =taal!A122 -> REDUCTION | E33: =IF(reset!C28+D34=0,taal!A126,taal!A127)&IF(D34<>0,"",IF(reset!C28=0,""," !")) -> BRUT
B34: =IF(plaat=1,taal!A125,"")&IF(reset!C29=0,""," !") -> PLAQUES SYNTHETIQUES BRUT | C34: =IF(reset!$C$29=0,IF('input data'!H64=1,'input data'!H66,'input data'!I66),IF('input data'!H64=1,'input data'!H66,'input data'!I66)*(100+reset!$C$29*100)/100) -> 0 | E34: =IF('input data'!H64=1,'input data'!H68,'input data'!I67)*(1+(reset!C29*100)/100) -> 0 | F34: =IF(INDEX(E128:E137,B128)>0.001," "&taal!A128&" "&INDEX(E128:E137,B128)*100&" %","*") -> *
B35: =INDEX(E116:E119,afwpl) -> PAS DÉCOUPÉ | C35: =IF(AND(afwpl>1,plaat=1),articles!W329,0) -> 0 | E35: =IF(C35="",0,C35*(100-D35)/100*(1+INDEX(E128:E137,B128))) -> 0
B36: =articles!A328 ->  | C36: =IF(KS!B83=1,articles!W328,"") ->  | E36: =IF(C36<>"",C36*(1-D36/100)*(1+INDEX(E128:E137,B128)),0) -> 0 | F36: =IF(C36="","",IF(INDEX(E128:E137,B128)>0.001," "&taal!A127&" "&INDEX(E128:E137,B128)*100&" %","*")) -> 
B37: =IF(C37="","",taal!A153&" "&taal!A131) -> BRUT ARTICLES SUPPLEMENTAIRS | C37: =IF(ISNUMBER(articles!O342)=TRUE,articles!O342,"") -> 0 | E37: =IF(C37<>"",C37*(1-D37/100)*(1+INDEX(E128:E137,B128)),0) -> 0 | F37: =IF(C37="","",IF(INDEX(E128:E137,B128)>0.001," "&taal!A128&" "&INDEX(E128:E137,B128)*100&" %","*")) -> *
B38: =taal!A129 -> TRANSPORT / PALETTE | F38: =IF(C38="","",IF(INDEX(E129:E138,B129)>0.001," "&taal!A129&" "&INDEX(E129:E138,B129)*100&" %","*")) -> 
B40: =taal!A108 -> PRIX AU TOTAL | D40: =+E29 -> BRUT | E40: =E30+E31+E34+E35+E36+E37+E38 -> 0
B42: =taal!A170 -> REMARQUES
A47: copyright © climafast all rights reserved | C47: version | D47: Pergofast 11-04-2024 Int.
B49: 2 | C49: taal | D49: 1 | E49: =taal!C2 -> NEDERLANDS
D50: 2 | E50: =taal!D2 -> FRANCAIS | H50: tijd | I50: =NOW() -> 45393.73454
D51: 3 | E51: =taal!E2 -> DEUTSCH | I51: =NOW() -> 2024-04-11T17:37:44.010
D52: 4 | E52: =taal!F2 -> ENGLISH | G52: Pergo 1
D53: 5 | E53: =taal!G2 -> POLSKI | G53: Pergo M1
B54: 1 | C54: pc | D54: 1 | E54: =taal!A40 -> OUI
B55: 5 | D55: 2 | E55: =taal!A41 -> NON | G55: Buiten | H55: binnen | I55: standaard kleur
A56: =IF(INDEX(E56:E61,ral)=taal!$A$404,1,0) -> 0 | B56: 2 | C56: ral | D56: 1 | E56: =taal!A8 -> BRUT | F56: =IF(type=5,taal!A8,"") ->  | G56: =taal!C8 -> BRUT | H56: =taal!C8 -> BRUT | I56: =IF(AND(ral=5,OR(,D10=10000,UPPER(D10)="10000MAT")),1,0) -> 0 | J56: =IF(AND(ral=6,D10="7016ST",E10="AE03057701620"),"RAL7016ST","") -> 
A57: =IF(INDEX(F56:F61,ralin)=taal!$A$404,1,0) -> 0 | B57: =IF(type=5,B58,ral) -> 2 | C57: ralin | D57: 2 | E57: =IF(type>1,taal!A4,taal!A404) -> RAL 9010 blanc | F57: =IF(type>4,taal!A4,"") ->  | G57: RAL9010 | H57: RAL9010 | I57: =IF(AND(type<>2,ralstandout=1),1,IF(AND(type=2,B59=7),ralstandout,IF(AND(ralin=5,OR(D11=10000,UPPER(D11)="10000MAT")),1,0))) -> 0
B58: =IF(B59=7,ral,B59) -> 2 | D58: 3 | E58: =IF(AND(type>3,zadel=1),taal!A7,taal!A404) -> RAL7016ST | F58: =IF(type>4,taal!A4,"") ->  | G58: RAL7016ST | H58: RAL9010
B59: 7 | D59: 4 | E59: =IF(AND(type>2,type<6,zadel=1),taal!A6,taal!A404) -> RAL 8019 brun | F59: =IF(AND(type>4,zadel=1),taal!A6,"") ->  | G59: RAL8019 | H59: RAL8019
D60: 5 | E60: =IF(type=5,"RALXXXX",taal!A404) -> faire un autre choix! | F60: =IF(type=5,"RALYYYY","") ->  | G60: =UPPER("RAL"&""&$D$10) -> RAL9010 | H60: ="RAL"&""&IF(B59=7,UPPER($D$10),UPPER($D$11)) -> RAL9010
D61: 6 | E61: =IF(type=5,UPPER("STRUCT RALXXXXST"),taal!A404) -> faire un autre choix! | F61: =IF(type=5,"STRUCT RALYYYYST","") ->  | G61: =UPPER("RAL"&""&$D$10) -> RAL9010 | H61: ="RAL"&""&IF(B59=7,UPPER($D$10),UPPER($D$11)) -> RAL9010 | J61: =IF(AND(ral=6,E10=""),1,0) -> 0
F62: =IF(type=5,taal!A9,"") ->  | H62: =taal!B9 -> = COULEUR EXTÉRIEUR | J62: =IF(AND(B59<>7,ralin=6,E11=""),1,0) -> 0
E63: =taal!A17 -> TOITURE SIMPLE PENTE
B64: 1 | C64: zadel | E64: =taal!A18 -> TOITURE DOUBLE PENTE | H64: =IF(ISNA(KS!DM119)=TRUE,"",IF(KS!DM119="",1,2)) -> 1
B65: 4 | C65: type | D65: 1 | E65: =taal!A545 -> ALU
D66: 2 | E66: =taal!A546 -> COULEUR | H66: =IF(plaat=1,articles!O330-articles!W328,"") -> 0 | I66: =IF(ISNA(KS!DM119)=TRUE,0,IF(KS!DM119="",0,ROUND(articles!O330,2))) -> 0
D67: 3 | E67: =taal!A547 -> THERM | H67: =IF('input data'!H66="",0,IF(D34<>0,('input data'!H66+articles!W328)*(1-'input data'!D34/100)*(1+INDEX('input data'!E128:E137,'input data'!B128)),('input data'!H66+articles!W328)*((1-(reset!C28*100)/100))*(1+INDEX('input data'!E128:E137,'input data'!B128)))) -> 0 | I67: =IF('input data'!H66="",0,'input data'!I66*(1-'input data'!D34/100)*(1+INDEX('input data'!E128:E137,'input data'!B128))) -> 0
D68: 4 | E68: =taal!A548 -> COULEUR THERM | H68: =IF('input data'!H66="",0,IF(D34<>0,'input data'!H66*(1-'input data'!D34/100)*(1+INDEX('input data'!E128:E137,'input data'!B128)),'input data'!H66*((1-(reset!C28*100)/100))*(1+INDEX('input data'!E128:E137,'input data'!B128)))) -> 0
D69: 5 | E69: =taal!A549 -> COULEUR THERM GLASS
I70: aantal set
B71: 1 | C71: muur | D71: 1 | E71: =IF(zadel=1,taal!A23,taal!A22) -> CONTRE 1 MUR | I71: =sets!V2 -> 0
D72: 2 | E72: =IF(zadel=1,taal!A24,taal!A28) -> 1 MUR ET 1 MUR LATERAL | I72: aantal art.
D73: 3 | E73: =IF(zadel=1,taal!A25,taal!A29) -> 1 MUR ET 2 MURS LATERAUX | I73: =COUNT(articles!N3:N308,articles!N314:N327,articles!A332:B341) -> 0
D74: 4 | E74: =IF(zadel=1,taal!A26,taal!A30) -> ENTRE 4 MURS
E75: =taal!A78 -> LARGEUR EN mm
B76: 1 | C76: maat 1 (alleen diepte) | E76: =taal!$A$79 -> PROFONDEUR EN mm
B79: 2 | C79: maat 2 | D79: ONWAAR | E79: =taal!A81 -> DELTA H IN mm
E80: =taal!A82 -> ANGLE EN °
E81: =taal!A83 -> LONGUEUR PORTEUR EN mm
B82: 1
A83: =IF(INDEX(E83:E85,plaat)=taal!$A$404,1,0) -> 0 | B83: 1 | C83: plaat | D83: 1 | E83: =taal!A32 -> PLAQUE SYNTHETIQUE
B84: =D19 -> 32 | C84: dik | D84: 2 | E84: =IF(OR(type=1,type=3,type=4)=TRUE,taal!A404,taal!A35) -> faire un autre choix!
D85: 3 | E85: =IF(OR(type=1,type=3,type=4)=TRUE,taal!A404,taal!A36) -> faire un autre choix!
B86: =IF(rest=1,calcul!B53,calcul!C49) -> 1230 | C86: breed | D86: 3
A87: =IF(INDEX(E87:E89,rest)=taal!$A$404,1,0) -> 0 | B87: 3 | C87: rest | D87: 1 | E87: =IF(type=1,taal!A404,F87) -> LARGEURS IDENTIQUES | F87: =taal!A37 -> LARGEURS IDENTIQUES
D88: 2 | E88: =IF(OR(type=1,plaat>1),taal!A404,F88) -> CHUTE GAUCHE OU DROITE (M OU N) | F88: =IF(plaat>1,"",taal!A38) -> CHUTE GAUCHE OU DROITE (M OU N)
D89: 3 | E89: =IF(plaat>1,taal!A404,F89) -> CHUTES GAUCHE ET DROITE (M ET N) | F89: =IF(plaat>1,"",taal!A39) -> CHUTES GAUCHE ET DROITE (M ET N)
B90: 1 | C90: ks | E90: =IF(plaat=1,KS!F44,"") -> POLYCLEAR TOP-X6 CLAIR
E91: =IF(plaat=1,KS!F45,"") -> POLYCLEAR TOP-X6 OPALIN
E92: =IF(plaat=1,KS!F46,"") -> POLYCLEAR TOP X11 EP CLAIR
E93: =IF(plaat=1,KS!F47,"") -> POLYCLEAR TOP X11 EP OPALIN
E94: =IF(plaat=1,KS!F48,"") -> POLYCLEAR REFLEX PEARL32 EP OPALIN
E95: =IF(plaat=1,KS!F49,"") -> POLYCLEAR PRIMALITE 32 EP SATIN
E96: =IF(plaat=1,KS!F50,"") -> POLYCLEAR PRIMALITE 32 EP CLAIR
E97: =IF(plaat=1,KS!F51,"") -> POLYCLEAR RELAX HX OPALIN
E98: =IF(plaat=1,KS!F52,"") -> PLEXIGLAS RESIST S5P OPALIN
E99: =IF(plaat=1,KS!F53,"") -> PLEXIGLAS S5P HEATSTOP
E100: =IF(plaat=1,KS!F54,"") -> 
E101: =IF(plaat=1,KS!F55,"") -> 
E102: =IF(plaat=1,KS!F56,"") -> 
E103: =IF(plaat=1,KS!F57,"") -> 
E104: =IF(plaat=1,KS!F58,"") -> 
E105: =IF(plaat=1,KS!F59,"") -> 
E106: =IF(plaat=1,KS!F60,"") -> 
E107: =IF(plaat=1,KS!F61,"") -> 
E108: =IF(plaat=1,KS!F62,"") -> 
E109: =IF(plaat=1,KS!F63,"") -> 
E110: =IF(plaat=1,KS!F64,"") -> 
E111: =IF(plaat=1,KS!F65,"") -> 
E112: =IF(plaat=1,KS!F66,"") -> 
E113: =IF(plaat=1,KS!F67,"") -> 
E114: =IF(plaat=1,KS!F68,"") -> 
E115: =IF(plaat=1,KS!F71,"") -> 
B116: 1 | C116: afwpl | D116: 1 | E116: =F116 -> PAS DÉCOUPÉ | F116: =IF(plaat=1,taal!A384,"") -> PAS DÉCOUPÉ
D117: 2 | E117: =F117 -> faire un autre choix! | F117: =IF(plaat=1,taal!A404,"") -> faire un autre choix!
D118: 3 | E118: faire un autre choix! | F118: =IF(AND(plaat=1,KS!C24=0),taal!A404,"") -> faire un autre choix!
D119: 4 | E119: faire un autre choix! | F119: =IF(AND(plaat=1,KS!C24=0),taal!A404,"") -> faire un autre choix!
A120: =IF(INDEX(E120:E122,cl)=taal!$A$404,1,0) -> 0 | B120: 1 | C120: cl | D120: 1 | E120: =IF(type>2,F120,taal!A404) -> CLIPS 16 / 32 | F120: =IF(KS!B82=0,taal!A85&IF(type=3," CLPV "&taal!A418," 16 / 32"),taal!A404) -> CLIPS 16 / 32
D121: 2 | E121: =IF(type<3,F121,taal!A404) -> faire un autre choix! | F121: =IF(KS!B82=0,taal!A86,taal!A404) -> JOINT
D122: 3 | E122: =IF(type<5,taal!A404,F122) -> faire un autre choix! | F122: =taal!A87 -> CLIPS A SERRAGE
A123: =IF(INDEX(E123:E125,goot)=taal!$A$404,1,0) -> 0 | B123: 1 | C123: goot | D123: 1 | E123: =IF(type=5,taal!A404,F123) -> GOUTTIERE 120A | F123: =taal!A75 -> GOUTTIERE 120A
D124: 2 | E124: =IF(type=5,F124,taal!A404) -> faire un autre choix! | F124: =taal!A73 -> GOUTTIERE CLIMAX
D125: 3 | E125: =+taal!A361 -> SANS GOUTTIERE
B126: 2 | C126: gr | D126: 1 | E126: =IF(goot<3,taal!A40,"") -> OUI
D127: 2 | E127: =IF(goot<3,taal!A41,"") -> NON
B128: 1 | C128: percent | D128: 1 | E128: 0
D129: 2 | E129: 0.21
D130: 3 | E130: 0.2
D131: 4 | E131: 0.19
D132: 5 | E132: 0.16
D133: 6 | E133: 0.15
D134: 7 | E134: 0.1
D135: 8 | E135: 0.06
D136: 9 | E136: 0.055
D137: 10 | E137: =taal!A404 -> faire un autre choix!
E138: =INDEX(E128:E137,percent) -> 0
B139: 2 | C139: verzagen | D139: 1 | E139: =taal!A40 -> OUI
D140: 2 | E140: =taal!A41 -> NON
B141: 2 | C141: verw | D141: 1 | E141: =taal!A40 -> OUI
D142: 2 | E142: =taal!A41 -> NON
A143: =SUM(A56:A57,A83,A87,A120,A123) -> 0 | E143: FALSE
B144: 1
B145: =INDEX(B146:B178,$B$144) -> 0 | E145: =INDEX(E146:E178,$B$144) -> 0 | F145: =INDEX(F146:F178,$B$144) -> 0 | H145: =INDEX(H146:H178,$B$144) -> 0
B148: Anthony Vervaeke | D148: AV | E148: 0032(0)56 24 81 15 | F148: av@skylux.be | H148: 0
B149: Bart Goethals | D149: BG | E149: 0032(0)56 24 81 16 | F149: bg@skylux.be | H149: 0
B150: Bert Himpe | D150: BH | E150: 0032(0)56 24 81 17 | F150: bh@skylux.be | H150: 0
B151: Bjorven Damman | D151: BJDA | E151: 0032(0)471 70 07 46 | F151: bjda@skylux.be | H151: 1
B152: Brecht Declercq | D152: BDC | E152: 0032(0)56 24 81 25 | F152: brde@skylux.be | H152: 0
B153: Christophe De Ruyck | D153: CD | E153: 0032(0)56 24 81 14 | F153: cd@skylux.be | H153: 0
B154: Fabio Decorte | D154: FADC | E154: 0032(0)477989675 | F154: fd@skylux.be | H154: 1
B155: Frederik Simoens | D155: FRSI | E155: 056/24.81.65 | F155: frsi@skylux.be | H155: 0
B156: Iris Casteleyn | D156: IRCA | E156: 0032(0)56 23 52 74 | F156: irca@skylux.be | H156: 0
B157: Jan Desmet | D157: JADS | E157: 0032(0)56 24 81 45 | F157: jd@skylux.be | H157: 1
B158: Jean-Pierre Morival | D158: JPMO | E158: 06 70 78 80 96 | F158: jpm@skylux.be | H158: 0
B159: Jessy Merckx | D159: JEMR | E159: 0032(0)476/90 28 46 | F159: jemr@skylux.be | H159: 1
B160: Jimmy Peirs | D160: JIPE | E160: 0032(0)473/20 00 15 | F160: jipe@skylux.be | H160: 0
B161: Jochen Demets | D161: JODM | E161: 0032(0)56 24 81 00 | F161: jode@skylux.be | H161: 0
B162: Johan Eerlings | F162: je@skylux.be | H162: 0
B163: John Desmet | D163: JDS | E163: 0032(0)56 24 81 12 | F163: jds@skylux.be | H163: 0
B164: Laurent Barraud | D164: LABA | E164: 0033(0)744 72 49 27 | F164: laba@skylux.be | H164: 0
B165: Laurent Gilsoul | E165: 0032(0)477777563 | F165: lg@skylux.be | H165: 1
B166: Laurent Steu | E166: 06 73 30 35 94 | F166: last@skylux.be | H166: 0
B167: Lode Schamelhout | D167: LS | E167: 0032(0)56 24 81 11 | F167: ls@skylux.be | H167: 0
B168: Maikel Klaver | D168: MAKL | E168: 0031(0)653625159 | F168: makl@skylux.be | H168: 1
B169: Marc Fays | D169: MAFA | E169: 0032(0)471775072 | F169: mafa@skylux.be | H169: 1
B170: Michel Francisse | E170: 0032(475)460348 | F170: mf@skylux.be | H170: 1
B171: Olivier Chambard | D171: OLCH | E171: 0032(0)56 23 52 93 | F171: olch@skylux.be | H171: 0
B172: Phillipe Dehondt | E172: 06 80 40 72 42 | F172: pdh@skylux.be | H172: 0
B173: Piet Pluym | D173: PP | E173: 0032(0)56 24 81 13 | F173: pp@skylux.be | H173: 0
B174: Regis Lebailly | D174: RELB | E174: 0033(0)633 06 14 05 | F174: relb@skylux.be | H174: 0
B175: Sandrine Vancauwenberghe | D175: SV | E175: 0032(0)56248104 | F175: sv@skylux.be | H175: 0
B176: Stéphane Jarczewski | D176: STJA | E176: 0033(0)611 62 97 83 | F176: stja@skylux.be | H176: 0
B177: Vincent Wybo | D177: VIWY | E177: 0032(0)56237443 | F177: viwy@skylux.be | H177: 0
B178: Yannick Carnel | D178: YACA | E178: 0033(0)646 89 94 58 | F178: yaca@skylux.be | H178: 0

Sheet sets
A1: =taal!A92 -> CHOIX PAR SET | B1: SETLIJST CLIMAX | D1: =articles!L2 -> RAL 9010 blanc | V1: overrulen | W1: =D1 -> RAL 9010 blanc
V2: =SUMIF(V3:V87,">0") -> 0
A3: =taal!A298 -> FINITION MUR | B3: MUURAFWERKING
A4: ALU & COLOR | C4: 3500 | D4: 3500 | E4: 4250 | F4: 4250 | G4: 5000 | H4: 5000 | I4: 7000 | J4: 7000 | W4: 3500 | X4: 4250 | Y4: 5000 | Z4: 7000
A5: M16 + C4CX | B5: =$A$4&" "&A5 -> ALU & COLOR M16 + C4CX | C5: =IF(pckeuze!B32=0,"",IF(AND(pckeuze!B32=1,calcul!B71>0)=TRUE,calcul!B71,"")) ->  | E5: ="" ->  | G5: =IF(pckeuze!B32=0,"",IF(AND(pckeuze!B32=1,calcul!E71>0)=TRUE,calcul!E71,"")) ->  | I5: =IF(pckeuze!B32=0,"",IF(AND(pckeuze!B32=1,calcul!G71>0)=TRUE,calcul!G71,"")) ->  | V5: =COUNTIF(D5,">=0")+COUNTIF(F5,">=0")+COUNTIF(H5,">=0")+COUNTIF(J5,">=0") -> 0 | W5: =IF(AND(ISBLANK(D5),ISBLANK(C5))=TRUE,"",IF(ISBLANK(D5)=TRUE,C5,D5)) ->  | X5: =IF(AND(ISBLANK(F5),ISBLANK(E5))=TRUE,"",IF(ISBLANK(F5)=TRUE,E5,F5)) ->  | Y5: =IF(AND(ISBLANK(H5),ISBLANK(G5))=TRUE,"",IF(ISBLANK(H5)=TRUE,G5,H5)) ->  | Z5: =IF(AND(ISBLANK(J5),ISBLANK(I5))=TRUE,"",IF(ISBLANK(J5)=TRUE,I5,J5)) -> 
A6: M32T + M32B + C4CX | B6: =$A$4&" "&A6 -> ALU & COLOR M32T + M32B + C4CX | C6: =IF(pckeuze!B33=0,"",IF(AND(pckeuze!B33=1,calcul!B71>0)=TRUE,calcul!B71,"")) ->  | E6: ="" ->  | G6: =IF(pckeuze!B33=0,"",IF(AND(pckeuze!B33=1,calcul!E71>0)=TRUE,calcul!E71,"")) ->  | I6: =IF(pckeuze!B33=0,"",IF(AND(pckeuze!B33=1,calcul!G71>0)=TRUE,calcul!G71,"")) ->  | V6: =COUNTIF(D6,">=0")+COUNTIF(F6,">=0")+COUNTIF(H6,">=0")+COUNTIF(J6,">=0") -> 0 | W6: =IF(AND(ISBLANK(D6),ISBLANK(C6))=TRUE,"",IF(ISBLANK(D6)=TRUE,C6,D6)) ->  | X6: =IF(AND(ISBLANK(F6),ISBLANK(E6))=TRUE,"",IF(ISBLANK(F6)=TRUE,E6,F6)) ->  | Y6: =IF(AND(ISBLANK(H6),ISBLANK(G6))=TRUE,"",IF(ISBLANK(H6)=TRUE,G6,H6)) ->  | Z6: =IF(AND(ISBLANK(J6),ISBLANK(I6))=TRUE,"",IF(ISBLANK(J6)=TRUE,I6,J6)) -> 
A7: THERM & COLOR THERM | C7: 3500 | D7: 3500 | E7: 4250 | F7: 4250 | G7: 5000 | H7: 5000 | I7: 7000 | J7: 7000 | W7: 3500 | X7: 4250 | Y7: 5000 | Z7: 7000
A8: MP + CLM + C1CX + C12 | B8: =$A$7&" "&A8 -> THERM & COLOR THERM MP + CLM + C1CX + C12 | C8: =IF(pckeuze!B34=0,"",IF(AND(pckeuze!B34=1,calcul!B71>0)=TRUE,calcul!B71,"")) ->  | E8: ="" ->  | G8: =IF(pckeuze!B34=0,"",IF(AND(pckeuze!B34=1,calcul!E71>0)=TRUE,calcul!E71,"")) ->  | I8: =IF(pckeuze!B34=0,"",IF(AND(pckeuze!B34=1,calcul!G71>0)=TRUE,calcul!G71,"")) ->  | V8: =COUNTIF(D8,">=0")+COUNTIF(F8,">=0")+COUNTIF(H8,">=0")+COUNTIF(J8,">=0") -> 0 | W8: =IF(AND(ISBLANK(D8),ISBLANK(C8))=TRUE,"",IF(ISBLANK(D8)=TRUE,C8,D8)) ->  | X8: =IF(AND(ISBLANK(F8),ISBLANK(E8))=TRUE,"",IF(ISBLANK(F8)=TRUE,E8,F8)) ->  | Y8: =IF(AND(ISBLANK(H8),ISBLANK(G8))=TRUE,"",IF(ISBLANK(H8)=TRUE,G8,H8)) ->  | Z8: =IF(AND(ISBLANK(J8),ISBLANK(I8))=TRUE,"",IF(ISBLANK(J8)=TRUE,I8,J8)) -> 
A9: COLOR THERM GLAS | B9: =$A$7&" "&A9 -> THERM & COLOR THERM COLOR THERM GLAS | C9: 3500 | D9: 3500 | E9: 4250 | F9: 4250 | G9: 5000 | H9: 5000 | I9: 7000 | J9: 7000 | W9: 3500 | X9: 4250 | Y9: 5000 | Z9: 7000
A10: MP + C31 + CLM + C1CX + C12 | B10: =A9&" "&A10 -> COLOR THERM GLAS MP + C31 + CLM + C1CX + C12 | C10: =IF(pckeuze!B35=0,"",IF(AND(pckeuze!B35=1,calcul!B71>0)=TRUE,calcul!B71,"")) ->  | E10: ="" ->  | G10: =IF(pckeuze!B35=0,"",IF(AND(pckeuze!B35=1,calcul!E71>0)=TRUE,calcul!E71,"")) ->  | I10: =IF(pckeuze!B35=0,"",IF(AND(pckeuze!B35=1,calcul!G71>0)=TRUE,calcul!G71,"")) ->  | V10: =COUNTIF(D10,">=0")+COUNTIF(F10,">=0")+COUNTIF(H10,">=0")+COUNTIF(J10,">=0") -> 0 | W10: =IF(AND(ISBLANK(D10),ISBLANK(C10))=TRUE,"",IF(ISBLANK(D10)=TRUE,C10,D10)) ->  | X10: =IF(AND(ISBLANK(F10),ISBLANK(E10))=TRUE,"",IF(ISBLANK(F10)=TRUE,E10,F10)) ->  | Y10: =IF(AND(ISBLANK(H10),ISBLANK(G10))=TRUE,"",IF(ISBLANK(H10)=TRUE,G10,H10)) ->  | Z10: =IF(AND(ISBLANK(J10),ISBLANK(I10))=TRUE,"",IF(ISBLANK(J10)=TRUE,I10,J10)) -> 
A12: =taal!A301 -> FINITION GOUTTIERE | B12: GOOTAFWERING | C12: 3500 | D12: 3500 | E12: 4250 | F12: 4250 | G12: 5000 | H12: 5000 | I12: 7000 | J12: 7000 | W12: 3500 | X12: 4250 | Y12: 5000 | Z12: 7000
A13: G120A | B13: =A13 -> G120A | C13: =IF(pckeuze!B38=0,"",IF(AND(pckeuze!B38=1,calcul!B71>0)=TRUE,calcul!B71,"")) ->  | E13: ="" ->  | G13: =IF(pckeuze!B38=0,"",IF(AND(pckeuze!B38=1,calcul!E71>0)=TRUE,calcul!E71,"")) ->  | I13: =IF(pckeuze!B38=0,"",IF(AND(pckeuze!B38=1,calcul!G71>0)=TRUE,calcul!G71,"")) ->  | V13: =COUNTIF(D13,">=0")+COUNTIF(F13,">=0")+COUNTIF(H13,">=0")+COUNTIF(J13,">=0") -> 0 | W13: =IF(AND(ISBLANK(D13),ISBLANK(C13))=TRUE,"",IF(ISBLANK(D13)=TRUE,C13,D13)) ->  | X13: =IF(AND(ISBLANK(F13),ISBLANK(E13))=TRUE,"",IF(ISBLANK(F13)=TRUE,E13,F13)) ->  | Y13: =IF(AND(ISBLANK(H13),ISBLANK(G13))=TRUE,"",IF(ISBLANK(H13)=TRUE,G13,H13)) ->  | Z13: =IF(AND(ISBLANK(J13),ISBLANK(I13))=TRUE,"",IF(ISBLANK(J13)=TRUE,I13,J13)) -> 
A14: G | B14: =A14 -> G | C14: =IF(pckeuze!B39=0,"",IF(AND(pckeuze!B39=1,calcul!B72>0)=TRUE,calcul!B72,"")) ->  | E14: =IF(pckeuze!B39=0,"",IF(AND(pckeuze!B39=1,calcul!D72>0)=TRUE,calcul!D72,"")) ->  | G14: =IF(pckeuze!B39=0,"",IF(AND(pckeuze!B39=1,calcul!E72>0)=TRUE,calcul!E72,"")) ->  | I14: =IF(pckeuze!B39=0,"",IF(AND(pckeuze!B39=1,calcul!G72>0)=TRUE,calcul!G72,"")) ->  | V14: 0 | W14: =IF(AND(ISBLANK(D14),ISBLANK(C14))=TRUE,"",IF(ISBLANK(D14)=TRUE,C14,D14)) ->  | X14: =IF(AND(ISBLANK(F14),ISBLANK(E14))=TRUE,"",IF(ISBLANK(F14)=TRUE,E14,F14)) ->  | Y14: =IF(AND(ISBLANK(H14),ISBLANK(G14))=TRUE,"",IF(ISBLANK(H14)=TRUE,G14,H14)) ->  | Z14: =IF(AND(ISBLANK(J14),ISBLANK(I14))=TRUE,"",IF(ISBLANK(J14)=TRUE,I14,J14)) -> 
A16: =taal!A325 -> PORTEUR INTERMEDIAIRE
A17: ALU | B17: TUSSENDRAGER | C17: 2000 | E17: 2500 | F17: 2500 | G17: 3000 | H17: 3000 | I17: 3500 | J17: 3500 | K17: 4000 | L17: 4000 | M17: 5000 | N17: 5000 | O17: 6000 | P17: 6000 | Q17: 7000 | R17: 7000 | W17: 2000 | X17: 2500 | Y17: 3000 | Z17: 3500 | AA17: 4000 | AB17: 5000 | AC17: 6000 | AD17: 7000
A18: T16.1 + C2CX + 2 x C3 | B18: =$A$17&" "&A18 -> ALU T16.1 + C2CX + 2 x C3 | E18: =IF(pckeuze!B4=0,"",IF(AND(pckeuze!B4=1,calcul!$D$61=2500)=TRUE,calcul!$B$62,"")) ->  | G18: =IF(pckeuze!B4=0,"",IF(AND(pckeuze!B4=1,calcul!$D$61=3000)=TRUE,calcul!$B$62,"")) ->  | I18: =IF(pckeuze!B4=0,"",IF(AND(pckeuze!B4=1,calcul!$D$61=3500)=TRUE,calcul!$B$62,"")) ->  | K18: =IF(pckeuze!B4=0,"",IF(AND(pckeuze!B4=1,calcul!$D$61=4000)=TRUE,calcul!$B$62,"")) ->  | M18: =IF(pckeuze!B4=0,"",IF(AND(pckeuze!B4=1,calcul!$D$61=5000)=TRUE,calcul!$B$62,"")) ->  | O18: =IF(pckeuze!B4=0,"",IF(AND(pckeuze!B4=1,calcul!$D$61=6000)=TRUE,calcul!$B$62,"")) ->  | Q18: =IF(pckeuze!B4=0,"",IF(AND(pckeuze!B4=1,calcul!$D$61=7000)=TRUE,calcul!$B$62,"")) ->  | V18: =COUNTIF(D18,">=0")+COUNTIF(F18,">=0")+COUNTIF(H18,">=0")+COUNTIF(J18,">=0")+COUNTIF(L18,">=0")+COUNTIF(N18,">=0")+COUNTIF(P18,">=0")+COUNTIF(R18,">=0") -> 0 | W18: =IF(AND(ISBLANK(D18),ISBLANK(C18))=TRUE,"",IF(ISBLANK(D18)=TRUE,C18,D18)) ->  | X18: =IF(AND(ISBLANK(F18),ISBLANK(E18))=TRUE,"",IF(ISBLANK(F18)=TRUE,E18,F18)) ->  | Y18: =IF(AND(ISBLANK(H18),ISBLANK(G18))=TRUE,"",IF(ISBLANK(H18)=TRUE,G18,H18)) ->  | Z18: =IF(AND(ISBLANK(J18),ISBLANK(I18))=TRUE,"",IF(ISBLANK(J18)=TRUE,I18,J18)) ->  | AA18: =IF(AND(ISBLANK(L18),ISBLANK(K18))=TRUE,"",IF(ISBLANK(L18)=TRUE,K18,L18)) ->  | AB18: =IF(AND(ISBLANK(N18),ISBLANK(M18))=TRUE,"",IF(ISBLANK(N18)=TRUE,M18,N18)) ->  | AC18: =IF(AND(ISBLANK(P18),ISBLANK(O18))=TRUE,"",IF(ISBLANK(P18)=TRUE,O18,P18)) ->  | AD18: =IF(AND(ISBLANK(R18),ISBLANK(Q18))=TRUE,"",IF(ISBLANK(R18)=TRUE,Q18,R18)) -> 
A19: T32.1 + C2CX + 2 x C3 | B19: =$A$17&" "&A19 -> ALU T32.1 + C2CX + 2 x C3 | E19: =IF(pckeuze!B6=0,"",IF(AND(pckeuze!B6=1,calcul!$D$61=2500)=TRUE,calcul!$B$62,"")) ->  | G19: =IF(pckeuze!B6=0,"",IF(AND(pckeuze!B6=1,calcul!$D$61=3000)=TRUE,calcul!$B$62,"")) ->  | I19: =IF(pckeuze!B6=0,"",IF(AND(pckeuze!B6=1,calcul!$D$61=3500)=TRUE,calcul!$B$62,"")) ->  | K19: =IF(pckeuze!B6=0,"",IF(AND(pckeuze!B6=1,calcul!$D$61=4000)=TRUE,calcul!$B$62,"")) ->  | M19: =IF(pckeuze!B6=0,"",IF(AND(pckeuze!B6=1,calcul!$D$61=5000)=TRUE,calcul!$B$62,"")) ->  | O19: =IF(pckeuze!B6=0,"",IF(AND(pckeuze!B6=1,calcul!$D$61=6000)=TRUE,calcul!$B$62,"")) ->  | Q19: =IF(pckeuze!B6=0,"",IF(AND(pckeuze!B6=1,calcul!$D$61=7000)=TRUE,calcul!$B$62,"")) ->  | V19: =COUNTIF(D19,">=0")+COUNTIF(F19,">=0")+COUNTIF(H19,">=0")+COUNTIF(J19,">=0")+COUNTIF(L19,">=0")+COUNTIF(N19,">=0")+COUNTIF(P19,">=0")+COUNTIF(R19,">=0") -> 0 | W19: =IF(AND(ISBLANK(D19),ISBLANK(C19))=TRUE,"",IF(ISBLANK(D19)=TRUE,C19,D19)) ->  | Y19: =IF(AND(ISBLANK(H19),ISBLANK(G19))=TRUE,"",IF(ISBLANK(H19)=TRUE,G19,H19)) ->  | Z19: =IF(AND(ISBLANK(J19),ISBLANK(I19))=TRUE,"",IF(ISBLANK(J19)=TRUE,I19,J19)) ->  | AA19: =IF(AND(ISBLANK(L19),ISBLANK(K19))=TRUE,"",IF(ISBLANK(L19)=TRUE,K19,L19)) ->  | AB19: =IF(AND(ISBLANK(N19),ISBLANK(M19))=TRUE,"",IF(ISBLANK(N19)=TRUE,M19,N19)) ->  | AD19: =IF(AND(ISBLANK(R19),ISBLANK(Q19))=TRUE,"",IF(ISBLANK(R19)=TRUE,Q19,R19)) -> 
A20: COLOR | B20: TUSSENDRAGER | C20: 2000 | E20: 2500 | F20: 2500 | G20: 3000 | H20: 3000 | I20: 3500 | J20: 3500 | K20: 4000 | L20: 4000 | M20: 5000 | N20: 5000 | O20: 6000 | P20: 6000 | Q20: 7000 | R20: 7000 | W20: 2000 | X20: 2500 | Y20: 3000 | Z20: 3500 | AA20: 4000 | AB20: 5000 | AC20: 6000 | AD20: 7000
A21: T16.2 + C2CX + 2 x C3 | B21: =$A$20&" "&A21 -> COLOR T16.2 + C2CX + 2 x C3 | E21: =IF(pckeuze!B7=0,"",IF(AND(pckeuze!B7=1,calcul!$D$61=2500)=TRUE,calcul!$B$62,"")) ->  | G21: =IF(pckeuze!B7=0,"",IF(AND(pckeuze!B7=1,calcul!$D$61=3000)=TRUE,calcul!$B$62,"")) ->  | I21: =IF(pckeuze!B7=0,"",IF(AND(pckeuze!B7=1,calcul!$D$61=3500)=TRUE,calcul!$B$62,"")) ->  | K21: =IF(pckeuze!B7=0,"",IF(AND(pckeuze!B7=1,calcul!$D$61=4000)=TRUE,calcul!$B$62,"")) ->  | M21: =IF(pckeuze!B7=0,"",IF(AND(pckeuze!B7=1,calcul!$D$61=5000)=TRUE,calcul!$B$62,"")) ->  | O21: =IF(pckeuze!B7=0,"",IF(AND(pckeuze!B7=1,calcul!$D$61=6000)=TRUE,calcul!$B$62,"")) ->  | Q21: =IF(pckeuze!B7=0,"",IF(AND(pckeuze!B7=1,calcul!$D$61=7000)=TRUE,calcul!$B$62,"")) ->  | V21: =COUNTIF(D21,">=0")+COUNTIF(F21,">=0")+COUNTIF(H21,">=0")+COUNTIF(J21,">=0")+COUNTIF(L21,">=0")+COUNTIF(N21,">=0")+COUNTIF(P21,">=0")+COUNTIF(R21,">=0") -> 0 | W21: =IF(AND(ISBLANK(D21),ISBLANK(C21))=TRUE,"",IF(ISBLANK(D21)=TRUE,C21,D21)) ->  | X21: =IF(AND(ISBLANK(F21),ISBLANK(E21))=TRUE,"",IF(ISBLANK(F21)=TRUE,E21,F21)) ->  | Y21: =IF(AND(ISBLANK(H21),ISBLANK(G21))=TRUE,"",IF(ISBLANK(H21)=TRUE,G21,H21)) ->  | Z21: =IF(AND(ISBLANK(J21),ISBLANK(I21))=TRUE,"",IF(ISBLANK(J21)=TRUE,I21,J21)) ->  | AA21: =IF(AND(ISBLANK(L21),ISBLANK(K21))=TRUE,"",IF(ISBLANK(L21)=TRUE,K21,L21)) ->  | AB21: =IF(AND(ISBLANK(N21),ISBLANK(M21))=TRUE,"",IF(ISBLANK(N21)=TRUE,M21,N21)) ->  | AC21: =IF(AND(ISBLANK(P21),ISBLANK(O21))=TRUE,"",IF(ISBLANK(P21)=TRUE,O21,P21)) ->  | AD21: =IF(AND(ISBLANK(R21),ISBLANK(Q21))=TRUE,"",IF(ISBLANK(R21)=TRUE,Q21,R21)) -> 
A22: T32.1 + C2CX + 2 x C3 | B22: =$A$20&" "&A22 -> COLOR T32.1 + C2CX + 2 x C3 | E22: =IF(pckeuze!B9=0,"",IF(AND(pckeuze!B9=1,calcul!$D$61=2500)=TRUE,calcul!$B$62,"")) ->  | G22: =IF(pckeuze!B9=0,"",IF(AND(pckeuze!B9=1,calcul!$D$61=3000)=TRUE,calcul!$B$62,"")) ->  | I22: =IF(pckeuze!B9=0,"",IF(AND(pckeuze!B9=1,calcul!$D$61=3500)=TRUE,calcul!$B$62,"")) ->  | K22: =IF(pckeuze!B9=0,"",IF(AND(pckeuze!B9=1,calcul!$D$61=4000)=TRUE,calcul!$B$62,"")) ->  | M22: =IF(pckeuze!B9=0,"",IF(AND(pckeuze!B9=1,calcul!$D$61=5000)=TRUE,calcul!$B$62,"")) ->  | O22: =IF(pckeuze!B9=0,"",IF(AND(pckeuze!B9=1,calcul!$D$61=6000)=TRUE,calcul!$B$62,"")) ->  | Q22: =IF(pckeuze!B9=0,"",IF(AND(pckeuze!B9=1,calcul!$D$61=7000)=TRUE,calcul!$B$62,"")) ->  | V22: 0 | Y22: =IF(AND(ISBLANK(H22),ISBLANK(G22))=TRUE,"",IF(ISBLANK(H22)=TRUE,G22,H22)) ->  | Z22: =IF(AND(ISBLANK(J22),ISBLANK(I22))=TRUE,"",IF(ISBLANK(J22)=TRUE,I22,J22)) ->  | AA22: =IF(AND(ISBLANK(L22),ISBLANK(K22))=TRUE,"",IF(ISBLANK(L22)=TRUE,K22,L22)) -> 
A23: THERM | B23: TUSSENDRAGER | C23: 2000 | E23: 2500 | F23: 2500 | G23: 3000 | H23: 3000 | I23: 3500 | J23: 3500 | K23: 4000 | L23: 4000 | M23: 5000 | N23: 5000 | O23: 6000 | P23: 6000 | Q23: 7000 | R23: 7000 | W23: 2000 | X23: 2500 | Y23: 3000 | Z23: 3500 | AA23: 4000 | AB23: 5000 | AC23: 6000 | AD23: 7000
A24: T16P + CLPV | B24: =$A$23&" "&A24 -> THERM T16P + CLPV | E24: =IF(pckeuze!B10=0,"",IF(AND(pckeuze!B10=1,calcul!$D$61=2500)=TRUE,calcul!$B$62,"")) ->  | G24: =IF(pckeuze!B10=0,"",IF(AND(pckeuze!B10=1,calcul!$D$61=3000)=TRUE,calcul!$B$62,"")) ->  | I24: =IF(pckeuze!B10=0,"",IF(AND(pckeuze!B10=1,calcul!$D$61=3500)=TRUE,calcul!$B$62,"")) ->  | K24: =IF(pckeuze!B10=0,"",IF(AND(pckeuze!B10=1,calcul!$D$61=4000)=TRUE,calcul!$B$62,"")) ->  | M24: =IF(pckeuze!B10=0,"",IF(AND(pckeuze!B10=1,calcul!$D$61=5000)=TRUE,calcul!$B$62,"")) ->  | O24: =IF(pckeuze!B10=0,"",IF(AND(pckeuze!B10=1,calcul!$D$61=6000)=TRUE,calcul!$B$62,"")) ->  | Q24: =IF(pckeuze!B10=0,"",IF(AND(pckeuze!B10=1,calcul!$D$61=7000)=TRUE,calcul!$B$62,"")) ->  | V24: =COUNTIF(D24,">=0")+COUNTIF(F24,">=0")+COUNTIF(H24,">=0")+COUNTIF(J24,">=0")+COUNTIF(L24,">=0")+COUNTIF(N24,">=0")+COUNTIF(P24,">=0")+COUNTIF(R24,">=0") -> 0 | W24: =IF(AND(ISBLANK(D24),ISBLANK(C24))=TRUE,"",IF(ISBLANK(D24)=TRUE,C24,D24)) ->  | X24: =IF(AND(ISBLANK(F24),ISBLANK(E24))=TRUE,"",IF(ISBLANK(F24)=TRUE,E24,F24)) ->  | Y24: =IF(AND(ISBLANK(H24),ISBLANK(G24))=TRUE,"",IF(ISBLANK(H24)=TRUE,G24,H24)) ->  | Z24: =IF(AND(ISBLANK(J24),ISBLANK(I24))=TRUE,"",IF(ISBLANK(J24)=TRUE,I24,J24)) ->  | AA24: =IF(AND(ISBLANK(L24),ISBLANK(K24))=TRUE,"",IF(ISBLANK(L24)=TRUE,K24,L24)) ->  | AB24: =IF(AND(ISBLANK(N24),ISBLANK(M24))=TRUE,"",IF(ISBLANK(N24)=TRUE,M24,N24)) ->  | AC24: =IF(AND(ISBLANK(P24),ISBLANK(O24))=TRUE,"",IF(ISBLANK(P24)=TRUE,O24,P24)) ->  | AD24: =IF(AND(ISBLANK(R24),ISBLANK(Q24))=TRUE,"",IF(ISBLANK(R24)=TRUE,Q24,R24)) -> 
A25: T16P + Y32 + CLPV | B25: =$A$23&" "&A25 -> THERM T16P + Y32 + CLPV | E25: =IF(pckeuze!B12=0,"",IF(AND(pckeuze!B12=1,calcul!$D$61=2500)=TRUE,calcul!$B$62,"")) ->  | G25: =IF(pckeuze!B12=0,"",IF(AND(pckeuze!B12=1,calcul!$D$61=3000)=TRUE,calcul!$B$62,"")) ->  | I25: =IF(pckeuze!B12=0,"",IF(AND(pckeuze!B12=1,calcul!$D$61=3500)=TRUE,calcul!$B$62,"")) ->  | K25: =IF(pckeuze!B12=0,"",IF(AND(pckeuze!B12=1,calcul!$D$61=4000)=TRUE,calcul!$B$62,"")) ->  | M25: =IF(pckeuze!B12=0,"",IF(AND(pckeuze!B12=1,calcul!$D$61=5000)=TRUE,calcul!$B$62,"")) ->  | O25: =IF(pckeuze!B12=0,"",IF(AND(pckeuze!B12=1,calcul!$D$61=6000)=TRUE,calcul!$B$62,"")) ->  | Q25: =IF(pckeuze!B12=0,"",IF(AND(pckeuze!B12=1,calcul!$D$61=7000)=TRUE,calcul!$B$62,"")) ->  | V25: 0 | W25: =IF(AND(ISBLANK(D25),ISBLANK(C25))=TRUE,"",IF(ISBLANK(D25)=TRUE,C25,D25)) ->  | X25: =IF(AND(ISBLANK(F25),ISBLANK(E25))=TRUE,"",IF(ISBLANK(F25)=TRUE,E25,F25)) ->  | Y25: =IF(AND(ISBLANK(H25),ISBLANK(G25))=TRUE,"",IF(ISBLANK(H25)=TRUE,G25,H25)) ->  | Z25: =IF(AND(ISBLANK(J25),ISBLANK(I25))=TRUE,"",IF(ISBLANK(J25)=TRUE,I25,J25)) ->  | AA25: =IF(AND(ISBLANK(L25),ISBLANK(K25))=TRUE,"",IF(ISBLANK(L25)=TRUE,K25,L25)) ->  | AB25: =IF(AND(ISBLANK(N25),ISBLANK(M25))=TRUE,"",IF(ISBLANK(N25)=TRUE,M25,N25)) ->  | AC25: =IF(AND(ISBLANK(P25),ISBLANK(O25))=TRUE,"",IF(ISBLANK(P25)=TRUE,O25,P25)) ->  | AD25: =IF(AND(ISBLANK(R25),ISBLANK(Q25))=TRUE,"",IF(ISBLANK(R25)=TRUE,Q25,R25)) -> 
A26: COLOR THERM | B26: TUSSENDRAGER | C26: 2000 | E26: 2500 | F26: 2500 | G26: 3000 | H26: 3000 | I26: 3500 | J26: 3500 | K26: 4000 | L26: 4000 | M26: 5000 | N26: 5000 | O26: 6000 | P26: 6000 | Q26: 7000 | R26: 7000 | W26: 2000 | X26: 2500 | Y26: 3000 | Z26: 3500 | AA26: 4000 | AB26: 5000 | AC26: 6000 | AD26: 7000
A27: T16P + CL16 + 2 x C8 | B27: =$A$26&" "&A27 -> COLOR THERM T16P + CL16 + 2 x C8 | E27: =IF(pckeuze!B13=0,"",IF(AND(pckeuze!B13=1,calcul!$D$61=2500)=TRUE,calcul!$B$62,"")) ->  | G27: =IF(pckeuze!B13=0,"",IF(AND(pckeuze!B13=1,calcul!$D$61=3000)=TRUE,calcul!$B$62,"")) ->  | I27: =IF(pckeuze!B13=0,"",IF(AND(pckeuze!B13=1,calcul!$D$61=3500)=TRUE,calcul!$B$62,"")) ->  | K27: =IF(pckeuze!B13=0,"",IF(AND(pckeuze!B13=1,calcul!$D$61=4000)=TRUE,calcul!$B$62,"")) ->  | M27: =IF(pckeuze!B13=0,"",IF(AND(pckeuze!B13=1,calcul!$D$61=5000)=TRUE,calcul!$B$62,"")) ->  | O27: =IF(pckeuze!B13=0,"",IF(AND(pckeuze!B13=1,calcul!$D$61=6000)=TRUE,calcul!$B$62,"")) ->  | Q27: =IF(pckeuze!B13=0,"",IF(AND(pckeuze!B13=1,calcul!$D$61=7000)=TRUE,calcul!$B$62,"")) ->  | V27: =COUNTIF(D27,">=0")+COUNTIF(F27,">=0")+COUNTIF(H27,">=0")+COUNTIF(J27,">=0")+COUNTIF(L27,">=0")+COUNTIF(N27,">=0")+COUNTIF(P27,">=0")+COUNTIF(R27,">=0") -> 0 | W27: =IF(AND(ISBLANK(D27),ISBLANK(C27))=TRUE,"",IF(ISBLANK(D27)=TRUE,C27,D27)) ->  | X27: =IF(AND(ISBLANK(F27),ISBLANK(E27))=TRUE,"",IF(ISBLANK(F27)=TRUE,E27,F27)) ->  | Y27: =IF(AND(ISBLANK(H27),ISBLANK(G27))=TRUE,"",IF(ISBLANK(H27)=TRUE,G27,H27)) ->  | Z27: =IF(AND(ISBLANK(J27),ISBLANK(I27))=TRUE,"",IF(ISBLANK(J27)=TRUE,I27,J27)) ->  | AA27: =IF(AND(ISBLANK(L27),ISBLANK(K27))=TRUE,"",IF(ISBLANK(L27)=TRUE,K27,L27)) ->  | AB27: =IF(AND(ISBLANK(N27),ISBLANK(M27))=TRUE,"",IF(ISBLANK(N27)=TRUE,M27,N27)) ->  | AC27: =IF(AND(ISBLANK(P27),ISBLANK(O27))=TRUE,"",IF(ISBLANK(P27)=TRUE,O27,P27)) ->  | AD27: =IF(AND(ISBLANK(R27),ISBLANK(Q27))=TRUE,"",IF(ISBLANK(R27)=TRUE,Q27,R27)) -> 
A28: T16P + CL32 + 2 x C8 | B28: =$A$26&" "&A28 -> COLOR THERM T16P + CL32 + 2 x C8 | E28: =IF(pckeuze!B14=0,"",IF(AND(pckeuze!B14=1,calcul!$D$61=2500)=TRUE,calcul!$B$62,"")) ->  | G28: =IF(pckeuze!B14=0,"",IF(AND(pckeuze!B14=1,calcul!$D$61=3000)=TRUE,calcul!$B$62,"")) ->  | I28: =IF(pckeuze!B14=0,"",IF(AND(pckeuze!B14=1,calcul!$D$61=3500)=TRUE,calcul!$B$62,"")) ->  | K28: =IF(pckeuze!B14=0,"",IF(AND(pckeuze!B14=1,calcul!$D$61=4000)=TRUE,calcul!$B$62,"")) ->  | M28: =IF(pckeuze!B14=0,"",IF(AND(pckeuze!B14=1,calcul!$D$61=5000)=TRUE,calcul!$B$62,"")) ->  | O28: =IF(pckeuze!B14=0,"",IF(AND(pckeuze!B14=1,calcul!$D$61=6000)=TRUE,calcul!$B$62,"")) ->  | Q28: =IF(pckeuze!B14=0,"",IF(AND(pckeuze!B14=1,calcul!$D$61=7000)=TRUE,calcul!$B$62,"")) ->  | V28: 0 | X28: =IF(AND(ISBLANK(F28),ISBLANK(E28))=TRUE,"",IF(ISBLANK(F28)=TRUE,E28,F28)) ->  | Y28: =IF(AND(ISBLANK(H28),ISBLANK(G28))=TRUE,"",IF(ISBLANK(H28)=TRUE,G28,H28)) ->  | Z28: =IF(AND(ISBLANK(J28),ISBLANK(I28))=TRUE,"",IF(ISBLANK(J28)=TRUE,I28,J28)) ->  | AA28: =IF(AND(ISBLANK(L28),ISBLANK(K28))=TRUE,"",IF(ISBLANK(L28)=TRUE,K28,L28)) ->  | AC28: =IF(AND(ISBLANK(P28),ISBLANK(O28))=TRUE,"",IF(ISBLANK(P28)=TRUE,O28,P28)) -> 
A29: COLOR THERM GLAS | B29: TUSSENDRAGER | C29: 2000 | E29: 2500 | F29: 2500 | G29: 3000 | H29: 3000 | I29: 3500 | J29: 3500 | K29: 4000 | L29: 4000 | M29: 5000 | N29: 5000 | O29: 6000 | P29: 6000 | Q29: 7000 | R29: 7000 | W29: 2000 | X29: 2500 | Y29: 3000 | Z29: 3500 | AA29: 4000 | AB29: 5000 | AC29: 6000 | AD29: 7000
A30: TPH + TP(G) + CL16 + 2 x C8 | B30: =$A$29&" "&A30 -> COLOR THERM GLAS TPH + TP(G) + CL16 + 2 x C8 | E30: =IF(pckeuze!B15=0,"",IF(AND(pckeuze!B15=1,calcul!$D$61=2500)=TRUE,calcul!$B$62,"")) ->  | G30: =IF(pckeuze!B15=0,"",IF(AND(pckeuze!B15=1,calcul!$D$61=3000)=TRUE,calcul!$B$62,"")) ->  | I30: =IF(pckeuze!B15=0,"",IF(AND(pckeuze!B15=1,calcul!$D$61=3500)=TRUE,calcul!$B$62,"")) ->  | K30: =IF(pckeuze!B15=0,"",IF(AND(pckeuze!B15=1,calcul!$D$61=4000)=TRUE,calcul!$B$62,"")) ->  | M30: =IF(pckeuze!B15=0,"",IF(AND(pckeuze!B15=1,calcul!$D$61=5000)=TRUE,calcul!$B$62,"")) ->  | O30: =IF(pckeuze!B15=0,"",IF(AND(pckeuze!B15=1,calcul!$D$61=6000)=TRUE,calcul!$B$62,"")) ->  | Q30: ="" ->  | V30: =COUNTIF(D30,">=0")+COUNTIF(F30,">=0")+COUNTIF(H30,">=0")+COUNTIF(J30,">=0")+COUNTIF(L30,">=0")+COUNTIF(N30,">=0")+COUNTIF(P30,">=0")+COUNTIF(R30,">=0") -> 0 | W30: =IF(AND(ISBLANK(D30),ISBLANK(C30))=TRUE,"",IF(ISBLANK(D30)=TRUE,C30,D30)) ->  | X30: =IF(AND(ISBLANK(F30),ISBLANK(E30))=TRUE,"",IF(ISBLANK(F30)=TRUE,E30,F30)) ->  | Y30: =IF(AND(ISBLANK(H30),ISBLANK(G30))=TRUE,"",IF(ISBLANK(H30)=TRUE,G30,H30)) ->  | Z30: =IF(AND(ISBLANK(J30),ISBLANK(I30))=TRUE,"",IF(ISBLANK(J30)=TRUE,I30,J30)) ->  | AA30: =IF(AND(ISBLANK(L30),ISBLANK(K30))=TRUE,"",IF(ISBLANK(L30)=TRUE,K30,L30)) ->  | AB30: =IF(AND(ISBLANK(N30),ISBLANK(M30))=TRUE,"",IF(ISBLANK(N30)=TRUE,M30,N30)) ->  | AC30: =IF(AND(ISBLANK(P30),ISBLANK(O30))=TRUE,"",IF(ISBLANK(P30)=TRUE,O30,P30)) ->  | AD30: =IF(AND(ISBLANK(R30),ISBLANK(Q30))=TRUE,"",IF(ISBLANK(R30)=TRUE,Q30,R30)) -> 
A31: TPH + TP(G) + CL32 + 2 x C8 | B31: =$A$29&" "&A31 -> COLOR THERM GLAS TPH + TP(G) + CL32 + 2 x C8 | E31: =IF(pckeuze!B16=0,"",IF(AND(pckeuze!B16=1,calcul!$D$61=2500)=TRUE,calcul!$B$62,"")) ->  | G31: =IF(pckeuze!B16=0,"",IF(AND(pckeuze!B16=1,calcul!$D$61=3000)=TRUE,calcul!$B$62,"")) ->  | I31: =IF(pckeuze!B16=0,"",IF(AND(pckeuze!B16=1,calcul!$D$61=3500)=TRUE,calcul!$B$62,"")) ->  | K31: =IF(pckeuze!B16=0,"",IF(AND(pckeuze!B16=1,calcul!$D$61=4000)=TRUE,calcul!$B$62,"")) ->  | M31: =IF(pckeuze!B16=0,"",IF(AND(pckeuze!B16=1,calcul!$D$61=5000)=TRUE,calcul!$B$62,"")) ->  | O31: =IF(pckeuze!B16=0,"",IF(AND(pckeuze!B16=1,calcul!$D$61=6000)=TRUE,calcul!$B$62,"")) ->  | Q31: ="" ->  | V31: =COUNTIF(D31,">=0")+COUNTIF(F31,">=0")+COUNTIF(H31,">=0")+COUNTIF(J31,">=0")+COUNTIF(L31,">=0")+COUNTIF(N31,">=0")+COUNTIF(P31,">=0")+COUNTIF(R31,">=0") -> 0
A32: TPH + TP(G) + CLSB + CLST + 2 x C8 | B32: COLOR THERM GLAS TPH + TP(G) + CLSB + CLST + 2 x C8 | E32: =IF(pckeuze!B17=0,"",IF(AND(pckeuze!B17=1,calcul!$D$61=2500)=TRUE,calcul!$B$62,"")) ->  | G32: =IF(pckeuze!B17=0,"",IF(AND(pckeuze!B17=1,calcul!$D$61=3000)=TRUE,calcul!$B$62,"")) ->  | I32: =IF(pckeuze!B17=0,"",IF(AND(pckeuze!B17=1,calcul!$D$61=3500)=TRUE,calcul!$B$62,"")) ->  | K32: =IF(pckeuze!B17=0,"",IF(AND(pckeuze!B17=1,calcul!$D$61=4000)=TRUE,calcul!$B$62,"")) ->  | M32: =IF(pckeuze!B17=0,"",IF(AND(pckeuze!B17=1,calcul!$D$61=5000)=TRUE,calcul!$B$62,"")) ->  | O32: =IF(pckeuze!B17=0,"",IF(AND(pckeuze!B17=1,calcul!$D$61=6000)=TRUE,calcul!$B$62,"")) ->  | Q32: ="" ->  | V32: 0
A34: =taal!A326 -> FINITION LATERALE
A35: ALU | B35: TUSSENDRAGER | C35: 2000 | E35: 2500 | F35: 2500 | G35: 3000 | H35: 3000 | I35: 3500 | J35: 3500 | K35: 4000 | L35: 4000 | M35: 5000 | N35: 5000 | O35: 6000 | P35: 6000 | Q35: 7000 | R35: 7000 | W35: 2000 | X35: 2500 | Y35: 3000 | Z35: 3500 | AA35: 4000 | AB35: 5000 | AC35: 6000 | AD35: 7000
A36: L16 + C4CX + C3 | B36: =$A$35&" "&A36 -> ALU L16 + C4CX + C3 | E36: =IF(pckeuze!B20=0,"",IF(AND(pckeuze!B20=1,calcul!$D$61=2500)=TRUE,calcul!$B$63,"")) ->  | G36: =IF(pckeuze!B20=0,"",IF(AND(pckeuze!B20=1,calcul!$D$61=3000)=TRUE,calcul!$B$63,"")) ->  | I36: =IF(pckeuze!B20=0,"",IF(AND(pckeuze!B20=1,calcul!$D$61=3500)=TRUE,calcul!$B$63,"")) ->  | K36: =IF(pckeuze!B20=0,"",IF(AND(pckeuze!B20=1,calcul!$D$61=4000)=TRUE,calcul!$B$63,"")) ->  | M36: =IF(pckeuze!B20=0,"",IF(AND(pckeuze!B20=1,calcul!$D$61=5000)=TRUE,calcul!$B$63,"")) ->  | O36: =IF(pckeuze!B20=0,"",IF(AND(pckeuze!B20=1,calcul!$D$61=6000)=TRUE,calcul!$B$63,"")) ->  | Q36: =IF(pckeuze!B20=0,"",IF(AND(pckeuze!B20=1,calcul!$D$61=7000)=TRUE,calcul!$B$63,"")) ->  | V36: =COUNTIF(D36,">=0")+COUNTIF(F36,">=0")+COUNTIF(H36,">=0")+COUNTIF(J36,">=0")+COUNTIF(L36,">=0")+COUNTIF(N36,">=0")+COUNTIF(P36,">=0")+COUNTIF(R36,">=0") -> 0 | W36: =IF(AND(ISBLANK(D36),ISBLANK(C36))=TRUE,"",IF(ISBLANK(D36)=TRUE,C36,D36)) ->  | X36: =IF(AND(ISBLANK(F36),ISBLANK(E36))=TRUE,"",IF(ISBLANK(F36)=TRUE,E36,F36)) ->  | Y36: =IF(AND(ISBLANK(H36),ISBLANK(G36))=TRUE,"",IF(ISBLANK(H36)=TRUE,G36,H36)) ->  | Z36: =IF(AND(ISBLANK(J36),ISBLANK(I36))=TRUE,"",IF(ISBLANK(J36)=TRUE,I36,J36)) ->  | AA36: =IF(AND(ISBLANK(L36),ISBLANK(K36))=TRUE,"",IF(ISBLANK(L36)=TRUE,K36,L36)) ->  | AB36: =IF(AND(ISBLANK(N36),ISBLANK(M36))=TRUE,"",IF(ISBLANK(N36)=TRUE,M36,N36)) ->  | AC36: =IF(AND(ISBLANK(P36),ISBLANK(O36))=TRUE,"",IF(ISBLANK(P36)=TRUE,O36,P36)) ->  | AD36: =IF(AND(ISBLANK(R36),ISBLANK(Q36))=TRUE,"",IF(ISBLANK(R36)=TRUE,Q36,R36)) -> 
A37: L32.1 + C4CX + C3 | B37: =$A$35&" "&A37 -> ALU L32.1 + C4CX + C3 | E37: =IF(pckeuze!B21=0,"",IF(AND(pckeuze!B21=1,calcul!$D$61=2500)=TRUE,calcul!$B$63,"")) ->  | G37: =IF(pckeuze!B21=0,"",IF(AND(pckeuze!B21=1,calcul!$D$61=3000)=TRUE,calcul!$B$63,"")) ->  | I37: =IF(pckeuze!B21=0,"",IF(AND(pckeuze!B21=1,calcul!$D$61=3500)=TRUE,calcul!$B$63,"")) ->  | K37: =IF(pckeuze!B21=0,"",IF(AND(pckeuze!B21=1,calcul!$D$61=4000)=TRUE,calcul!$B$63,"")) ->  | M37: =IF(pckeuze!B21=0,"",IF(AND(pckeuze!B21=1,calcul!$D$61=5000)=TRUE,calcul!$B$63,"")) ->  | O37: =IF(pckeuze!B21=0,"",IF(AND(pckeuze!B21=1,calcul!$D$61=6000)=TRUE,calcul!$B$63,"")) ->  | Q37: =IF(pckeuze!B21=0,"",IF(AND(pckeuze!B21=1,calcul!$D$61=7000)=TRUE,calcul!$B$63,"")) ->  | V37: 0
A38: COLOR | B38: TUSSENDRAGER | C38: 2000 | E38: 2500 | F38: 2500 | G38: 3000 | H38: 3000 | I38: 3500 | J38: 3500 | K38: 4000 | L38: 4000 | M38: 5000 | N38: 5000 | O38: 6000 | P38: 6000 | Q38: 7000 | R38: 7000 | W38: 2000 | X38: 2500 | Y38: 3000 | Z38: 3500 | AA38: 4000 | AB38: 5000 | AC38: 6000 | AD38: 7000
A39: LT16 + C2CX + C3 | B39: =$A$38&" "&A39 -> COLOR LT16 + C2CX + C3 | E39: =IF(pckeuze!B22=0,"",IF(AND(pckeuze!B22=1,calcul!$D$61=2500)=TRUE,calcul!$B$63,"")) ->  | G39: =IF(pckeuze!B22=0,"",IF(AND(pckeuze!B22=1,calcul!$D$61=3000)=TRUE,calcul!$B$63,"")) ->  | I39: =IF(pckeuze!B22=0,"",IF(AND(pckeuze!B22=1,calcul!$D$61=3500)=TRUE,calcul!$B$63,"")) ->  | K39: =IF(pckeuze!B22=0,"",IF(AND(pckeuze!B22=1,calcul!$D$61=4000)=TRUE,calcul!$B$63,"")) ->  | M39: =IF(pckeuze!B22=0,"",IF(AND(pckeuze!B22=1,calcul!$D$61=5000)=TRUE,calcul!$B$63,"")) ->  | O39: =IF(pckeuze!B22=0,"",IF(AND(pckeuze!B22=1,calcul!$D$61=6000)=TRUE,calcul!$B$63,"")) ->  | Q39: =IF(pckeuze!B22=0,"",IF(AND(pckeuze!B22=1,calcul!$D$61=7000)=TRUE,calcul!$B$63,"")) ->  | V39: =COUNTIF(D39,">=0")+COUNTIF(F39,">=0")+COUNTIF(H39,">=0")+COUNTIF(J39,">=0")+COUNTIF(L39,">=0")+COUNTIF(N39,">=0")+COUNTIF(P39,">=0")+COUNTIF(R39,">=0") -> 0 | W39: =IF(AND(ISBLANK(D39),ISBLANK(C39))=TRUE,"",IF(ISBLANK(D39)=TRUE,C39,D39)) ->  | X39: =IF(AND(ISBLANK(F39),ISBLANK(E39))=TRUE,"",IF(ISBLANK(F39)=TRUE,E39,F39)) ->  | Y39: =IF(AND(ISBLANK(H39),ISBLANK(G39))=TRUE,"",IF(ISBLANK(H39)=TRUE,G39,H39)) ->  | Z39: =IF(AND(ISBLANK(J39),ISBLANK(I39))=TRUE,"",IF(ISBLANK(J39)=TRUE,I39,J39)) ->  | AA39: =IF(AND(ISBLANK(L39),ISBLANK(K39))=TRUE,"",IF(ISBLANK(L39)=TRUE,K39,L39)) ->  | AB39: =IF(AND(ISBLANK(N39),ISBLANK(M39))=TRUE,"",IF(ISBLANK(N39)=TRUE,M39,N39)) ->  | AC39: =IF(AND(ISBLANK(P39),ISBLANK(O39))=TRUE,"",IF(ISBLANK(P39)=TRUE,O39,P39)) ->  | AD39: =IF(AND(ISBLANK(R39),ISBLANK(Q39))=TRUE,"",IF(ISBLANK(R39)=TRUE,Q39,R39)) -> 
A40: LT32 + C2CX + C3 | B40: =$A$38&" "&A40 -> COLOR LT32 + C2CX + C3 | E40: =IF(pckeuze!B23=0,"",IF(AND(pckeuze!B23=1,calcul!$D$61=2500)=TRUE,calcul!$B$63,"")) ->  | G40: =IF(pckeuze!B23=0,"",IF(AND(pckeuze!B23=1,calcul!$D$61=3000)=TRUE,calcul!$B$63,"")) ->  | I40: =IF(pckeuze!B23=0,"",IF(AND(pckeuze!B23=1,calcul!$D$61=3500)=TRUE,calcul!$B$63,"")) ->  | K40: =IF(pckeuze!B23=0,"",IF(AND(pckeuze!B23=1,calcul!$D$61=4000)=TRUE,calcul!$B$63,"")) ->  | M40: =IF(pckeuze!B23=0,"",IF(AND(pckeuze!B23=1,calcul!$D$61=5000)=TRUE,calcul!$B$63,"")) ->  | O40: =IF(pckeuze!B23=0,"",IF(AND(pckeuze!B23=1,calcul!$D$61=6000)=TRUE,calcul!$B$63,"")) ->  | Q40: =IF(pckeuze!B23=0,"",IF(AND(pckeuze!B23=1,calcul!$D$61=7000)=TRUE,calcul!$B$63,"")) ->  | V40: 0
A41: THERM | B41: TUSSENDRAGER | C41: 2000 | E41: 2500 | F41: 2500 | G41: 3000 | H41: 3000 | I41: 3500 | J41: 3500 | K41: 4000 | L41: 4000 | M41: 5000 | N41: 5000 | O41: 6000 | P41: 6000 | Q41: 7000 | R41: 7000 | W41: 2000 | X41: 2500 | Y41: 3000 | Z41: 3500 | AA41: 4000 | AB41: 5000 | AC41: 6000 | AD41: 7000
A42: L16P + T16P + CLPV | B42: =$A$41&" "&A42 -> THERM L16P + T16P + CLPV | E42: =IF(pckeuze!B24=0,"",IF(AND(pckeuze!B24=1,calcul!$D$61=2500)=TRUE,calcul!$B$63,"")) ->  | G42: =IF(pckeuze!B24=0,"",IF(AND(pckeuze!B24=1,calcul!$D$61=3000)=TRUE,calcul!$B$63,"")) ->  | I42: =IF(pckeuze!B24=0,"",IF(AND(pckeuze!B24=1,calcul!$D$61=3500)=TRUE,calcul!$B$63,"")) ->  | K42: =IF(pckeuze!B24=0,"",IF(AND(pckeuze!B24=1,calcul!$D$61=4000)=TRUE,calcul!$B$63,"")) ->  | M42: =IF(pckeuze!B24=0,"",IF(AND(pckeuze!B24=1,calcul!$D$61=5000)=TRUE,calcul!$B$63,"")) ->  | O42: =IF(pckeuze!B24=0,"",IF(AND(pckeuze!B24=1,calcul!$D$61=6000)=TRUE,calcul!$B$63,"")) ->  | Q42: =IF(pckeuze!B24=0,"",IF(AND(pckeuze!B24=1,calcul!$D$61=7000)=TRUE,calcul!$B$63,"")) ->  | V42: =COUNTIF(D42,">=0")+COUNTIF(F42,">=0")+COUNTIF(H42,">=0")+COUNTIF(J42,">=0")+COUNTIF(L42,">=0")+COUNTIF(N42,">=0")+COUNTIF(P42,">=0")+COUNTIF(R42,">=0") -> 0 | W42: =IF(AND(ISBLANK(D42),ISBLANK(C42))=TRUE,"",IF(ISBLANK(D42)=TRUE,C42,D42)) ->  | X42: =IF(AND(ISBLANK(F42),ISBLANK(E42))=TRUE,"",IF(ISBLANK(F42)=TRUE,E42,F42)) ->  | Y42: =IF(AND(ISBLANK(H42),ISBLANK(G42))=TRUE,"",IF(ISBLANK(H42)=TRUE,G42,H42)) ->  | Z42: =IF(AND(ISBLANK(J42),ISBLANK(I42))=TRUE,"",IF(ISBLANK(J42)=TRUE,I42,J42)) ->  | AA42: =IF(AND(ISBLANK(L42),ISBLANK(K42))=TRUE,"",IF(ISBLANK(L42)=TRUE,K42,L42)) ->  | AB42: =IF(AND(ISBLANK(N42),ISBLANK(M42))=TRUE,"",IF(ISBLANK(N42)=TRUE,M42,N42)) ->  | AC42: =IF(AND(ISBLANK(P42),ISBLANK(O42))=TRUE,"",IF(ISBLANK(P42)=TRUE,O42,P42)) ->  | AD42: =IF(AND(ISBLANK(R42),ISBLANK(Q42))=TRUE,"",IF(ISBLANK(R42)=TRUE,Q42,R42)) -> 
A43: L16P + Y32 + T16P + CLPV | B43: =$A$41&" "&A43 -> THERM L16P + Y32 + T16P + CLPV | E43: =IF(pckeuze!B26=0,"",IF(AND(pckeuze!B26=1,calcul!$D$61=2500)=TRUE,calcul!$B$63,"")) ->  | G43: =IF(pckeuze!B26=0,"",IF(AND(pckeuze!B26=1,calcul!$D$61=3000)=TRUE,calcul!$B$63,"")) ->  | I43: =IF(pckeuze!B26=0,"",IF(AND(pckeuze!B26=1,calcul!$D$61=3500)=TRUE,calcul!$B$63,"")) ->  | K43: =IF(pckeuze!B26=0,"",IF(AND(pckeuze!B26=1,calcul!$D$61=4000)=TRUE,calcul!$B$63,"")) ->  | M43: =IF(pckeuze!B26=0,"",IF(AND(pckeuze!B26=1,calcul!$D$61=5000)=TRUE,calcul!$B$63,"")) ->  | O43: =IF(pckeuze!B26=0,"",IF(AND(pckeuze!B26=1,calcul!$D$61=6000)=TRUE,calcul!$B$63,"")) ->  | Q43: =IF(pckeuze!B26=0,"",IF(AND(pckeuze!B26=1,calcul!$D$61=7000)=TRUE,calcul!$B$63,"")) ->  | V43: 0
A44: COLOR THERM | B44: TUSSENDRAGER | C44: 2000 | E44: 2500 | F44: 2500 | G44: 3000 | H44: 3000 | I44: 3500 | J44: 3500 | K44: 4000 | L44: 4000 | M44: 5000 | N44: 5000 | O44: 6000 | P44: 6000 | Q44: 7000 | R44: 7000 | W44: 2000 | X44: 2500 | Y44: 3000 | Z44: 3500 | AA44: 4000 | AB44: 5000 | AC44: 6000 | AD44: 7000
A45: LP + CLL + C8 | B45: =A44&" "&A45 -> COLOR THERM LP + CLL + C8 | E45: =IF(pckeuze!B27=0,"",IF(AND(pckeuze!B27=1,calcul!$D$61=2500)=TRUE,calcul!$B$63,"")) ->  | G45: =IF(pckeuze!B27=0,"",IF(AND(pckeuze!B27=1,calcul!$D$61=3000)=TRUE,calcul!$B$63,"")) ->  | I45: =IF(pckeuze!B27=0,"",IF(AND(pckeuze!B27=1,calcul!$D$61=3500)=TRUE,calcul!$B$63,"")) ->  | K45: =IF(pckeuze!B27=0,"",IF(AND(pckeuze!B27=1,calcul!$D$61=4000)=TRUE,calcul!$B$63,"")) ->  | M45: =IF(pckeuze!B27=0,"",IF(AND(pckeuze!B27=1,calcul!$D$61=5000)=TRUE,calcul!$B$63,"")) ->  | O45: =IF(pckeuze!B27=0,"",IF(AND(pckeuze!B27=1,calcul!$D$61=6000)=TRUE,calcul!$B$63,"")) ->  | Q45: =IF(pckeuze!B27=0,"",IF(AND(pckeuze!B27=1,calcul!$D$61=7000)=TRUE,calcul!$B$63,"")) ->  | V45: =COUNTIF(D45,">=0")+COUNTIF(F45,">=0")+COUNTIF(H45,">=0")+COUNTIF(J45,">=0")+COUNTIF(L45,">=0")+COUNTIF(N45,">=0")+COUNTIF(P45,">=0")+COUNTIF(R45,">=0") -> 0 | W45: =IF(AND(ISBLANK(D45),ISBLANK(C45))=TRUE,"",IF(ISBLANK(D45)=TRUE,C45,D45)) ->  | X45: =IF(AND(ISBLANK(F45),ISBLANK(E45))=TRUE,"",IF(ISBLANK(F45)=TRUE,E45,F45)) ->  | Y45: =IF(AND(ISBLANK(H45),ISBLANK(G45))=TRUE,"",IF(ISBLANK(H45)=TRUE,G45,H45)) ->  | Z45: =IF(AND(ISBLANK(J45),ISBLANK(I45))=TRUE,"",IF(ISBLANK(J45)=TRUE,I45,J45)) ->  | AA45: =IF(AND(ISBLANK(L45),ISBLANK(K45))=TRUE,"",IF(ISBLANK(L45)=TRUE,K45,L45)) ->  | AB45: =IF(AND(ISBLANK(N45),ISBLANK(M45))=TRUE,"",IF(ISBLANK(N45)=TRUE,M45,N45)) ->  | AC45: =IF(AND(ISBLANK(P45),ISBLANK(O45))=TRUE,"",IF(ISBLANK(P45)=TRUE,O45,P45)) ->  | AD45: =IF(AND(ISBLANK(R45),ISBLANK(Q45))=TRUE,"",IF(ISBLANK(R45)=TRUE,Q45,R45)) -> 
A46: COLOR THERM GLAS | B46: TUSSENDRAGER | C46: 2000 | E46: 2500 | F46: 2500 | G46: 3000 | H46: 3000 | I46: 3500 | J46: 3500 | K46: 4000 | L46: 4000 | M46: 5000 | N46: 5000 | O46: 6000 | P46: 6000 | Q46: 7000 | R46: 7000 | W46: 2000 | X46: 2500 | Y46: 3000 | Z46: 3500 | AA46: 4000 | AB46: 5000 | AC46: 6000 | AD46: 7000
A47: TPHL + TPGL + CLL + C8 | B47: =$A$46&" "&A47 -> COLOR THERM GLAS TPHL + TPGL + CLL + C8 | E47: =IF(pckeuze!B28=0,"",IF(AND(pckeuze!B28=1,calcul!$D$61=2500)=TRUE,calcul!$B$63,"")) ->  | G47: =IF(pckeuze!B28=0,"",IF(AND(pckeuze!B28=1,calcul!$D$61=3000)=TRUE,calcul!$B$63,"")) ->  | I47: =IF(pckeuze!B28=0,"",IF(AND(pckeuze!B28=1,calcul!$D$61=3500)=TRUE,calcul!$B$63,"")) ->  | K47: =IF(pckeuze!B28=0,"",IF(AND(pckeuze!B28=1,calcul!$D$61=4000)=TRUE,calcul!$B$63,"")) ->  | M47: =IF(pckeuze!B28=0,"",IF(AND(pckeuze!B28=1,calcul!$D$61=5000)=TRUE,calcul!$B$63,"")) ->  | O47: =IF(pckeuze!B28=0,"",IF(AND(pckeuze!B28=1,calcul!$D$61=6000)=TRUE,calcul!$B$63,"")) ->  | Q47: ="" ->  | V47: =COUNTIF(D47,">=0")+COUNTIF(F47,">=0")+COUNTIF(H47,">=0")+COUNTIF(J47,">=0")+COUNTIF(L47,">=0")+COUNTIF(N47,">=0")+COUNTIF(P47,">=0")+COUNTIF(R47,">=0") -> 0 | W47: =IF(AND(ISBLANK(D47),ISBLANK(C47))=TRUE,"",IF(ISBLANK(D47)=TRUE,C47,D47)) ->  | X47: =IF(AND(ISBLANK(F47),ISBLANK(E47))=TRUE,"",IF(ISBLANK(F47)=TRUE,E47,F47)) ->  | Y47: =IF(AND(ISBLANK(H47),ISBLANK(G47))=TRUE,"",IF(ISBLANK(H47)=TRUE,G47,H47)) ->  | Z47: =IF(AND(ISBLANK(J47),ISBLANK(I47))=TRUE,"",IF(ISBLANK(J47)=TRUE,I47,J47)) ->  | AA47: =IF(AND(ISBLANK(L47),ISBLANK(K47))=TRUE,"",IF(ISBLANK(L47)=TRUE,K47,L47)) ->  | AB47: =IF(AND(ISBLANK(N47),ISBLANK(M47))=TRUE,"",IF(ISBLANK(N47)=TRUE,M47,N47)) ->  | AC47: =IF(AND(ISBLANK(P47),ISBLANK(O47))=TRUE,"",IF(ISBLANK(P47)=TRUE,O47,P47)) ->  | AD47: =IF(AND(ISBLANK(R47),ISBLANK(Q47))=TRUE,"",IF(ISBLANK(R47)=TRUE,Q47,R47)) -> 
A48: TPHL + TPGL + CLSB + CLSL + C8 | B48: =$A$46&" "&A48 -> COLOR THERM GLAS TPHL + TPGL + CLSB + CLSL + C8 | E48: =IF(pckeuze!B29=0,"",IF(AND(pckeuze!B29=1,calcul!$D$61=2500)=TRUE,calcul!$B$63,"")) ->  | G48: =IF(pckeuze!B29=0,"",IF(AND(pckeuze!B29=1,calcul!$D$61=3000)=TRUE,calcul!$B$63,"")) ->  | I48: =IF(pckeuze!B29=0,"",IF(AND(pckeuze!B29=1,calcul!$D$61=3500)=TRUE,calcul!$B$63,"")) ->  | K48: =IF(pckeuze!B29=0,"",IF(AND(pckeuze!B29=1,calcul!$D$61=4000)=TRUE,calcul!$B$63,"")) ->  | M48: =IF(pckeuze!B29=0,"",IF(AND(pckeuze!B29=1,calcul!$D$61=5000)=TRUE,calcul!$B$63,"")) ->  | O48: =IF(pckeuze!B29=0,"",IF(AND(pckeuze!B29=1,calcul!$D$61=6000)=TRUE,calcul!$B$63,"")) ->  | Q48: ="" ->  | V48: 0
A51: =taal!A316 -> KS SET D'ACCESSOIRES | B51: KS-PLAAT TOEBEHOREN | C51: SET | D51: =taal!A423 -> SET | W51: SET
A52: =taal!A302 -> 980/16 P | B52: =A52 -> 980/16 P | C52: =IF(pckeuze!B43=0,"",IF(AND(pckeuze!B43=1,calcul!F45=980)=TRUE,calcul!$E$45,"")) ->  | V52: =COUNTIF(D52,">=0") -> 0 | W52: =IF(AND(ISBLANK(D52),ISBLANK(C52))=TRUE,"",IF(ISBLANK(D52)=TRUE,C52,D52)) -> 
A53: =taal!A303 -> 1053/16 P | B53: =A53 -> 1053/16 P | C53: =IF(pckeuze!B44=0,"",IF(AND(pckeuze!B44=1,calcul!F45=1053)=TRUE,calcul!$E$45,"")) ->  | V53: =COUNTIF(D53,">=0") -> 0
A54: =taal!A304 -> 1200/16 P | B54: 1200/16 P | C54: =IF(pckeuze!B45=0,"",IF(AND(pckeuze!B45=1,calcul!F45=1200)=TRUE,calcul!$E$45,"")) ->  | V54: 0
A55: =taal!A305 -> 1250/16 P | B55: 1250/16 P | C55: =IF(pckeuze!B46=0,"",IF(AND(pckeuze!B46=1,calcul!F45=1250)=TRUE,calcul!$E$45,"")) ->  | V55: 0 | W55: =IF(AND(ISBLANK(D55),ISBLANK(C55))=TRUE,"",IF(ISBLANK(D55)=TRUE,C55,D55)) -> 
A56: =taal!A306 -> 1200/25 P | B56: 1200/25 P | C56: =IF(pckeuze!B47=0,"",IF(AND(pckeuze!B47=1,calcul!F45=1200)=TRUE,calcul!$E$45,"")) ->  | V56: 0
A57: =taal!A307 -> 980/32 P | B57: 980/32 P | C57: =IF(pckeuze!B48=0,"",IF(AND(pckeuze!B48=1,calcul!F45=980)=TRUE,calcul!$E$45,"")) ->  | V57: 0 | W57: =IF(AND(ISBLANK(D57),ISBLANK(C57))=TRUE,"",IF(ISBLANK(D57)=TRUE,C57,D57)) -> 
A58: =taal!A308 -> 1053/32 P | B58: 1053/32 P | C58: =IF(pckeuze!B49=0,"",IF(AND(pckeuze!B49=1,calcul!F45=1053)=TRUE,calcul!$E$45,"")) ->  | V58: 0
A59: =taal!A309 -> 1230/32 P | B59: 1230/32 P | C59: =IF(pckeuze!B50=0,"",IF(AND(pckeuze!B50=1,calcul!F45=1230)=TRUE,calcul!$E$45,IF(AND(pckeuze!B50=1,calcul!F45=1200)=TRUE,calcul!$E$45,IF(AND(pckeuze!B50=1,calcul!F45=980)=TRUE,calcul!$E$45,"")))) ->  | V59: 0
A60: =taal!A313 -> 980/16 RAL | B60: 980/16 RAL | C60: =IF(pckeuze!B51=0,"",IF(AND(pckeuze!B51=1,calcul!F45=980)=TRUE,calcul!$E$45,"")) ->  | V60: 0 | W60: =IF(AND(ISBLANK(D60),ISBLANK(C60))=TRUE,"",IF(ISBLANK(D60)=TRUE,C60,D60)) -> 
A61: =taal!A314 -> 1053/16 RAL | B61: 1053/16 RAL | C61: =IF(pckeuze!B52=0,"",IF(AND(pckeuze!B52=1,calcul!F45=1053)=TRUE,calcul!$E$45,"")) ->  | V61: 0 | W61: =IF(AND(ISBLANK(D61),ISBLANK(C61))=TRUE,"",IF(ISBLANK(D61)=TRUE,C61,D61)) -> 
A62: =taal!A315 -> 1200/16 RAL | B62: 1200/16 RAL | C62: =IF(pckeuze!B53=0,"",IF(AND(pckeuze!B53=1,calcul!F45=1200)=TRUE,calcul!$E$45,"")) ->  | V62: 0 | W62: =IF(AND(ISBLANK(D62),ISBLANK(C62))=TRUE,"",IF(ISBLANK(D62)=TRUE,C62,D62)) -> 
A63: =taal!A310 -> 980/32 RAL | B63: 980/32 RAL | C63: =IF(pckeuze!B54=0,"",IF(AND(pckeuze!B54=1,calcul!$F$45=980)=TRUE,calcul!$E$45,"")) ->  | V63: 0 | W63: =IF(AND(ISBLANK(D63),ISBLANK(C63))=TRUE,"",IF(ISBLANK(D63)=TRUE,C63,D63)) -> 
A64: =taal!A311 -> 1053/32 RAL | B64: 1053/32 RAL | C64: =IF(pckeuze!B55=0,"",IF(AND(pckeuze!B55=1,calcul!$F$45=1053)=TRUE,calcul!$E$45,IF(AND(pckeuze!B55=1,calcul!$F$45=1200)=TRUE,calcul!$E$45,""))) ->  | V64: 0
A65: =taal!A312 -> 1230/32 RAL | B65: 1230/32 RAL | C65: =IF(pckeuze!B56=0,"",IF(AND(pckeuze!B56=1,calcul!$F$45=1230)=TRUE,calcul!$E$45,"")) ->  | V65: 0
A68: =taal!A364 -> SET VITRAGE | B68: GLASSET | D68: =taal!A423 -> SET | V68: =D68 -> SET | W68: =IF(AND(ISBLANK(D68),ISBLANK(C68))=TRUE,"",IF(ISBLANK(D68)=TRUE,C68,D68)) -> SET
A69: L432 | B69: =A69 -> L432 | C69: =IF(pckeuze!B59=0,"",IF(AND(pckeuze!B59=1,calcul!C85>0)=TRUE,1,"")) ->  | V69: =COUNTIF(D69,">=0") -> 0 | W69: =IF(AND(ISBLANK(D69),ISBLANK(C69))=TRUE,"",IF(ISBLANK(D69)=TRUE,C69,D69)) -> 
A70: L632 | B70: =A70 -> L632 | C70: =IF(pckeuze!B60=0,"",IF(AND(pckeuze!B60=1,calcul!C85>0)=TRUE,1,"")) ->  | V70: 0 | W70: =IF(AND(ISBLANK(D70),ISBLANK(C70))=TRUE,"",IF(ISBLANK(D70)=TRUE,C70,D70)) -> 
C72: 7000 | D72: =taal!A423 -> SET
A73: =taal!A420 -> SET DESCENTE D'EAU | B73: AFVOERBUISSET | C73: =IF('setdet 2'!N224=0,"",'setdet 2'!N224) ->  | V73: =COUNTIF(D73,">=0") -> 0 | W73: =IF(AND(ISBLANK(D73),ISBLANK(C73))=TRUE,"",IF(ISBLANK(D73)=TRUE,C73,D73)) -> 
C75: 7000 | D75: =taal!A423 -> SET
A76: =taal!A365 -> SET CONNECTION DE VITRAGE | B76: GLASVERBINDINGSSET | C76: =IF(pckeuze!B58=0,"",IF(AND(pckeuze!B58=1,calcul!B85>0)=TRUE,1,"")) ->  | V76: =COUNTIF(D76,">=0") -> 0 | W76: =IF(AND(ISBLANK(D76),ISBLANK(C76))=TRUE,"",IF(ISBLANK(D76)=TRUE,C76,D76)) -> 
D79: =taal!A423 -> SET
A80: =taal!A366 -> SET DE FAITIERE D'UNE TOITURE A DOUBLE PENTE | B80: ZADELDAKNOKSET | C80: =IF(zadel=2,1,"") ->  | V80: =COUNTIF(D80,">=0") -> 0 | W80: =IF(AND(ISBLANK(D80),ISBLANK(C80))=TRUE,"",IF(ISBLANK(D80)=TRUE,C80,D80)) -> 
A81: =taal!A248&" SET" -> PIECE D'ORNEMENT - FLEUR DE LIS SET | B81: ZADELDAKNOKSET | C81: =IF(zadel=2,"","") ->  | V81: 0 | W81: =IF(AND(ISBLANK(D81),ISBLANK(C81))=TRUE,"",IF(ISBLANK(D81)=TRUE,C81,D81)) -> 
D83: SET
V84: =D84 -> 0 | W84: =IF(AND(ISBLANK(D84),ISBLANK(C84))=TRUE,"",IF(ISBLANK(D84)=TRUE,C84,D84)) -> 
V85: =D85 -> 0 | W85: =IF(AND(ISBLANK(D85),ISBLANK(C85))=TRUE,"",IF(ISBLANK(D85)=TRUE,C85,D85)) -> 
V86: 0
V87: 0

Sheet articles
A1: =taal!A91 -> CHOIX PAR ARTICLE | B1: ARTIKELLIJST CLIMAX | E1: =taal!A291 -> NUMERO D'ARTICLE | L1: =taal!A51 -> CHOIX DE COULEURS | M1: =taal!A64 -> CHOIX DE SETS | S1: transfertzone | T1: opgelet Y's eenheidsprijs | U1: art standaardkleur | AA1: naar intrek | AB1: poedercode | AC1: out=1/ in=2
C2: =taal!A293 -> CODE | D2: =taal!A294 -> LONGUEUR | E2: =taal!A295 -> BRUT | F2: 9010 | G2: 7016ST | H2: 8019 | I2: =UPPER('input data'!D10) -> 9010 | J2: ="STRUCT"&" "&UPPER('input data'!D10) -> STRUCT 9010 | K2: € | L2: =INDEX('input data'!$E$56:$E$61,ral)&IF(OR(ral<>ralin,AND(ralin>4,ral>4,type=2,ral=ralin,UPPER('input data'!D10)<>UPPER('input data'!D11)))," / "&INDEX('input data'!$F$56:$F$62,ralin),"") -> RAL 9010 blanc | N2: =taal!A96 -> MODIFIER | O2: =taal!A95 -> COMMANDE | U2: Voor RAL-kleuren à prijs van standaardkleur | V2: =ral -> 2 | AA2: blad X
A3: =taal!A193 -> PROFILE MURAL BOTTOM PVC | B3: MUUR TOP | C3: MP | D3: 3500 | E3: 17756 | F3: 17756 | G3: 17756 | H3: 17689 | I3: 17756 | J3: 17756 | K3: =VLOOKUP(L3,'intrek AX'!$A$1:$R$4572,18,FALSE) -> 11.47 | L3: =INDEX(E3:J3,ralin) -> 17756 | M3: =IF(VLOOKUP(L3,'setdet 2'!$B$2:$E$2101,4,FALSE)=0,"",VLOOKUP(L3,'setdet 2'!$B$2:$E$2101,4,FALSE)) ->  | O3: =IF(ISBLANK(N3)=TRUE,M3,N3) ->  | S3: =IF(T3=0,0,L3) -> 0 | T3: =IF(ISNUMBER(O3)=FALSE,0,O3) -> 0 | U3: =IF(T3=0,0,IF(ralstandout=1,F3,S3)) -> 0 | V3: =IF(U3=0,0,VLOOKUP(U3,'intrek AX'!$A$1:$R$4572,18,FALSE)) -> 0 | W3: =T3*D3/1000*V3 -> 0 | Z3: =IF(AA3="",IF(SUM(F3:I3)=0,taal!$A$8,IF(ralin=4,taal!$A$551,taal!$A$550)),"") -> BLANC | AB3: ="" ->  | AC3: ="" -> 
C4: MP | D4: 5000 | E4: 17757 | F4: 17757 | G4: 17757 | H4: 17754 | I4: 17757 | J4: 17757 | K4: =VLOOKUP(L4,'intrek AX'!$A$1:$R$4572,18,FALSE) -> 11.47 | L4: =INDEX(E4:J4,ralin) -> 17757 | M4: =IF(VLOOKUP(L4,'setdet 2'!$B$2:$E$2101,4,FALSE)=0,"",VLOOKUP(L4,'setdet 2'!$B$2:$E$2101,4,FALSE)) ->  | O4: =IF(ISBLANK(N4)=TRUE,M4,N4) ->  | S4: =IF(T4=0,0,L4) -> 0 | T4: 0 | U4: =IF(T4=0,0,IF(ralstandout=1,F4,S4)) -> 0 | V4: =IF(U4=0,0,VLOOKUP(U4,'intrek AX'!$A$1:$R$4572,18,FALSE)) -> 0 | W4: 0 | Z4: =IF(AA4="",IF(SUM(F4:I4)=0,taal!$A$8,IF(ralin=4,taal!$A$551,taal!$A$550)),"") -> BLANC | AB4: ="" ->  | AC4: ="" -> 
C5: MP | D5: 7000 | E5: 17758 | F5: 17758 | G5: 17758 | H5: 17755 | I5: 17758 | J5: 17758 | K5: =VLOOKUP(L5,'intrek AX'!$A$1:$R$4572,18,FALSE) -> 11.47 | L5: =INDEX(E5:J5,ralin) -> 17758 | M5: =IF(VLOOKUP(L5,'setdet 2'!$B$2:$E$2101,4,FALSE)=0,"",VLOOKUP(L5,'setdet 2'!$B$2:$E$2101,4,FALSE)) ->  | O5: =IF(ISBLANK(N5)=TRUE,M5,N5) ->  | S5: 0 | T5: 0 | U5: =IF(T5=0,0,IF(ralstandout=1,F5,S5)) -> 0 | V5: =IF(U5=0,0,VLOOKUP(U5,'intrek AX'!$A$1:$R$4572,18,FALSE)) -> 0 | W5: 0 | Z5: =IF(AA5="",IF(SUM(F5:I5)=0,taal!$A$8,IF(ralin=4,taal!$A$551,taal!$A$550)),"") -> BLANC | AB5: ="" ->  | AC5: ="" -> 
A6: =taal!A194 -> PROFILE MURAL ALU | B6: MUUR BOTTOM | C6: M16 | D6: 3500 | E6: 13257 | F6: 15468 | K6: =VLOOKUP(L6,'intrek AX'!$A$1:$R$4572,18,FALSE) -> 15.06 | L6: =INDEX(E6:J6,ral) -> 15468 | M6: =IF(VLOOKUP(L6,'setdet 2'!$B$2:$E$2101,4,FALSE)=0,"",VLOOKUP(L6,'setdet 2'!$B$2:$E$2101,4,FALSE)) ->  | S6: 0 | T6: 0 | U6: =IF(T6=0,0,IF(ralstandout=1,F6,S6)) -> 0 | V6: =IF(U6=0,0,VLOOKUP(U6,'intrek AX'!$A$1:$R$4572,18,FALSE)) -> 0 | W6: 0 | Z6: =IF(AA6="",IF(SUM(F6:I6)=0,taal!$A$8,IF(ral=4,taal!$A$551,taal!$A$550)),"") ->  | AA6: =IF(SUM(F6:I6)=0,"",INDEX('input data'!$G$56:$G$61,ral)) -> RAL9010 | AB6: =IF(AC6="","",IF(AC6=1,calcul!$B$346,IF(AC6=2,calcul!$B$354,""))) -> RWB964 | AC6: 1
C7: M16 | D7: 5000 | E7: 13258 | F7: 15469 | K7: =VLOOKUP(L7,'intrek AX'!$A$1:$R$4572,18,FALSE) -> 15.06 | L7: 15469 | M7: =IF(VLOOKUP(L7,'setdet 2'!$B$2:$E$2101,4,FALSE)=0,"",VLOOKUP(L7,'setdet 2'!$B$2:$E$2101,4,FALSE)) ->  | S7: 0 | T7: 0 | U7: =IF(T7=0,0,IF(ralstandin=1,F7,S7)) -> 0 | V7: =IF(U7=0,0,VLOOKUP(U7,'intrek AX'!$A$1:$R$4572,18,FALSE)) -> 0 | W7: 0 | Z7: =IF(AA7="",IF(SUM(F7:I7)=0,taal!$A$8,IF(ral=4,taal!$A$551,taal!$A$550)),"") ->  | AA7: =IF(SUM(F7:I7)=0,"",INDEX('input data'!$G$56:$G$61,ral)) -> RAL9010 | AB7: =IF(AC7="","",IF(AC7=1,calcul!$B$346,IF(AC7=2,calcul!$B$354,""))) -> RWB964 | AC7: 1
C8: M16 | D8: 7000 | E8: 13259 | F8: 15470 | K8: =VLOOKUP(L8,'intrek AX'!$A$1:$R$4572,18,FALSE) -> 15.06 | L8: 15470 | M8: =IF(VLOOKUP(L8,'setdet 2'!$B$2:$E$2101,4,FALSE)=0,"",VLOOKUP(L8,'setdet 2'!$B$2:$E$2101,4,FALSE)) ->  | O8: =IF(ISBLANK(N8)=TRUE,M8,N8) ->  | S8: 0 | T8: 0 | U8: =IF(T8=0,0,IF(ralstandin=1,F8,S8)) -> 0 | V8: =IF(U8=0,0,VLOOKUP(U8,'intrek AX'!$A$1:$R$4572,18,FALSE)) -> 0 | W8: 0 | Z8: =IF(AA8="",IF(SUM(F8:I8)=0,taal!$A$8,IF(ral=4,taal!$A$551,taal!$A$550)),"") ->  | AA8: =IF(SUM(F8:I8)=0,"",INDEX('input data'!$G$56:$G$61,ral)) -> RAL9010 | AB8: =IF(AC8="","",IF(AC8=1,calcul!$B$346,IF(AC8=2,calcul!$B$354,""))) -> RWB964 | AC8: 1
A9: =taal!A195 -> MUR TOP ALU | B9: MUUR "LITE" BOTTOM | C9: M32T | D9: 3500 | E9: 13268 | F9: 13501 | K9: =VLOOKUP(L9,'intrek AX'!$A$1:$R$4572,18,FALSE) -> 14.31 | L9: 13501 | M9: =IF(VLOOKUP(L9,'setdet 2'!$B$2:$E$2101,4,FALSE)=0,"",VLOOKUP(L9,'setdet 2'!$B$2:$E$2101,4,FALSE)) ->  | S9: 0 | T9: 0 | U9: =IF(T9=0,0,IF(ralstandin=1,F9,S9)) -> 0 | V9: =IF(U9=0,0,VLOOKUP(U9,'intrek AX'!$A$1:$R$4572,18,FALSE)) -> 0 | W9: 0 | Z9: =IF(AA9="",IF(SUM(F9:I9)=0,taal!$A$8,IF(ral=4,taal!$A$551,taal!$A$550)),"") ->  | AA9: =IF(SUM(F9:I9)=0,"",INDEX('input data'!$G$56:$G$61,ral)) -> RAL9010 | AB9: =IF(AC9="","",IF(AC9=1,calcul!$B$346,IF(AC9=2,calcul!$B$354,""))) -> RWB964 | AC9: 1
C10: M32T | D10: 5000 | E10: 13269 | F10: 13502 | K10: =VLOOKUP(L10,'intrek AX'!$A$1:$R$4572,18,FALSE) -> 14.31 | L10: 13502 | M10: =IF(VLOOKUP(L10,'setdet 2'!$B$2:$E$2101,4,FALSE)=0,"",VLOOKUP(L10,'setdet 2'!$B$2:$E$2101,4,FALSE)) ->  | S10: 0 | T10: 0 | U10: =IF(T10=0,0,IF(ralstandin=1,F10,S10)) -> 0 | V10: =IF(U10=0,0,VLOOKUP(U10,'intrek AX'!$A$1:$R$4572,18,FALSE)) -> 0 | W10: 0 | Z10: =IF(AA10="",IF(SUM(F10:I10)=0,taal!$A$8,IF(ral=4,taal!$A$551,taal!$A$550)),"") ->  | AA10: =IF(SUM(F10:I10)=0,"",INDEX('input data'!$G$56:$G$61,ral)) -> RAL9010 | AB10: =IF(AC10="","",IF(AC10=1,calcul!$B$346,IF(AC10=2,calcul!$B$354,""))) -> RWB964 | AC10: 1
C11: M32T | D11: 7000 | E11: 13270 | F11: 13503 | K11: =VLOOKUP(L11,'intrek AX'!$A$1:$R$4572,18,FALSE) -> 14.31 | L11: 13503 | M11: =IF(VLOOKUP(L11,'setdet 2'!$B$2:$E$2101,4,FALSE)=0,"",VLOOKUP(L11,'setdet 2'!$B$2:$E$2101,4,FALSE)) ->  | O11: =IF(ISBLANK(N11)=TRUE,M11,N11) ->  | S11: 0 | T11: 0 | U11: =IF(T11=0,0,IF(ralstandout=1,F11,S11)) -> 0 | V11: =IF(U11=0,0,VLOOKUP(U11,'intrek AX'!$A$1:$R$4572,18,FALSE)) -> 0 | W11: 0 | Z11: =IF(AA11="",IF(SUM(F11:I11)=0,taal!$A$8,IF(ral=4,taal!$A$551,taal!$A$550)),"") ->  | AA11: =IF(SUM(F11:I11)=0,"",INDEX('input data'!$G$56:$G$61,ral)) -> RAL9010 | AB11: =IF(AC11="","",IF(AC11=1,calcul!$B$346,IF(AC11=2,calcul!$B$354,""))) -> RWB964 | AC11: 1
A12: =taal!A196 -> PROFILE MURAL BOTTOM ALU | B12: SCHARNIER 1 | C12: M32B | D12: 3500 | E12: 13277 | K12: =VLOOKUP(L12,'intrek AX'!$A$1:$R$4572,18,FALSE) -> 7.9 | L12: =E12 -> 13277 | M12: =IF(VLOOKUP(L12,'setdet 2'!$B$2:$E$2101,4,FALSE)=0,"",VLOOKUP(L12,'setdet 2'!$B$2:$E$2101,4,FALSE)) ->  | O12: =IF(ISBLANK(N12)=TRUE,M12,N12) ->  | S12: 0 | T12: 0 | U12: =IF(T12=0,0,IF(ralstandout=1,E12,S12)) -> 0 | V12: =IF(U12=0,0,VLOOKUP(U12,'intrek AX'!$A$1:$R$4572,18,FALSE)) -> 0 | W12: 0 | Z12: =IF(AA12="",IF(SUM(F12:I12)=0,taal!$A$8,IF(ral=4,taal!$A$551,taal!$A$550)),"") -> BRUT | AB12: ="" ->  | AC12: ="" -> 
C13: M32B | D13: 5000 | E13: 13280 | K13: =VLOOKUP(L13,'intrek AX'!$A$1:$R$4572,18,FALSE) -> 7.9 | L13: =E13 -> 13280 | M13: =IF(VLOOKUP(L13,'setdet 2'!$B$2:$E$2101,4,FALSE)=0,"",VLOOKUP(L13,'setdet 2'!$B$2:$E$2101,4,FALSE)) ->  | O13: =IF(ISBLANK(N13)=TRUE,M13,N13) ->  | S13: 0 | T13: 0 | U13: =IF(T13=0,0,IF(ralstandout=1,E13,S13)) -> 0 | V13: =IF(U13=0,0,VLOOKUP(U13,'intrek AX'!$A$1:$R$4572,18,FALSE)) -> 0 | W13: 0 | Z13: =IF(AA13="",IF(SUM(F13:I13)=0,taal!$A$8,IF(ral=4,taal!$A$551,taal!$A$550)),"") -> BRUT | AB13: ="" ->  | AC13: ="" -> 
C14: M32B | D14: 7000 | E14: 13281 | K14: =VLOOKUP(L14,'intrek AX'!$A$1:$R$4572,18,FALSE) -> 7.9 | L14: =E14 -> 13281 | M14: =IF(VLOOKUP(L14,'setdet 2'!$B$2:$E$2101,4,FALSE)=0,"",VLOOKUP(L14,'setdet 2'!$B$2:$E$2101,4,FALSE)) ->  | O14: =IF(ISBLANK(N14)=TRUE,M14,N14) ->  | S14: 0 | T14: 0 | U14: =IF(T14=0,0,IF(ralstandout=1,E14,S14)) -> 0 | V14: =IF(U14=0,0,VLOOKUP(U14,'intrek AX'!$A$1:$R$4572,18,FALSE)) -> 0 | W14: 0 | Z14: =IF(AA14="",IF(SUM(F14:I14)=0,taal!$A$8,IF(ral=4,taal!$A$551,taal!$A$550)),"") -> BRUT | AB14: ="" ->  | AC14: ="" -> 
A15: =+taal!A181 -> PORTEUR PVC | B15: SCHARNIER 2 | C15: T16P | D15: 2000 | E15: 13198 | F15: 13198 | G15: 13198 | H15: 13208 | I15: 13198 | J15: 13198 | K15: =VLOOKUP(L15,'intrek AX'!$A$1:$R$4572,18,FALSE) -> 10.02 | L15: =INDEX(E15:J15,ralin) -> 13198 | M15: =IF(VLOOKUP(L15,'setdet 2'!$B$2:$E$2101,4,FALSE)=0,"",VLOOKUP(L15,'setdet 2'!$B$2:$E$2101,4,FALSE)) ->  | S15: 0 | T15: 0 | U15: =IF(T15=0,0,IF(ralstandin=1,F15,S15)) -> 0 | V15: =IF(U15=0,0,VLOOKUP(U15,'intrek AX'!$A$1:$R$4572,18,FALSE)) -> 0 | W15: 0 | Z15: =IF(AA15="",IF(SUM(F15:I15)=0,taal!$A$8,IF(ralin=4,taal!$A$551,taal!$A$550)),"") -> BLANC | AB15: ="" ->  | AC15: ="" -> 
A16: =+taal!A181 -> PORTEUR PVC | C16: T16P | D16: 2500 | E16: 13202 | F16: 13202 | G16: 13202 | H16: 13209 | I16: 13202 | J16: 13202 | K16: =VLOOKUP(L16,'intrek AX'!$A$1:$R$4572,18,FALSE) -> 10.02 | L16: 13202 | M16: =IF(VLOOKUP(L16,'setdet 2'!$B$2:$E$2101,4,FALSE)=0,"",VLOOKUP(L16,'setdet 2'!$B$2:$E$2101,4,FALSE)) ->  | O16: =IF(ISBLANK(N16)=TRUE,M16,N16) ->  | S16: 0 | T16: 0 | U16: 0 | V16: =IF(U16=0,0,VLOOKUP(U16,'intrek AX'!$A$1:$R$4572,18,FALSE)) -> 0 | W16: 0 | Z16: =IF(AA16="",IF(SUM(F16:I16)=0,taal!$A$8,IF(ralin=4,taal!$A$551,taal!$A$550)),"") -> BLANC | AB16: ="" ->  | AC16: ="" -> 
C17: T16P | D17: 3000 | E17: 13203 | F17: 13203 | G17: 13203 | H17: 13210 | I17: 13203 | J17: 13203 | K17: =VLOOKUP(L17,'intrek AX'!$A$1:$R$4572,18,FALSE) -> 10.02 | L17: 13203 | M17: =IF(VLOOKUP(L17,'setdet 2'!$B$2:$E$2101,4,FALSE)=0,"",VLOOKUP(L17,'setdet 2'!$B$2:$E$2101,4,FALSE)) ->  | S17: 0 | T17: 0 | U17: 0 | V17: =IF(U17=0,0,VLOOKUP(U17,'intrek AX'!$A$1:$R$4572,18,FALSE)) -> 0 | W17: 0 | Z17: =IF(AA17="",IF(SUM(F17:I17)=0,taal!$A$8,IF(ralin=4,taal!$A$551,taal!$A$550)),"") -> BLANC | AB17: ="" ->  | AC17: ="" -> 
B18: GOOT | C18: T16P | D18: 3500 | E18: 13204 | F18: 13204 | G18: 13204 | H18: 13211 | I18: 13204 | J18: 13204 | K18: =VLOOKUP(L18,'intrek AX'!$A$1:$R$4572,18,FALSE) -> 10.02 | L18: 13204 | M18: =IF(VLOOKUP(L18,'setdet 2'!$B$2:$E$2101,4,FALSE)=0,"",VLOOKUP(L18,'setdet 2'!$B$2:$E$2101,4,FALSE)) ->  | S18: 0 | T18: 0 | U18: 0 | V18: =IF(U18=0,0,VLOOKUP(U18,'intrek AX'!$A$1:$R$4572,18,FALSE)) -> 0 | W18: 0 | Z18: =IF(AA18="",IF(SUM(F18:I18)=0,taal!$A$8,IF(ralin=4,taal!$A$551,taal!$A$550)),"") -> BLANC | AB18: ="" ->  | AC18: ="" -> 
C19: T16P | D19: 4000 | E19: 13205 | F19: 13205 | G19: 13205 | H19: 13212 | I19: 13205 | J19: 13205 | K19: =VLOOKUP(L19,'intrek AX'!$A$1:$R$4572,18,FALSE) -> 10.02 | L19: 13205 | M19: =IF(VLOOKUP(L19,'setdet 2'!$B$2:$E$2101,4,FALSE)=0,"",VLOOKUP(L19,'setdet 2'!$B$2:$E$2101,4,FALSE)) ->  | O19: =IF(ISBLANK(N19)=TRUE,M19,N19) ->  | S19: 0 | T19: 0 | U19: 0 | V19: =IF(U19=0,0,VLOOKUP(U19,'intrek AX'!$A$1:$R$4572,18,FALSE)) -> 0 | W19: 0 | Z19: =IF(AA19="",IF(SUM(F19:I19)=0,taal!$A$8,IF(ralin=4,taal!$A$551,taal!$A$550)),"") -> BLANC | AB19: ="" ->  | AC19: ="" -> 
C20: T16P | D20: 5000 | E20: 15588 | F20: 15588 | G20: 15588 | H20: 15587 | I20: 15588 | J20: 15588 | K20: =VLOOKUP(L20,'intrek AX'!$A$1:$R$4572,18,FALSE) -> 10.02 | L20: 15588 | M20: =IF(VLOOKUP(L20,'setdet 2'!$B$2:$E$2101,4,FALSE)=0,"",VLOOKUP(L20,'setdet 2'!$B$2:$E$2101,4,FALSE)) ->  | O20: =IF(ISBLANK(N20)=TRUE,M20,N20) ->  | S20: 0 | T20: 0 | U20: 0 | V20: =IF(U20=0,0,VLOOKUP(U20,'intrek AX'!$A$1:$R$4572,18,FALSE)) -> 0 | W20: 0 | Z20: =IF(AA20="",IF(SUM(F20:I20)=0,taal!$A$8,IF(ralin=4,taal!$A$551,taal!$A$550)),"") -> BLANC | AB20: ="" ->  | AC20: ="" -> 
C21: T16P | D21: 6000 | E21: 13206 | F21: 13206 | G21: 13206 | H21: 13213 | I21: 13206 | J21: 13206 | K21: =VLOOKUP(L21,'intrek AX'!$A$1:$R$4572,18,FALSE) -> 10.02 | L21: 13206 | M21: =IF(VLOOKUP(L21,'setdet 2'!$B$2:$E$2101,4,FALSE)=0,"",VLOOKUP(L21,'setdet 2'!$B$2:$E$2101,4,FALSE)) ->  | O21: =IF(ISBLANK(N21)=TRUE,M21,N21) ->  | S21: 0 | T21: 0 | U21: 0 | V21: =IF(U21=0,0,VLOOKUP(U21,'intrek AX'!$A$1:$R$4572,18,FALSE)) -> 0 | W21: 0 | Z21: =IF(AA21="",IF(SUM(F21:I21)=0,taal!$A$8,IF(ralin=4,taal!$A$551,taal!$A$550)),"") -> BLANC | AB21: ="" ->  | AC21: ="" -> 
C22: T16P | D22: 7000 | E22: 13207 | F22: 13207 | G22: 13207 | H22: 13214 | I22: 13207 | J22: 13207 | L22: 13207 | M22: =IF(VLOOKUP(L22,'setdet 2'!$B$2:$E$2101,4,FALSE)=0,"",VLOOKUP(L22,'setdet 2'!$B$2:$E$2101,4,FALSE)) ->  | O22: =IF(ISBLANK(N22)=TRUE,M22,N22) ->  | S22: =IF(T22=0,0,L22) -> 0 | T22: =IF(ISNUMBER(O22)=FALSE,0,O22) -> 0 | U22: 0 | V22: =IF(U22=0,0,VLOOKUP(U22,'intrek AX'!$A$1:$R$4572,18,FALSE)) -> 0 | W22: 0 | Z22: =IF(AA22="",IF(SUM(F22:I22)=0,taal!$A$8,IF(ralin=4,taal!$A$551,taal!$A$550)),"") -> BLANC | AB22: ="" ->  | AC22: ="" -> 
A23: =taal!A180 -> PORTEUR ALU | B23: GI | C23: T16.1 | D23: 2000 | E23: 13169 | K23: =VLOOKUP(L23,'intrek AX'!$A$1:$R$4572,18,FALSE) -> 8.87 | L23: =E23 -> 13169 | M23: =IF(VLOOKUP(L23,'setdet 2'!$B$2:$E$2101,4,FALSE)=0,"",VLOOKUP(L23,'setdet 2'!$B$2:$E$2101,4,FALSE)) ->  | S23: 0 | T23: 0 | U23: =IF(T23=0,0,IF(ralstandout=1,E23,S23)) -> 0 | V23: =IF(U23=0,0,VLOOKUP(U23,'intrek AX'!$A$1:$R$4572,18,FALSE)) -> 0 | W23: 0 | Z23: =IF(AA23="",IF(SUM(F23:I23)=0,taal!$A$8,IF(ral=4,taal!$A$551,taal!$A$550)),"") -> BRUT | AB23: ="" ->  | AC23: ="" -> 
A24: =taal!A180 -> PORTEUR ALU | B24: GI | C24: T16.1 | D24: 2500 | E24: 13170 | K24: =VLOOKUP(L24,'intrek AX'!$A$1:$R$4572,18,FALSE) -> 8.87 | L24: 13170 | M24: =IF(VLOOKUP(L24,'setdet 2'!$B$2:$E$2101,4,FALSE)=0,"",VLOOKUP(L24,'setdet 2'!$B$2:$E$2101,4,FALSE)) ->  | O24: =IF(ISBLANK(N24)=TRUE,M24,N24) ->  | S24: 0 | T24: 0 | U24: 0 | V24: =IF(U24=0,0,VLOOKUP(U24,'intrek AX'!$A$1:$R$4572,18,FALSE)) -> 0 | W24: 0 | Z24: =IF(AA24="",IF(SUM(F24:I24)=0,taal!$A$8,IF(ral=4,taal!$A$551,taal!$A$550)),"") -> BRUT | AB24: ="" ->  | AC24: ="" -> 
B25: GI | C25: T16.1 | D25: 3000 | E25: 13171 | K25: =VLOOKUP(L25,'intrek AX'!$A$1:$R$4572,18,FALSE) -> 8.87 | L25: 13171 | M25: =IF(VLOOKUP(L25,'setdet 2'!$B$2:$E$2101,4,FALSE)=0,"",VLOOKUP(L25,'setdet 2'!$B$2:$E$2101,4,FALSE)) ->  | S25: 0 | T25: 0 | U25: 0 | V25: =IF(U25=0,0,VLOOKUP(U25,'intrek AX'!$A$1:$R$4572,18,FALSE)) -> 0 | W25: 0 | Z25: =IF(AA25="",IF(SUM(F25:I25)=0,taal!$A$8,IF(ral=4,taal!$A$551,taal!$A$550)),"") -> BRUT | AB25: ="" ->  | AC25: ="" -> 
B26: GI | C26: T16.1 | D26: 3500 | E26: 13172 | K26: =VLOOKUP(L26,'intrek AX'!$A$1:$R$4572,18,FALSE) -> 8.87 | L26: 13172 | M26: =IF(VLOOKUP(L26,'setdet 2'!$B$2:$E$2101,4,FALSE)=0,"",VLOOKUP(L26,'setdet 2'!$B$2:$E$2101,4,FALSE)) ->  | O26: =IF(ISBLANK(N26)=TRUE,M26,N26) ->  | S26: 0 | T26: =IF(ISNUMBER(O26)=FALSE,0,O26) -> 0 | U26: 0 | V26: =IF(U26=0,0,VLOOKUP(U26,'intrek AX'!$A$1:$R$4572,18,FALSE)) -> 0 | W26: 0 | Z26: =IF(AA26="",IF(SUM(F26:I26)=0,taal!$A$8,IF(ral=4,taal!$A$551,taal!$A$550)),"") -> BRUT | AB26: ="" ->  | AC26: ="" -> 
B27: GI | C27: T16.1 | D27: 4000 | E27: 13173 | K27: =VLOOKUP(L27,'intrek AX'!$A$1:$R$4572,18,FALSE) -> 8.87 | L27: 13173 | M27: =IF(VLOOKUP(L27,'setdet 2'!$B$2:$E$2101,4,FALSE)=0,"",VLOOKUP(L27,'setdet 2'!$B$2:$E$2101,4,FALSE)) ->  | S27: 0 | T27: 0 | U27: 0 | V27: =IF(U27=0,0,VLOOKUP(U27,'intrek AX'!$A$1:$R$4572,18,FALSE)) -> 0 | W27: 0 | Z27: =IF(AA27="",IF(SUM(F27:I27)=0,taal!$A$8,IF(ral=4,taal!$A$551,taal!$A$550)),"") -> BRUT | AB27: ="" ->  | AC27: ="" -> 
B28: GI | C28: T16.1 | D28: 5000 | E28: 14537 | K28: =VLOOKUP(L28,'intrek AX'!$A$1:$R$4572,18,FALSE) -> 8.87 | L28: 14537 | M28: =IF(VLOOKUP(L28,'setdet 2'!$B$2:$E$2101,4,FALSE)=0,"",VLOOKUP(L28,'setdet 2'!$B$2:$E$2101,4,FALSE)) ->  | O28: =IF(ISBLANK(N28)=TRUE,M28,N28) ->  | S28: 0 | T28: 0 | U28: 0 | V28: =IF(U28=0,0,VLOOKUP(U28,'intrek AX'!$A$1:$R$4572,18,FALSE)) -> 0 | W28: 0 | Z28: =IF(AA28="",IF(SUM(F28:I28)=0,taal!$A$8,IF(ral=4,taal!$A$551,taal!$A$550)),"") -> BRUT | AB28: ="" ->  | AC28: ="" -> 
B29: GOOTDRAGER 1 | C29: T16.1 | D29: 6000 | E29: 13174 | K29: =VLOOKUP(L29,'intrek AX'!$A$1:$R$4572,18,FALSE) -> 8.87 | L29: 13174 | M29: =IF(VLOOKUP(L29,'setdet 2'!$B$2:$E$2101,4,FALSE)=0,"",VLOOKUP(L29,'setdet 2'!$B$2:$E$2101,4,FALSE)) ->  | O29: =IF(ISBLANK(N29)=TRUE,M29,N29) ->  | S29: =IF(T29=0,0,L29) -> 0 | T29: =IF(ISNUMBER(O29)=FALSE,0,O29) -> 0 | U29: 0 | V29: =IF(U29=0,0,VLOOKUP(U29,'intrek AX'!$A$1:$R$4572,18,FALSE)) -> 0 | W29: 0 | Z29: =IF(AA29="",IF(SUM(F29:I29)=0,taal!$A$8,IF(ral=4,taal!$A$551,taal!$A$550)),"") -> BRUT | AB29: ="" ->  | AC29: ="" -> 
C30: T16.1 | D30: 7000 | E30: 13175 | K30: =VLOOKUP(L30,'intrek AX'!$A$1:$R$4572,18,FALSE) -> 8.87 | L30: 13175 | M30: =IF(VLOOKUP(L30,'setdet 2'!$B$2:$E$2101,4,FALSE)=0,"",VLOOKUP(L30,'setdet 2'!$B$2:$E$2101,4,FALSE)) ->  | S30: 0 | T30: 0 | U30: 0 | V30: =IF(U30=0,0,VLOOKUP(U30,'intrek AX'!$A$1:$R$4572,18,FALSE)) -> 0 | W30: 0 | Z30: =IF(AA30="",IF(SUM(F30:I30)=0,taal!$A$8,IF(ral=4,taal!$A$551,taal!$A$550)),"") -> BRUT | AB30: ="" ->  | AC30: ="" -> 
A31: =taal!A180 -> PORTEUR ALU | C31: T16.2 | D31: 2000 | E31: 13177 | F31: 13184 | H31: 13191 | K31: =VLOOKUP(L31,'intrek AX'!$A$1:$R$4572,18,FALSE) -> 14.61 | L31: =INDEX(E31:J31,ral) -> 13184 | M31: =IF(VLOOKUP(L31,'setdet 2'!$B$2:$E$2101,4,FALSE)=0,"",VLOOKUP(L31,'setdet 2'!$B$2:$E$2101,4,FALSE)) ->  | S31: 0 | T31: 0 | U31: =IF(T31=0,0,IF(ralstandin=1,F31,S31)) -> 0 | V31: =IF(U31=0,0,VLOOKUP(U31,'intrek AX'!$A$1:$R$4572,18,FALSE)) -> 0 | W31: 0 | Z31: =IF(AA31="",IF(SUM(F31:I31)=0,taal!$A$8,IF(ralin=4,taal!$A$551,taal!$A$550)),"") ->  | AA31: =IF(SUM(F31:I31)=0,"",INDEX('input data'!$H$56:$H$61,ralin)) -> RAL9010 | AB31: =IF(AC31="","",IF(AC31=1,calcul!$B$346,IF(AC31=2,calcul!$B$354,""))) -> 0 | AC31: 2
A32: =taal!A180 -> PORTEUR ALU | C32: T16.2 | D32: 2500 | E32: 13178 | F32: 13185 | K32: =VLOOKUP(L32,'intrek AX'!$A$1:$R$4572,18,FALSE) -> 14.61 | L32: 13185 | M32: =IF(VLOOKUP(L32,'setdet 2'!$B$2:$E$2101,4,FALSE)=0,"",VLOOKUP(L32,'setdet 2'!$B$2:$E$2101,4,FALSE)) ->  | S32: 0 | T32: 0 | U32: 0 | V32: =IF(U32=0,0,VLOOKUP(U32,'intrek AX'!$A$1:$R$4572,18,FALSE)) -> 0 | W32: 0 | Z32: =IF(AA32="",IF(SUM(F32:I32)=0,taal!$A$8,IF(ralin=4,taal!$A$551,taal!$A$550)),"") ->  | AA32: =IF(SUM(F32:I32)=0,"",INDEX('input data'!$H$56:$H$61,ralin)) -> RAL9010 | AB32: =IF(AC32="","",IF(AC32=1,calcul!$B$346,IF(AC32=2,calcul!$B$354,""))) -> 0 | AC32: 2
C33: T16.2 | D33: 3000 | E33: 13179 | F33: 13186 | K33: =VLOOKUP(L33,'intrek AX'!$A$1:$R$4572,18,FALSE) -> 14.61 | L33: 13186 | M33: =IF(VLOOKUP(L33,'setdet 2'!$B$2:$E$2101,4,FALSE)=0,"",VLOOKUP(L33,'setdet 2'!$B$2:$E$2101,4,FALSE)) ->  | S33: 0 | T33: 0 | U33: 0 | V33: =IF(U33=0,0,VLOOKUP(U33,'intrek AX'!$A$1:$R$4572,18,FALSE)) -> 0 | W33: 0 | Z33: =IF(AA33="",IF(SUM(F33:I33)=0,taal!$A$8,IF(ralin=4,taal!$A$551,taal!$A$550)),"") ->  | AA33: =IF(SUM(F33:I33)=0,"",INDEX('input data'!$H$56:$H$61,ralin)) -> RAL9010 | AB33: =IF(AC33="","",IF(AC33=1,calcul!$B$346,IF(AC33=2,calcul!$B$354,""))) -> 0 | AC33: 2
B34: GD2 GOOTDRAGER 2 | C34: T16.2 | D34: 3500 | E34: 13180 | F34: 13187 | K34: =VLOOKUP(L34,'intrek AX'!$A$1:$R$4572,18,FALSE) -> 14.61 | L34: 13187 | M34: =IF(VLOOKUP(L34,'setdet 2'!$B$2:$E$2101,4,FALSE)=0,"",VLOOKUP(L34,'setdet 2'!$B$2:$E$2101,4,FALSE)) ->  | S34: 0 | T34: 0 | U34: 0 | V34: =IF(U34=0,0,VLOOKUP(U34,'intrek AX'!$A$1:$R$4572,18,FALSE)) -> 0 | W34: 0 | Z34: =IF(AA34="",IF(SUM(F34:I34)=0,taal!$A$8,IF(ralin=4,taal!$A$551,taal!$A$550)),"") ->  | AA34: =IF(SUM(F34:I34)=0,"",INDEX('input data'!$H$56:$H$61,ralin)) -> RAL9010 | AB34: =IF(AC34="","",IF(AC34=1,calcul!$B$346,IF(AC34=2,calcul!$B$354,""))) -> 0 | AC34: 2
C35: T16.2 | D35: 4000 | E35: 13181 | F35: 13188 | K35: =VLOOKUP(L35,'intrek AX'!$A$1:$R$4572,18,FALSE) -> 14.61 | L35: 13188 | M35: =IF(VLOOKUP(L35,'setdet 2'!$B$2:$E$2101,4,FALSE)=0,"",VLOOKUP(L35,'setdet 2'!$B$2:$E$2101,4,FALSE)) ->  | O35: =IF(ISBLANK(N35)=TRUE,M35,N35) ->  | S35: 0 | T35: 0 | U35: 0 | V35: =IF(U35=0,0,VLOOKUP(U35,'intrek AX'!$A$1:$R$4572,18,FALSE)) -> 0 | W35: =T35*D35/1000*V35 -> 0 | Z35: =IF(AA35="",IF(SUM(F35:I35)=0,taal!$A$8,IF(ralin=4,taal!$A$551,taal!$A$550)),"") ->  | AA35: =IF(SUM(F35:I35)=0,"",INDEX('input data'!$H$56:$H$61,ralin)) -> RAL9010 | AB35: =IF(AC35="","",IF(AC35=1,calcul!$B$346,IF(AC35=2,calcul!$B$354,""))) -> 0 | AC35: 2
C36: T16.2 | D36: 5000 | E36: 14538 | F36: 14606 | K36: =VLOOKUP(L36,'intrek AX'!$A$1:$R$4572,18,FALSE) -> 14.61 | L36: 14606 | M36: =IF(VLOOKUP(L36,'setdet 2'!$B$2:$E$2101,4,FALSE)=0,"",VLOOKUP(L36,'setdet 2'!$B$2:$E$2101,4,FALSE)) ->  | S36: 0 | T36: 0 | U36: 0 | V36: =IF(U36=0,0,VLOOKUP(U36,'intrek AX'!$A$1:$R$4572,18,FALSE)) -> 0 | W36: 0 | Z36: =IF(AA36="",IF(SUM(F36:I36)=0,taal!$A$8,IF(ralin=4,taal!$A$551,taal!$A$550)),"") ->  | AA36: =IF(SUM(F36:I36)=0,"",INDEX('input data'!$H$56:$H$61,ralin)) -> RAL9010 | AB36: =IF(AC36="","",IF(AC36=1,calcul!$B$346,IF(AC36=2,calcul!$B$354,""))) -> 0 | AC36: 2
C37: T16.2 | D37: 6000 | E37: 13182 | F37: 13189 | K37: =VLOOKUP(L37,'intrek AX'!$A$1:$R$4572,18,FALSE) -> 14.61 | L37: 13189 | M37: =IF(VLOOKUP(L37,'setdet 2'!$B$2:$E$2101,4,FALSE)=0,"",VLOOKUP(L37,'setdet 2'!$B$2:$E$2101,4,FALSE)) ->  | O37: =IF(ISBLANK(N37)=TRUE,M37,N37) ->  | S37: 0 | T37: =IF(ISNUMBER(O37)=FALSE,0,O37) -> 0 | U37: 0 | V37: =IF(U37=0,0,VLOOKUP(U37,'intrek AX'!$A$1:$R$4572,18,FALSE)) -> 0 | W37: 0 | Z37: =IF(AA37="",IF(SUM(F37:I37)=0,taal!$A$8,IF(ralin=4,taal!$A$551,taal!$A$550)),"") ->  | AA37: =IF(SUM(F37:I37)=0,"",INDEX('input data'!$H$56:$H$61,ralin)) -> RAL9010 | AB37: =IF(AC37="","",IF(AC37=1,calcul!$B$346,IF(AC37=2,calcul!$B$354,""))) -> 0 | AC37: 2
B38: GD2C KLIP VOOR GD2 | C38: T16.2 | D38: 7000 | E38: 13183 | F38: 13190 | K38: =VLOOKUP(L38,'intrek AX'!$A$1:$R$4572,18,FALSE) -> 14.61 | L38: 13190 | M38: =IF(VLOOKUP(L38,'setdet 2'!$B$2:$E$2101,4,FALSE)=0,"",VLOOKUP(L38,'setdet 2'!$B$2:$E$2101,4,FALSE)) ->  | S38: 0 | T38: 0 | U38: 0 | V38: =IF(U38=0,0,VLOOKUP(U38,'intrek AX'!$A$1:$R$4572,18,FALSE)) -> 0 | W38: 0 | Z38: =IF(AA38="",IF(SUM(F38:I38)=0,taal!$A$8,IF(ralin=4,taal!$A$551,taal!$A$550)),"") ->  | AA38: =IF(SUM(F38:I38)=0,"",INDEX('input data'!$H$56:$H$61,ralin)) -> RAL9010 | AB38: =IF(AC38="","",IF(AC38=1,calcul!$B$346,IF(AC38=2,calcul!$B$354,""))) -> 0 | AC38: 2
A39: =taal!A180 -> PORTEUR ALU | C39: T32.1 | D39: 2000 | E39: 14222 | F39: 14391 | K39: =VLOOKUP(L39,'intrek AX'!$A$1:$R$4572,18,FALSE) -> 14.58 | L39: 14391 | M39: =IF(VLOOKUP(L39,'setdet 2'!$B$2:$E$2101,4,FALSE)=0,"",VLOOKUP(L39,'setdet 2'!$B$2:$E$2101,4,FALSE)) ->  | O39: =IF(ISBLANK(N39)=TRUE,M39,N39) ->  | S39: 0 | T39: 0 | U39: 0 | V39: =IF(U39=0,0,VLOOKUP(U39,'intrek AX'!$A$1:$R$4572,18,FALSE)) -> 0 | W39: 0 | Z39: =IF(AA39="",IF(SUM(F39:I39)=0,taal!$A$8,IF(ralin=4,taal!$A$551,taal!$A$550)),"") ->  | AA39: =IF(SUM(F39:I39)=0,"",INDEX('input data'!$H$56:$H$61,ralin)) -> RAL9010 | AB39: =IF(AC39="","",IF(AC39=1,calcul!$B$346,IF(AC39=2,calcul!$B$354,""))) -> 0 | AC39: 2
A40: =taal!A180 -> PORTEUR ALU | C40: T32.1 | D40: 2500 | E40: 14223 | F40: 14392 | K40: =VLOOKUP(L40,'intrek AX'!$A$1:$R$4572,18,FALSE) -> 14.58 | L40: 14392 | M40: =IF(VLOOKUP(L40,'setdet 2'!$B$2:$E$2101,4,FALSE)=0,"",VLOOKUP(L40,'setdet 2'!$B$2:$E$2101,4,FALSE)) ->  | O40: =IF(ISBLANK(N40)=TRUE,M40,N40) ->  | S40: 0 | T40: 0 | U40: 0 | V40: =IF(U40=0,0,VLOOKUP(U40,'intrek AX'!$A$1:$R$4572,18,FALSE)) -> 0 | W40: 0 | Z40: =IF(AA40="",IF(SUM(F40:I40)=0,taal!$A$8,IF(ralin=4,taal!$A$551,taal!$A$550)),"") ->  | AA40: =IF(SUM(F40:I40)=0,"",INDEX('input data'!$H$56:$H$61,ralin)) -> RAL9010 | AB40: =IF(AC40="","",IF(AC40=1,calcul!$B$346,IF(AC40=2,calcul!$B$354,""))) -> 0 | AC40: 2
C41: T32.1 | D41: 3000 | E41: 14224 | F41: 14393 | K41: =VLOOKUP(L41,'intrek AX'!$A$1:$R$4572,18,FALSE) -> 14.58 | L41: 14393 | M41: =IF(VLOOKUP(L41,'setdet 2'!$B$2:$E$2101,4,FALSE)=0,"",VLOOKUP(L41,'setdet 2'!$B$2:$E$2101,4,FALSE)) ->  | O41: =IF(ISBLANK(N41)=TRUE,M41,N41) ->  | S41: 0 | T41: 0 | U41: 0 | V41: =IF(U41=0,0,VLOOKUP(U41,'intrek AX'!$A$1:$R$4572,18,FALSE)) -> 0 | W41: 0 | Z41: =IF(AA41="",IF(SUM(F41:I41)=0,taal!$A$8,IF(ralin=4,taal!$A$551,taal!$A$550)),"") ->  | AA41: =IF(SUM(F41:I41)=0,"",INDEX('input data'!$H$56:$H$61,ralin)) -> RAL9010 | AB41: =IF(AC41="","",IF(AC41=1,calcul!$B$346,IF(AC41=2,calcul!$B$354,""))) -> 0 | AC41: 2
C42: T32.1 | D42: 3500 | E42: 14225 | F42: 14394 | K42: =VLOOKUP(L42,'intrek AX'!$A$1:$R$4572,18,FALSE) -> 14.58 | L42: 14394 | M42: =IF(VLOOKUP(L42,'setdet 2'!$B$2:$E$2101,4,FALSE)=0,"",VLOOKUP(L42,'setdet 2'!$B$2:$E$2101,4,FALSE)) ->  | S42: 0 | T42: 0 | U42: 0 | V42: =IF(U42=0,0,VLOOKUP(U42,'intrek AX'!$A$1:$R$4572,18,FALSE)) -> 0 | W42: 0 | Z42: =IF(AA42="",IF(SUM(F42:I42)=0,taal!$A$8,IF(ralin=4,taal!$A$551,taal!$A$550)),"") ->  | AA42: =IF(SUM(F42:I42)=0,"",INDEX('input data'!$H$56:$H$61,ralin)) -> RAL9010 | AB42: =IF(AC42="","",IF(AC42=1,calcul!$B$346,IF(AC42=2,calcul!$B$354,""))) -> 0 | AC42: 2
B43: GDG ZWARE GOOTDRAGER | C43: T32.1 | D43: 4000 | E43: 14226 | F43: 14395 | K43: =VLOOKUP(L43,'intrek AX'!$A$1:$R$4572,18,FALSE) -> 14.58 | L43: 14395 | M43: =IF(VLOOKUP(L43,'setdet 2'!$B$2:$E$2101,4,FALSE)=0,"",VLOOKUP(L43,'setdet 2'!$B$2:$E$2101,4,FALSE)) ->  | S43: 0 | T43: 0 | U43: 0 | V43: =IF(U43=0,0,VLOOKUP(U43,'intrek AX'!$A$1:$R$4572,18,FALSE)) -> 0 | W43: 0 | Z43: =IF(AA43="",IF(SUM(F43:I43)=0,taal!$A$8,IF(ralin=4,taal!$A$551,taal!$A$550)),"") ->  | AA43: =IF(SUM(F43:I43)=0,"",INDEX('input data'!$H$56:$H$61,ralin)) -> RAL9010 | AB43: =IF(AC43="","",IF(AC43=1,calcul!$B$346,IF(AC43=2,calcul!$B$354,""))) -> 0 | AC43: 2
C44: T32.1 | D44: 5000 | E44: 14227 | F44: 14396 | K44: =VLOOKUP(L44,'intrek AX'!$A$1:$R$4572,18,FALSE) -> 14.58 | L44: 14396 | M44: =IF(VLOOKUP(L44,'setdet 2'!$B$2:$E$2101,4,FALSE)=0,"",VLOOKUP(L44,'setdet 2'!$B$2:$E$2101,4,FALSE)) ->  | O44: =IF(ISBLANK(N44)=TRUE,M44,N44) ->  | S44: 0 | T44: 0 | U44: 0 | V44: =IF(U44=0,0,VLOOKUP(U44,'intrek AX'!$A$1:$R$4572,18,FALSE)) -> 0 | W44: 0 | Z44: =IF(AA44="",IF(SUM(F44:I44)=0,taal!$A$8,IF(ralin=4,taal!$A$551,taal!$A$550)),"") ->  | AA44: =IF(SUM(F44:I44)=0,"",INDEX('input data'!$H$56:$H$61,ralin)) -> RAL9010 | AB44: =IF(AC44="","",IF(AC44=1,calcul!$B$346,IF(AC44=2,calcul!$B$354,""))) -> 0 | AC44: 2
C45: T32.1 | D45: 6000 | E45: 14228 | F45: 14397 | K45: =VLOOKUP(L45,'intrek AX'!$A$1:$R$4572,18,FALSE) -> 14.58 | L45: 14397 | M45: =IF(VLOOKUP(L45,'setdet 2'!$B$2:$E$2101,4,FALSE)=0,"",VLOOKUP(L45,'setdet 2'!$B$2:$E$2101,4,FALSE)) ->  | O45: =IF(ISBLANK(N45)=TRUE,M45,N45) ->  | S45: 0 | T45: 0 | U45: 0 | V45: =IF(U45=0,0,VLOOKUP(U45,'intrek AX'!$A$1:$R$4572,18,FALSE)) -> 0 | W45: 0 | Z45: =IF(AA45="",IF(SUM(F45:I45)=0,taal!$A$8,IF(ralin=4,taal!$A$551,taal!$A$550)),"") ->  | AA45: =IF(SUM(F45:I45)=0,"",INDEX('input data'!$H$56:$H$61,ralin)) -> RAL9010 | AB45: =IF(AC45="","",IF(AC45=1,calcul!$B$346,IF(AC45=2,calcul!$B$354,""))) -> 0 | AC45: 2
C46: T32.1 | D46: 7000 | E46: 14229 | F46: 14398 | K46: =VLOOKUP(L46,'intrek AX'!$A$1:$R$4572,18,FALSE) -> 14.58 | L46: 14398 | M46: =IF(VLOOKUP(L46,'setdet 2'!$B$2:$E$2101,4,FALSE)=0,"",VLOOKUP(L46,'setdet 2'!$B$2:$E$2101,4,FALSE)) ->  | S46: 0 | T46: 0 | U46: 0 | V46: =IF(U46=0,0,VLOOKUP(U46,'intrek AX'!$A$1:$R$4572,18,FALSE)) -> 0 | W46: 0 | Z46: =IF(AA46="",IF(SUM(F46:I46)=0,taal!$A$8,IF(ralin=4,taal!$A$551,taal!$A$550)),"") ->  | AA46: =IF(SUM(F46:I46)=0,"",INDEX('input data'!$H$56:$H$61,ralin)) -> RAL9010 | AB46: =IF(AC46="","",IF(AC46=1,calcul!$B$346,IF(AC46=2,calcul!$B$354,""))) -> 0 | AC46: 2
A47: =taal!A177 -> PORTEUR PLAQUE THERMIQUE BLANC | B47: THERMISCHE PLAATDRAGER | C47: TP | D47: 2700 | F47: 21277 | L47: =F47 -> 21277 | M47: =IF(VLOOKUP(L47,'setdet 2'!$B$2:$E$2101,4,FALSE)=0,"",VLOOKUP(L47,'setdet 2'!$B$2:$E$2101,4,FALSE)) ->  | S47: =IF(T47=0,0,L47) -> 0 | T47: =IF(ISNUMBER(O47)=FALSE,0,O47) -> 0 | U47: 0 | V47: =IF(U47=0,0,VLOOKUP(U47,'intrek AX'!$A$1:$R$4572,18,FALSE)) -> 0 | W47: 0 | Z47: =taal!$A$550 -> BLANC | AB47: ="" ->  | AC47: ="" -> 
C48: TP | D48: 3200 | F48: 21278 | K48: =VLOOKUP(L48,'intrek AX'!$A$1:$R$4572,18,FALSE) -> 10.48 | L48: 21278 | M48: =IF(VLOOKUP(L48,'setdet 2'!$B$2:$E$2101,4,FALSE)=0,"",VLOOKUP(L48,'setdet 2'!$B$2:$E$2101,4,FALSE)) ->  | S48: 0 | T48: 0 | U48: 0 | V48: =IF(U48=0,0,VLOOKUP(U48,'intrek AX'!$A$1:$R$4572,18,FALSE)) -> 0 | W48: 0 | Z48: =taal!$A$550 -> BLANC | AB48: ="" ->  | AC48: ="" -> 
C49: TP | D49: 3700 | F49: 21279 | L49: 21279 | M49: =IF(VLOOKUP(L49,'setdet 2'!$B$2:$E$2101,4,FALSE)=0,"",VLOOKUP(L49,'setdet 2'!$B$2:$E$2101,4,FALSE)) ->  | S49: =IF(T49=0,0,L49) -> 0 | T49: =IF(ISNUMBER(O49)=FALSE,0,O49) -> 0 | U49: 0 | V49: =IF(U49=0,0,VLOOKUP(U49,'intrek AX'!$A$1:$R$4572,18,FALSE)) -> 0 | W49: 0 | Z49: =taal!$A$550 -> BLANC | AB49: ="" ->  | AC49: ="" -> 
C50: TP | D50: 4200 | F50: 21280 | K50: =VLOOKUP(L50,'intrek AX'!$A$1:$R$4572,18,FALSE) -> 10.48 | L50: 21280 | M50: =IF(VLOOKUP(L50,'setdet 2'!$B$2:$E$2101,4,FALSE)=0,"",VLOOKUP(L50,'setdet 2'!$B$2:$E$2101,4,FALSE)) ->  | O50: =IF(ISBLANK(N50)=TRUE,M50,N50) ->  | S50: 0 | T50: 0 | U50: 0 | V50: =IF(U50=0,0,VLOOKUP(U50,'intrek AX'!$A$1:$R$4572,18,FALSE)) -> 0 | W50: 0 | Z50: =taal!$A$550 -> BLANC | AB50: ="" ->  | AC50: ="" -> 
C51: TP | D51: 5200 | F51: 24468 | L51: 24468 | M51: =IF(VLOOKUP(L51,'setdet 2'!$B$2:$E$2101,4,FALSE)=0,"",VLOOKUP(L51,'setdet 2'!$B$2:$E$2101,4,FALSE)) ->  | S51: =IF(T51=0,0,L51) -> 0 | T51: =IF(ISNUMBER(O51)=FALSE,0,O51) -> 0 | U51: 0 | V51: =IF(U51=0,0,VLOOKUP(U51,'intrek AX'!$A$1:$R$4572,18,FALSE)) -> 0 | W51: 0 | Z51: =taal!$A$550 -> BLANC | AB51: ="" ->  | AC51: ="" -> 
C52: TP | D52: 6200 | F52: 21281 | K52: =VLOOKUP(L52,'intrek AX'!$A$1:$R$4572,18,FALSE) -> 10.48 | L52: 21281 | M52: =IF(VLOOKUP(L52,'setdet 2'!$B$2:$E$2101,4,FALSE)=0,"",VLOOKUP(L52,'setdet 2'!$B$2:$E$2101,4,FALSE)) ->  | O52: =IF(ISBLANK(N52)=TRUE,M52,N52) ->  | S52: 0 | T52: 0 | U52: 0 | V52: =IF(U52=0,0,VLOOKUP(U52,'intrek AX'!$A$1:$R$4572,18,FALSE)) -> 0 | W52: 0 | Z52: =taal!$A$550 -> BLANC | AB52: ="" ->  | AC52: ="" -> 
A53: =taal!A178 -> PORTEUR PLAQUE THERMIQUE VERRE | B53: THERMISCHE PLAATDRAGER GLAS | C53: TPG | D53: 4200 | F53: 25055 | L53: 25055 | M53: =IF(VLOOKUP(L53,'setdet 2'!$B$2:$E$2101,4,FALSE)=0,"",VLOOKUP(L53,'setdet 2'!$B$2:$E$2101,4,FALSE)) ->  | S53: 0 | T53: 0 | U53: 0 | V53: =IF(U53=0,0,VLOOKUP(U53,'intrek AX'!$A$1:$R$4572,18,FALSE)) -> 0 | W53: 0 | Z53: =taal!$A$550 -> BLANC | AB53: ="" ->  | AC53: ="" -> 
C54: TPG | D54: 5200 | F54: 25056 | K54: =VLOOKUP(L54,'intrek AX'!$A$1:$R$4572,18,FALSE) -> 10.48 | L54: 25056 | M54: =IF(VLOOKUP(L54,'setdet 2'!$B$2:$E$2101,4,FALSE)=0,"",VLOOKUP(L54,'setdet 2'!$B$2:$E$2101,4,FALSE)) ->  | S54: 0 | T54: 0 | U54: 0 | V54: =IF(U54=0,0,VLOOKUP(U54,'intrek AX'!$A$1:$R$4572,18,FALSE)) -> 0 | W54: 0 | Z54: =taal!$A$550 -> BLANC | AB54: ="" ->  | AC54: ="" -> 
C55: TPG | D55: 6200 | F55: 25057 | L55: 25057 | M55: =IF(VLOOKUP(L55,'setdet 2'!$B$2:$E$2101,4,FALSE)=0,"",VLOOKUP(L55,'setdet 2'!$B$2:$E$2101,4,FALSE)) ->  | S55: =IF(T55=0,0,L55) -> 0 | T55: =IF(ISNUMBER(O55)=FALSE,0,O55) -> 0 | U55: 0 | V55: =IF(U55=0,0,VLOOKUP(U55,'intrek AX'!$A$1:$R$4572,18,FALSE)) -> 0 | W55: 0 | Z55: =taal!$A$550 -> BLANC | AB55: ="" ->  | AC55: ="" -> 
C56: TPG | D56: 7200 | F56: 25058 | K56: =VLOOKUP(L56,'intrek AX'!$A$1:$R$4572,18,FALSE) -> 10.48 | L56: 25058 | M56: =IF(VLOOKUP(L56,'setdet 2'!$B$2:$E$2101,4,FALSE)=0,"",VLOOKUP(L56,'setdet 2'!$B$2:$E$2101,4,FALSE)) ->  | O56: =IF(ISBLANK(N56)=TRUE,M56,N56) ->  | S56: 0 | T56: 0 | U56: 0 | V56: =IF(U56=0,0,VLOOKUP(U56,'intrek AX'!$A$1:$R$4572,18,FALSE)) -> 0 | W56: 0 | Z56: =taal!$A$550 -> BLANC | AB56: ="" ->  | AC56: ="" -> 
A57: =taal!A182 -> PORTEUR ALU POUR TP(G) | B57: TRANSFO ENKEL | C57: TPH | D57: 2600 | E57: 22580 | F57: 22585 | G57: 22585 | H57: 22590 | I57: 24414 | J57: 24414 | L57: =INDEX(E57:J57,ralin) -> 22585 | M57: =IF(VLOOKUP(L57,'setdet 2'!$B$2:$E$2101,4,FALSE)=0,"",VLOOKUP(L57,'setdet 2'!$B$2:$E$2101,4,FALSE)) ->  | S57: 0 | T57: 0 | U57: 0 | V57: =IF(U57=0,0,VLOOKUP(U57,'intrek AX'!$A$1:$R$4572,18,FALSE)) -> 0 | W57: 0 | Z57: =IF(AA57="",IF(SUM(F57:I57)=0,taal!$A$8,IF(ralin=4,taal!$A$551,taal!$A$550)),"") ->  | AA57: =IF(SUM(F57:I57)=0,"",INDEX('input data'!$H$56:$H$61,ralin)) -> RAL9010 | AB57: =IF(AC57="","",IF(AC57=1,calcul!$B$346,IF(AC57=2,calcul!$B$354,""))) -> 0 | AC57: 2
B58: GOOT "LITE" | C58: TPH | D58: 3100 | E58: 22581 | F58: 22586 | G58: 22586 | H58: 22591 | I58: 24337 | J58: 24337 | K58: =VLOOKUP(L58,'intrek AX'!$A$1:$R$4572,18,FALSE) -> 9.87 | L58: 22586 | M58: =IF(VLOOKUP(L58,'setdet 2'!$B$2:$E$2101,4,FALSE)=0,"",VLOOKUP(L58,'setdet 2'!$B$2:$E$2101,4,FALSE)) ->  | S58: 0 | T58: 0 | U58: 0 | V58: =IF(U58=0,0,VLOOKUP(U58,'intrek AX'!$A$1:$R$4572,18,FALSE)) -> 0 | W58: 0 | Z58: =IF(AA58="",IF(SUM(F58:I58)=0,taal!$A$8,IF(ralin=4,taal!$A$551,taal!$A$550)),"") ->  | AA58: =IF(SUM(F58:I58)=0,"",INDEX('input data'!$H$56:$H$61,ralin)) -> RAL9010 | AB58: =IF(AC58="","",IF(AC58=1,calcul!$B$346,IF(AC58=2,calcul!$B$354,""))) -> 0 | AC58: 2
C59: TPH | D59: 3600 | E59: 22582 | F59: 22587 | G59: 22587 | H59: 22592 | I59: 24415 | J59: 24415 | K59: =VLOOKUP(L59,'intrek AX'!$A$1:$R$4572,18,FALSE) -> 9.87 | L59: 22587 | M59: =IF(VLOOKUP(L59,'setdet 2'!$B$2:$E$2101,4,FALSE)=0,"",VLOOKUP(L59,'setdet 2'!$B$2:$E$2101,4,FALSE)) ->  | O59: =IF(ISBLANK(N59)=TRUE,M59,N59) ->  | S59: 0 | T59: 0 | U59: 0 | V59: =IF(U59=0,0,VLOOKUP(U59,'intrek AX'!$A$1:$R$4572,18,FALSE)) -> 0 | W59: 0 | Z59: =IF(AA59="",IF(SUM(F59:I59)=0,taal!$A$8,IF(ralin=4,taal!$A$551,taal!$A$550)),"") ->  | AA59: =IF(SUM(F59:I59)=0,"",INDEX('input data'!$H$56:$H$61,ralin)) -> RAL9010 | AB59: =IF(AC59="","",IF(AC59=1,calcul!$B$346,IF(AC59=2,calcul!$B$354,""))) -> 0 | AC59: 2
C60: TPH | D60: 4100 | E60: 22583 | F60: 22588 | G60: 22588 | H60: 22593 | I60: 24416 | J60: 24416 | K60: =VLOOKUP(L60,'intrek AX'!$A$1:$R$4572,18,FALSE) -> 9.87 | L60: 22588 | M60: =IF(VLOOKUP(L60,'setdet 2'!$B$2:$E$2101,4,FALSE)=0,"",VLOOKUP(L60,'setdet 2'!$B$2:$E$2101,4,FALSE)) ->  | O60: =IF(ISBLANK(N60)=TRUE,M60,N60) ->  | S60: 0 | T60: 0 | U60: 0 | V60: =IF(U60=0,0,VLOOKUP(U60,'intrek AX'!$A$1:$R$4572,18,FALSE)) -> 0 | W60: 0 | Z60: =IF(AA60="",IF(SUM(F60:I60)=0,taal!$A$8,IF(ralin=4,taal!$A$551,taal!$A$550)),"") ->  | AA60: =IF(SUM(F60:I60)=0,"",INDEX('input data'!$H$56:$H$61,ralin)) -> RAL9010 | AB60: =IF(AC60="","",IF(AC60=1,calcul!$B$346,IF(AC60=2,calcul!$B$354,""))) -> 0 | AC60: 2
C61: TPH | D61: 5100 | E61: 25066 | F61: 25067 | G61: 25067 | H61: 25068 | I61: 25072 | J61: 25072 | K61: =VLOOKUP(L61,'intrek AX'!$A$1:$R$4572,18,FALSE) -> 9.87 | L61: 25067 | M61: =IF(VLOOKUP(L61,'setdet 2'!$B$2:$E$2101,4,FALSE)=0,"",VLOOKUP(L61,'setdet 2'!$B$2:$E$2101,4,FALSE)) ->  | O61: =IF(ISBLANK(N61)=TRUE,M61,N61) ->  | S61: 0 | T61: 0 | U61: 0 | V61: =IF(U61=0,0,VLOOKUP(U61,'intrek AX'!$A$1:$R$4572,18,FALSE)) -> 0 | W61: 0 | Z61: =IF(AA61="",IF(SUM(F61:I61)=0,taal!$A$8,IF(ralin=4,taal!$A$551,taal!$A$550)),"") ->  | AA61: =IF(SUM(F61:I61)=0,"",INDEX('input data'!$H$56:$H$61,ralin)) -> RAL9010 | AB61: =IF(AC61="","",IF(AC61=1,calcul!$B$346,IF(AC61=2,calcul!$B$354,""))) -> 0 | AC61: 2
B62: SCHARNIER BOTTOM | C62: TPH | D62: 6100 | E62: 22584 | F62: 22589 | G62: 22589 | H62: 22594 | I62: 24417 | J62: 24417 | K62: =VLOOKUP(L62,'intrek AX'!$A$1:$R$4572,18,FALSE) -> 9.87 | L62: 22589 | M62: =IF(VLOOKUP(L62,'setdet 2'!$B$2:$E$2101,4,FALSE)=0,"",VLOOKUP(L62,'setdet 2'!$B$2:$E$2101,4,FALSE)) ->  | S62: 0 | T62: 0 | U62: 0 | V62: =IF(U62=0,0,VLOOKUP(U62,'intrek AX'!$A$1:$R$4572,18,FALSE)) -> 0 | W62: 0 | Z62: =IF(AA62="",IF(SUM(F62:I62)=0,taal!$A$8,IF(ralin=4,taal!$A$551,taal!$A$550)),"") ->  | AA62: =IF(SUM(F62:I62)=0,"",INDEX('input data'!$H$56:$H$61,ralin)) -> RAL9010 | AB62: =IF(AC62="","",IF(AC62=1,calcul!$B$346,IF(AC62=2,calcul!$B$354,""))) -> 0 | AC62: 2
A63: =taal!A185 -> PORTEUR LATERAL PVC | C63: LP | D63: 2000 | E63: 17766 | F63: 17766 | G63: 17766 | H63: 17690 | I63: 17766 | J63: 17766 | K63: =VLOOKUP(L63,'intrek AX'!$A$1:$R$4572,18,FALSE) -> 12.34 | L63: =E63 -> 17766 | M63: =IF(VLOOKUP(L63,'setdet 2'!$B$2:$E$2101,4,FALSE)=0,"",VLOOKUP(L63,'setdet 2'!$B$2:$E$2101,4,FALSE)) ->  | O63: =IF(ISBLANK(N63)=TRUE,M63,N63) ->  | S63: =IF(T63=0,0,L63) -> 0 | T63: =IF(ISNUMBER(O63)=FALSE,0,O63) -> 0 | U63: 0 | V63: =IF(U63=0,0,VLOOKUP(U63,'intrek AX'!$A$1:$R$4572,18,FALSE)) -> 0 | W63: 0 | Z63: =IF(AA63="",IF(SUM(F63:I63)=0,taal!$A$8,IF(ralin=4,taal!$A$551,taal!$A$550)),"") -> BLANC | AB63: ="" ->  | AC63: ="" -> 
A64: =taal!A185 -> PORTEUR LATERAL PVC | C64: LP | D64: 2500 | E64: 17767 | F64: 17767 | G64: 17767 | H64: 17759 | I64: 17767 | J64: 17767 | K64: =VLOOKUP(L64,'intrek AX'!$A$1:$R$4572,18,FALSE) -> 12.34 | L64: =INDEX(E64:J64,ral) -> 17767 | M64: =IF(VLOOKUP(L64,'setdet 2'!$B$2:$E$2101,4,FALSE)=0,"",VLOOKUP(L64,'setdet 2'!$B$2:$E$2101,4,FALSE)) ->  | S64: 0 | T64: 0 | U64: 0 | V64: =IF(U64=0,0,VLOOKUP(U64,'intrek AX'!$A$1:$R$4572,18,FALSE)) -> 0 | W64: 0 | Z64: =IF(AA64="",IF(SUM(F64:I64)=0,taal!$A$8,IF(ralin=4,taal!$A$551,taal!$A$550)),"") -> BLANC | AB64: ="" ->  | AC64: ="" -> 
C65: LP | D65: 3000 | E65: 17768 | F65: 17768 | G65: 17768 | H65: 17760 | I65: 17768 | J65: 17768 | K65: =VLOOKUP(L65,'intrek AX'!$A$1:$R$4572,18,FALSE) -> 12.34 | L65: =INDEX(E65:J65,ral) -> 17768 | M65: =IF(VLOOKUP(L65,'setdet 2'!$B$2:$E$2101,4,FALSE)=0,"",VLOOKUP(L65,'setdet 2'!$B$2:$E$2101,4,FALSE)) ->  | S65: 0 | T65: 0 | U65: 0 | V65: =IF(U65=0,0,VLOOKUP(U65,'intrek AX'!$A$1:$R$4572,18,FALSE)) -> 0 | W65: 0 | Z65: =IF(AA65="",IF(SUM(F65:I65)=0,taal!$A$8,IF(ralin=4,taal!$A$551,taal!$A$550)),"") -> BLANC | AB65: ="" ->  | AC65: ="" -> 
C66: LP | D66: 3500 | E66: 17769 | F66: 17769 | G66: 17769 | H66: 17761 | I66: 17769 | J66: 17769 | K66: =VLOOKUP(L66,'intrek AX'!$A$1:$R$4572,18,FALSE) -> 12.34 | L66: =INDEX(E66:J66,ral) -> 17769 | M66: =IF(VLOOKUP(L66,'setdet 2'!$B$2:$E$2101,4,FALSE)=0,"",VLOOKUP(L66,'setdet 2'!$B$2:$E$2101,4,FALSE)) ->  | S66: 0 | T66: 0 | U66: 0 | V66: =IF(U66=0,0,VLOOKUP(U66,'intrek AX'!$A$1:$R$4572,18,FALSE)) -> 0 | W66: 0 | Z66: =IF(AA66="",IF(SUM(F66:I66)=0,taal!$A$8,IF(ralin=4,taal!$A$551,taal!$A$550)),"") -> BLANC | AB66: ="" ->  | AC66: ="" -> 
B67: MGB | C67: LP | D67: 4000 | E67: 17770 | F67: 17770 | G67: 17770 | H67: 17762 | I67: 17770 | J67: 17770 | K67: =VLOOKUP(L67,'intrek AX'!$A$1:$R$4572,18,FALSE) -> 12.34 | L67: =INDEX(E67:J67,ral) -> 17770 | M67: =IF(VLOOKUP(L67,'setdet 2'!$B$2:$E$2101,4,FALSE)=0,"",VLOOKUP(L67,'setdet 2'!$B$2:$E$2101,4,FALSE)) ->  | S67: 0 | T67: 0 | U67: 0 | V67: =IF(U67=0,0,VLOOKUP(U67,'intrek AX'!$A$1:$R$4572,18,FALSE)) -> 0 | W67: =T67*D67/1000*V67 -> 0 | Z67: =IF(AA67="",IF(SUM(F67:I67)=0,taal!$A$8,IF(ralin=4,taal!$A$551,taal!$A$550)),"") -> BLANC | AB67: ="" ->  | AC67: ="" -> 
C68: LP | D68: 5000 | E68: 17771 | F68: 17771 | G68: 17771 | H68: 17763 | I68: 17771 | J68: 17771 | K68: =VLOOKUP(L68,'intrek AX'!$A$1:$R$4572,18,FALSE) -> 12.34 | L68: =INDEX(E68:J68,ralin) -> 17771 | M68: =IF(VLOOKUP(L68,'setdet 2'!$B$2:$E$2101,4,FALSE)=0,"",VLOOKUP(L68,'setdet 2'!$B$2:$E$2101,4,FALSE)) ->  | S68: 0 | T68: 0 | U68: 0 | V68: =IF(U68=0,0,VLOOKUP(U68,'intrek AX'!$A$1:$R$4572,18,FALSE)) -> 0 | W68: 0 | Z68: =IF(AA68="",IF(SUM(F68:I68)=0,taal!$A$8,IF(ralin=4,taal!$A$551,taal!$A$550)),"") -> BLANC | AB68: ="" ->  | AC68: ="" -> 
C69: LP | D69: 6000 | E69: 17772 | F69: 17772 | G69: 17772 | H69: 17764 | I69: 17772 | J69: 17772 | K69: =VLOOKUP(L69,'intrek AX'!$A$1:$R$4572,18,FALSE) -> 12.34 | L69: =INDEX(E69:J69,ralin) -> 17772 | M69: =IF(VLOOKUP(L69,'setdet 2'!$B$2:$E$2101,4,FALSE)=0,"",VLOOKUP(L69,'setdet 2'!$B$2:$E$2101,4,FALSE)) ->  | S69: 0 | T69: 0 | U69: 0 | V69: =IF(U69=0,0,VLOOKUP(U69,'intrek AX'!$A$1:$R$4572,18,FALSE)) -> 0 | W69: 0 | Z69: =IF(AA69="",IF(SUM(F69:I69)=0,taal!$A$8,IF(ralin=4,taal!$A$551,taal!$A$550)),"") -> BLANC | AB69: ="" ->  | AC69: ="" -> 
C70: LP | D70: 7000 | E70: 17773 | F70: 17773 | G70: 17773 | H70: 17765 | I70: 17773 | J70: 17773 | K70: =VLOOKUP(L70,'intrek AX'!$A$1:$R$4572,18,FALSE) -> 12.34 | L70: =INDEX(E70:J70,ralin) -> 17773 | M70: =IF(VLOOKUP(L70,'setdet 2'!$B$2:$E$2101,4,FALSE)=0,"",VLOOKUP(L70,'setdet 2'!$B$2:$E$2101,4,FALSE)) ->  | S70: 0 | T70: 0 | U70: 0 | V70: =IF(U70=0,0,VLOOKUP(U70,'intrek AX'!$A$1:$R$4572,18,FALSE)) -> 0 | W70: 0 | Z70: =IF(AA70="",IF(SUM(F70:I70)=0,taal!$A$8,IF(ralin=4,taal!$A$551,taal!$A$550)),"") -> BLANC | AB70: ="" ->  | AC70: ="" -> 
A71: =taal!A184 -> PORTEUR LATERAL ALU | C71: L16 | D71: 2000 | E71: 15679 | F71: 15679 | G71: 15679 | H71: 15679 | I71: 15679 | J71: 15679 | K71: 15679 | L71: 15679 | M71: =IF(VLOOKUP(L71,'setdet 2'!$B$2:$E$2101,4,FALSE)=0,"",VLOOKUP(L71,'setdet 2'!$B$2:$E$2101,4,FALSE)) ->  | S71: 0 | T71: 0 | U71: =IF(T71=0,0,IF(ralstandout=1,F71,S71)) -> 0 | V71: =IF(U71=0,0,VLOOKUP(U71,'intrek AX'!$A$1:$R$4572,18,FALSE)) -> 0 | W71: 0 | Z71: =taal!$A$8 -> BRUT | AB71: ="" ->  | AC71: ="" -> 
A72: =taal!A184 -> PORTEUR LATERAL ALU | C72: L16 | D72: 2500 | E72: 13221 | F72: 13221 | G72: 13221 | H72: 13221 | I72: 13221 | J72: 13221 | K72: 13221 | L72: 13221 | M72: =IF(VLOOKUP(L72,'setdet 2'!$B$2:$E$2101,4,FALSE)=0,"",VLOOKUP(L72,'setdet 2'!$B$2:$E$2101,4,FALSE)) ->  | S72: 0 | T72: 0 | U72: 0 | V72: =IF(U72=0,0,VLOOKUP(U72,'intrek AX'!$A$1:$R$4572,18,FALSE)) -> 0 | W72: 0 | Z72: =taal!$A$8 -> BRUT | AB72: ="" ->  | AC72: ="" -> 
C73: L16 | D73: 3000 | E73: 13222 | F73: 13222 | G73: 13222 | H73: 13222 | I73: 13222 | J73: 13222 | K73: 13222 | L73: 13222 | M73: =IF(VLOOKUP(L73,'setdet 2'!$B$2:$E$2101,4,FALSE)=0,"",VLOOKUP(L73,'setdet 2'!$B$2:$E$2101,4,FALSE)) ->  | S73: 0 | T73: 0 | U73: 0 | V73: =IF(U73=0,0,VLOOKUP(U73,'intrek AX'!$A$1:$R$4572,18,FALSE)) -> 0 | W73: 0 | Z73: =taal!$A$8 -> BRUT | AB73: ="" ->  | AC73: ="" -> 
C74: L16 | D74: 3500 | E74: 13223 | F74: 13223 | G74: 13223 | H74: 13223 | I74: 13223 | J74: 13223 | K74: 13223 | L74: 13223 | M74: =IF(VLOOKUP(L74,'setdet 2'!$B$2:$E$2101,4,FALSE)=0,"",VLOOKUP(L74,'setdet 2'!$B$2:$E$2101,4,FALSE)) ->  | S74: 0 | T74: 0 | U74: 0 | V74: =IF(U74=0,0,VLOOKUP(U74,'intrek AX'!$A$1:$R$4572,18,FALSE)) -> 0 | W74: 0 | Z74: =taal!$A$8 -> BRUT | AB74: ="" ->  | AC74: ="" -> 
B75: MGB | C75: L16 | D75: 4000 | E75: 13224 | F75: 13224 | G75: 13224 | H75: 13224 | I75: 13224 | J75: 13224 | K75: 13224 | L75: 13224 | M75: =IF(VLOOKUP(L75,'setdet 2'!$B$2:$E$2101,4,FALSE)=0,"",VLOOKUP(L75,'setdet 2'!$B$2:$E$2101,4,FALSE)) ->  | S75: 0 | T75: 0 | U75: 0 | V75: =IF(U75=0,0,VLOOKUP(U75,'intrek AX'!$A$1:$R$4572,18,FALSE)) -> 0 | W75: 0 | Z75: =taal!$A$8 -> BRUT | AB75: ="" ->  | AC75: ="" -> 
C76: L16 | D76: 5000 | E76: 14624 | F76: 14624 | G76: 14624 | H76: 14624 | I76: 14624 | J76: 14624 | K76: 14624 | L76: 14624 | M76: =IF(VLOOKUP(L76,'setdet 2'!$B$2:$E$2101,4,FALSE)=0,"",VLOOKUP(L76,'setdet 2'!$B$2:$E$2101,4,FALSE)) ->  | S76: 0 | T76: 0 | U76: 0 | V76: =IF(U76=0,0,VLOOKUP(U76,'intrek AX'!$A$1:$R$4572,18,FALSE)) -> 0 | W76: 0 | Z76: =taal!$A$8 -> BRUT | AB76: ="" ->  | AC76: ="" -> 
C77: L16 | D77: 6000 | E77: 13225 | F77: 13225 | G77: 13225 | H77: 13225 | I77: 13225 | J77: 13225 | K77: 13225 | L77: 13225 | M77: =IF(VLOOKUP(L77,'setdet 2'!$B$2:$E$2101,4,FALSE)=0,"",VLOOKUP(L77,'setdet 2'!$B$2:$E$2101,4,FALSE)) ->  | S77: 0 | T77: 0 | U77: 0 | V77: =IF(U77=0,0,VLOOKUP(U77,'intrek AX'!$A$1:$R$4572,18,FALSE)) -> 0 | W77: 0 | Z77: =taal!$A$8 -> BRUT | AB77: ="" ->  | AC77: ="" -> 
C78: L16 | D78: 7000 | E78: 13226 | F78: 13226 | G78: 13226 | H78: 13226 | I78: 13226 | J78: 13226 | K78: 13226 | L78: 13226 | M78: =IF(VLOOKUP(L78,'setdet 2'!$B$2:$E$2101,4,FALSE)=0,"",VLOOKUP(L78,'setdet 2'!$B$2:$E$2101,4,FALSE)) ->  | S78: 0 | T78: 0 | U78: 0 | V78: =IF(U78=0,0,VLOOKUP(U78,'intrek AX'!$A$1:$R$4572,18,FALSE)) -> 0 | W78: 0 | Z78: =taal!$A$8 -> BRUT | AB78: ="" ->  | AC78: ="" -> 
A79: =taal!A188 -> FINITION LATERALE L16P | C79: L16P | D79: 2540 | E79: 16718 | F79: 15478 | G79: 31347 | H79: 15484 | I79: 21231 | J79: =IF('input data'!J56="RAL7016ST",31347,21231) -> 21231 | K79: =VLOOKUP(L79,'intrek AX'!$A$1:$R$4572,18,FALSE) -> 13.64 | L79: =INDEX(E79:J79,ral) -> 15478 | M79: =IF(VLOOKUP(L79,'setdet 2'!$B$2:$E$2101,4,FALSE)=0,"",VLOOKUP(L79,'setdet 2'!$B$2:$E$2101,4,FALSE)) ->  | S79: 0 | T79: 0 | U79: 0 | V79: =IF(U79=0,0,VLOOKUP(U79,'intrek AX'!$A$1:$R$4572,18,FALSE)) -> 0 | W79: 0 | Z79: =IF(AA79="",IF(SUM(F79:I79)=0,taal!$A$8,IF(ral=4,taal!$A$551,taal!$A$550)),"") ->  | AA79: =IF(SUM(F79:I79)=0,"",INDEX('input data'!$G$56:$G$61,ral)) -> RAL9010 | AB79: =IF(AC79="","",IF(AC79=1,calcul!$B$346,IF(AC79=2,calcul!$B$354,""))) -> RWB964 | AC79: 1
C80: L16P | D80: 3040 | E80: 16719 | F80: 15479 | G80: 31348 | H80: 15485 | I80: 21232 | J80: =IF('input data'!J56="RAL7016ST",31348,21232) -> 21232 | K80: =VLOOKUP(L80,'intrek AX'!$A$1:$R$4572,18,FALSE) -> 13.64 | L80: 15479 | M80: =IF(VLOOKUP(L80,'setdet 2'!$B$2:$E$2101,4,FALSE)=0,"",VLOOKUP(L80,'setdet 2'!$B$2:$E$2101,4,FALSE)) ->  | S80: 0 | T80: 0 | U80: 0 | V80: =IF(U80=0,0,VLOOKUP(U80,'intrek AX'!$A$1:$R$4572,18,FALSE)) -> 0 | W80: 0 | Z80: =IF(AA80="",IF(SUM(F80:I80)=0,taal!$A$8,IF(ral=4,taal!$A$551,taal!$A$550)),"") ->  | AA80: =IF(SUM(F80:I80)=0,"",INDEX('input data'!$G$56:$G$61,ral)) -> RAL9010 | AB80: =IF(AC80="","",IF(AC80=1,calcul!$B$346,IF(AC80=2,calcul!$B$354,""))) -> RWB964 | AC80: 1
C81: L16P | D81: 3540 | E81: 16720 | F81: 15480 | G81: 31349 | H81: 15486 | I81: 21233 | J81: =IF('input data'!J56="RAL7016ST",31349,21233) -> 21233 | K81: =VLOOKUP(L81,'intrek AX'!$A$1:$R$4572,18,FALSE) -> 13.64 | L81: 15480 | M81: =IF(VLOOKUP(L81,'setdet 2'!$B$2:$E$2101,4,FALSE)=0,"",VLOOKUP(L81,'setdet 2'!$B$2:$E$2101,4,FALSE)) ->  | S81: =IF(T81=0,0,L81) -> 0 | T81: =IF(ISNUMBER(O81)=FALSE,0,O81) -> 0 | U81: 0 | V81: =IF(U81=0,0,VLOOKUP(U81,'intrek AX'!$A$1:$R$4572,18,FALSE)) -> 0 | W81: 0 | Z81: =IF(AA81="",IF(SUM(F81:I81)=0,taal!$A$8,IF(ral=4,taal!$A$551,taal!$A$550)),"") ->  | AA81: =IF(SUM(F81:I81)=0,"",INDEX('input data'!$G$56:$G$61,ral)) -> RAL9010 | AB81: =IF(AC81="","",IF(AC81=1,calcul!$B$346,IF(AC81=2,calcul!$B$354,""))) -> RWB964 | AC81: 1
C82: L16P | D82: 4040 | E82: 16721 | F82: 15481 | G82: 31350 | H82: 15487 | I82: 21234 | J82: =IF('input data'!J56="RAL7016ST",31350,21234) -> 21234 | K82: =VLOOKUP(L82,'intrek AX'!$A$1:$R$4572,18,FALSE) -> 13.64 | L82: 15481 | M82: =IF(VLOOKUP(L82,'setdet 2'!$B$2:$E$2101,4,FALSE)=0,"",VLOOKUP(L82,'setdet 2'!$B$2:$E$2101,4,FALSE)) ->  | S82: 0 | T82: 0 | U82: 0 | V82: =IF(U82=0,0,VLOOKUP(U82,'intrek AX'!$A$1:$R$4572,18,FALSE)) -> 0 | W82: 0 | Z82: =IF(AA82="",IF(SUM(F82:I82)=0,taal!$A$8,IF(ral=4,taal!$A$551,taal!$A$550)),"") ->  | AA82: =IF(SUM(F82:I82)=0,"",INDEX('input data'!$G$56:$G$61,ral)) -> RAL9010 | AB82: =IF(AC82="","",IF(AC82=1,calcul!$B$346,IF(AC82=2,calcul!$B$354,""))) -> RWB964 | AC82: 1
C83: L16P | D83: 5040 | E83: 16722 | F83: 15482 | G83: 31351 | H83: 15488 | I83: 21235 | J83: =IF('input data'!J56="RAL7016ST",31351,21235) -> 21235 | K83: =VLOOKUP(L83,'intrek AX'!$A$1:$R$4572,18,FALSE) -> 13.64 | L83: 15482 | M83: =IF(VLOOKUP(L83,'setdet 2'!$B$2:$E$2101,4,FALSE)=0,"",VLOOKUP(L83,'setdet 2'!$B$2:$E$2101,4,FALSE)) ->  | S83: 0 | T83: 0 | U83: 0 | V83: =IF(U83=0,0,VLOOKUP(U83,'intrek AX'!$A$1:$R$4572,18,FALSE)) -> 0 | W83: 0 | Z83: =IF(AA83="",IF(SUM(F83:I83)=0,taal!$A$8,IF(ral=4,taal!$A$551,taal!$A$550)),"") ->  | AA83: =IF(SUM(F83:I83)=0,"",INDEX('input data'!$G$56:$G$61,ral)) -> RAL9010 | AB83: =IF(AC83="","",IF(AC83=1,calcul!$B$346,IF(AC83=2,calcul!$B$354,""))) -> RWB964 | AC83: 1
C84: L16P | D84: 7040 | E84: 16723 | F84: 15483 | G84: 31353 | H84: 15489 | I84: 21237 | J84: =IF('input data'!J56="RAL7016ST",31353,21237) -> 21237 | K84: =VLOOKUP(L84,'intrek AX'!$A$1:$R$4572,18,FALSE) -> 13.64 | L84: 15483 | M84: =IF(VLOOKUP(L84,'setdet 2'!$B$2:$E$2101,4,FALSE)=0,"",VLOOKUP(L84,'setdet 2'!$B$2:$E$2101,4,FALSE)) ->  | O84: =IF(ISBLANK(N84)=TRUE,M84,N84) ->  | S84: 0 | T84: 0 | U84: 0 | V84: =IF(U84=0,0,VLOOKUP(U84,'intrek AX'!$A$1:$R$4572,18,FALSE)) -> 0 | W84: 0 | Z84: =IF(AA84="",IF(SUM(F84:I84)=0,taal!$A$8,IF(ral=4,taal!$A$551,taal!$A$550)),"") ->  | AA84: =IF(SUM(F84:I84)=0,"",INDEX('input data'!$G$56:$G$61,ral)) -> RAL9010 | AB84: =IF(AC84="","",IF(AC84=1,calcul!$B$346,IF(AC84=2,calcul!$B$354,""))) -> RWB964 | AC84: 1
A85: =taal!A184 -> PORTEUR LATERAL ALU | C85: LT16 | D85: 2000 | E85: 15729 | F85: 16216 | G85: - | H85: 15769 | I85: - | J85: - | K85: =VLOOKUP(L85,'intrek AX'!$A$1:$R$4572,18,FALSE) -> 16.92 | L85: 16216 | M85: =IF(VLOOKUP(L85,'setdet 2'!$B$2:$E$2101,4,FALSE)=0,"",VLOOKUP(L85,'setdet 2'!$B$2:$E$2101,4,FALSE)) ->  | O85: =IF(ISBLANK(N85)=TRUE,M85,N85) ->  | S85: 0 | T85: 0 | U85: 0 | V85: =IF(U85=0,0,VLOOKUP(U85,'intrek AX'!$A$1:$R$4572,18,FALSE)) -> 0 | W85: 0 | Z85: =IF(AA85="",IF(SUM(F85:I85)=0,taal!$A$8,IF(ral=4,taal!$A$551,taal!$A$550)),"") ->  | AA85: =IF(SUM(F85:I85)=0,"",INDEX('input data'!$G$56:$G$61,ral)) -> RAL9010 | AB85: =IF(AC85="","",IF(AC85=1,calcul!$B$346,IF(AC85=2,calcul!$B$354,""))) -> RWB964 | AC85: 1
A86: =taal!A184 -> PORTEUR LATERAL ALU | C86: LT16 | D86: 2500 | E86: 15490 | F86: 15534 | G86: - | I86: - | J86: - | K86: =VLOOKUP(L86,'intrek AX'!$A$1:$R$4572,18,FALSE) -> 16.92 | L86: 15534 | M86: =IF(VLOOKUP(L86,'setdet 2'!$B$2:$E$2101,4,FALSE)=0,"",VLOOKUP(L86,'setdet 2'!$B$2:$E$2101,4,FALSE)) ->  | O86: =IF(ISBLANK(N86)=TRUE,M86,N86) ->  | S86: 0 | T86: 0 | U86: 0 | V86: =IF(U86=0,0,VLOOKUP(U86,'intrek AX'!$A$1:$R$4572,18,FALSE)) -> 0 | W86: 0 | Z86: =IF(AA86="",IF(SUM(F86:I86)=0,taal!$A$8,IF(ral=4,taal!$A$551,taal!$A$550)),"") ->  | AA86: =IF(SUM(F86:I86)=0,"",INDEX('input data'!$G$56:$G$61,ral)) -> RAL9010 | AB86: =IF(AC86="","",IF(AC86=1,calcul!$B$346,IF(AC86=2,calcul!$B$354,""))) -> RWB964 | AC86: 1
C87: LT16 | D87: 3000 | E87: 15491 | F87: 15535 | G87: - | I87: - | J87: - | K87: =VLOOKUP(L87,'intrek AX'!$A$1:$R$4572,18,FALSE) -> 16.92 | L87: 15535 | M87: =IF(VLOOKUP(L87,'setdet 2'!$B$2:$E$2101,4,FALSE)=0,"",VLOOKUP(L87,'setdet 2'!$B$2:$E$2101,4,FALSE)) ->  | O87: =IF(ISBLANK(N87)=TRUE,M87,N87) ->  | S87: 0 | T87: 0 | U87: 0 | V87: =IF(U87=0,0,VLOOKUP(U87,'intrek AX'!$A$1:$R$4572,18,FALSE)) -> 0 | W87: 0 | Z87: =IF(AA87="",IF(SUM(F87:I87)=0,taal!$A$8,IF(ral=4,taal!$A$551,taal!$A$550)),"") ->  | AA87: =IF(SUM(F87:I87)=0,"",INDEX('input data'!$G$56:$G$61,ral)) -> RAL9010 | AB87: =IF(AC87="","",IF(AC87=1,calcul!$B$346,IF(AC87=2,calcul!$B$354,""))) -> RWB964 | AC87: 1
C88: LT16 | D88: 3500 | E88: 15492 | F88: 15536 | G88: - | I88: - | J88: - | K88: =VLOOKUP(L88,'intrek AX'!$A$1:$R$4572,18,FALSE) -> 16.92 | L88: 15536 | M88: =IF(VLOOKUP(L88,'setdet 2'!$B$2:$E$2101,4,FALSE)=0,"",VLOOKUP(L88,'setdet 2'!$B$2:$E$2101,4,FALSE)) ->  | S88: 0 | T88: 0 | U88: 0 | V88: =IF(U88=0,0,VLOOKUP(U88,'intrek AX'!$A$1:$R$4572,18,FALSE)) -> 0 | W88: 0 | Z88: =IF(AA88="",IF(SUM(F88:I88)=0,taal!$A$8,IF(ral=4,taal!$A$551,taal!$A$550)),"") ->  | AA88: =IF(SUM(F88:I88)=0,"",INDEX('input data'!$G$56:$G$61,ral)) -> RAL9010 | AB88: =IF(AC88="","",IF(AC88=1,calcul!$B$346,IF(AC88=2,calcul!$B$354,""))) -> RWB964 | AC88: 1
B89: MGB | C89: LT16 | D89: 4000 | E89: 15493 | F89: 15537 | G89: - | I89: - | J89: - | K89: =VLOOKUP(L89,'intrek AX'!$A$1:$R$4572,18,FALSE) -> 16.92 | L89: 15537 | M89: =IF(VLOOKUP(L89,'setdet 2'!$B$2:$E$2101,4,FALSE)=0,"",VLOOKUP(L89,'setdet 2'!$B$2:$E$2101,4,FALSE)) ->  | S89: 0 | T89: 0 | U89: 0 | V89: =IF(U89=0,0,VLOOKUP(U89,'intrek AX'!$A$1:$R$4572,18,FALSE)) -> 0 | W89: 0 | Z89: =IF(AA89="",IF(SUM(F89:I89)=0,taal!$A$8,IF(ral=4,taal!$A$551,taal!$A$550)),"") ->  | AA89: =IF(SUM(F89:I89)=0,"",INDEX('input data'!$G$56:$G$61,ral)) -> RAL9010 | AB89: =IF(AC89="","",IF(AC89=1,calcul!$B$346,IF(AC89=2,calcul!$B$354,""))) -> RWB964 | AC89: 1
C90: LT16 | D90: 5000 | E90: 15495 | F90: 15538 | G90: - | I90: - | J90: - | K90: =VLOOKUP(L90,'intrek AX'!$A$1:$R$4572,18,FALSE) -> 16.92 | L90: 15538 | M90: =IF(VLOOKUP(L90,'setdet 2'!$B$2:$E$2101,4,FALSE)=0,"",VLOOKUP(L90,'setdet 2'!$B$2:$E$2101,4,FALSE)) ->  | S90: 0 | T90: 0 | U90: 0 | V90: =IF(U90=0,0,VLOOKUP(U90,'intrek AX'!$A$1:$R$4572,18,FALSE)) -> 0 | W90: 0 | Z90: =IF(AA90="",IF(SUM(F90:I90)=0,taal!$A$8,IF(ral=4,taal!$A$551,taal!$A$550)),"") ->  | AA90: =IF(SUM(F90:I90)=0,"",INDEX('input data'!$G$56:$G$61,ral)) -> RAL9010 | AB90: =IF(AC90="","",IF(AC90=1,calcul!$B$346,IF(AC90=2,calcul!$B$354,""))) -> RWB964 | AC90: 1
C91: LT16 | D91: 6000 | E91: 15496 | F91: 15539 | G91: - | I91: - | J91: - | K91: =VLOOKUP(L91,'intrek AX'!$A$1:$R$4572,18,FALSE) -> 16.92 | L91: 15539 | M91: =IF(VLOOKUP(L91,'setdet 2'!$B$2:$E$2101,4,FALSE)=0,"",VLOOKUP(L91,'setdet 2'!$B$2:$E$2101,4,FALSE)) ->  | S91: 0 | T91: 0 | U91: 0 | V91: =IF(U91=0,0,VLOOKUP(U91,'intrek AX'!$A$1:$R$4572,18,FALSE)) -> 0 | W91: 0 | Z91: =IF(AA91="",IF(SUM(F91:I91)=0,taal!$A$8,IF(ral=4,taal!$A$551,taal!$A$550)),"") ->  | AA91: =IF(SUM(F91:I91)=0,"",INDEX('input data'!$G$56:$G$61,ral)) -> RAL9010 | AB91: =IF(AC91="","",IF(AC91=1,calcul!$B$346,IF(AC91=2,calcul!$B$354,""))) -> RWB964 | AC91: 1
C92: LT16 | D92: 7000 | E92: 15497 | F92: 15540 | G92: - | I92: - | J92: - | K92: =VLOOKUP(L92,'intrek AX'!$A$1:$R$4572,18,FALSE) -> 16.92 | L92: 15540 | M92: =IF(VLOOKUP(L92,'setdet 2'!$B$2:$E$2101,4,FALSE)=0,"",VLOOKUP(L92,'setdet 2'!$B$2:$E$2101,4,FALSE)) ->  | O92: =IF(ISBLANK(N92)=TRUE,M92,N92) ->  | S92: 0 | T92: 0 | U92: 0 | V92: =IF(U92=0,0,VLOOKUP(U92,'intrek AX'!$A$1:$R$4572,18,FALSE)) -> 0 | W92: 0 | Z92: =IF(AA92="",IF(SUM(F92:I92)=0,taal!$A$8,IF(ral=4,taal!$A$551,taal!$A$550)),"") ->  | AA92: =IF(SUM(F92:I92)=0,"",INDEX('input data'!$G$56:$G$61,ral)) -> RAL9010 | AB92: =IF(AC92="","",IF(AC92=1,calcul!$B$346,IF(AC92=2,calcul!$B$354,""))) -> RWB964 | AC92: 1
A93: =taal!A184 -> PORTEUR LATERAL ALU | B93: L16P | C93: L32 | D93: 2000 | E93: 15713 | F93: - | G93: - | H93: - | I93: - | J93: - | K93: =VLOOKUP(L93,'intrek AX'!$A$1:$R$4572,18,FALSE) -> 10.77 | L93: =E93 -> 15713 | M93: =IF(VLOOKUP(L93,'setdet 2'!$B$2:$E$2101,4,FALSE)=0,"",VLOOKUP(L93,'setdet 2'!$B$2:$E$2101,4,FALSE)) ->  | S93: 0 | T93: 0 | U93: 0 | V93: =IF(U93=0,0,VLOOKUP(U93,'intrek AX'!$A$1:$R$4572,18,FALSE)) -> 0 | W93: 0 | Z93: =taal!$A$8 -> BRUT | AB93: ="" ->  | AC93: ="" -> 
A94: =taal!A184 -> PORTEUR LATERAL ALU | C94: L32 | D94: 2500 | E94: 14230 | F94: - | G94: - | H94: - | I94: - | J94: - | K94: =VLOOKUP(L94,'intrek AX'!$A$1:$R$4572,18,FALSE) -> 10.77 | L94: 14230 | M94: =IF(VLOOKUP(L94,'setdet 2'!$B$2:$E$2101,4,FALSE)=0,"",VLOOKUP(L94,'setdet 2'!$B$2:$E$2101,4,FALSE)) ->  | O94: =IF(ISBLANK(N94)=TRUE,M94,N94) ->  | S94: 0 | T94: 0 | U94: 0 | V94: =IF(U94=0,0,VLOOKUP(U94,'intrek AX'!$A$1:$R$4572,18,FALSE)) -> 0 | W94: 0 | Z94: =taal!$A$8 -> BRUT | AB94: ="" ->  | AC94: ="" -> 
C95: L32 | D95: 3000 | E95: 14231 | F95: - | G95: - | H95: - | I95: - | J95: - | K95: =VLOOKUP(L95,'intrek AX'!$A$1:$R$4572,18,FALSE) -> 10.77 | L95: 14231 | M95: =IF(VLOOKUP(L95,'setdet 2'!$B$2:$E$2101,4,FALSE)=0,"",VLOOKUP(L95,'setdet 2'!$B$2:$E$2101,4,FALSE)) ->  | O95: =IF(ISBLANK(N95)=TRUE,M95,N95) ->  | S95: 0 | T95: 0 | U95: 0 | V95: =IF(U95=0,0,VLOOKUP(U95,'intrek AX'!$A$1:$R$4572,18,FALSE)) -> 0 | W95: 0 | Z95: =taal!$A$8 -> BRUT | AB95: ="" ->  | AC95: ="" -> 
C96: L32 | D96: 3500 | E96: 14232 | F96: - | G96: - | H96: - | I96: - | J96: - | K96: =VLOOKUP(L96,'intrek AX'!$A$1:$R$4572,18,FALSE) -> 10.77 | L96: 14232 | M96: =IF(VLOOKUP(L96,'setdet 2'!$B$2:$E$2101,4,FALSE)=0,"",VLOOKUP(L96,'setdet 2'!$B$2:$E$2101,4,FALSE)) ->  | O96: =IF(ISBLANK(N96)=TRUE,M96,N96) ->  | S96: 0 | T96: 0 | U96: 0 | V96: =IF(U96=0,0,VLOOKUP(U96,'intrek AX'!$A$1:$R$4572,18,FALSE)) -> 0 | W96: 0 | Z96: =taal!$A$8 -> BRUT | AB96: ="" ->  | AC96: ="" -> 
C97: L32 | D97: 4000 | E97: 14233 | F97: - | G97: - | H97: - | I97: - | J97: - | K97: =VLOOKUP(L97,'intrek AX'!$A$1:$R$4572,18,FALSE) -> 10.77 | L97: 14233 | M97: =IF(VLOOKUP(L97,'setdet 2'!$B$2:$E$2101,4,FALSE)=0,"",VLOOKUP(L97,'setdet 2'!$B$2:$E$2101,4,FALSE)) ->  | O97: =IF(ISBLANK(N97)=TRUE,M97,N97) ->  | S97: 0 | T97: 0 | U97: 0 | V97: =IF(U97=0,0,VLOOKUP(U97,'intrek AX'!$A$1:$R$4572,18,FALSE)) -> 0 | W97: =T97*D97/1000*V97 -> 0 | Z97: =taal!$A$8 -> BRUT | AB97: ="" ->  | AC97: ="" -> 
C98: L32 | D98: 5000 | E98: 14234 | F98: - | G98: - | H98: - | I98: - | J98: - | K98: =VLOOKUP(L98,'intrek AX'!$A$1:$R$4572,18,FALSE) -> 10.77 | L98: 14234 | M98: =IF(VLOOKUP(L98,'setdet 2'!$B$2:$E$2101,4,FALSE)=0,"",VLOOKUP(L98,'setdet 2'!$B$2:$E$2101,4,FALSE)) ->  | S98: 0 | T98: 0 | U98: 0 | V98: =IF(U98=0,0,VLOOKUP(U98,'intrek AX'!$A$1:$R$4572,18,FALSE)) -> 0 | W98: 0 | Z98: =taal!$A$8 -> BRUT | AB98: ="" ->  | AC98: ="" -> 
C99: L32 | D99: 6000 | E99: 14235 | F99: 14456 | G99: - | H99: - | I99: - | J99: - | K99: =VLOOKUP(L99,'intrek AX'!$A$1:$R$4572,18,FALSE) -> 10.77 | L99: 14235 | M99: =IF(VLOOKUP(L99,'setdet 2'!$B$2:$E$2101,4,FALSE)=0,"",VLOOKUP(L99,'setdet 2'!$B$2:$E$2101,4,FALSE)) ->  | S99: 0 | T99: 0 | U99: 0 | V99: =IF(U99=0,0,VLOOKUP(U99,'intrek AX'!$A$1:$R$4572,18,FALSE)) -> 0 | W99: 0 | Z99: =taal!$A$8 -> BRUT | AB99: ="" ->  | AC99: ="" -> 
B100: ZD2B | C100: L32 | D100: 7000 | E100: 14238 | F100: 14457 | G100: - | H100: - | I100: - | J100: - | K100: =VLOOKUP(L100,'intrek AX'!$A$1:$R$4572,18,FALSE) -> 10.77 | L100: 14238 | M100: =IF(VLOOKUP(L100,'setdet 2'!$B$2:$E$2101,4,FALSE)=0,"",VLOOKUP(L100,'setdet 2'!$B$2:$E$2101,4,FALSE)) ->  | S100: 0 | T100: 0 | U100: 0 | V100: =IF(U100=0,0,VLOOKUP(U100,'intrek AX'!$A$1:$R$4572,18,FALSE)) -> 0 | W100: 0 | Z100: =taal!$A$8 -> BRUT | AB100: ="" ->  | AC100: ="" -> 
A101: =taal!A184 -> PORTEUR LATERAL ALU | B101: L16P | C101: LT32 | D101: 2000 | E101: 15780 | F101: 15770 | H101: 16694 | K101: =VLOOKUP(L101,'intrek AX'!$A$1:$R$4572,18,FALSE) -> 18.58 | L101: =INDEX(E101:J101,ral) -> 15770 | M101: =IF(VLOOKUP(L101,'setdet 2'!$B$2:$E$2101,4,FALSE)=0,"",VLOOKUP(L101,'setdet 2'!$B$2:$E$2101,4,FALSE)) ->  | S101: 0 | T101: 0 | U101: 0 | V101: =IF(U101=0,0,VLOOKUP(U101,'intrek AX'!$A$1:$R$4572,18,FALSE)) -> 0 | W101: 0 | Z101: =IF(AA101="",IF(SUM(F101:I101)=0,taal!$A$8,IF(ral=4,taal!$A$551,taal!$A$550)),"") ->  | AA101: =IF(SUM(F101:I101)=0,"",INDEX('input data'!$G$56:$G$61,ral)) -> RAL9010 | AB101: =IF(AC101="","",IF(AC101=1,calcul!$B$346,IF(AC101=2,calcul!$B$354,""))) -> RWB964 | AC101: 1
A102: =taal!A184 -> PORTEUR LATERAL ALU | C102: LT32 | D102: 2500 | E102: 15548 | F102: 15556 | K102: =VLOOKUP(L102,'intrek AX'!$A$1:$R$4572,18,FALSE) -> 18.58 | L102: 15556 | M102: =IF(VLOOKUP(L102,'setdet 2'!$B$2:$E$2101,4,FALSE)=0,"",VLOOKUP(L102,'setdet 2'!$B$2:$E$2101,4,FALSE)) ->  | S102: 0 | T102: 0 | U102: 0 | V102: =IF(U102=0,0,VLOOKUP(U102,'intrek AX'!$A$1:$R$4572,18,FALSE)) -> 0 | W102: 0 | Z102: =IF(AA102="",IF(SUM(F102:I102)=0,taal!$A$8,IF(ral=4,taal!$A$551,taal!$A$550)),"") ->  | AA102: =IF(SUM(F102:I102)=0,"",INDEX('input data'!$G$56:$G$61,ral)) -> RAL9010 | AB102: =IF(AC102="","",IF(AC102=1,calcul!$B$346,IF(AC102=2,calcul!$B$354,""))) -> RWB964 | AC102: 1
C103: LT32 | D103: 3000 | E103: 15549 | F103: 15557 | K103: =VLOOKUP(L103,'intrek AX'!$A$1:$R$4572,18,FALSE) -> 18.58 | L103: 15557 | M103: =IF(VLOOKUP(L103,'setdet 2'!$B$2:$E$2101,4,FALSE)=0,"",VLOOKUP(L103,'setdet 2'!$B$2:$E$2101,4,FALSE)) ->  | O103: =IF(ISBLANK(N103)=TRUE,M103,N103) ->  | S103: 0 | T103: 0 | U103: 0 | V103: =IF(U103=0,0,VLOOKUP(U103,'intrek AX'!$A$1:$R$4572,18,FALSE)) -> 0 | W103: 0 | Z103: =IF(AA103="",IF(SUM(F103:I103)=0,taal!$A$8,IF(ral=4,taal!$A$551,taal!$A$550)),"") ->  | AA103: =IF(SUM(F103:I103)=0,"",INDEX('input data'!$G$56:$G$61,ral)) -> RAL9010 | AB103: =IF(AC103="","",IF(AC103=1,calcul!$B$346,IF(AC103=2,calcul!$B$354,""))) -> RWB964 | AC103: 1
C104: LT32 | D104: 3500 | E104: 15550 | F104: 15558 | K104: =VLOOKUP(L104,'intrek AX'!$A$1:$R$4572,18,FALSE) -> 18.58 | L104: 15558 | M104: =IF(VLOOKUP(L104,'setdet 2'!$B$2:$E$2101,4,FALSE)=0,"",VLOOKUP(L104,'setdet 2'!$B$2:$E$2101,4,FALSE)) ->  | O104: =IF(ISBLANK(N104)=TRUE,M104,N104) ->  | S104: 0 | T104: 0 | U104: 0 | V104: =IF(U104=0,0,VLOOKUP(U104,'intrek AX'!$A$1:$R$4572,18,FALSE)) -> 0 | W104: 0 | Z104: =IF(AA104="",IF(SUM(F104:I104)=0,taal!$A$8,IF(ral=4,taal!$A$551,taal!$A$550)),"") ->  | AA104: =IF(SUM(F104:I104)=0,"",INDEX('input data'!$G$56:$G$61,ral)) -> RAL9010 | AB104: =IF(AC104="","",IF(AC104=1,calcul!$B$346,IF(AC104=2,calcul!$B$354,""))) -> RWB964 | AC104: 1
C105: LT32 | D105: 4000 | E105: 15551 | F105: 15569 | K105: =VLOOKUP(L105,'intrek AX'!$A$1:$R$4572,18,FALSE) -> 18.58 | L105: 15569 | M105: =IF(VLOOKUP(L105,'setdet 2'!$B$2:$E$2101,4,FALSE)=0,"",VLOOKUP(L105,'setdet 2'!$B$2:$E$2101,4,FALSE)) ->  | O105: =IF(ISBLANK(N105)=TRUE,M105,N105) ->  | S105: 0 | T105: 0 | U105: 0 | V105: =IF(U105=0,0,VLOOKUP(U105,'intrek AX'!$A$1:$R$4572,18,FALSE)) -> 0 | W105: 0 | Z105: =IF(AA105="",IF(SUM(F105:I105)=0,taal!$A$8,IF(ral=4,taal!$A$551,taal!$A$550)),"") ->  | AA105: =IF(SUM(F105:I105)=0,"",INDEX('input data'!$G$56:$G$61,ral)) -> RAL9010 | AB105: =IF(AC105="","",IF(AC105=1,calcul!$B$346,IF(AC105=2,calcul!$B$354,""))) -> RWB964 | AC105: 1
C106: LT32 | D106: 5000 | E106: 15552 | F106: 15570 | K106: =VLOOKUP(L106,'intrek AX'!$A$1:$R$4572,18,FALSE) -> 18.58 | L106: 15570 | M106: =IF(VLOOKUP(L106,'setdet 2'!$B$2:$E$2101,4,FALSE)=0,"",VLOOKUP(L106,'setdet 2'!$B$2:$E$2101,4,FALSE)) ->  | O106: =IF(ISBLANK(N106)=TRUE,M106,N106) ->  | S106: 0 | T106: 0 | U106: 0 | V106: =IF(U106=0,0,VLOOKUP(U106,'intrek AX'!$A$1:$R$4572,18,FALSE)) -> 0 | W106: 0 | Z106: =IF(AA106="",IF(SUM(F106:I106)=0,taal!$A$8,IF(ral=4,taal!$A$551,taal!$A$550)),"") ->  | AA106: =IF(SUM(F106:I106)=0,"",INDEX('input data'!$G$56:$G$61,ral)) -> RAL9010 | AB106: =IF(AC106="","",IF(AC106=1,calcul!$B$346,IF(AC106=2,calcul!$B$354,""))) -> RWB964 | AC106: 1
B107: ZD2B | C107: LT32 | D107: 7000 | E107: 15555 | F107: 15572 | K107: =VLOOKUP(L107,'intrek AX'!$A$1:$R$4572,18,FALSE) -> 18.58 | L107: 15572 | M107: =IF(VLOOKUP(L107,'setdet 2'!$B$2:$E$2101,4,FALSE)=0,"",VLOOKUP(L107,'setdet 2'!$B$2:$E$2101,4,FALSE)) ->  | S107: 0 | T107: 0 | U107: 0 | V107: =IF(U107=0,0,VLOOKUP(U107,'intrek AX'!$A$1:$R$4572,18,FALSE)) -> 0 | W107: 0 | Z107: =IF(AA107="",IF(SUM(F107:I107)=0,taal!$A$8,IF(ral=4,taal!$A$551,taal!$A$550)),"") ->  | AA107: =IF(SUM(F107:I107)=0,"",INDEX('input data'!$G$56:$G$61,ral)) -> RAL9010 | AB107: =IF(AC107="","",IF(AC107=1,calcul!$B$346,IF(AC107=2,calcul!$B$354,""))) -> RWB964 | AC107: 1
A108: =taal!A179 -> PORTEUR LATERAL THERMIQUE VERRE | B108: THERMISCHE PLAATDRAGER GLAS | C108: TPGL | D108: 4200 | F108: 25059 | K108: =VLOOKUP(L108,'intrek AX'!$A$1:$R$4572,18,FALSE) -> 10.48 | L108: =F108 -> 25059 | M108: =IF(VLOOKUP(L108,'setdet 2'!$B$2:$E$2101,4,FALSE)=0,"",VLOOKUP(L108,'setdet 2'!$B$2:$E$2101,4,FALSE)) ->  | S108: 0 | T108: 0 | U108: 0 | V108: =IF(U108=0,0,VLOOKUP(U108,'intrek AX'!$A$1:$R$4572,18,FALSE)) -> 0 | W108: 0 | Z108: =taal!$A$550 -> BLANC | AB108: ="" -> 
C109: TPGL | D109: 5200 | F109: 25060 | K109: =VLOOKUP(L109,'intrek AX'!$A$1:$R$4572,18,FALSE) -> 10.48 | L109: =F109 -> 25060 | M109: =IF(VLOOKUP(L109,'setdet 2'!$B$2:$E$2101,4,FALSE)=0,"",VLOOKUP(L109,'setdet 2'!$B$2:$E$2101,4,FALSE)) ->  | S109: 0 | T109: 0 | U109: 0 | V109: =IF(U109=0,0,VLOOKUP(U109,'intrek AX'!$A$1:$R$4572,18,FALSE)) -> 0 | W109: 0 | Z109: =taal!$A$550 -> BLANC | AB109: ="" -> 
C110: TPGL | D110: 6200 | F110: 25061 | K110: =VLOOKUP(L110,'intrek AX'!$A$1:$R$4572,18,FALSE) -> 10.48 | L110: =F110 -> 25061 | M110: =IF(VLOOKUP(L110,'setdet 2'!$B$2:$E$2101,4,FALSE)=0,"",VLOOKUP(L110,'setdet 2'!$B$2:$E$2101,4,FALSE)) ->  | S110: 0 | T110: 0 | U110: 0 | V110: =IF(U110=0,0,VLOOKUP(U110,'intrek AX'!$A$1:$R$4572,18,FALSE)) -> 0 | W110: 0 | Z110: =taal!$A$550 -> BLANC | AB110: ="" -> 
C111: TPGL | D111: 7200 | F111: 25062 | K111: =VLOOKUP(L111,'intrek AX'!$A$1:$R$4572,18,FALSE) -> 10.48 | L111: =F111 -> 25062 | M111: =IF(VLOOKUP(L111,'setdet 2'!$B$2:$E$2101,4,FALSE)=0,"",VLOOKUP(L111,'setdet 2'!$B$2:$E$2101,4,FALSE)) ->  | S111: 0 | T111: 0 | U111: 0 | V111: =IF(U111=0,0,VLOOKUP(U111,'intrek AX'!$A$1:$R$4572,18,FALSE)) -> 0 | W111: 0 | Z111: =taal!$A$550 -> BLANC | AB111: ="" -> 
A112: =taal!A183 -> PORTEUR LATERAL ALU POUR TPGL | B112: TRANSFO ENKEL | C112: TPHL | D112: 4100 | E112: 24992 | F112: 25004 | G112: 25004 | H112: 24996 | I112: 25008 | J112: 25008 | K112: =VLOOKUP(L112,'intrek AX'!$A$1:$R$4572,18,FALSE) -> 9.87 | L112: =INDEX(E112:J112,ralin) -> 25004 | M112: =IF(VLOOKUP(L112,'setdet 2'!$B$2:$E$2101,4,FALSE)=0,"",VLOOKUP(L112,'setdet 2'!$B$2:$E$2101,4,FALSE)) ->  | S112: 0 | T112: 0 | U112: =IF(T112=0,0,IF(ralstandin=1,F112,S112)) -> 0 | V112: =IF(U112=0,0,VLOOKUP(U112,'intrek AX'!$A$1:$R$4572,18,FALSE)) -> 0 | W112: 0 | Z112: =IF(AA112="",IF(SUM(F112:I112)=0,taal!$A$8,IF(ralin=4,taal!$A$551,taal!$A$550)),"") ->  | AA112: =IF(SUM(F112:I112)=0,"",INDEX('input data'!$H$56:$H$61,ralin)) -> RAL9010 | AB112: =IF(AC112="","",IF(AC112=1,calcul!$B$346,IF(AC112=2,calcul!$B$354,""))) -> 0 | AC112: 2
B113: GOOT "LITE" | C113: TPHL | D113: 5100 | E113: 24993 | F113: 25005 | G113: 25005 | H113: 24997 | I113: 25009 | J113: 25009 | K113: =VLOOKUP(L113,'intrek AX'!$A$1:$R$4572,18,FALSE) -> 9.87 | L113: =INDEX(E113:J113,ralin) -> 25005 | M113: =IF(VLOOKUP(L113,'setdet 2'!$B$2:$E$2101,4,FALSE)=0,"",VLOOKUP(L113,'setdet 2'!$B$2:$E$2101,4,FALSE)) ->  | O113: =IF(ISBLANK(N113)=TRUE,M113,N113) ->  | S113: 0 | T113: 0 | U113: =IF(T113=0,0,IF(ralstandin=1,F113,S113)) -> 0 | V113: =IF(U113=0,0,VLOOKUP(U113,'intrek AX'!$A$1:$R$4572,18,FALSE)) -> 0 | W113: 0 | Z113: =IF(AA113="",IF(SUM(F113:I113)=0,taal!$A$8,IF(ralin=4,taal!$A$551,taal!$A$550)),"") ->  | AA113: =IF(SUM(F113:I113)=0,"",INDEX('input data'!$H$56:$H$61,ralin)) -> RAL9010 | AB113: =IF(AC113="","",IF(AC113=1,calcul!$B$346,IF(AC113=2,calcul!$B$354,""))) -> 0 | AC113: 2
C114: TPHL | D114: 6100 | E114: 24994 | F114: 25006 | G114: 25006 | H114: 24998 | I114: 25010 | J114: 25010 | K114: =VLOOKUP(L114,'intrek AX'!$A$1:$R$4572,18,FALSE) -> 9.87 | L114: =INDEX(E114:J114,ralin) -> 25006 | M114: =IF(VLOOKUP(L114,'setdet 2'!$B$2:$E$2101,4,FALSE)=0,"",VLOOKUP(L114,'setdet 2'!$B$2:$E$2101,4,FALSE)) ->  | S114: 0 | T114: 0 | U114: =IF(T114=0,0,IF(ralstandin=1,F114,S114)) -> 0 | V114: =IF(U114=0,0,VLOOKUP(U114,'intrek AX'!$A$1:$R$4572,18,FALSE)) -> 0 | W114: 0 | Z114: =IF(AA114="",IF(SUM(F114:I114)=0,taal!$A$8,IF(ralin=4,taal!$A$551,taal!$A$550)),"") ->  | AA114: =IF(SUM(F114:I114)=0,"",INDEX('input data'!$H$56:$H$61,ralin)) -> RAL9010 | AB114: =IF(AC114="","",IF(AC114=1,calcul!$B$346,IF(AC114=2,calcul!$B$354,""))) -> 0 | AC114: 2
C115: TPHL | D115: 7100 | E115: 24995 | F115: 25007 | G115: 25007 | H115: 24999 | I115: 25011 | J115: 25011 | K115: =VLOOKUP(L115,'intrek AX'!$A$1:$R$4572,18,FALSE) -> 9.87 | L115: =INDEX(E115:J115,ralin) -> 25007 | M115: =IF(VLOOKUP(L115,'setdet 2'!$B$2:$E$2101,4,FALSE)=0,"",VLOOKUP(L115,'setdet 2'!$B$2:$E$2101,4,FALSE)) ->  | S115: 0 | T115: 0 | U115: =IF(T115=0,0,IF(ralstandin=1,F115,S115)) -> 0 | V115: =IF(U115=0,0,VLOOKUP(U115,'intrek AX'!$A$1:$R$4572,18,FALSE)) -> 0 | W115: 0 | Z115: =IF(AA115="",IF(SUM(F115:I115)=0,taal!$A$8,IF(ralin=4,taal!$A$551,taal!$A$550)),"") ->  | AA115: =IF(SUM(F115:I115)=0,"",INDEX('input data'!$H$56:$H$61,ralin)) -> RAL9010 | AB115: =IF(AC115="","",IF(AC115=1,calcul!$B$346,IF(AC115=2,calcul!$B$354,""))) -> 0 | AC115: 2
A116: =taal!A216 -> PROFILE D'ADAPTATION 8(10) MM | B116: OPZETPROFIEL VOOR 8 (10) MM PLATEN | C116: Y10 | D116: 6540 | E116: 18324 | F116: 18403 | G116: 31163 | H116: 18402 | I116: 21283 | J116: 21283 | K116: =VLOOKUP(L116,'intrek AX'!$A$1:$R$4572,18,FALSE) -> 5.69 | L116: =INDEX(E116:J116,ral) -> 18403 | M116: =IF(VLOOKUP(L116,'setdet 2'!$B$2:$E$2101,4,FALSE)=0,"",VLOOKUP(L116,'setdet 2'!$B$2:$E$2101,4,FALSE)) ->  | S116: 0 | T116: 0 | U116: =IF(T116=0,0,IF(ralstandout=1,F116,S116)) -> 0 | V116: =IF(U116=0,0,VLOOKUP(U116,'intrek AX'!$A$1:$R$4572,18,FALSE)) -> 0 | W116: 0 | Z116: =IF(AA116="",IF(SUM(F116:I116)=0,taal!$A$8,IF(ral=4,taal!$A$551,taal!$A$550)),"") ->  | AA116: =IF(SUM(F116:I116)=0,"",INDEX('input data'!$G$56:$G$61,ral)) -> RAL9010 | AB116: =IF(AC116="","",IF(AC116=1,calcul!$B$346,IF(AC116=2,calcul!$B$354,""))) -> RWB964 | AC116: 1
A117: =taal!A218 -> PROFILE D'ADAPTATION PLAQUES 32 MM | B117: OPZETPROFIEL VOOR 32 MM PLATEN | C117: Y32 | D117: 7000 | E117: 13314 | K117: =VLOOKUP(L117,'intrek AX'!$A$1:$R$4572,18,FALSE) -> 4.93 | L117: =E117 -> 13314 | M117: =IF(VLOOKUP(L117,'setdet 2'!$B$2:$E$2101,4,FALSE)=0,"",VLOOKUP(L117,'setdet 2'!$B$2:$E$2101,4,FALSE)) ->  | S117: 0 | T117: 0 | U117: =IF(T117=0,0,IF(ralstandout=1,E117,S117)) -> 0 | V117: =IF(U117=0,0,VLOOKUP(U117,'intrek AX'!$A$1:$R$4572,18,FALSE)) -> 0 | W117: 0 | Z117: =IF(AA117="",IF(SUM(F117:I117)=0,taal!$A$8,IF(ral=4,taal!$A$551,taal!$A$550)),"") -> BRUT | AB117: ="" ->  | AC117: ="" -> 
A118: =taal!A219 -> PROFILE DE REHAUSSE ALU 16 MM | B118: VERHOGINGSPROFIEL ALU 16 MM | C118: Y16A | D118: 3540 | E118: 21520 | F118: 21524 | G118: 31181 | H118: 21521 | I118: 21526 | J118: =IF('input data'!J56="RAL7016ST",31181,21526) -> 21526 | K118: =VLOOKUP(L118,'intrek AX'!$A$1:$R$4572,18,FALSE) -> 7.49 | L118: =INDEX(E118:J118,ral) -> 21524 | M118: =IF(VLOOKUP(L118,'setdet 2'!$B$2:$E$2101,4,FALSE)=0,"",VLOOKUP(L118,'setdet 2'!$B$2:$E$2101,4,FALSE)) ->  | S118: 0 | T118: 0 | U118: =IF(T118=0,0,IF(ralstandout=1,F118,S118)) -> 0 | V118: =IF(U118=0,0,VLOOKUP(U118,'intrek AX'!$A$1:$R$4572,18,FALSE)) -> 0 | W118: 0 | Z118: =IF(AA118="",IF(SUM(F118:I118)=0,taal!$A$8,IF(ral=4,taal!$A$551,taal!$A$550)),"") ->  | AA118: =IF(SUM(F118:I118)=0,"",INDEX('input data'!$G$56:$G$61,ral)) -> RAL9010 | AB118: =IF(AC118="","",IF(AC118=1,calcul!$B$346,IF(AC118=2,calcul!$B$354,""))) -> RWB964 | AC118: 1
C119: Y16A | D119: 7040 | E119: 21518 | F119: 21525 | G119: 31182 | H119: 21519 | I119: 21527 | J119: =IF('input data'!J56="RAL7016ST",31182,21527) -> 21527 | K119: =VLOOKUP(L119,'intrek AX'!$A$1:$R$4572,18,FALSE) -> 7.49 | L119: =INDEX(E119:J119,ral) -> 21525 | M119: =IF(VLOOKUP(L119,'setdet 2'!$B$2:$E$2101,4,FALSE)=0,"",VLOOKUP(L119,'setdet 2'!$B$2:$E$2101,4,FALSE)) ->  | S119: 0 | T119: 0 | U119: =IF(T119=0,0,IF(ralstandout=1,F119,S119)) -> 0 | V119: =IF(U119=0,0,VLOOKUP(U119,'intrek AX'!$A$1:$R$4572,18,FALSE)) -> 0 | W119: 0 | Z119: =IF(AA119="",IF(SUM(F119:I119)=0,taal!$A$8,IF(ral=4,taal!$A$551,taal!$A$550)),"") ->  | AA119: =IF(SUM(F119:I119)=0,"",INDEX('input data'!$G$56:$G$61,ral)) -> RAL9010 | AB119: =IF(AC119="","",IF(AC119=1,calcul!$B$346,IF(AC119=2,calcul!$B$354,""))) -> RWB964 | AC119: 1
A120: =taal!A220 -> Y16P RUPTURE THERMIQUE ABS 16 MM NOIR | B120: THERM.ONDERBREKING ABS 16 MM | C120: Y16P | D120: 1000 | E120: 21528 | K120: =VLOOKUP(L120,'intrek AX'!$A$1:$R$4572,18,FALSE) -> 4.54 | L120: =E120 -> 21528 | M120: =IF(VLOOKUP(L120,'setdet 2'!$B$2:$E$2101,4,FALSE)=0,"",VLOOKUP(L120,'setdet 2'!$B$2:$E$2101,4,FALSE)) ->  | S120: 0 | T120: 0 | U120: =IF(T120=0,0,IF(ralstandout=1,E120,S120)) -> 0 | V120: =IF(U120=0,0,VLOOKUP(U120,'intrek AX'!$A$1:$R$4572,18,FALSE)) -> 0 | W120: 0 | Z120: =IF(AA120="",IF(SUM(F120:I120)=0,taal!$A$552,IF(ral=4,taal!$A$551,taal!$A$550)),"") -> NOIR | AB120: ="" ->  | AC120: ="" -> 
C121: Y16P | D121: 4000 | E121: 21529 | K121: =VLOOKUP(L121,'intrek AX'!$A$1:$R$4572,18,FALSE) -> 4.54 | L121: =E121 -> 21529 | M121: =IF(VLOOKUP(L121,'setdet 2'!$B$2:$E$2101,4,FALSE)=0,"",VLOOKUP(L121,'setdet 2'!$B$2:$E$2101,4,FALSE)) ->  | S121: 0 | T121: 0 | U121: =IF(T121=0,0,IF(ralstandout=1,E121,S121)) -> 0 | V121: =IF(U121=0,0,VLOOKUP(U121,'intrek AX'!$A$1:$R$4572,18,FALSE)) -> 0 | W121: 0 | Z121: =IF(AA121="",IF(SUM(F121:I121)=0,taal!$A$552,IF(ral=4,taal!$A$551,taal!$A$550)),"") -> NOIR | AB121: ="" ->  | AC121: ="" -> 
A122: =taal!A204 -> JOINT POUR CLIP MURAL | B122: RUBBER VOOR MUURTOP-PROFIEL | C122: C1CX | D122: W/G | E122: 17703 | F122: 17701 | G122: 17703 | H122: 17703 | I122: =IF('input data'!D10=9001,17701,17703) -> 17703 | J122: 17703 | K122: =VLOOKUP(L122,'intrek AX'!$A$1:$R$4572,18,FALSE) -> 4.75 | L122: =INDEX(E122:J122,ral) -> 17701 | M122: =IF(VLOOKUP(L122,'setdet 2'!$B$2:$E$2101,4,FALSE)=0,"",VLOOKUP(L122,'setdet 2'!$B$2:$E$2101,4,FALSE)) ->  | S122: 0 | T122: 0 | U122: =IF(T122=0,0,IF(ralstandout=1,F122,S122)) -> 0 | V122: =IF(U122=0,0,VLOOKUP(U122,'intrek AX'!$A$1:$R$4572,18,FALSE)) -> 0 | W122: =T122*V122 -> 0 | Z122: =IF(L122=17703,taal!$A$553,taal!$A$550) -> BLANC | AB122: ="" ->  | AC122: ="" -> 
A123: =taal!A205 -> JOINT POUR PORTEUR | B123: RUBBER VOOR TP-PROFIEL | C123: C2CX | D123: W/G | E123: 110588 | F123: 110589 | G123: 110588 | H123: 110588 | I123: 110588 | J123: 110588 | K123: =VLOOKUP(L123,'intrek AX'!$A$1:$R$4572,18,FALSE) -> 6.19 | L123: =INDEX(E123:J123,ral) -> 110589 | M123: =IF(VLOOKUP(L123,'setdet 2'!$B$2:$E$2101,4,FALSE)=0,"",VLOOKUP(L123,'setdet 2'!$B$2:$E$2101,4,FALSE)) ->  | S123: 0 | T123: 0 | U123: =IF(T123=0,0,IF(ralstandout=1,F123,S123)) -> 0 | V123: =IF(U123=0,0,VLOOKUP(U123,'intrek AX'!$A$1:$R$4572,18,FALSE)) -> 0 | W123: =T123*V123 -> 0 | Z123: =IF(L123=110588,taal!$A$553,taal!$A$550) -> BLANC | AB123: ="" ->  | AC123: ="" -> 
A124: =taal!A206 -> JOINT POUR PORTEUR (LATERAL) ALU | B124: RUBBER VOOR AFSTANDSHOUDER LICHTGRIJS | C124: C3 | D124: G | E124: 13319 | K124: =VLOOKUP(L124,'intrek AX'!$A$1:$R$4572,18,FALSE) -> 1.11 | L124: =E124 -> 13319 | M124: =IF(VLOOKUP(L124,'setdet 2'!$B$2:$E$2101,4,FALSE)=0,"",VLOOKUP(L124,'setdet 2'!$B$2:$E$2101,4,FALSE)) ->  | S124: 0 | T124: 0 | U124: =IF(T124=0,0,IF(ralstandout=1,E124,S124)) -> 0 | V124: =IF(U124=0,0,VLOOKUP(U124,'intrek AX'!$A$1:$R$4572,18,FALSE)) -> 0 | W124: 0 | Z124: =taal!$A$553 -> GRIS | AB124: ="" ->  | AC124: ="" -> 
A125: =taal!A207 -> JOINT POUR PROFILES MURALS ET LATERALS | B125: RUBBER VOOR AFSTANDSHOUDER LICHTGRIJS | C125: C4CX | D125: W/G | E125: 110590 | F125: 110591 | G125: 110590 | H125: 110590 | I125: 110590 | J125: 110590 | K125: =VLOOKUP(L125,'intrek AX'!$A$1:$R$4572,18,FALSE) -> 5.7 | L125: =INDEX(E125:J125,ral) -> 110591 | M125: =IF(VLOOKUP(L125,'setdet 2'!$B$2:$E$2101,4,FALSE)=0,"",VLOOKUP(L125,'setdet 2'!$B$2:$E$2101,4,FALSE)) ->  | S125: 0 | T125: 0 | U125: =IF(T125=0,0,IF(ralstandout=1,F125,S125)) -> 0 | V125: =IF(U125=0,0,VLOOKUP(U125,'intrek AX'!$A$1:$R$4572,18,FALSE)) -> 0 | W125: 0 | Z125: =IF(L125=110590,taal!$A$553,taal!$A$550) -> BLANC | AB125: ="" ->  | AC125: ="" -> 
A126: =taal!A369 -> JOINT D'ETANCHEITE CÔTÉ GOUTTIÈRE | B126: RUBBER VOOR AFSTANDSHOUDER LICHTGRIJS | C126: C6 | D126: G | E126: 13326 | K126: =VLOOKUP(L126,'intrek AX'!$A$1:$R$4572,18,FALSE) -> 5.54 | L126: =E126 -> 13326 | M126: =IF(VLOOKUP(L126,'setdet 2'!$B$2:$E$2101,4,FALSE)=0,"",VLOOKUP(L126,'setdet 2'!$B$2:$E$2101,4,FALSE)) ->  | S126: 0 | T126: 0 | U126: =IF(T126=0,0,IF(ralstandout=1,E126,S126)) -> 0 | V126: =IF(U126=0,0,VLOOKUP(U126,'intrek AX'!$A$1:$R$4572,18,FALSE)) -> 0 | W126: =T126*V126 -> 0 | Z126: =taal!$A$553 -> GRIS | AB126: ="" ->  | AC126: ="" -> 
A127: =taal!A209 -> JOINT POUR CLIPS ALU GRIS CLAIR | B127: RUBBER VOOR ALUCLIPSEN LICHTGRIJS | C127: C8 | D127: G | E127: 13328 | K127: =VLOOKUP(L127,'intrek AX'!$A$1:$R$4572,18,FALSE) -> 1.48 | L127: =E127 -> 13328 | M127: =IF(VLOOKUP(L127,'setdet 2'!$B$2:$E$2101,4,FALSE)=0,"",VLOOKUP(L127,'setdet 2'!$B$2:$E$2101,4,FALSE)) ->  | S127: 0 | T127: 0 | U127: =IF(T127=0,0,IF(ralstandout=1,E127,S127)) -> 0 | V127: =IF(U127=0,0,VLOOKUP(U127,'intrek AX'!$A$1:$R$4572,18,FALSE)) -> 0 | W127: 0 | Z127: =taal!$A$553 -> GRIS | AB127: ="" ->  | AC127: ="" -> 
A128: =taal!A215 -> CY10 JOINT D'ADAPTATION VERRE 8(10) MM | B128: CY10 OPZETRUBBER VOOR 8 (10) MM GLAS | C128: CY10 | D128: G | E128: 29509 | K128: =VLOOKUP(L128,'intrek AX'!$A$1:$R$4572,18,FALSE) -> 4.2 | L128: =E128 -> 29509 | M128: =IF(VLOOKUP(L128,'setdet 2'!$B$2:$E$2101,4,FALSE)=0,"",VLOOKUP(L128,'setdet 2'!$B$2:$E$2101,4,FALSE)) ->  | S128: 0 | T128: 0 | U128: =IF(T128=0,0,IF(ralstandout=1,E128,S128)) -> 0 | V128: =IF(U128=0,0,VLOOKUP(U128,'intrek AX'!$A$1:$R$4572,18,FALSE)) -> 0 | W128: 0 | Z128: =taal!$A$553 -> GRIS | AB128: ="" ->  | AC128: ="" -> 
A129: =taal!A210 -> JOINT COEX/GOUTTIERE BLANC/NOIR | B129: COEX GOOT/NOK RUBBER WIT/ZWART | C129: C11CX | D129: W/Z | F129: 21557 | K129: =VLOOKUP(L129,'intrek AX'!$A$1:$R$4572,18,FALSE) -> 9.46 | L129: =F129 -> 21557 | M129: =IF(VLOOKUP(L129,'setdet 2'!$B$2:$E$2101,4,FALSE)=0,"",VLOOKUP(L129,'setdet 2'!$B$2:$E$2101,4,FALSE)) ->  | S129: 0 | T129: 0 | U129: =IF(T129=0,0,IF(ralstandout=1,F129,S129)) -> 0 | V129: =IF(U129=0,0,VLOOKUP(U129,'intrek AX'!$A$1:$R$4572,18,FALSE)) -> 0 | W129: 0 | Z129: =IF(AA129="",IF(SUM(F129:I129)=0,taal!$A$8,IF(ral=4,taal!$A$551,taal!$A$550)),"") -> BLANC | AB129: ="" ->  | AC129: ="" -> 
A130: =taal!A368 -> SUPPORT SUPPLEMENTAIRE POUR C1CX | B130: STEUNKOORD VOOR C1CX | C130: C12 | D130: G | E130: 23875 | K130: =VLOOKUP(L130,'intrek AX'!$A$1:$R$4572,18,FALSE) -> 0.78 | L130: =E130 -> 23875 | M130: =IF(VLOOKUP(L130,'setdet 2'!$B$2:$E$2101,4,FALSE)=0,"",VLOOKUP(L130,'setdet 2'!$B$2:$E$2101,4,FALSE)) ->  | S130: 0 | T130: 0 | U130: =IF(T130=0,0,IF(ralstandout=1,E130,S130)) -> 0 | V130: =IF(U130=0,0,VLOOKUP(U130,'intrek AX'!$A$1:$R$4572,18,FALSE)) -> 0 | W130: 0 | Z130: =taal!$A$553 -> GRIS | AB130: ="" ->  | AC130: ="" -> 
A131: =taal!A370 -> JOINT D'APPUI POUR VERRE CÔTÉ GOUTTIÈRE | C131: C13 | D131: G | E131: 24328 | K131: =VLOOKUP(L131,'intrek AX'!$A$1:$R$4572,18,FALSE) -> 4.87 | L131: =E131 -> 24328 | M131: =IF(VLOOKUP(L131,'setdet 2'!$B$2:$E$2101,4,FALSE)=0,"",VLOOKUP(L131,'setdet 2'!$B$2:$E$2101,4,FALSE)) ->  | S131: 0 | T131: 0 | U131: =IF(T131=0,0,IF(ralstandout=1,E131,S131)) -> 0 | V131: =IF(U131=0,0,VLOOKUP(U131,'intrek AX'!$A$1:$R$4572,18,FALSE)) -> 0 | W131: 0 | Z131: =taal!$A$553 -> GRIS | AB131: ="" ->  | AC131: ="" -> 
A132: =taal!A371 -> JOINT D'APPUI POUR PROFILE LATERAL/MURAL | B132: STEUNRUBBER | C132: C31 | D132: G | E132: 28805 | K132: =VLOOKUP(L132,'intrek AX'!$A$1:$R$4572,18,FALSE) -> 4.87 | L132: =E132 -> 28805 | M132: =IF(VLOOKUP(L132,'setdet 2'!$B$2:$E$2101,4,FALSE)=0,"",VLOOKUP(L132,'setdet 2'!$B$2:$E$2101,4,FALSE)) ->  | S132: 0 | T132: 0 | U132: =IF(T132=0,0,IF(ralstandout=1,E132,S132)) -> 0 | V132: =IF(U132=0,0,VLOOKUP(U132,'intrek AX'!$A$1:$R$4572,18,FALSE)) -> 0 | W132: 0 | Z132: =taal!$A$553 -> GRIS | AB132: ="" ->  | AC132: ="" -> 
A133: =taal!A172 -> CLIP MUR TOP | C133: CLM | D133: 3500 | E133: 17707 | F133: 17724 | G133: 54973 | H133: 17721 | I133: 24375 | J133: 24375 | K133: =VLOOKUP(L133,'intrek AX'!$A$1:$R$4572,18,FALSE) -> 18.91 | L133: =INDEX(E133:J133,ral) -> 17724 | M133: =IF(VLOOKUP(L133,'setdet 2'!$B$2:$E$2101,4,FALSE)=0,"",VLOOKUP(L133,'setdet 2'!$B$2:$E$2101,4,FALSE)) ->  | O133: =IF(ISBLANK(N133)=TRUE,M133,N133) ->  | S133: 0 | T133: 0 | U133: =IF(T133=0,0,IF(ralstandout=1,F133,S133)) -> 0 | V133: =IF(U133=0,0,VLOOKUP(U133,'intrek AX'!$A$1:$R$4572,18,FALSE)) -> 0 | W133: =T133*D133/1000*V133 -> 0 | Z133: =IF(AA133="",IF(SUM(F133:I133)=0,taal!$A$8,IF(ral=4,taal!$A$551,taal!$A$550)),"") ->  | AA133: =IF(SUM(F133:I133)=0,"",INDEX('input data'!$G$56:$G$61,ral)) -> RAL9010 | AB133: =IF(AC133="","",IF(AC133=1,calcul!$B$346,IF(AC133=2,calcul!$B$354,""))) -> RWB964 | AC133: 1
C134: CLM | D134: 5000 | E134: 17710 | F134: 17725 | G134: 54974 | H134: 17722 | I134: 24376 | J134: 24376 | K134: =VLOOKUP(L134,'intrek AX'!$A$1:$R$4572,18,FALSE) -> 18.91 | L134: 17725 | M134: =IF(VLOOKUP(L134,'setdet 2'!$B$2:$E$2101,4,FALSE)=0,"",VLOOKUP(L134,'setdet 2'!$B$2:$E$2101,4,FALSE)) ->  | S134: 0 | T134: 0 | U134: 0 | V134: =IF(U134=0,0,VLOOKUP(U134,'intrek AX'!$A$1:$R$4572,18,FALSE)) -> 0 | W134: 0 | Z134: =IF(AA134="",IF(SUM(F134:I134)=0,taal!$A$8,IF(ral=4,taal!$A$551,taal!$A$550)),"") ->  | AA134: =IF(SUM(F134:I134)=0,"",INDEX('input data'!$G$56:$G$61,ral)) -> RAL9010 | AB134: =IF(AC134="","",IF(AC134=1,calcul!$B$346,IF(AC134=2,calcul!$B$354,""))) -> RWB964 | AC134: 1
C135: CLM | D135: 7000 | E135: 17711 | F135: 17726 | G135: 54975 | H135: 17723 | I135: 24378 | J135: 24378 | K135: =VLOOKUP(L135,'intrek AX'!$A$1:$R$4572,18,FALSE) -> 18.91 | L135: 17726 | M135: =IF(VLOOKUP(L135,'setdet 2'!$B$2:$E$2101,4,FALSE)=0,"",VLOOKUP(L135,'setdet 2'!$B$2:$E$2101,4,FALSE)) ->  | S135: 0 | T135: 0 | U135: 0 | V135: =IF(U135=0,0,VLOOKUP(U135,'intrek AX'!$A$1:$R$4572,18,FALSE)) -> 0 | W135: 0 | Z135: =IF(AA135="",IF(SUM(F135:I135)=0,taal!$A$8,IF(ral=4,taal!$A$551,taal!$A$550)),"") ->  | AA135: =IF(SUM(F135:I135)=0,"",INDEX('input data'!$G$56:$G$61,ral)) -> RAL9010 | AB135: =IF(AC135="","",IF(AC135=1,calcul!$B$346,IF(AC135=2,calcul!$B$354,""))) -> RWB964 | AC135: 1
A136: =taal!A191 -> CLIPS LATERAL CLL 16/25/32 MM | B136: CLL | C136: CLL | D136: 2040 | E136: 17713 | F136: 17740 | G136: 31354 | H136: 17732 | I136: 21174 | J136: =IF('input data'!J56="RAL7016ST",31354,21174) -> 21174 | K136: =VLOOKUP(L136,'intrek AX'!$A$1:$R$4572,18,FALSE) -> 23.82 | L136: 17740 | M136: =IF(VLOOKUP(L136,'setdet 2'!$B$2:$E$2101,4,FALSE)=0,"",VLOOKUP(L136,'setdet 2'!$B$2:$E$2101,4,FALSE)) ->  | S136: 0 | T136: 0 | U136: 0 | V136: =IF(U136=0,0,VLOOKUP(U136,'intrek AX'!$A$1:$R$4572,18,FALSE)) -> 0 | W136: 0 | Z136: =IF(AA136="",IF(SUM(F136:I136)=0,taal!$A$8,IF(ral=4,taal!$A$551,taal!$A$550)),"") ->  | AA136: =IF(SUM(F136:I136)=0,"",INDEX('input data'!$G$56:$G$61,ral)) -> RAL9010 | AB136: =IF(AC136="","",IF(AC136=1,calcul!$B$346,IF(AC136=2,calcul!$B$354,""))) -> RWB964 | AC136: 1
C137: CLL | D137: 2540 | E137: 17714 | F137: 17741 | G137: 31355 | H137: 17733 | I137: 21175 | J137: =IF('input data'!J56="RAL7016ST",31355,21175) -> 21175 | K137: =VLOOKUP(L137,'intrek AX'!$A$1:$R$4572,18,FALSE) -> 23.82 | L137: 17741 | M137: =IF(VLOOKUP(L137,'setdet 2'!$B$2:$E$2101,4,FALSE)=0,"",VLOOKUP(L137,'setdet 2'!$B$2:$E$2101,4,FALSE)) ->  | S137: 0 | T137: 0 | U137: 0 | V137: =IF(U137=0,0,VLOOKUP(U137,'intrek AX'!$A$1:$R$4572,18,FALSE)) -> 0 | W137: 0 | Z137: =IF(AA137="",IF(SUM(F137:I137)=0,taal!$A$8,IF(ral=4,taal!$A$551,taal!$A$550)),"") ->  | AA137: =IF(SUM(F137:I137)=0,"",INDEX('input data'!$G$56:$G$61,ral)) -> RAL9010 | AB137: =IF(AC137="","",IF(AC137=1,calcul!$B$346,IF(AC137=2,calcul!$B$354,""))) -> RWB964 | AC137: 1
C138: CLL | D138: 3040 | E138: 17715 | F138: 17742 | G138: 31356 | H138: 17734 | I138: 21176 | J138: =IF('input data'!J56="RAL7016ST",31356,21176) -> 21176 | K138: =VLOOKUP(L138,'intrek AX'!$A$1:$R$4572,18,FALSE) -> 23.82 | L138: 17742 | M138: =IF(VLOOKUP(L138,'setdet 2'!$B$2:$E$2101,4,FALSE)=0,"",VLOOKUP(L138,'setdet 2'!$B$2:$E$2101,4,FALSE)) ->  | S138: 0 | T138: 0 | U138: 0 | V138: =IF(U138=0,0,VLOOKUP(U138,'intrek AX'!$A$1:$R$4572,18,FALSE)) -> 0 | W138: 0 | Z138: =IF(AA138="",IF(SUM(F138:I138)=0,taal!$A$8,IF(ral=4,taal!$A$551,taal!$A$550)),"") ->  | AA138: =IF(SUM(F138:I138)=0,"",INDEX('input data'!$G$56:$G$61,ral)) -> RAL9010 | AB138: =IF(AC138="","",IF(AC138=1,calcul!$B$346,IF(AC138=2,calcul!$B$354,""))) -> RWB964 | AC138: 1
C139: CLL | D139: 3540 | E139: 17716 | F139: 17743 | G139: 31357 | H139: 17735 | I139: 21177 | J139: =IF('input data'!J56="RAL7016ST",31357,21177) -> 21177 | K139: =VLOOKUP(L139,'intrek AX'!$A$1:$R$4572,18,FALSE) -> 23.82 | L139: 17743 | M139: =IF(VLOOKUP(L139,'setdet 2'!$B$2:$E$2101,4,FALSE)=0,"",VLOOKUP(L139,'setdet 2'!$B$2:$E$2101,4,FALSE)) ->  | S139: 0 | T139: 0 | U139: 0 | V139: =IF(U139=0,0,VLOOKUP(U139,'intrek AX'!$A$1:$R$4572,18,FALSE)) -> 0 | W139: 0 | Z139: =IF(AA139="",IF(SUM(F139:I139)=0,taal!$A$8,IF(ral=4,taal!$A$551,taal!$A$550)),"") ->  | AA139: =IF(SUM(F139:I139)=0,"",INDEX('input data'!$G$56:$G$61,ral)) -> RAL9010 | AB139: =IF(AC139="","",IF(AC139=1,calcul!$B$346,IF(AC139=2,calcul!$B$354,""))) -> RWB964 | AC139: 1
C140: CLL | D140: 4040 | E140: 17717 | F140: 17744 | G140: 31358 | H140: 17736 | I140: 21178 | J140: =IF('input data'!J56="RAL7016ST",31358,21178) -> 21178 | K140: =VLOOKUP(L140,'intrek AX'!$A$1:$R$4572,18,FALSE) -> 23.82 | L140: 17744 | M140: =IF(VLOOKUP(L140,'setdet 2'!$B$2:$E$2101,4,FALSE)=0,"",VLOOKUP(L140,'setdet 2'!$B$2:$E$2101,4,FALSE)) ->  | S140: 0 | T140: 0 | U140: 0 | V140: =IF(U140=0,0,VLOOKUP(U140,'intrek AX'!$A$1:$R$4572,18,FALSE)) -> 0 | W140: 0 | Z140: =IF(AA140="",IF(SUM(F140:I140)=0,taal!$A$8,IF(ral=4,taal!$A$551,taal!$A$550)),"") ->  | AA140: =IF(SUM(F140:I140)=0,"",INDEX('input data'!$G$56:$G$61,ral)) -> RAL9010 | AB140: =IF(AC140="","",IF(AC140=1,calcul!$B$346,IF(AC140=2,calcul!$B$354,""))) -> RWB964 | AC140: 1
C141: CLL | D141: 5040 | E141: 17718 | F141: 17745 | G141: 31359 | H141: 17737 | I141: 21179 | J141: =IF('input data'!J56="RAL7016ST",31359,21179) -> 21179 | K141: =VLOOKUP(L141,'intrek AX'!$A$1:$R$4572,18,FALSE) -> 23.82 | L141: 17745 | M141: =IF(VLOOKUP(L141,'setdet 2'!$B$2:$E$2101,4,FALSE)=0,"",VLOOKUP(L141,'setdet 2'!$B$2:$E$2101,4,FALSE)) ->  | S141: 0 | T141: 0 | U141: 0 | V141: =IF(U141=0,0,VLOOKUP(U141,'intrek AX'!$A$1:$R$4572,18,FALSE)) -> 0 | W141: 0 | Z141: =IF(AA141="",IF(SUM(F141:I141)=0,taal!$A$8,IF(ral=4,taal!$A$551,taal!$A$550)),"") ->  | AA141: =IF(SUM(F141:I141)=0,"",INDEX('input data'!$G$56:$G$61,ral)) -> RAL9010 | AB141: =IF(AC141="","",IF(AC141=1,calcul!$B$346,IF(AC141=2,calcul!$B$354,""))) -> RWB964 | AC141: 1
C142: CLL | D142: 6040 | E142: 17712 | F142: 17728 | G142: 31360 | H142: 17738 | I142: 21180 | J142: =IF('input data'!J56="RAL7016ST",31360,21180) -> 21180 | K142: =VLOOKUP(L142,'intrek AX'!$A$1:$R$4572,18,FALSE) -> 23.82 | L142: 17728 | M142: =IF(VLOOKUP(L142,'setdet 2'!$B$2:$E$2101,4,FALSE)=0,"",VLOOKUP(L142,'setdet 2'!$B$2:$E$2101,4,FALSE)) ->  | S142: =IF(T142=0,0,L142) -> 0 | T142: =IF(ISNUMBER(O142)=FALSE,0,O142) -> 0 | U142: 0 | V142: =IF(U142=0,0,VLOOKUP(U142,'intrek AX'!$A$1:$R$4572,18,FALSE)) -> 0 | W142: 0 | Z142: =IF(AA142="",IF(SUM(F142:I142)=0,taal!$A$8,IF(ral=4,taal!$A$551,taal!$A$550)),"") ->  | AA142: =IF(SUM(F142:I142)=0,"",INDEX('input data'!$G$56:$G$61,ral)) -> RAL9010 | AB142: =IF(AC142="","",IF(AC142=1,calcul!$B$346,IF(AC142=2,calcul!$B$354,""))) -> RWB964 | AC142: 1
C143: CLL | D143: 7040 | E143: 17719 | F143: 17746 | G143: 31361 | H143: 17739 | I143: 21181 | J143: =IF('input data'!J56="RAL7016ST",31361,21181) -> 21181 | K143: =VLOOKUP(L143,'intrek AX'!$A$1:$R$4572,18,FALSE) -> 23.82 | L143: 17746 | M143: =IF(VLOOKUP(L143,'setdet 2'!$B$2:$E$2101,4,FALSE)=0,"",VLOOKUP(L143,'setdet 2'!$B$2:$E$2101,4,FALSE)) ->  | S143: 0 | T143: 0 | U143: 0 | V143: =IF(U143=0,0,VLOOKUP(U143,'intrek AX'!$A$1:$R$4572,18,FALSE)) -> 0 | W143: 0 | Z143: =IF(AA143="",IF(SUM(F143:I143)=0,taal!$A$8,IF(ral=4,taal!$A$551,taal!$A$550)),"") ->  | AA143: =IF(SUM(F143:I143)=0,"",INDEX('input data'!$G$56:$G$61,ral)) -> RAL9010 | AB143: =IF(AC143="","",IF(AC143=1,calcul!$B$346,IF(AC143=2,calcul!$B$354,""))) -> RWB964 | AC143: 1
A144: =taal!A189 -> CLIPS ALU 16 MM | B144: ALUCLIPS 16 MM | C144: CL16 | D144: 2040 | E144: 13329 | F144: 13336 | G144: 31234 | H144: 13343 | I144: 16063 | J144: =IF('input data'!J56="RAL7016ST",31234,16063) -> 16063 | K144: =VLOOKUP(L144,'intrek AX'!$A$1:$R$4572,18,FALSE) -> 13.47 | L144: 13336 | M144: =IF(VLOOKUP(L144,'setdet 2'!$B$2:$E$2101,4,FALSE)=0,"",VLOOKUP(L144,'setdet 2'!$B$2:$E$2101,4,FALSE)) ->  | S144: 0 | T144: 0 | U144: 0 | V144: =IF(U144=0,0,VLOOKUP(U144,'intrek AX'!$A$1:$R$4572,18,FALSE)) -> 0 | W144: 0 | Z144: =IF(AA144="",IF(SUM(F144:I144)=0,taal!$A$8,IF(ral=4,taal!$A$551,taal!$A$550)),"") ->  | AA144: =IF(SUM(F144:I144)=0,"",INDEX('input data'!$G$56:$G$61,ral)) -> RAL9010 | AB144: =IF(AC144="","",IF(AC144=1,calcul!$B$346,IF(AC144=2,calcul!$B$354,""))) -> RWB964 | AC144: 1
C145: CL16 | D145: 2540 | E145: 13330 | F145: 13337 | G145: 31235 | H145: 13344 | I145: 16064 | J145: =IF('input data'!J56="RAL7016ST",31235,16064) -> 16064 | K145: =VLOOKUP(L145,'intrek AX'!$A$1:$R$4572,18,FALSE) -> 13.47 | L145: 13337 | M145: =IF(VLOOKUP(L145,'setdet 2'!$B$2:$E$2101,4,FALSE)=0,"",VLOOKUP(L145,'setdet 2'!$B$2:$E$2101,4,FALSE)) ->  | S145: 0 | T145: 0 | U145: 0 | V145: =IF(U145=0,0,VLOOKUP(U145,'intrek AX'!$A$1:$R$4572,18,FALSE)) -> 0 | W145: 0 | Z145: =IF(AA145="",IF(SUM(F145:I145)=0,taal!$A$8,IF(ral=4,taal!$A$551,taal!$A$550)),"") ->  | AA145: =IF(SUM(F145:I145)=0,"",INDEX('input data'!$G$56:$G$61,ral)) -> RAL9010 | AB145: =IF(AC145="","",IF(AC145=1,calcul!$B$346,IF(AC145=2,calcul!$B$354,""))) -> RWB964 | AC145: 1
C146: CL16 | D146: 3040 | E146: 13331 | F146: 13338 | G146: 31236 | H146: 13345 | I146: 16065 | J146: =IF('input data'!J56="RAL7016ST",31236,16065) -> 16065 | K146: =VLOOKUP(L146,'intrek AX'!$A$1:$R$4572,18,FALSE) -> 13.47 | L146: 13338 | M146: =IF(VLOOKUP(L146,'setdet 2'!$B$2:$E$2101,4,FALSE)=0,"",VLOOKUP(L146,'setdet 2'!$B$2:$E$2101,4,FALSE)) ->  | S146: 0 | T146: 0 | U146: 0 | V146: =IF(U146=0,0,VLOOKUP(U146,'intrek AX'!$A$1:$R$4572,18,FALSE)) -> 0 | W146: 0 | Z146: =IF(AA146="",IF(SUM(F146:I146)=0,taal!$A$8,IF(ral=4,taal!$A$551,taal!$A$550)),"") ->  | AA146: =IF(SUM(F146:I146)=0,"",INDEX('input data'!$G$56:$G$61,ral)) -> RAL9010 | AB146: =IF(AC146="","",IF(AC146=1,calcul!$B$346,IF(AC146=2,calcul!$B$354,""))) -> RWB964 | AC146: 1
C147: CL16 | D147: 3540 | E147: 13332 | F147: 13339 | G147: 31237 | H147: 13346 | I147: 16066 | J147: =IF('input data'!J56="RAL7016ST",31237,16066) -> 16066 | K147: =VLOOKUP(L147,'intrek AX'!$A$1:$R$4572,18,FALSE) -> 13.47 | L147: 13339 | M147: =IF(VLOOKUP(L147,'setdet 2'!$B$2:$E$2101,4,FALSE)=0,"",VLOOKUP(L147,'setdet 2'!$B$2:$E$2101,4,FALSE)) ->  | S147: 0 | T147: 0 | U147: 0 | V147: =IF(U147=0,0,VLOOKUP(U147,'intrek AX'!$A$1:$R$4572,18,FALSE)) -> 0 | W147: 0 | Z147: =IF(AA147="",IF(SUM(F147:I147)=0,taal!$A$8,IF(ral=4,taal!$A$551,taal!$A$550)),"") ->  | AA147: =IF(SUM(F147:I147)=0,"",INDEX('input data'!$G$56:$G$61,ral)) -> RAL9010 | AB147: =IF(AC147="","",IF(AC147=1,calcul!$B$346,IF(AC147=2,calcul!$B$354,""))) -> RWB964 | AC147: 1
C148: CL16 | D148: 4040 | E148: 13333 | F148: 13340 | G148: 31238 | H148: 13347 | I148: 16067 | J148: =IF('input data'!J56="RAL7016ST",31238,16067) -> 16067 | K148: =VLOOKUP(L148,'intrek AX'!$A$1:$R$4572,18,FALSE) -> 13.47 | L148: 13340 | M148: =IF(VLOOKUP(L148,'setdet 2'!$B$2:$E$2101,4,FALSE)=0,"",VLOOKUP(L148,'setdet 2'!$B$2:$E$2101,4,FALSE)) ->  | S148: 0 | T148: 0 | U148: 0 | V148: =IF(U148=0,0,VLOOKUP(U148,'intrek AX'!$A$1:$R$4572,18,FALSE)) -> 0 | W148: 0 | Z148: =IF(AA148="",IF(SUM(F148:I148)=0,taal!$A$8,IF(ral=4,taal!$A$551,taal!$A$550)),"") ->  | AA148: =IF(SUM(F148:I148)=0,"",INDEX('input data'!$G$56:$G$61,ral)) -> RAL9010 | AB148: =IF(AC148="","",IF(AC148=1,calcul!$B$346,IF(AC148=2,calcul!$B$354,""))) -> RWB964 | AC148: 1
C149: CL16 | D149: 5040 | E149: 13824 | F149: 13928 | G149: 31239 | H149: 13927 | I149: 16070 | J149: =IF('input data'!J56="RAL7016ST",31239,16070) -> 16070 | K149: =VLOOKUP(L149,'intrek AX'!$A$1:$R$4572,18,FALSE) -> 13.47 | L149: 13928 | M149: =IF(VLOOKUP(L149,'setdet 2'!$B$2:$E$2101,4,FALSE)=0,"",VLOOKUP(L149,'setdet 2'!$B$2:$E$2101,4,FALSE)) ->  | S149: 0 | T149: 0 | U149: 0 | V149: =IF(U149=0,0,VLOOKUP(U149,'intrek AX'!$A$1:$R$4572,18,FALSE)) -> 0 | W149: 0 | Z149: =IF(AA149="",IF(SUM(F149:I149)=0,taal!$A$8,IF(ral=4,taal!$A$551,taal!$A$550)),"") ->  | AA149: =IF(SUM(F149:I149)=0,"",INDEX('input data'!$G$56:$G$61,ral)) -> RAL9010 | AB149: =IF(AC149="","",IF(AC149=1,calcul!$B$346,IF(AC149=2,calcul!$B$354,""))) -> RWB964 | AC149: 1
C150: CL16 | D150: 6040 | E150: 13334 | F150: 13341 | G150: 31240 | H150: 13348 | I150: 16071 | J150: =IF('input data'!J56="RAL7016ST",31240,16071) -> 16071 | K150: =VLOOKUP(L150,'intrek AX'!$A$1:$R$4572,18,FALSE) -> 13.47 | L150: 13341 | M150: =IF(VLOOKUP(L150,'setdet 2'!$B$2:$E$2101,4,FALSE)=0,"",VLOOKUP(L150,'setdet 2'!$B$2:$E$2101,4,FALSE)) ->  | S150: 0 | T150: 0 | U150: 0 | V150: =IF(U150=0,0,VLOOKUP(U150,'intrek AX'!$A$1:$R$4572,18,FALSE)) -> 0 | W150: 0 | Z150: =IF(AA150="",IF(SUM(F150:I150)=0,taal!$A$8,IF(ral=4,taal!$A$551,taal!$A$550)),"") ->  | AA150: =IF(SUM(F150:I150)=0,"",INDEX('input data'!$G$56:$G$61,ral)) -> RAL9010 | AB150: =IF(AC150="","",IF(AC150=1,calcul!$B$346,IF(AC150=2,calcul!$B$354,""))) -> RWB964 | AC150: 1
C151: CL16 | D151: 7040 | E151: 13335 | F151: 13342 | G151: 31241 | H151: 13349 | I151: 16072 | J151: =IF('input data'!J56="RAL7016ST",31241,16072) -> 16072 | K151: =VLOOKUP(L151,'intrek AX'!$A$1:$R$4572,18,FALSE) -> 13.47 | L151: 13342 | M151: =IF(VLOOKUP(L151,'setdet 2'!$B$2:$E$2101,4,FALSE)=0,"",VLOOKUP(L151,'setdet 2'!$B$2:$E$2101,4,FALSE)) ->  | S151: 0 | T151: 0 | U151: 0 | V151: =IF(U151=0,0,VLOOKUP(U151,'intrek AX'!$A$1:$R$4572,18,FALSE)) -> 0 | W151: 0 | Z151: =IF(AA151="",IF(SUM(F151:I151)=0,taal!$A$8,IF(ral=4,taal!$A$551,taal!$A$550)),"") ->  | AA151: =IF(SUM(F151:I151)=0,"",INDEX('input data'!$G$56:$G$61,ral)) -> RAL9010 | AB151: =IF(AC151="","",IF(AC151=1,calcul!$B$346,IF(AC151=2,calcul!$B$354,""))) -> RWB964 | AC151: 1
A152: =taal!A190 -> CLIPS ALU 25/32 MM | B152: ALUCLIPS 25/32 MM | C152: CL32 | D152: 2040 | E152: 13350 | F152: 13352 | G152: 31242 | H152: 13354 | I152: 16073 | J152: =IF('input data'!J56="RAL7016ST",31242,16073) -> 16073 | K152: =VLOOKUP(L152,'intrek AX'!$A$1:$R$4572,18,FALSE) -> 17.12 | L152: 13352 | M152: =IF(VLOOKUP(L152,'setdet 2'!$B$2:$E$2101,4,FALSE)=0,"",VLOOKUP(L152,'setdet 2'!$B$2:$E$2101,4,FALSE)) ->  | S152: 0 | T152: 0 | U152: 0 | V152: =IF(U152=0,0,VLOOKUP(U152,'intrek AX'!$A$1:$R$4572,18,FALSE)) -> 0 | W152: 0 | Z152: =IF(AA152="",IF(SUM(F152:I152)=0,taal!$A$8,IF(ral=4,taal!$A$551,taal!$A$550)),"") ->  | AA152: =IF(SUM(F152:I152)=0,"",INDEX('input data'!$G$56:$G$61,ral)) -> RAL9010 | AB152: =IF(AC152="","",IF(AC152=1,calcul!$B$346,IF(AC152=2,calcul!$B$354,""))) -> RWB964 | AC152: 1
C153: CL32 | D153: 2540 | E153: 13351 | F153: 13353 | G153: 31243 | H153: 13355 | I153: 16074 | J153: =IF('input data'!J56="RAL7016ST",31243,16074) -> 16074 | K153: =VLOOKUP(L153,'intrek AX'!$A$1:$R$4572,18,FALSE) -> 17.12 | L153: 13353 | M153: =IF(VLOOKUP(L153,'setdet 2'!$B$2:$E$2101,4,FALSE)=0,"",VLOOKUP(L153,'setdet 2'!$B$2:$E$2101,4,FALSE)) ->  | S153: 0 | T153: 0 | U153: 0 | V153: =IF(U153=0,0,VLOOKUP(U153,'intrek AX'!$A$1:$R$4572,18,FALSE)) -> 0 | W153: 0 | Z153: =IF(AA153="",IF(SUM(F153:I153)=0,taal!$A$8,IF(ral=4,taal!$A$551,taal!$A$550)),"") ->  | AA153: =IF(SUM(F153:I153)=0,"",INDEX('input data'!$G$56:$G$61,ral)) -> RAL9010 | AB153: =IF(AC153="","",IF(AC153=1,calcul!$B$346,IF(AC153=2,calcul!$B$354,""))) -> RWB964 | AC153: 1
C154: CL32 | D154: 3040 | E154: 13154 | F154: 13159 | G154: 31244 | H154: 13164 | I154: 16075 | J154: =IF('input data'!J56="RAL7016ST",31244,16075) -> 16075 | K154: =VLOOKUP(L154,'intrek AX'!$A$1:$R$4572,18,FALSE) -> 17.12 | L154: 13159 | M154: =IF(VLOOKUP(L154,'setdet 2'!$B$2:$E$2101,4,FALSE)=0,"",VLOOKUP(L154,'setdet 2'!$B$2:$E$2101,4,FALSE)) ->  | S154: 0 | T154: 0 | U154: 0 | V154: =IF(U154=0,0,VLOOKUP(U154,'intrek AX'!$A$1:$R$4572,18,FALSE)) -> 0 | W154: 0 | Z154: =IF(AA154="",IF(SUM(F154:I154)=0,taal!$A$8,IF(ral=4,taal!$A$551,taal!$A$550)),"") ->  | AA154: =IF(SUM(F154:I154)=0,"",INDEX('input data'!$G$56:$G$61,ral)) -> RAL9010 | AB154: =IF(AC154="","",IF(AC154=1,calcul!$B$346,IF(AC154=2,calcul!$B$354,""))) -> RWB964 | AC154: 1
C155: CL32 | D155: 3540 | E155: 13155 | F155: 13160 | G155: 31245 | H155: 13165 | I155: 16076 | J155: =IF('input data'!J56="RAL7016ST",31245,16076) -> 16076 | K155: =VLOOKUP(L155,'intrek AX'!$A$1:$R$4572,18,FALSE) -> 17.12 | L155: 13160 | M155: =IF(VLOOKUP(L155,'setdet 2'!$B$2:$E$2101,4,FALSE)=0,"",VLOOKUP(L155,'setdet 2'!$B$2:$E$2101,4,FALSE)) ->  | S155: 0 | T155: 0 | U155: 0 | V155: =IF(U155=0,0,VLOOKUP(U155,'intrek AX'!$A$1:$R$4572,18,FALSE)) -> 0 | W155: 0 | Z155: =IF(AA155="",IF(SUM(F155:I155)=0,taal!$A$8,IF(ral=4,taal!$A$551,taal!$A$550)),"") ->  | AA155: =IF(SUM(F155:I155)=0,"",INDEX('input data'!$G$56:$G$61,ral)) -> RAL9010 | AB155: =IF(AC155="","",IF(AC155=1,calcul!$B$346,IF(AC155=2,calcul!$B$354,""))) -> RWB964 | AC155: 1
C156: CL32 | D156: 4040 | E156: 13156 | F156: 13161 | G156: 31246 | H156: 13166 | I156: 16088 | J156: =IF('input data'!J56="RAL7016ST",31246,16088) -> 16088 | K156: =VLOOKUP(L156,'intrek AX'!$A$1:$R$4572,18,FALSE) -> 17.12 | L156: 13161 | M156: =IF(VLOOKUP(L156,'setdet 2'!$B$2:$E$2101,4,FALSE)=0,"",VLOOKUP(L156,'setdet 2'!$B$2:$E$2101,4,FALSE)) ->  | S156: 0 | T156: 0 | U156: 0 | V156: =IF(U156=0,0,VLOOKUP(U156,'intrek AX'!$A$1:$R$4572,18,FALSE)) -> 0 | W156: 0 | Z156: =IF(AA156="",IF(SUM(F156:I156)=0,taal!$A$8,IF(ral=4,taal!$A$551,taal!$A$550)),"") ->  | AA156: =IF(SUM(F156:I156)=0,"",INDEX('input data'!$G$56:$G$61,ral)) -> RAL9010 | AB156: =IF(AC156="","",IF(AC156=1,calcul!$B$346,IF(AC156=2,calcul!$B$354,""))) -> RWB964 | AC156: 1
C157: CL32 | D157: 5040 | E157: 14372 | F157: 14373 | G157: 31247 | H157: 14374 | I157: 16089 | J157: =IF('input data'!J56="RAL7016ST",31247,16089) -> 16089 | K157: =VLOOKUP(L157,'intrek AX'!$A$1:$R$4572,18,FALSE) -> 17.12 | L157: 14373 | M157: =IF(VLOOKUP(L157,'setdet 2'!$B$2:$E$2101,4,FALSE)=0,"",VLOOKUP(L157,'setdet 2'!$B$2:$E$2101,4,FALSE)) ->  | S157: 0 | T157: 0 | U157: 0 | V157: =IF(U157=0,0,VLOOKUP(U157,'intrek AX'!$A$1:$R$4572,18,FALSE)) -> 0 | W157: 0 | Z157: =IF(AA157="",IF(SUM(F157:I157)=0,taal!$A$8,IF(ral=4,taal!$A$551,taal!$A$550)),"") ->  | AA157: =IF(SUM(F157:I157)=0,"",INDEX('input data'!$G$56:$G$61,ral)) -> RAL9010 | AB157: =IF(AC157="","",IF(AC157=1,calcul!$B$346,IF(AC157=2,calcul!$B$354,""))) -> RWB964 | AC157: 1
C158: CL32 | D158: 6040 | E158: 13157 | F158: 13162 | G158: 31248 | H158: 13167 | I158: 16091 | J158: =IF('input data'!J56="RAL7016ST",31248,16091) -> 16091 | K158: =VLOOKUP(L158,'intrek AX'!$A$1:$R$4572,18,FALSE) -> 17.12 | L158: 13162 | M158: =IF(VLOOKUP(L158,'setdet 2'!$B$2:$E$2101,4,FALSE)=0,"",VLOOKUP(L158,'setdet 2'!$B$2:$E$2101,4,FALSE)) ->  | S158: 0 | T158: 0 | U158: 0 | V158: =IF(U158=0,0,VLOOKUP(U158,'intrek AX'!$A$1:$R$4572,18,FALSE)) -> 0 | W158: 0 | Z158: =IF(AA158="",IF(SUM(F158:I158)=0,taal!$A$8,IF(ral=4,taal!$A$551,taal!$A$550)),"") ->  | AA158: =IF(SUM(F158:I158)=0,"",INDEX('input data'!$G$56:$G$61,ral)) -> RAL9010 | AB158: =IF(AC158="","",IF(AC158=1,calcul!$B$346,IF(AC158=2,calcul!$B$354,""))) -> RWB964 | AC158: 1
C159: CL32 | D159: 7040 | E159: 13158 | F159: 13163 | G159: 31249 | H159: 13168 | I159: 16092 | J159: =IF('input data'!J56="RAL7016ST",31249,16092) -> 16092 | K159: =VLOOKUP(L159,'intrek AX'!$A$1:$R$4572,18,FALSE) -> 17.12 | L159: 13163 | M159: =IF(VLOOKUP(L159,'setdet 2'!$B$2:$E$2101,4,FALSE)=0,"",VLOOKUP(L159,'setdet 2'!$B$2:$E$2101,4,FALSE)) ->  | S159: 0 | T159: 0 | U159: 0 | V159: =IF(U159=0,0,VLOOKUP(U159,'intrek AX'!$A$1:$R$4572,18,FALSE)) -> 0 | W159: 0 | Z159: =IF(AA159="",IF(SUM(F159:I159)=0,taal!$A$8,IF(ral=4,taal!$A$551,taal!$A$550)),"") ->  | AA159: =IF(SUM(F159:I159)=0,"",INDEX('input data'!$G$56:$G$61,ral)) -> RAL9010 | AB159: =IF(AC159="","",IF(AC159=1,calcul!$B$346,IF(AC159=2,calcul!$B$354,""))) -> RWB964 | AC159: 1
A160: =taal!A192 -> CLIPS PVC AVEC JOINTS EN COEX BLANC | C160: CLPV | D160: 2000 | F160: 15607 | K160: =VLOOKUP(L160,'intrek AX'!$A$1:$R$4572,18,FALSE) -> 4.73 | L160: =F160 -> 15607 | M160: =IF(VLOOKUP(L160,'setdet 2'!$B$2:$E$2101,4,FALSE)=0,"",VLOOKUP(L160,'setdet 2'!$B$2:$E$2101,4,FALSE)) ->  | S160: 0 | T160: 0 | U160: 0 | V160: =IF(U160=0,0,VLOOKUP(U160,'intrek AX'!$A$1:$R$4572,18,FALSE)) -> 0 | W160: 0 | Z160: =IF(AA160="",IF(SUM(F160:I160)=0,taal!$A$8,taal!$A$550),"") -> BLANC | AB160: ="" -> 
C161: CLPV | D161: 2500 | F161: 15608 | K161: =VLOOKUP(L161,'intrek AX'!$A$1:$R$4572,18,FALSE) -> 4.73 | L161: 15608 | M161: =IF(VLOOKUP(L161,'setdet 2'!$B$2:$E$2101,4,FALSE)=0,"",VLOOKUP(L161,'setdet 2'!$B$2:$E$2101,4,FALSE)) ->  | S161: 0 | T161: 0 | U161: 0 | V161: =IF(U161=0,0,VLOOKUP(U161,'intrek AX'!$A$1:$R$4572,18,FALSE)) -> 0 | W161: 0 | Z161: =IF(AA161="",IF(SUM(F161:I161)=0,taal!$A$8,taal!$A$550),"") -> BLANC | AB161: ="" ->  | AC161: ="" -> 
C162: CLPV | D162: 3000 | F162: 15636 | K162: =VLOOKUP(L162,'intrek AX'!$A$1:$R$4572,18,FALSE) -> 4.73 | L162: 15636 | M162: =IF(VLOOKUP(L162,'setdet 2'!$B$2:$E$2101,4,FALSE)=0,"",VLOOKUP(L162,'setdet 2'!$B$2:$E$2101,4,FALSE)) ->  | O162: =IF(ISBLANK(N162)=TRUE,M162,N162) ->  | S162: 0 | T162: 0 | U162: 0 | V162: =IF(U162=0,0,VLOOKUP(U162,'intrek AX'!$A$1:$R$4572,18,FALSE)) -> 0 | W162: 0 | Z162: =IF(AA162="",IF(SUM(F162:I162)=0,taal!$A$8,taal!$A$550),"") -> BLANC | AB162: ="" ->  | AC162: ="" -> 
C163: CLPV | D163: 3500 | F163: 15611 | K163: =VLOOKUP(L163,'intrek AX'!$A$1:$R$4572,18,FALSE) -> 4.73 | L163: 15611 | M163: =IF(VLOOKUP(L163,'setdet 2'!$B$2:$E$2101,4,FALSE)=0,"",VLOOKUP(L163,'setdet 2'!$B$2:$E$2101,4,FALSE)) ->  | O163: =IF(ISBLANK(N163)=TRUE,M163,N163) ->  | S163: 0 | T163: 0 | U163: 0 | V163: =IF(U163=0,0,VLOOKUP(U163,'intrek AX'!$A$1:$R$4572,18,FALSE)) -> 0 | W163: 0 | Z163: =IF(AA163="",IF(SUM(F163:I163)=0,taal!$A$8,taal!$A$550),"") -> BLANC | AB163: ="" ->  | AC163: ="" -> 
C164: CLPV | D164: 4000 | F164: 15613 | K164: =VLOOKUP(L164,'intrek AX'!$A$1:$R$4572,18,FALSE) -> 4.73 | L164: 15613 | M164: =IF(VLOOKUP(L164,'setdet 2'!$B$2:$E$2101,4,FALSE)=0,"",VLOOKUP(L164,'setdet 2'!$B$2:$E$2101,4,FALSE)) ->  | O164: =IF(ISBLANK(N164)=TRUE,M164,N164) ->  | S164: 0 | T164: 0 | U164: 0 | V164: =IF(U164=0,0,VLOOKUP(U164,'intrek AX'!$A$1:$R$4572,18,FALSE)) -> 0 | W164: 0 | Z164: =IF(AA164="",IF(SUM(F164:I164)=0,taal!$A$8,taal!$A$550),"") -> BLANC | AB164: ="" ->  | AC164: ="" -> 
C165: CLPV | D165: 5000 | F165: 15614 | K165: =VLOOKUP(L165,'intrek AX'!$A$1:$R$4572,18,FALSE) -> 4.73 | L165: 15614 | M165: =IF(VLOOKUP(L165,'setdet 2'!$B$2:$E$2101,4,FALSE)=0,"",VLOOKUP(L165,'setdet 2'!$B$2:$E$2101,4,FALSE)) ->  | O165: =IF(ISBLANK(N165)=TRUE,M165,N165) ->  | S165: 0 | T165: 0 | U165: 0 | V165: =IF(U165=0,0,VLOOKUP(U165,'intrek AX'!$A$1:$R$4572,18,FALSE)) -> 0 | W165: =T165*D165/1000*V165 -> 0 | Z165: =IF(AA165="",IF(SUM(F165:I165)=0,taal!$A$8,taal!$A$550),"") -> BLANC | AB165: ="" ->  | AC165: ="" -> 
C166: CLPV | D166: 6000 | F166: 15615 | K166: =VLOOKUP(L166,'intrek AX'!$A$1:$R$4572,18,FALSE) -> 4.73 | L166: 15615 | M166: =IF(VLOOKUP(L166,'setdet 2'!$B$2:$E$2101,4,FALSE)=0,"",VLOOKUP(L166,'setdet 2'!$B$2:$E$2101,4,FALSE)) ->  | S166: 0 | T166: 0 | U166: 0 | V166: =IF(U166=0,0,VLOOKUP(U166,'intrek AX'!$A$1:$R$4572,18,FALSE)) -> 0 | W166: 0 | Z166: =IF(AA166="",IF(SUM(F166:I166)=0,taal!$A$8,taal!$A$550),"") -> BLANC | AB166: ="" ->  | AC166: ="" -> 
C167: CLPV | D167: 7000 | F167: 15616 | K167: =VLOOKUP(L167,'intrek AX'!$A$1:$R$4572,18,FALSE) -> 4.73 | L167: 15616 | M167: =IF(VLOOKUP(L167,'setdet 2'!$B$2:$E$2101,4,FALSE)=0,"",VLOOKUP(L167,'setdet 2'!$B$2:$E$2101,4,FALSE)) ->  | S167: 0 | T167: 0 | U167: 0 | V167: =IF(U167=0,0,VLOOKUP(U167,'intrek AX'!$A$1:$R$4572,18,FALSE)) -> 0 | W167: 0 | Z167: =IF(AA167="",IF(SUM(F167:I167)=0,taal!$A$8,taal!$A$550),"") -> BLANC | AB167: ="" ->  | AC167: ="" -> 
A168: =taal!A342 -> BAS CLIPS A VISSER | B168: BASIS SCHROEFBARE CLIPS | C168: CLSB | D168: 4040 | E168: 23914 | K168: =VLOOKUP(L168,'intrek AX'!$A$1:$R$4572,18,FALSE) -> 8.34 | L168: =E168 -> 23914 | M168: =IF(VLOOKUP(L168,'setdet 2'!$B$2:$E$2101,4,FALSE)=0,"",VLOOKUP(L168,'setdet 2'!$B$2:$E$2101,4,FALSE)) ->  | S168: 0 | T168: 0 | U168: =IF(T168=0,0,IF(ralstandin=1,E168,S168)) -> 0 | V168: =IF(U168=0,0,VLOOKUP(U168,'intrek AX'!$A$1:$R$4572,18,FALSE)) -> 0 | W168: 0 | Z168: =IF(AA168="",IF(SUM(F168:I168)=0,taal!$A$8,IF(ral=4,taal!$A$551,taal!$A$550)),"") -> BRUT | AB168: ="" ->  | AC168: ="" -> 
C169: CLSB | D169: 5040 | E169: 23915 | K169: =VLOOKUP(L169,'intrek AX'!$A$1:$R$4572,18,FALSE) -> 8.34 | L169: =E169 -> 23915 | M169: =IF(VLOOKUP(L169,'setdet 2'!$B$2:$E$2101,4,FALSE)=0,"",VLOOKUP(L169,'setdet 2'!$B$2:$E$2101,4,FALSE)) ->  | S169: 0 | T169: 0 | U169: =IF(T169=0,0,IF(ralstandin=1,E169,S169)) -> 0 | V169: =IF(U169=0,0,VLOOKUP(U169,'intrek AX'!$A$1:$R$4572,18,FALSE)) -> 0 | W169: 0 | Z169: =IF(AA169="",IF(SUM(F169:I169)=0,taal!$A$8,IF(ral=4,taal!$A$551,taal!$A$550)),"") -> BRUT | AB169: ="" ->  | AC169: ="" -> 
C170: CLSB | D170: 6040 | E170: 23916 | K170: =VLOOKUP(L170,'intrek AX'!$A$1:$R$4572,18,FALSE) -> 8.34 | L170: =E170 -> 23916 | M170: =IF(VLOOKUP(L170,'setdet 2'!$B$2:$E$2101,4,FALSE)=0,"",VLOOKUP(L170,'setdet 2'!$B$2:$E$2101,4,FALSE)) ->  | O170: =IF(ISBLANK(N170)=TRUE,M170,N170) ->  | S170: 0 | T170: 0 | U170: =IF(T170=0,0,IF(ralstandin=1,E170,S170)) -> 0 | V170: =IF(U170=0,0,VLOOKUP(U170,'intrek AX'!$A$1:$R$4572,18,FALSE)) -> 0 | W170: 0 | Z170: =IF(AA170="",IF(SUM(F170:I170)=0,taal!$A$8,IF(ral=4,taal!$A$551,taal!$A$550)),"") -> BRUT | AB170: ="" ->  | AC170: ="" -> 
C171: CLSB | D171: 7040 | E171: 23917 | K171: =VLOOKUP(L171,'intrek AX'!$A$1:$R$4572,18,FALSE) -> 8.34 | L171: =E171 -> 23917 | M171: =IF(VLOOKUP(L171,'setdet 2'!$B$2:$E$2101,4,FALSE)=0,"",VLOOKUP(L171,'setdet 2'!$B$2:$E$2101,4,FALSE)) ->  | S171: 0 | T171: 0 | U171: =IF(T171=0,0,IF(ralstandin=1,E171,S171)) -> 0 | V171: =IF(U171=0,0,VLOOKUP(U171,'intrek AX'!$A$1:$R$4572,18,FALSE)) -> 0 | W171: 0 | Z171: =IF(AA171="",IF(SUM(F171:I171)=0,taal!$A$8,IF(ral=4,taal!$A$551,taal!$A$550)),"") -> BRUT | AB171: ="" ->  | AC171: ="" -> 
A172: TOP SCHROEFBARE CLIPS | B172: CLST | C172: CLST | D172: 2040 | E172: 23918 | F172: 23934 | G172: 23926 | I172: 23942 | J172: 23942 | K172: =VLOOKUP(L172,'intrek AX'!$A$1:$R$4572,18,FALSE) ->  | L172: =INDEX(E172:J172,ral) -> 23934 | M172: =IF(VLOOKUP(L172,'setdet 2'!$B$2:$E$2101,4,FALSE)=0,"",VLOOKUP(L172,'setdet 2'!$B$2:$E$2101,4,FALSE)) ->  | S172: 0 | T172: 0 | U172: =IF(T172=0,0,IF(ralstandout=1,H172,S172)) -> 0 | V172: =IF(U172=0,0,VLOOKUP(U172,'intrek AX'!$A$1:$R$4572,18,FALSE)) -> 0 | W172: 0 | Z172: =IF(AA172="",IF(SUM(F172:I172)=0,taal!$A$8,IF(ral=4,taal!$A$551,taal!$A$550)),"") ->  | AA172: =IF(SUM(F172:I172)=0,"",INDEX('input data'!$G$56:$G$61,ral)) -> RAL9010 | AB172: =IF(ral>4,'input data'!$E$10,"") ->  | AC172: =IF(ral>4,'input data'!$E$10,"") -> 
C173: CLST | D173: 2500 | E173: 23919 | F173: 23935 | G173: 23927 | I173: 23943 | J173: 23943 | K173: =VLOOKUP(L173,'intrek AX'!$A$1:$R$4572,18,FALSE) ->  | L173: 23935 | M173: =IF(VLOOKUP(L173,'setdet 2'!$B$2:$E$2101,4,FALSE)=0,"",VLOOKUP(L173,'setdet 2'!$B$2:$E$2101,4,FALSE)) ->  | S173: 0 | T173: 0 | U173: 0 | V173: =IF(U173=0,0,VLOOKUP(U173,'intrek AX'!$A$1:$R$4572,18,FALSE)) -> 0 | W173: 0 | Z173: =IF(AA173="",IF(SUM(F173:I173)=0,taal!$A$8,IF(ral=4,taal!$A$551,taal!$A$550)),"") ->  | AA173: =IF(SUM(F173:I173)=0,"",INDEX('input data'!$G$56:$G$61,ral)) -> RAL9010 | AB173: =IF(ral>4,'input data'!$E$10,"") ->  | AC173: =IF(ral>4,'input data'!$E$10,"") -> 
C174: CLST | D174: 3040 | E174: 23920 | F174: 23936 | G174: 23928 | I174: 23944 | J174: 23944 | K174: =VLOOKUP(L174,'intrek AX'!$A$1:$R$4572,18,FALSE) ->  | L174: 23936 | M174: =IF(VLOOKUP(L174,'setdet 2'!$B$2:$E$2101,4,FALSE)=0,"",VLOOKUP(L174,'setdet 2'!$B$2:$E$2101,4,FALSE)) ->  | S174: 0 | T174: 0 | U174: 0 | V174: =IF(U174=0,0,VLOOKUP(U174,'intrek AX'!$A$1:$R$4572,18,FALSE)) -> 0 | W174: 0 | Z174: =IF(AA174="",IF(SUM(F174:I174)=0,taal!$A$8,IF(ral=4,taal!$A$551,taal!$A$550)),"") ->  | AA174: =IF(SUM(F174:I174)=0,"",INDEX('input data'!$G$56:$G$61,ral)) -> RAL9010 | AB174: =IF(ral>4,'input data'!$E$10,"") ->  | AC174: =IF(ral>4,'input data'!$E$10,"") -> 
C175: CLST | D175: 3500 | E175: 23921 | F175: 23937 | G175: 23929 | I175: 23945 | J175: 23945 | K175: =VLOOKUP(L175,'intrek AX'!$A$1:$R$4572,18,FALSE) ->  | L175: 23937 | M175: =IF(VLOOKUP(L175,'setdet 2'!$B$2:$E$2101,4,FALSE)=0,"",VLOOKUP(L175,'setdet 2'!$B$2:$E$2101,4,FALSE)) ->  | S175: 0 | T175: 0 | U175: 0 | V175: =IF(U175=0,0,VLOOKUP(U175,'intrek AX'!$A$1:$R$4572,18,FALSE)) -> 0 | W175: 0 | Z175: =IF(AA175="",IF(SUM(F175:I175)=0,taal!$A$8,IF(ral=4,taal!$A$551,taal!$A$550)),"") ->  | AA175: =IF(SUM(F175:I175)=0,"",INDEX('input data'!$G$56:$G$61,ral)) -> RAL9010 | AB175: =IF(ral>4,'input data'!$E$10,"") ->  | AC175: =IF(ral>4,'input data'!$E$10,"") -> 
A176: =taal!A343 -> HAUT CLIPS A VISSER | B176: TOP SCHROEFBARE CLIPS | C176: CLST | D176: 4040 | E176: 23922 | F176: 23938 | G176: 31251 | H176: 24315 | I176: 23946 | J176: =IF('input data'!J56="RAL7016ST",31251,23946) -> 23946 | K176: =VLOOKUP(L176,'intrek AX'!$A$1:$R$4572,18,FALSE) -> 6.82 | L176: 23938 | M176: =IF(VLOOKUP(L176,'setdet 2'!$B$2:$E$2101,4,FALSE)=0,"",VLOOKUP(L176,'setdet 2'!$B$2:$E$2101,4,FALSE)) ->  | S176: 0 | T176: 0 | U176: =IF(T176=0,0,IF(ralstandout=1,F176,S176)) -> 0 | V176: =IF(U176=0,0,VLOOKUP(U176,'intrek AX'!$A$1:$R$4572,18,FALSE)) -> 0 | W176: 0 | Z176: =IF(AA176="",IF(SUM(F176:I176)=0,taal!$A$8,IF(ral=4,taal!$A$551,taal!$A$550)),"") ->  | AA176: =IF(SUM(F176:I176)=0,"",INDEX('input data'!$G$56:$G$61,ral)) -> RAL9010 | AB176: =IF(AC176="","",IF(AC176=1,calcul!$B$346,IF(AC176=2,calcul!$B$354,""))) -> RWB964 | AC176: 1
C177: CLST | D177: 5040 | E177: 23923 | F177: 23939 | G177: 31252 | H177: 24316 | I177: 23947 | J177: =IF('input data'!J56="RAL7016ST",31252,23947) -> 23947 | K177: =VLOOKUP(L177,'intrek AX'!$A$1:$R$4572,18,FALSE) -> 6.82 | L177: 23939 | M177: =IF(VLOOKUP(L177,'setdet 2'!$B$2:$E$2101,4,FALSE)=0,"",VLOOKUP(L177,'setdet 2'!$B$2:$E$2101,4,FALSE)) ->  | S177: 0 | T177: 0 | U177: 0 | V177: =IF(U177=0,0,VLOOKUP(U177,'intrek AX'!$A$1:$R$4572,18,FALSE)) -> 0 | W177: 0 | Z177: =IF(AA177="",IF(SUM(F177:I177)=0,taal!$A$8,IF(ral=4,taal!$A$551,taal!$A$550)),"") ->  | AA177: =IF(SUM(F177:I177)=0,"",INDEX('input data'!$G$56:$G$61,ral)) -> RAL9010 | AB177: =IF(AC177="","",IF(AC177=1,calcul!$B$346,IF(AC177=2,calcul!$B$354,""))) -> RWB964 | AC177: 1
C178: CLST | D178: 6040 | E178: 23924 | F178: 23940 | G178: 31253 | H178: 24317 | I178: 23948 | J178: =IF('input data'!J56="RAL7016ST",31253,23948) -> 23948 | K178: =VLOOKUP(L178,'intrek AX'!$A$1:$R$4572,18,FALSE) -> 6.82 | L178: 23940 | M178: =IF(VLOOKUP(L178,'setdet 2'!$B$2:$E$2101,4,FALSE)=0,"",VLOOKUP(L178,'setdet 2'!$B$2:$E$2101,4,FALSE)) ->  | S178: 0 | T178: 0 | U178: 0 | V178: =IF(U178=0,0,VLOOKUP(U178,'intrek AX'!$A$1:$R$4572,18,FALSE)) -> 0 | W178: 0 | Z178: =IF(AA178="",IF(SUM(F178:I178)=0,taal!$A$8,IF(ral=4,taal!$A$551,taal!$A$550)),"") ->  | AA178: =IF(SUM(F178:I178)=0,"",INDEX('input data'!$G$56:$G$61,ral)) -> RAL9010 | AB178: =IF(AC178="","",IF(AC178=1,calcul!$B$346,IF(AC178=2,calcul!$B$354,""))) -> RWB964 | AC178: 1
C179: CLST | D179: 7040 | E179: 23925 | F179: 23941 | G179: 31254 | H179: 24318 | I179: 23949 | J179: =IF('input data'!J56="RAL7016ST",31254,23949) -> 23949 | K179: =VLOOKUP(L179,'intrek AX'!$A$1:$R$4572,18,FALSE) -> 6.82 | L179: 23941 | M179: =IF(VLOOKUP(L179,'setdet 2'!$B$2:$E$2101,4,FALSE)=0,"",VLOOKUP(L179,'setdet 2'!$B$2:$E$2101,4,FALSE)) ->  | S179: 0 | T179: 0 | U179: 0 | V179: =IF(U179=0,0,VLOOKUP(U179,'intrek AX'!$A$1:$R$4572,18,FALSE)) -> 0 | W179: 0 | Z179: =IF(AA179="",IF(SUM(F179:I179)=0,taal!$A$8,IF(ral=4,taal!$A$551,taal!$A$550)),"") ->  | AA179: =IF(SUM(F179:I179)=0,"",INDEX('input data'!$G$56:$G$61,ral)) -> RAL9010 | AB179: =IF(AC179="","",IF(AC179=1,calcul!$B$346,IF(AC179=2,calcul!$B$354,""))) -> RWB964 | AC179: 1
A180: =taal!A344 -> HAUT CLIPS LATERAL A VISSER | B180: TOP SCHROEFBARE ZIJCLIPS | C180: CLSL | D180: 4040 | E180: 25012 | F180: 25024 | G180: 31286 | H180: 25016 | I180: 25028 | J180: =IF('input data'!J56="RAL7016ST",31286,25028) -> 25028 | K180: =VLOOKUP(L180,'intrek AX'!$A$1:$R$4572,18,FALSE) -> 21.66 | L180: 25024 | M180: =IF(VLOOKUP(L180,'setdet 2'!$B$2:$E$2101,4,FALSE)=0,"",VLOOKUP(L180,'setdet 2'!$B$2:$E$2101,4,FALSE)) ->  | S180: 0 | T180: 0 | U180: 0 | V180: =IF(U180=0,0,VLOOKUP(U180,'intrek AX'!$A$1:$R$4572,18,FALSE)) -> 0 | W180: 0 | Z180: =IF(AA180="",IF(SUM(F180:I180)=0,taal!$A$8,IF(ral=4,taal!$A$551,taal!$A$550)),"") ->  | AA180: =IF(SUM(F180:I180)=0,"",INDEX('input data'!$G$56:$G$61,ral)) -> RAL9010 | AB180: =IF(AC180="","",IF(AC180=1,calcul!$B$346,IF(AC180=2,calcul!$B$354,""))) -> RWB964 | AC180: 1
C181: CLSL | D181: 5040 | E181: 25013 | F181: 25025 | G181: 31287 | H181: 25017 | I181: 25029 | J181: =IF('input data'!J56="RAL7016ST",31287,25029) -> 25029 | K181: =VLOOKUP(L181,'intrek AX'!$A$1:$R$4572,18,FALSE) -> 21.66 | L181: 25025 | M181: =IF(VLOOKUP(L181,'setdet 2'!$B$2:$E$2101,4,FALSE)=0,"",VLOOKUP(L181,'setdet 2'!$B$2:$E$2101,4,FALSE)) ->  | S181: 0 | T181: 0 | U181: 0 | V181: =IF(U181=0,0,VLOOKUP(U181,'intrek AX'!$A$1:$R$4572,18,FALSE)) -> 0 | W181: 0 | Z181: =IF(AA181="",IF(SUM(F181:I181)=0,taal!$A$8,IF(ral=4,taal!$A$551,taal!$A$550)),"") ->  | AA181: =IF(SUM(F181:I181)=0,"",INDEX('input data'!$G$56:$G$61,ral)) -> RAL9010 | AB181: =IF(AC181="","",IF(AC181=1,calcul!$B$346,IF(AC181=2,calcul!$B$354,""))) -> RWB964 | AC181: 1
C182: CLSL | D182: 6040 | E182: 25014 | F182: 25026 | G182: 31288 | H182: 25018 | I182: 25030 | J182: =IF('input data'!J56="RAL7016ST",31288,25030) -> 25030 | K182: =VLOOKUP(L182,'intrek AX'!$A$1:$R$4572,18,FALSE) -> 21.66 | L182: 25026 | M182: =IF(VLOOKUP(L182,'setdet 2'!$B$2:$E$2101,4,FALSE)=0,"",VLOOKUP(L182,'setdet 2'!$B$2:$E$2101,4,FALSE)) ->  | S182: 0 | T182: 0 | U182: 0 | V182: =IF(U182=0,0,VLOOKUP(U182,'intrek AX'!$A$1:$R$4572,18,FALSE)) -> 0 | W182: 0 | Z182: =IF(AA182="",IF(SUM(F182:I182)=0,taal!$A$8,IF(ral=4,taal!$A$551,taal!$A$550)),"") ->  | AA182: =IF(SUM(F182:I182)=0,"",INDEX('input data'!$G$56:$G$61,ral)) -> RAL9010 | AB182: =IF(AC182="","",IF(AC182=1,calcul!$B$346,IF(AC182=2,calcul!$B$354,""))) -> RWB964 | AC182: 1
C183: CLSL | D183: 7040 | E183: 25015 | F183: 25027 | G183: 31289 | H183: 25019 | I183: 25031 | J183: =IF('input data'!J56="RAL7016ST",31289,25031) -> 25031 | K183: =VLOOKUP(L183,'intrek AX'!$A$1:$R$4572,18,FALSE) -> 21.66 | L183: 25027 | M183: =IF(VLOOKUP(L183,'setdet 2'!$B$2:$E$2101,4,FALSE)=0,"",VLOOKUP(L183,'setdet 2'!$B$2:$E$2101,4,FALSE)) ->  | S183: 0 | T183: 0 | U183: 0 | V183: =IF(U183=0,0,VLOOKUP(U183,'intrek AX'!$A$1:$R$4572,18,FALSE)) -> 0 | W183: 0 | Z183: =IF(AA183="",IF(SUM(F183:I183)=0,taal!$A$8,IF(ral=4,taal!$A$551,taal!$A$550)),"") ->  | AA183: =IF(SUM(F183:I183)=0,"",INDEX('input data'!$G$56:$G$61,ral)) -> RAL9010 | AB183: =IF(AC183="","",IF(AC183=1,calcul!$B$346,IF(AC183=2,calcul!$B$354,""))) -> RWB964 | AC183: 1
A184: =taal!A213 -> GVT CONNECTEUR VERRE TOP | B184: GVT GLASVERBINDER TOP | C184: GVT | D184: 2000 | E184: 61297 | F184: 61300 | G184: 61298 | H184: 61299 | I184: 61301 | J184: 61301 | K184: =VLOOKUP(L184,'intrek AX'!$A$1:$R$4572,18,FALSE) -> 8.95 | L184: 61300 | M184: =IF('setdet 2'!E185=0,"",'setdet 2'!E185) ->  | O184: =IF(ISBLANK(N184)=TRUE,M184,N184) ->  | S184: =IF(T184=0,0,L184) -> 0 | T184: =IF(ISNUMBER(O184)=FALSE,0,O184) -> 0 | U184: 0 | V184: =IF(U184=0,0,VLOOKUP(U184,'intrek AX'!$A$1:$R$4572,18,FALSE)) -> 0 | W184: 0 | Z184: =IF(AA184="",IF(SUM(F184:I184)=0,taal!$A$8,IF(ral=4,taal!$A$551,taal!$A$550)),"") ->  | AA184: =IF(SUM(F184:I184)=0,"",INDEX('input data'!$G$56:$G$61,ral)) -> RAL9010 | AB184: =IF(AC184="","",IF(AC184=1,calcul!$B$346,IF(AC184=2,calcul!$B$354,""))) -> RWB964 | AC184: 1
A185: =taal!A213 -> GVT CONNECTEUR VERRE TOP | B185: GVT GLASVERBINDER TOP | C185: GVT | D185: 2000 | E185: 61297 | F185: 61300 | G185: 61298 | H185: 61299 | I185: 61301 | J185: 61301 | K185: =VLOOKUP(L185,'intrek AX'!$A$1:$R$4572,18,FALSE) -> 8.95 | L185: =INDEX(E185:J185,ralin) -> 61300 | M185: =IF('setdet 2'!E186=0,"",'setdet 2'!E186) ->  | S185: 0 | T185: 0 | U185: =IF(T185=0,0,IF(ralstandout=1,F185,S185)) -> 0 | V185: =IF(U185=0,0,VLOOKUP(U185,'intrek AX'!$A$1:$R$4572,18,FALSE)) -> 0 | W185: 0 | Z185: =IF(AA185="",IF(SUM(F185:I185)=0,taal!$A$8,IF(ral=4,taal!$A$551,taal!$A$550)),"") ->  | AA185: =IF(SUM(F185:I185)=0,"",INDEX('input data'!$H$56:$H$61,ralin)) -> RAL9010 | AB185: =IF(AC185="","",IF(AC185=1,calcul!$B$346,IF(AC185=2,calcul!$B$354,""))) -> 0 | AC185: 2
A186: =taal!A214 -> GVB CONNECTEUR VERRE BOTTOM | B186: GVB GLASVERBINDER BOTTOM | C186: GVB | D186: 2000 | E186: 61293 | F186: 61296 | G186: 61294 | H186: 61295 | I186: 61302 | J186: 61302 | K186: =VLOOKUP(L186,'intrek AX'!$A$1:$R$4572,18,FALSE) -> 10.45 | L186: =INDEX(E186:J186,ralin) -> 61296 | M186: =IF(VLOOKUP(L186,'setdet 2'!$B$2:$E$2101,4,FALSE)=0,"",VLOOKUP(L186,'setdet 2'!$B$2:$E$2101,4,FALSE)) ->  | S186: 0 | T186: 0 | U186: =IF(T186=0,0,IF(ralstandin=1,F186,S186)) -> 0 | V186: =IF(U186=0,0,VLOOKUP(U186,'intrek AX'!$A$1:$R$4572,18,FALSE)) -> 0 | W186: 0 | Z186: =IF(AA186="",IF(SUM(F186:I186)=0,taal!$A$8,IF(ral=4,taal!$A$551,taal!$A$550)),"") ->  | AA186: =IF(SUM(F186:I186)=0,"",INDEX('input data'!$H$56:$H$61,ralin)) -> RAL9010 | AB186: =IF(AC186="","",IF(AC186=1,calcul!$B$346,IF(AC186=2,calcul!$B$354,""))) -> 0 | AC186: 2
A187: =taal!A175 -> GOUTTIERE 120 A | B187: GOOT 120 A | C187: G120A | D187: 3500 | E187: 13283 | F187: 13294 | G187: 54976 | H187: 13297 | I187: 21160 | J187: 21160 | K187: =VLOOKUP(L187,'intrek AX'!$A$1:$R$4572,18,FALSE) -> 34.21 | L187: =INDEX(E187:J187,ral) -> 13294 | M187: =IF(VLOOKUP(L187,'setdet 2'!$B$2:$E$2101,4,FALSE)=0,"",VLOOKUP(L187,'setdet 2'!$B$2:$E$2101,4,FALSE)) ->  | S187: 0 | T187: 0 | U187: =IF(T187=0,0,IF(ralstandout=1,F187,S187)) -> 0 | V187: =IF(U187=0,0,VLOOKUP(U187,'intrek AX'!$A$1:$R$4572,18,FALSE)) -> 0 | W187: 0 | Z187: =IF(AA187="BRUT",taal!$A$8,IF(ral=4,taal!$A$551,taal!$A$550)) -> BLANC | AA187: =IF(SUM(F187:I187)=0,"",INDEX('input data'!$G$56:$G$61,ral)) -> RAL9010 | AB187: =IF(AC187="","",IF(AC187=1,calcul!$B$346,IF(AC187=2,calcul!$B$354,""))) -> RWB964 | AC187: 1
C188: G120A | D188: 5000 | E188: 13285 | F188: 13295 | G188: 54977 | H188: 13298 | I188: 21161 | J188: 21161 | K188: =VLOOKUP(L188,'intrek AX'!$A$1:$R$4572,18,FALSE) -> 34.21 | L188: 13295 | M188: =IF(VLOOKUP(L188,'setdet 2'!$B$2:$E$2101,4,FALSE)=0,"",VLOOKUP(L188,'setdet 2'!$B$2:$E$2101,4,FALSE)) ->  | S188: 0 | T188: 0 | U188: 0 | V188: =IF(U188=0,0,VLOOKUP(U188,'intrek AX'!$A$1:$R$4572,18,FALSE)) -> 0 | W188: 0 | Z188: =IF(AA188="BRUT",taal!$A$8,IF(ral=4,taal!$A$551,taal!$A$550)) -> BLANC | AA188: =IF(SUM(F188:I188)=0,"",INDEX('input data'!$G$56:$G$61,ral)) -> RAL9010 | AB188: =IF(AC188="","",IF(AC188=1,calcul!$B$346,IF(AC188=2,calcul!$B$354,""))) -> RWB964 | AC188: 1
C189: G120A | D189: 7000 | E189: 13291 | F189: 13296 | G189: 54978 | H189: 13299 | I189: 21162 | J189: 21162 | K189: =VLOOKUP(L189,'intrek AX'!$A$1:$R$4572,18,FALSE) -> 34.21 | L189: 13296 | M189: =IF(VLOOKUP(L189,'setdet 2'!$B$2:$E$2101,4,FALSE)=0,"",VLOOKUP(L189,'setdet 2'!$B$2:$E$2101,4,FALSE)) ->  | S189: 0 | T189: 0 | U189: 0 | V189: =IF(U189=0,0,VLOOKUP(U189,'intrek AX'!$A$1:$R$4572,18,FALSE)) -> 0 | W189: 0 | Z189: =IF(AA189="BRUT",taal!$A$8,IF(ral=4,taal!$A$551,taal!$A$550)) -> BLANC | AA189: =IF(SUM(F189:I189)=0,"",INDEX('input data'!$G$56:$G$61,ral)) -> RAL9010 | AB189: =IF(AC189="","",IF(AC189=1,calcul!$B$346,IF(AC189=2,calcul!$B$354,""))) -> RWB964 | AC189: 1
A190: =taal!A176 -> PIECE DE REHAUSSE GOUTTIERE | B190: GOOT OPZETSTUK | C190: GR | D190: 3540 | E190: 17820 | F190: 17828 | G190: 31343 | H190: 17825 | I190: 21163 | J190: =IF('input data'!J56="RAL7016ST",31343,21163) -> 21163 | K190: =VLOOKUP(L190,'intrek AX'!$A$1:$R$4572,18,FALSE) -> 24.42 | L190: 17828 | M190: =IF(VLOOKUP(L190,'setdet 2'!$B$2:$E$2101,4,FALSE)=0,"",VLOOKUP(L190,'setdet 2'!$B$2:$E$2101,4,FALSE)) ->  | S190: 0 | T190: 0 | U190: 0 | V190: =IF(U190=0,0,VLOOKUP(U190,'intrek AX'!$A$1:$R$4572,18,FALSE)) -> 0 | W190: 0 | Z190: =IF(AA190="",IF(SUM(F190:I190)=0,taal!$A$8,IF(ral=4,taal!$A$551,taal!$A$550)),"") ->  | AA190: =IF(SUM(F190:I190)=0,"",INDEX('input data'!$G$56:$G$61,ral)) -> RAL9010 | AB190: =IF(AC190="","",IF(AC190=1,calcul!$B$346,IF(AC190=2,calcul!$B$354,""))) -> RWB964 | AC190: 1
C191: GR | D191: 5040 | E191: 17819 | F191: 17830 | G191: 31344 | H191: 17826 | I191: 21164 | J191: =IF('input data'!J56="RAL7016ST",31344,21164) -> 21164 | K191: =VLOOKUP(L191,'intrek AX'!$A$1:$R$4572,18,FALSE) -> 24.42 | L191: 17830 | M191: =IF(VLOOKUP(L191,'setdet 2'!$B$2:$E$2101,4,FALSE)=0,"",VLOOKUP(L191,'setdet 2'!$B$2:$E$2101,4,FALSE)) ->  | S191: 0 | T191: 0 | U191: 0 | V191: =IF(U191=0,0,VLOOKUP(U191,'intrek AX'!$A$1:$R$4572,18,FALSE)) -> 0 | W191: 0 | Z191: =IF(AA191="",IF(SUM(F191:I191)=0,taal!$A$8,IF(ral=4,taal!$A$551,taal!$A$550)),"") ->  | AA191: =IF(SUM(F191:I191)=0,"",INDEX('input data'!$G$56:$G$61,ral)) -> RAL9010 | AB191: =IF(AC191="","",IF(AC191=1,calcul!$B$346,IF(AC191=2,calcul!$B$354,""))) -> RWB964 | AC191: 1
C192: GR | D192: 7040 | E192: 17821 | F192: 17831 | G192: 31345 | H192: 17827 | I192: 21165 | J192: =IF('input data'!J56="RAL7016ST",31345,21165) -> 21165 | K192: =VLOOKUP(L192,'intrek AX'!$A$1:$R$4572,18,FALSE) -> 24.42 | L192: 17831 | M192: =IF(VLOOKUP(L192,'setdet 2'!$B$2:$E$2101,4,FALSE)=0,"",VLOOKUP(L192,'setdet 2'!$B$2:$E$2101,4,FALSE)) ->  | O192: =IF(ISBLANK(N192)=TRUE,M192,N192) ->  | S192: =IF(T192=0,0,L192) -> 0 | T192: =IF(ISNUMBER(O192)=FALSE,0,O192) -> 0 | U192: 0 | V192: =IF(U192=0,0,VLOOKUP(U192,'intrek AX'!$A$1:$R$4572,18,FALSE)) -> 0 | W192: 0 | Z192: =IF(AA192="",IF(SUM(F192:I192)=0,taal!$A$8,IF(ral=4,taal!$A$551,taal!$A$550)),"") ->  | AA192: =IF(SUM(F192:I192)=0,"",INDEX('input data'!$G$56:$G$61,ral)) -> RAL9010 | AB192: =IF(AC192="","",IF(AC192=1,calcul!$B$346,IF(AC192=2,calcul!$B$354,""))) -> RWB964 | AC192: 1
A193: =taal!A174 -> GOUTTIERE | B193: GOOT | C193: G | D193: 3540 | E193: 21385 | F193: 21391 | G193: 31214 | H193: 24320 | I193: 21394 | J193: =IF('input data'!J56="RAL7016ST",31214,21394) -> 21394 | K193: =VLOOKUP(L193,'intrek AX'!$A$1:$R$4572,18,FALSE) -> 57.25 | L193: 21391 | M193: =IF(VLOOKUP(L193,'setdet 2'!$B$2:$E$2101,4,FALSE)=0,"",VLOOKUP(L193,'setdet 2'!$B$2:$E$2101,4,FALSE)) ->  | S193: 0 | T193: 0 | U193: 0 | V193: =IF(U193=0,0,VLOOKUP(U193,'intrek AX'!$A$1:$R$4572,18,FALSE)) -> 0 | W193: 0 | Z193: =IF(AA193="",IF(SUM(F193:I193)=0,taal!$A$8,IF(ral=4,taal!$A$551,taal!$A$550)),"") ->  | AA193: =IF(SUM(F193:I193)=0,"",INDEX('input data'!$G$56:$G$61,ral)) -> RAL9010 | AB193: =IF(AC193="","",IF(AC193=1,calcul!$B$346,IF(AC193=2,calcul!$B$354,""))) -> RWB964 | AC193: 1
C194: G | D194: 4250 | E194: 23388 | F194: 23391 | G194: 31215 | H194: 25270 | I194: 23390 | J194: =IF('input data'!J56="RAL7016ST",31215,23390) -> 23390 | K194: =VLOOKUP(L194,'intrek AX'!$A$1:$R$4572,18,FALSE) -> 57.25 | L194: 23391 | M194: =IF(VLOOKUP(L194,'setdet 2'!$B$2:$E$2101,4,FALSE)=0,"",VLOOKUP(L194,'setdet 2'!$B$2:$E$2101,4,FALSE)) ->  | S194: 0 | T194: 0 | U194: 0 | V194: =IF(U194=0,0,VLOOKUP(U194,'intrek AX'!$A$1:$R$4572,18,FALSE)) -> 0 | W194: 0 | Z194: =IF(AA194="",IF(SUM(F194:I194)=0,taal!$A$8,IF(ral=4,taal!$A$551,taal!$A$550)),"") ->  | AA194: =IF(SUM(F194:I194)=0,"",INDEX('input data'!$G$56:$G$61,ral)) -> RAL9010 | AB194: =IF(AC194="","",IF(AC194=1,calcul!$B$346,IF(AC194=2,calcul!$B$354,""))) -> RWB964 | AC194: 1
C195: G | D195: 5040 | E195: 21386 | F195: 21392 | G195: 31216 | H195: 24321 | I195: 21395 | J195: =IF('input data'!J56="RAL7016ST",31216,21395) -> 21395 | K195: =VLOOKUP(L195,'intrek AX'!$A$1:$R$4572,18,FALSE) -> 57.25 | L195: 21392 | M195: =IF(VLOOKUP(L195,'setdet 2'!$B$2:$E$2101,4,FALSE)=0,"",VLOOKUP(L195,'setdet 2'!$B$2:$E$2101,4,FALSE)) ->  | S195: 0 | T195: 0 | U195: 0 | V195: =IF(U195=0,0,VLOOKUP(U195,'intrek AX'!$A$1:$R$4572,18,FALSE)) -> 0 | W195: 0 | Z195: =IF(AA195="",IF(SUM(F195:I195)=0,taal!$A$8,IF(ral=4,taal!$A$551,taal!$A$550)),"") ->  | AA195: =IF(SUM(F195:I195)=0,"",INDEX('input data'!$G$56:$G$61,ral)) -> RAL9010 | AB195: =IF(AC195="","",IF(AC195=1,calcul!$B$346,IF(AC195=2,calcul!$B$354,""))) -> RWB964 | AC195: 1
C196: G | D196: 7040 | E196: 21387 | F196: 21393 | G196: 31217 | H196: 24322 | I196: 21396 | J196: =IF('input data'!J56="RAL7016ST",31217,21396) -> 21396 | K196: =VLOOKUP(L196,'intrek AX'!$A$1:$R$4572,18,FALSE) -> 57.25 | L196: =INDEX(E196:J196,ral) -> 21393 | M196: =IF(VLOOKUP(L196,'setdet 2'!$B$2:$E$2101,4,FALSE)=0,"",VLOOKUP(L196,'setdet 2'!$B$2:$E$2101,4,FALSE)) ->  | S196: 0 | T196: 0 | U196: 0 | V196: =IF(U196=0,0,VLOOKUP(U196,'intrek AX'!$A$1:$R$4572,18,FALSE)) -> 0 | W196: =T196*D196/1000*V196 -> 0 | Z196: =IF(AA196="",IF(SUM(F196:I196)=0,taal!$A$8,IF(ral=4,taal!$A$551,taal!$A$550)),"") ->  | AA196: =IF(SUM(F196:I196)=0,"",INDEX('input data'!$G$56:$G$61,ral)) -> RAL9010 | AB196: =IF(AC196="","",IF(AC196=1,calcul!$B$346,IF(AC196=2,calcul!$B$354,""))) -> RWB964 | AC196: 1
A197: =taal!A391 -> GI CONNECTEUR GOUTTIERE G | B197: GI | C197: GI 0 | D197: 300 | E197: 27732 | K197: =VLOOKUP(L197,'intrek AX'!$A$1:$R$4572,18,FALSE) -> 27.81 | L197: =E197 -> 27732 | M197: =IF(VLOOKUP(L197,'setdet 2'!$B$2:$E$2101,4,FALSE)=0,"",VLOOKUP(L197,'setdet 2'!$B$2:$E$2101,4,FALSE)) ->  | S197: 0 | T197: 0 | U197: =S197 -> 0 | V197: =IF(U197=0,0,VLOOKUP(U197,'intrek AX'!$A$1:$R$4572,18,FALSE)) -> 0 | W197: =V197*T197 -> 0 | Z197: =IF(AA197="",IF(SUM(F197:I197)=0,taal!$A$8,IF(ral=4,taal!$A$551,taal!$A$550)),"") -> BRUT | AB197: ="" ->  | AC197: ="" -> 
A198: =taal!A392&" 90°" -> GI ANGLE EXTÉRIEUR POUR G 90° | B198: GI | C198: GI 90 | D198: 300 | E198: 27559 | K198: =VLOOKUP(L198,'intrek AX'!$A$1:$R$4572,18,FALSE) -> 81.49 | L198: 27559 | M198: ="" ->  | O198: =IF(ISBLANK(N198)=TRUE,M198,N198) ->  | S198: 0 | T198: 0 | U198: 0 | V198: =IF(U198=0,0,VLOOKUP(U198,'intrek AX'!$A$1:$R$4572,18,FALSE)) -> 0 | W198: =V198*T198 -> 0 | Z198: =IF(AA198="",IF(SUM(F198:I198)=0,taal!$A$8,IF(ral=4,taal!$A$551,taal!$A$550)),"") -> BRUT | AB198: ="" ->  | AC198: ="" -> 
A199: =taal!A392&" 120°" -> GI ANGLE EXTÉRIEUR POUR G 120° | B199: GI | C199: GI 120 | D199: 300 | E199: 27560 | K199: =VLOOKUP(L199,'intrek AX'!$A$1:$R$4572,18,FALSE) -> 81.49 | L199: 27560 | M199: ="" ->  | O199: =IF(ISBLANK(N199)=TRUE,M199,N199) ->  | S199: 0 | T199: 0 | U199: 0 | V199: =IF(U199=0,0,VLOOKUP(U199,'intrek AX'!$A$1:$R$4572,18,FALSE)) -> 0 | W199: =V199*T199 -> 0 | Z199: =IF(AA199="",IF(SUM(F199:I199)=0,taal!$A$8,IF(ral=4,taal!$A$551,taal!$A$550)),"") -> BRUT | AB199: ="" ->  | AC199: ="" -> 
A200: =taal!A392&" 135°" -> GI ANGLE EXTÉRIEUR POUR G 135° | B200: GI | C200: GI 135 | D200: 300 | E200: 27561 | K200: =VLOOKUP(L200,'intrek AX'!$A$1:$R$4572,18,FALSE) -> 81.49 | L200: 27561 | M200: ="" ->  | O200: =IF(ISBLANK(N200)=TRUE,M200,N200) ->  | S200: 0 | T200: 0 | U200: 0 | V200: =IF(U200=0,0,VLOOKUP(U200,'intrek AX'!$A$1:$R$4572,18,FALSE)) -> 0 | W200: =V200*T200 -> 0 | Z200: =IF(AA200="",IF(SUM(F200:I200)=0,taal!$A$8,IF(ral=4,taal!$A$551,taal!$A$550)),"") -> BRUT | AB200: ="" ->  | AC200: ="" -> 
... 142 more rows

Sheet offer
A2: ='input data'!D1&" / "&'input data'!D3 -> / | D2: ='input data'!B32 ->  | P2: =INDEX(P3:P6,taal) -> Bonjour, | Q2: =INDEX(Q3:Q6,taal) -> En annexe vous trouvez notre offre de prix pour une toiture Pergolux | V2: ='input data'!X2 ->  | X2: =INDEX(X3:X6,taal) -> meilleures salutations
A3: =taal!A163 -> LISTE DES ARTICLES | B3: =taal!A149 -> VALIDITÉ DE L'OFFRE : 1 MOIS | E3: =taal!A167 -> NUMERO D'OFFRE : | N3: ='input data'!D5 -> 0 | P3: Geachte, | Q3: In bijlage sturen wij onze offerte voor een Pergolux dak. | X3: Met vriendelijke groeten
A4: =OO!A4 -> OUI / / | B4: =NOW() -> 2024-04-11T17:37:44.010 | E4: =taal!A148&" :" -> DELAI DE LIVRAISON : | F4: ='input data'!D4 -> 00:00:00 | P4: Bonjour, | Q4: En annexe vous trouvez notre offre de prix pour une toiture Pergolux | X4: meilleures salutations
A5: =OO!A5 -> COULEUR THERM | B5: =articles!C2 -> CODE | C5: =articles!D2 -> LONGUEUR | D5: =taal!A51 -> CHOIX DE COULEURS | E5: ART | F5: =articles!O2 -> COMMANDE | P5: Sehr geehrte Damen und Herren, | Q5: Anbei finden Sie unser Angebot fur eine Pergolux Überdachung. | X5: mit freundlichen Grußen
A6: =articles!A3 -> PROFILE MURAL BOTTOM PVC | B6: =IF(articles!C3=0,"",articles!C3) -> MP | C6: =IF(articles!D3=0,"",articles!D3) -> 3500 | D6: =IF(articles!AA3<>"",articles!AA3,articles!Z3) -> BLANC | E6: =IF(articles!L3=0,"",articles!L3) -> 17756 | F6: =articles!O3 ->  | P6: Dear, | Q6: Please find our offer of a Pergolux roof | X6: best regards
A7: =A6 -> PROFILE MURAL BOTTOM PVC | B7: =IF(articles!C4=0,"",articles!C4) -> MP | C7: =IF(articles!D4=0,"",articles!D4) -> 5000 | D7: =IF(articles!AA4<>"",articles!AA4,articles!Z4) -> BLANC | E7: =IF(articles!L4=0,"",articles!L4) -> 17757 | F7: =articles!O4 -> 
A8: =A6 -> PROFILE MURAL BOTTOM PVC | B8: =IF(articles!C5=0,"",articles!C5) -> MP | C8: =IF(articles!D5=0,"",articles!D5) -> 7000 | D8: =IF(articles!AA5<>"",articles!AA5,articles!Z5) -> BLANC | E8: =IF(articles!L5=0,"",articles!L5) -> 17758 | F8: =articles!O5 -> 
A9: =articles!A6 -> PROFILE MURAL ALU | B9: =IF(articles!C6=0,"",articles!C6) -> M16 | C9: =IF(articles!D6=0,"",articles!D6) -> 3500 | D9: =IF(articles!AA6<>"",articles!AA6,articles!Z6) -> RAL9010 | E9: =IF(articles!L6=0,"",articles!L6) -> 15468 | F9: =articles!O6 -> 
A10: =A9 -> PROFILE MURAL ALU | B10: =IF(articles!C7=0,"",articles!C7) -> M16 | C10: =IF(articles!D7=0,"",articles!D7) -> 5000 | D10: =IF(articles!AA7<>"",articles!AA7,articles!Z7) -> RAL9010 | E10: =IF(articles!L7=0,"",articles!L7) -> 15469 | F10: =articles!O7 -> 
A11: =A9 -> PROFILE MURAL ALU | B11: =IF(articles!C8=0,"",articles!C8) -> M16 | C11: =IF(articles!D8=0,"",articles!D8) -> 7000 | D11: =IF(articles!AA8<>"",articles!AA8,articles!Z8) -> RAL9010 | E11: =IF(articles!L8=0,"",articles!L8) -> 15470 | F11: =articles!O8 -> 
A12: =articles!A9 -> MUR TOP ALU | B12: =IF(articles!C9=0,"",articles!C9) -> M32T | C12: =IF(articles!D9=0,"",articles!D9) -> 3500 | D12: =IF(articles!AA9<>"",articles!AA9,articles!Z9) -> RAL9010 | E12: =IF(articles!L9=0,"",articles!L9) -> 13501 | F12: =articles!O9 -> 
A13: =A12 -> MUR TOP ALU | B13: =IF(articles!C10=0,"",articles!C10) -> M32T | C13: =IF(articles!D10=0,"",articles!D10) -> 5000 | D13: =IF(articles!AA10<>"",articles!AA10,articles!Z10) -> RAL9010 | E13: =IF(articles!L10=0,"",articles!L10) -> 13502 | F13: =articles!O10 -> 
A14: =A12 -> MUR TOP ALU | B14: =IF(articles!C11=0,"",articles!C11) -> M32T | C14: =IF(articles!D11=0,"",articles!D11) -> 7000 | D14: =IF(articles!AA11<>"",articles!AA11,articles!Z11) -> RAL9010 | E14: =IF(articles!L11=0,"",articles!L11) -> 13503 | F14: =articles!O11 -> 
A15: =articles!A12 -> PROFILE MURAL BOTTOM ALU | B15: =IF(articles!C12=0,"",articles!C12) -> M32B | C15: =IF(articles!D12=0,"",articles!D12) -> 3500 | D15: =IF(articles!AA12<>"",articles!AA12,articles!Z12) -> BRUT | E15: =IF(articles!L12=0,"",articles!L12) -> 13277 | F15: =articles!O12 -> 
A16: =A14 -> MUR TOP ALU | B16: =IF(articles!C13=0,"",articles!C13) -> M32B | C16: =IF(articles!D13=0,"",articles!D13) -> 5000 | D16: =IF(articles!AA13<>"",articles!AA13,articles!Z13) -> BRUT | E16: =IF(articles!L13=0,"",articles!L13) -> 13280 | F16: =articles!O13 -> 
A17: =A14 -> MUR TOP ALU | B17: =IF(articles!C14=0,"",articles!C14) -> M32B | C17: =IF(articles!D14=0,"",articles!D14) -> 7000 | D17: =IF(articles!AA14<>"",articles!AA14,articles!Z14) -> BRUT | E17: =IF(articles!L14=0,"",articles!L14) -> 13281 | F17: =articles!O14 -> 
A18: =articles!A15 -> PORTEUR PVC | B18: =IF(articles!C15=0,"",articles!C15) -> T16P | C18: =IF(articles!D15=0,"",articles!D15) -> 2000 | D18: =IF(articles!AA15<>"",articles!AA15,articles!Z15) -> BLANC | E18: =IF(articles!L15=0,"",articles!L15) -> 13198 | F18: =articles!O15 -> 
A19: =A18 -> PORTEUR PVC | B19: =IF(articles!C16=0,"",articles!C16) -> T16P | C19: =IF(articles!D16=0,"",articles!D16) -> 2500 | D19: =IF(articles!AA16<>"",articles!AA16,articles!Z16) -> BLANC | E19: =IF(articles!L16=0,"",articles!L16) -> 13202 | F19: =articles!O16 -> 
A20: =A18 -> PORTEUR PVC | B20: =IF(articles!C17=0,"",articles!C17) -> T16P | C20: =IF(articles!D17=0,"",articles!D17) -> 3000 | D20: =IF(articles!AA17<>"",articles!AA17,articles!Z17) -> BLANC | E20: =IF(articles!L17=0,"",articles!L17) -> 13203 | F20: =articles!O17 -> 
A21: =A18 -> PORTEUR PVC | B21: =IF(articles!C18=0,"",articles!C18) -> T16P | C21: =IF(articles!D18=0,"",articles!D18) -> 3500 | D21: =IF(articles!AA18<>"",articles!AA18,articles!Z18) -> BLANC | E21: =IF(articles!L18=0,"",articles!L18) -> 13204 | F21: =articles!O18 -> 
A22: =A20 -> PORTEUR PVC | B22: =IF(articles!C19=0,"",articles!C19) -> T16P | C22: =IF(articles!D19=0,"",articles!D19) -> 4000 | D22: =IF(articles!AA19<>"",articles!AA19,articles!Z19) -> BLANC | E22: =IF(articles!L19=0,"",articles!L19) -> 13205 | F22: =articles!O19 -> 
A23: =A20 -> PORTEUR PVC | B23: =IF(articles!C20=0,"",articles!C20) -> T16P | C23: =IF(articles!D20=0,"",articles!D20) -> 5000 | D23: =IF(articles!AA20<>"",articles!AA20,articles!Z20) -> BLANC | E23: =IF(articles!L20=0,"",articles!L20) -> 15588 | F23: =articles!O20 -> 
A24: =A22 -> PORTEUR PVC | B24: =IF(articles!C21=0,"",articles!C21) -> T16P | C24: =IF(articles!D21=0,"",articles!D21) -> 6000 | D24: =IF(articles!AA21<>"",articles!AA21,articles!Z21) -> BLANC | E24: =IF(articles!L21=0,"",articles!L21) -> 13206 | F24: =articles!O21 -> 
A25: =A22 -> PORTEUR PVC | B25: =IF(articles!C22=0,"",articles!C22) -> T16P | C25: =IF(articles!D22=0,"",articles!D22) -> 7000 | D25: =IF(articles!AA22<>"",articles!AA22,articles!Z22) -> BLANC | E25: =IF(articles!L22=0,"",articles!L22) -> 13207 | F25: =articles!O22 -> 
A26: =articles!A23 -> PORTEUR ALU | B26: =IF(articles!C23=0,"",articles!C23) -> T16.1 | C26: =IF(articles!D23=0,"",articles!D23) -> 2000 | D26: =IF(articles!AA23<>"",articles!AA23,articles!Z23) -> BRUT | E26: =IF(articles!L23=0,"",articles!L23) -> 13169 | F26: =articles!O23 -> 
A27: =A26 -> PORTEUR ALU | B27: =IF(articles!C24=0,"",articles!C24) -> T16.1 | C27: =IF(articles!D24=0,"",articles!D24) -> 2500 | D27: =IF(articles!AA24<>"",articles!AA24,articles!Z24) -> BRUT | E27: =IF(articles!L24=0,"",articles!L24) -> 13170 | F27: =articles!O24 -> 
A28: =A26 -> PORTEUR ALU | B28: =IF(articles!C25=0,"",articles!C25) -> T16.1 | C28: =IF(articles!D25=0,"",articles!D25) -> 3000 | D28: =IF(articles!AA25<>"",articles!AA25,articles!Z25) -> BRUT | E28: =IF(articles!L25=0,"",articles!L25) -> 13171 | F28: =articles!O25 -> 
A29: =A26 -> PORTEUR ALU | B29: =IF(articles!C26=0,"",articles!C26) -> T16.1 | C29: =IF(articles!D26=0,"",articles!D26) -> 3500 | D29: =IF(articles!AA26<>"",articles!AA26,articles!Z26) -> BRUT | E29: =IF(articles!L26=0,"",articles!L26) -> 13172 | F29: =articles!O26 -> 
A30: =A26 -> PORTEUR ALU | B30: =IF(articles!C27=0,"",articles!C27) -> T16.1 | C30: =IF(articles!D27=0,"",articles!D27) -> 4000 | D30: =IF(articles!AA27<>"",articles!AA27,articles!Z27) -> BRUT | E30: =IF(articles!L27=0,"",articles!L27) -> 13173 | F30: =articles!O27 -> 
A31: =A28 -> PORTEUR ALU | B31: =IF(articles!C28=0,"",articles!C28) -> T16.1 | C31: =IF(articles!D28=0,"",articles!D28) -> 5000 | D31: =IF(articles!AA28<>"",articles!AA28,articles!Z28) -> BRUT | E31: =IF(articles!L28=0,"",articles!L28) -> 14537 | F31: =articles!O28 -> 
A32: =A28 -> PORTEUR ALU | B32: =IF(articles!C29=0,"",articles!C29) -> T16.1 | C32: =IF(articles!D29=0,"",articles!D29) -> 6000 | D32: =IF(articles!AA29<>"",articles!AA29,articles!Z29) -> BRUT | E32: =IF(articles!L29=0,"",articles!L29) -> 13174 | F32: =articles!O29 -> 
A33: =A30 -> PORTEUR ALU | B33: =IF(articles!C30=0,"",articles!C30) -> T16.1 | C33: =IF(articles!D30=0,"",articles!D30) -> 7000 | D33: =IF(articles!AA30<>"",articles!AA30,articles!Z30) -> BRUT | E33: =IF(articles!L30=0,"",articles!L30) -> 13175 | F33: =articles!O30 -> 
A34: =articles!A31 -> PORTEUR ALU | B34: =IF(articles!C31=0,"",articles!C31) -> T16.2 | C34: =IF(articles!D31=0,"",articles!D31) -> 2000 | D34: =IF(articles!AA31<>"",articles!AA31,articles!Z31) -> RAL9010 | E34: =IF(articles!L31=0,"",articles!L31) -> 13184 | F34: =articles!O31 -> 
A35: =A34 -> PORTEUR ALU | B35: =IF(articles!C32=0,"",articles!C32) -> T16.2 | C35: =IF(articles!D32=0,"",articles!D32) -> 2500 | D35: =IF(articles!AA32<>"",articles!AA32,articles!Z32) -> RAL9010 | E35: =IF(articles!L32=0,"",articles!L32) -> 13185 | F35: =articles!O32 -> 
A36: =A34 -> PORTEUR ALU | B36: =IF(articles!C33=0,"",articles!C33) -> T16.2 | C36: =IF(articles!D33=0,"",articles!D33) -> 3000 | D36: =IF(articles!AA33<>"",articles!AA33,articles!Z33) -> RAL9010 | E36: =IF(articles!L33=0,"",articles!L33) -> 13186 | F36: =articles!O33 -> 
A37: =A36 -> PORTEUR ALU | B37: =IF(articles!C34=0,"",articles!C34) -> T16.2 | C37: =IF(articles!D34=0,"",articles!D34) -> 3500 | D37: =IF(articles!AA34<>"",articles!AA34,articles!Z34) -> RAL9010 | E37: =IF(articles!L34=0,"",articles!L34) -> 13187 | F37: =articles!O34 -> 
A38: =A36 -> PORTEUR ALU | B38: =IF(articles!C35=0,"",articles!C35) -> T16.2 | C38: =IF(articles!D35=0,"",articles!D35) -> 4000 | D38: =IF(articles!AA35<>"",articles!AA35,articles!Z35) -> RAL9010 | E38: =IF(articles!L35=0,"",articles!L35) -> 13188 | F38: =articles!O35 -> 
A39: =A38 -> PORTEUR ALU | B39: =IF(articles!C36=0,"",articles!C36) -> T16.2 | C39: =IF(articles!D36=0,"",articles!D36) -> 5000 | D39: =IF(articles!AA36<>"",articles!AA36,articles!Z36) -> RAL9010 | E39: =IF(articles!L36=0,"",articles!L36) -> 14606 | F39: =articles!O36 -> 
A40: =A38 -> PORTEUR ALU | B40: =IF(articles!C37=0,"",articles!C37) -> T16.2 | C40: =IF(articles!D37=0,"",articles!D37) -> 6000 | D40: =IF(articles!AA37<>"",articles!AA37,articles!Z37) -> RAL9010 | E40: =IF(articles!L37=0,"",articles!L37) -> 13189 | F40: =articles!O37 -> 
A41: =A40 -> PORTEUR ALU | B41: =IF(articles!C38=0,"",articles!C38) -> T16.2 | C41: =IF(articles!D38=0,"",articles!D38) -> 7000 | D41: =IF(articles!AA38<>"",articles!AA38,articles!Z38) -> RAL9010 | E41: =IF(articles!L38=0,"",articles!L38) -> 13190 | F41: =articles!O38 -> 
A42: =articles!A39 -> PORTEUR ALU | B42: =IF(articles!C39=0,"",articles!C39) -> T32.1 | C42: =IF(articles!D39=0,"",articles!D39) -> 2000 | D42: =IF(articles!AA39<>"",articles!AA39,articles!Z39) -> RAL9010 | E42: =IF(articles!L39=0,"",articles!L39) -> 14391 | F42: =articles!O39 -> 
A43: =A42 -> PORTEUR ALU | B43: =IF(articles!C40=0,"",articles!C40) -> T32.1 | C43: =IF(articles!D40=0,"",articles!D40) -> 2500 | D43: =IF(articles!AA40<>"",articles!AA40,articles!Z40) -> RAL9010 | E43: =IF(articles!L40=0,"",articles!L40) -> 14392 | F43: =articles!O40 -> 
A44: =A42 -> PORTEUR ALU | B44: =IF(articles!C41=0,"",articles!C41) -> T32.1 | C44: =IF(articles!D41=0,"",articles!D41) -> 3000 | D44: =IF(articles!AA41<>"",articles!AA41,articles!Z41) -> RAL9010 | E44: =IF(articles!L41=0,"",articles!L41) -> 14393 | F44: =articles!O41 -> 
A45: =A42 -> PORTEUR ALU | B45: =IF(articles!C42=0,"",articles!C42) -> T32.1 | C45: =IF(articles!D42=0,"",articles!D42) -> 3500 | D45: =IF(articles!AA42<>"",articles!AA42,articles!Z42) -> RAL9010 | E45: =IF(articles!L42=0,"",articles!L42) -> 14394 | F45: =articles!O42 -> 
A46: =A44 -> PORTEUR ALU | B46: =IF(articles!C43=0,"",articles!C43) -> T32.1 | C46: =IF(articles!D43=0,"",articles!D43) -> 4000 | D46: =IF(articles!AA43<>"",articles!AA43,articles!Z43) -> RAL9010 | E46: =IF(articles!L43=0,"",articles!L43) -> 14395 | F46: =articles!O43 -> 
A47: =A44 -> PORTEUR ALU | B47: =IF(articles!C44=0,"",articles!C44) -> T32.1 | C47: =IF(articles!D44=0,"",articles!D44) -> 5000 | D47: =IF(articles!AA44<>"",articles!AA44,articles!Z44) -> RAL9010 | E47: =IF(articles!L44=0,"",articles!L44) -> 14396 | F47: =articles!O44 -> 
A48: =A46 -> PORTEUR ALU | B48: =IF(articles!C45=0,"",articles!C45) -> T32.1 | C48: =IF(articles!D45=0,"",articles!D45) -> 6000 | D48: =IF(articles!AA45<>"",articles!AA45,articles!Z45) -> RAL9010 | E48: =IF(articles!L45=0,"",articles!L45) -> 14397 | F48: =articles!O45 -> 
A49: =A46 -> PORTEUR ALU | B49: =IF(articles!C46=0,"",articles!C46) -> T32.1 | C49: =IF(articles!D46=0,"",articles!D46) -> 7000 | D49: =IF(articles!AA46<>"",articles!AA46,articles!Z46) -> RAL9010 | E49: =IF(articles!L46=0,"",articles!L46) -> 14398 | F49: =articles!O46 -> 
A50: =articles!A47 -> PORTEUR PLAQUE THERMIQUE BLANC | B50: =IF(articles!C47=0,"",articles!C47) -> TP | C50: =IF(articles!D47=0,"",articles!D47) -> 2700 | D50: =IF(articles!AA47<>"",articles!AA47,articles!Z47) -> BLANC | E50: =IF(articles!L47=0,"",articles!L47) -> 21277 | F50: =articles!O47 -> 
A51: =A50 -> PORTEUR PLAQUE THERMIQUE BLANC | B51: =IF(articles!C48=0,"",articles!C48) -> TP | C51: =IF(articles!D48=0,"",articles!D48) -> 3200 | D51: =IF(articles!AA48<>"",articles!AA48,articles!Z48) -> BLANC | E51: =IF(articles!L48=0,"",articles!L48) -> 21278 | F51: =articles!O48 -> 
A52: =A50 -> PORTEUR PLAQUE THERMIQUE BLANC | B52: =IF(articles!C49=0,"",articles!C49) -> TP | C52: =IF(articles!D49=0,"",articles!D49) -> 3700 | D52: =IF(articles!AA49<>"",articles!AA49,articles!Z49) -> BLANC | E52: =IF(articles!L49=0,"",articles!L49) -> 21279 | F52: =articles!O49 -> 
A53: =A50 -> PORTEUR PLAQUE THERMIQUE BLANC | B53: =IF(articles!C50=0,"",articles!C50) -> TP | C53: =IF(articles!D50=0,"",articles!D50) -> 4200 | D53: =IF(articles!AA50<>"",articles!AA50,articles!Z50) -> BLANC | E53: =IF(articles!L50=0,"",articles!L50) -> 21280 | F53: =articles!O50 -> 
A54: =A52 -> PORTEUR PLAQUE THERMIQUE BLANC | B54: =IF(articles!C51=0,"",articles!C51) -> TP | C54: =IF(articles!D51=0,"",articles!D51) -> 5200 | D54: =IF(articles!AA51<>"",articles!AA51,articles!Z51) -> BLANC | E54: =IF(articles!L51=0,"",articles!L51) -> 24468 | F54: =articles!O51 -> 
A55: =A52 -> PORTEUR PLAQUE THERMIQUE BLANC | B55: =IF(articles!C52=0,"",articles!C52) -> TP | C55: =IF(articles!D52=0,"",articles!D52) -> 6200 | D55: =IF(articles!AA52<>"",articles!AA52,articles!Z52) -> BLANC | E55: =IF(articles!L52=0,"",articles!L52) -> 21281 | F55: =articles!O52 -> 
A56: =articles!A53 -> PORTEUR PLAQUE THERMIQUE VERRE | B56: =IF(articles!C53=0,"",articles!C53) -> TPG | C56: =IF(articles!D53=0,"",articles!D53) -> 4200 | D56: =IF(articles!AA53<>"",articles!AA53,articles!Z53) -> BLANC | E56: =IF(articles!L53=0,"",articles!L53) -> 25055 | F56: =articles!O53 -> 
A57: =A56 -> PORTEUR PLAQUE THERMIQUE VERRE | B57: =IF(articles!C54=0,"",articles!C54) -> TPG | C57: =IF(articles!D54=0,"",articles!D54) -> 5200 | D57: =IF(articles!AA54<>"",articles!AA54,articles!Z54) -> BLANC | E57: =IF(articles!L54=0,"",articles!L54) -> 25056 | F57: =articles!O54 -> 
A58: =A56 -> PORTEUR PLAQUE THERMIQUE VERRE | B58: =IF(articles!C55=0,"",articles!C55) -> TPG | C58: =IF(articles!D55=0,"",articles!D55) -> 6200 | D58: =IF(articles!AA55<>"",articles!AA55,articles!Z55) -> BLANC | E58: =IF(articles!L55=0,"",articles!L55) -> 25057 | F58: =articles!O55 -> 
A59: =A58 -> PORTEUR PLAQUE THERMIQUE VERRE | B59: =IF(articles!C56=0,"",articles!C56) -> TPG | C59: =IF(articles!D56=0,"",articles!D56) -> 7200 | D59: =IF(articles!AA56<>"",articles!AA56,articles!Z56) -> BLANC | E59: =IF(articles!L56=0,"",articles!L56) -> 25058 | F59: =articles!O56 -> 
A60: =articles!A57 -> PORTEUR ALU POUR TP(G) | B60: =IF(articles!C57=0,"",articles!C57) -> TPH | C60: =IF(articles!D57=0,"",articles!D57) -> 2600 | D60: =IF(articles!AA57<>"",articles!AA57,articles!Z57) -> RAL9010 | E60: =IF(articles!L57=0,"",articles!L57) -> 22585 | F60: =articles!O57 -> 
A61: =A60 -> PORTEUR ALU POUR TP(G) | B61: =IF(articles!C58=0,"",articles!C58) -> TPH | C61: =IF(articles!D58=0,"",articles!D58) -> 3100 | D61: =IF(articles!AA58<>"",articles!AA58,articles!Z58) -> RAL9010 | E61: =IF(articles!L58=0,"",articles!L58) -> 22586 | F61: =articles!O58 -> 
A62: =A60 -> PORTEUR ALU POUR TP(G) | B62: =IF(articles!C59=0,"",articles!C59) -> TPH | C62: =IF(articles!D59=0,"",articles!D59) -> 3600 | D62: =IF(articles!AA59<>"",articles!AA59,articles!Z59) -> RAL9010 | E62: =IF(articles!L59=0,"",articles!L59) -> 22587 | F62: =articles!O59 -> 
A63: =A62 -> PORTEUR ALU POUR TP(G) | B63: =IF(articles!C60=0,"",articles!C60) -> TPH | C63: =IF(articles!D60=0,"",articles!D60) -> 4100 | D63: =IF(articles!AA60<>"",articles!AA60,articles!Z60) -> RAL9010 | E63: =IF(articles!L60=0,"",articles!L60) -> 22588 | F63: =articles!O60 -> 
A64: =A62 -> PORTEUR ALU POUR TP(G) | B64: =IF(articles!C61=0,"",articles!C61) -> TPH | C64: =IF(articles!D61=0,"",articles!D61) -> 5100 | D64: =IF(articles!AA61<>"",articles!AA61,articles!Z61) -> RAL9010 | E64: =IF(articles!L61=0,"",articles!L61) -> 25067 | F64: =articles!O61 -> 
A65: =A64 -> PORTEUR ALU POUR TP(G) | B65: =IF(articles!C62=0,"",articles!C62) -> TPH | C65: =IF(articles!D62=0,"",articles!D62) -> 6100 | D65: =IF(articles!AA62<>"",articles!AA62,articles!Z62) -> RAL9010 | E65: =IF(articles!L62=0,"",articles!L62) -> 22589 | F65: =articles!O62 -> 
A66: =articles!A63 -> PORTEUR LATERAL PVC | B66: =IF(articles!C63=0,"",articles!C63) -> LP | C66: =IF(articles!D63=0,"",articles!D63) -> 2000 | D66: =IF(articles!AA63<>"",articles!AA63,articles!Z63) -> BLANC | E66: =IF(articles!L63=0,"",articles!L63) -> 17766 | F66: =articles!O63 -> 
A67: =A66 -> PORTEUR LATERAL PVC | B67: =IF(articles!C64=0,"",articles!C64) -> LP | C67: =IF(articles!D64=0,"",articles!D64) -> 2500 | D67: =IF(articles!AA64<>"",articles!AA64,articles!Z64) -> BLANC | E67: =IF(articles!L64=0,"",articles!L64) -> 17767 | F67: =articles!O64 -> 
A68: =A66 -> PORTEUR LATERAL PVC | B68: =IF(articles!C65=0,"",articles!C65) -> LP | C68: =IF(articles!D65=0,"",articles!D65) -> 3000 | D68: =IF(articles!AA65<>"",articles!AA65,articles!Z65) -> BLANC | E68: =IF(articles!L65=0,"",articles!L65) -> 17768 | F68: =articles!O65 -> 
A69: =A68 -> PORTEUR LATERAL PVC | B69: =IF(articles!C66=0,"",articles!C66) -> LP | C69: =IF(articles!D66=0,"",articles!D66) -> 3500 | D69: =IF(articles!AA66<>"",articles!AA66,articles!Z66) -> BLANC | E69: =IF(articles!L66=0,"",articles!L66) -> 17769 | F69: =articles!O66 -> 
A70: =A68 -> PORTEUR LATERAL PVC | B70: =IF(articles!C67=0,"",articles!C67) -> LP | C70: =IF(articles!D67=0,"",articles!D67) -> 4000 | D70: =IF(articles!AA67<>"",articles!AA67,articles!Z67) -> BLANC | E70: =IF(articles!L67=0,"",articles!L67) -> 17770 | F70: =articles!O67 -> 
A71: =A70 -> PORTEUR LATERAL PVC | B71: =IF(articles!C68=0,"",articles!C68) -> LP | C71: =IF(articles!D68=0,"",articles!D68) -> 5000 | D71: =IF(articles!AA68<>"",articles!AA68,articles!Z68) -> BLANC | E71: =IF(articles!L68=0,"",articles!L68) -> 17771 | F71: =articles!O68 -> 
A72: =A70 -> PORTEUR LATERAL PVC | B72: =IF(articles!C69=0,"",articles!C69) -> LP | C72: =IF(articles!D69=0,"",articles!D69) -> 6000 | D72: =IF(articles!AA69<>"",articles!AA69,articles!Z69) -> BLANC | E72: =IF(articles!L69=0,"",articles!L69) -> 17772 | F72: =articles!O69 -> 
A73: =A72 -> PORTEUR LATERAL PVC | B73: =IF(articles!C70=0,"",articles!C70) -> LP | C73: =IF(articles!D70=0,"",articles!D70) -> 7000 | D73: =IF(articles!AA70<>"",articles!AA70,articles!Z70) -> BLANC | E73: =IF(articles!L70=0,"",articles!L70) -> 17773 | F73: =articles!O70 -> 
A74: =articles!A71 -> PORTEUR LATERAL ALU | B74: =IF(articles!C71=0,"",articles!C71) -> L16 | C74: =IF(articles!D71=0,"",articles!D71) -> 2000 | D74: =IF(articles!AA71<>"",articles!AA71,articles!Z71) -> BRUT | E74: =IF(articles!L71=0,"",articles!L71) -> 15679 | F74: =articles!O71 -> 
A75: =A74 -> PORTEUR LATERAL ALU | B75: =IF(articles!C72=0,"",articles!C72) -> L16 | C75: =IF(articles!D72=0,"",articles!D72) -> 2500 | D75: =IF(articles!AA72<>"",articles!AA72,articles!Z72) -> BRUT | E75: =IF(articles!L72=0,"",articles!L72) -> 13221 | F75: =articles!O72 -> 
A76: =A74 -> PORTEUR LATERAL ALU | B76: =IF(articles!C73=0,"",articles!C73) -> L16 | C76: =IF(articles!D73=0,"",articles!D73) -> 3000 | D76: =IF(articles!AA73<>"",articles!AA73,articles!Z73) -> BRUT | E76: =IF(articles!L73=0,"",articles!L73) -> 13222 | F76: =articles!O73 -> 
A77: =A75 -> PORTEUR LATERAL ALU | B77: =IF(articles!C74=0,"",articles!C74) -> L16 | C77: =IF(articles!D74=0,"",articles!D74) -> 3500 | D77: =IF(articles!AA74<>"",articles!AA74,articles!Z74) -> BRUT | E77: =IF(articles!L74=0,"",articles!L74) -> 13223 | F77: =articles!O74 -> 
A78: =A76 -> PORTEUR LATERAL ALU | B78: =IF(articles!C75=0,"",articles!C75) -> L16 | C78: =IF(articles!D75=0,"",articles!D75) -> 4000 | D78: =IF(articles!AA75<>"",articles!AA75,articles!Z75) -> BRUT | E78: =IF(articles!L75=0,"",articles!L75) -> 13224 | F78: =articles!O75 -> 
A79: PORTEUR LATERAL ALU | B79: =IF(articles!C76=0,"",articles!C76) -> L16 | C79: =IF(articles!D76=0,"",articles!D76) -> 5000 | D79: =IF(articles!AA76<>"",articles!AA76,articles!Z76) -> BRUT | E79: =IF(articles!L76=0,"",articles!L76) -> 14624 | F79: =articles!O76 -> 
A80: PORTEUR LATERAL ALU | B80: =IF(articles!C77=0,"",articles!C77) -> L16 | C80: =IF(articles!D77=0,"",articles!D77) -> 6000 | D80: =IF(articles!AA77<>"",articles!AA77,articles!Z77) -> BRUT | E80: =IF(articles!L77=0,"",articles!L77) -> 13225 | F80: =articles!O77 -> 
A81: PORTEUR LATERAL ALU | B81: =IF(articles!C78=0,"",articles!C78) -> L16 | C81: =IF(articles!D78=0,"",articles!D78) -> 7000 | D81: =IF(articles!AA78<>"",articles!AA78,articles!Z78) -> BRUT | E81: =IF(articles!L78=0,"",articles!L78) -> 13226 | F81: =articles!O78 -> 
A82: =articles!A79 -> FINITION LATERALE L16P | B82: =IF(articles!C79=0,"",articles!C79) -> L16P | C82: =IF(articles!D79=0,"",articles!D79) -> 2540 | D82: =IF(articles!AA79<>"",articles!AA79,articles!Z79) -> RAL9010 | E82: =IF(articles!L79=0,"",articles!L79) -> 15478 | F82: =articles!O79 -> 
A83: =A82 -> FINITION LATERALE L16P | B83: =IF(articles!C80=0,"",articles!C80) -> L16P | C83: =IF(articles!D80=0,"",articles!D80) -> 3040 | D83: =IF(articles!AA80<>"",articles!AA80,articles!Z80) -> RAL9010 | E83: =IF(articles!L80=0,"",articles!L80) -> 15479 | F83: =articles!O80 -> 
A84: =A82 -> FINITION LATERALE L16P | B84: =IF(articles!C81=0,"",articles!C81) -> L16P | C84: =IF(articles!D81=0,"",articles!D81) -> 3540 | D84: =IF(articles!AA81<>"",articles!AA81,articles!Z81) -> RAL9010 | E84: =IF(articles!L81=0,"",articles!L81) -> 15480 | F84: =articles!O81 -> 
A85: =A82 -> FINITION LATERALE L16P | B85: =IF(articles!C82=0,"",articles!C82) -> L16P | C85: =IF(articles!D82=0,"",articles!D82) -> 4040 | D85: =IF(articles!AA82<>"",articles!AA82,articles!Z82) -> RAL9010 | E85: =IF(articles!L82=0,"",articles!L82) -> 15481 | F85: =articles!O82 -> 
A86: =A82 -> FINITION LATERALE L16P | B86: =IF(articles!C83=0,"",articles!C83) -> L16P | C86: =IF(articles!D83=0,"",articles!D83) -> 5040 | D86: =IF(articles!AA83<>"",articles!AA83,articles!Z83) -> RAL9010 | E86: =IF(articles!L83=0,"",articles!L83) -> 15482 | F86: =articles!O83 -> 
A87: =A82 -> FINITION LATERALE L16P | B87: =IF(articles!C84=0,"",articles!C84) -> L16P | C87: =IF(articles!D84=0,"",articles!D84) -> 7040 | D87: =IF(articles!AA84<>"",articles!AA84,articles!Z84) -> RAL9010 | E87: =IF(articles!L84=0,"",articles!L84) -> 15483 | F87: =articles!O84 -> 
A88: =articles!A85 -> PORTEUR LATERAL ALU | B88: =IF(articles!C85=0,"",articles!C85) -> LT16 | C88: =IF(articles!D85=0,"",articles!D85) -> 2000 | D88: =IF(articles!AA85<>"",articles!AA85,articles!Z85) -> RAL9010 | E88: =IF(articles!L85=0,"",articles!L85) -> 16216 | F88: =articles!O85 -> 
A89: =A88 -> PORTEUR LATERAL ALU | B89: =IF(articles!C86=0,"",articles!C86) -> LT16 | C89: =IF(articles!D86=0,"",articles!D86) -> 2500 | D89: =IF(articles!AA86<>"",articles!AA86,articles!Z86) -> RAL9010 | E89: =IF(articles!L86=0,"",articles!L86) -> 15534 | F89: =articles!O86 -> 
A90: =A88 -> PORTEUR LATERAL ALU | B90: =IF(articles!C87=0,"",articles!C87) -> LT16 | C90: =IF(articles!D87=0,"",articles!D87) -> 3000 | D90: =IF(articles!AA87<>"",articles!AA87,articles!Z87) -> RAL9010 | E90: =IF(articles!L87=0,"",articles!L87) -> 15535 | F90: =articles!O87 -> 
A91: =A90 -> PORTEUR LATERAL ALU | B91: =IF(articles!C88=0,"",articles!C88) -> LT16 | C91: =IF(articles!D88=0,"",articles!D88) -> 3500 | D91: =IF(articles!AA88<>"",articles!AA88,articles!Z88) -> RAL9010 | E91: =IF(articles!L88=0,"",articles!L88) -> 15536 | F91: =articles!O88 -> 
A92: =A90 -> PORTEUR LATERAL ALU | B92: =IF(articles!C89=0,"",articles!C89) -> LT16 | C92: =IF(articles!D89=0,"",articles!D89) -> 4000 | D92: =IF(articles!AA89<>"",articles!AA89,articles!Z89) -> RAL9010 | E92: =IF(articles!L89=0,"",articles!L89) -> 15537 | F92: =articles!O89 -> 
A93: =A92 -> PORTEUR LATERAL ALU | B93: =IF(articles!C90=0,"",articles!C90) -> LT16 | C93: =IF(articles!D90=0,"",articles!D90) -> 5000 | D93: =IF(articles!AA90<>"",articles!AA90,articles!Z90) -> RAL9010 | E93: =IF(articles!L90=0,"",articles!L90) -> 15538 | F93: =articles!O90 -> 
A94: =A92 -> PORTEUR LATERAL ALU | B94: =IF(articles!C91=0,"",articles!C91) -> LT16 | C94: =IF(articles!D91=0,"",articles!D91) -> 6000 | D94: =IF(articles!AA91<>"",articles!AA91,articles!Z91) -> RAL9010 | E94: =IF(articles!L91=0,"",articles!L91) -> 15539 | F94: =articles!O91 -> 
A95: =A94 -> PORTEUR LATERAL ALU | B95: =IF(articles!C92=0,"",articles!C92) -> LT16 | C95: =IF(articles!D92=0,"",articles!D92) -> 7000 | D95: =IF(articles!AA92<>"",articles!AA92,articles!Z92) -> RAL9010 | E95: =IF(articles!L92=0,"",articles!L92) -> 15540 | F95: =articles!O92 -> 
A96: =articles!A93 -> PORTEUR LATERAL ALU | B96: =IF(articles!C93=0,"",articles!C93) -> L32 | C96: =IF(articles!D93=0,"",articles!D93) -> 2000 | D96: =IF(articles!AA93<>"",articles!AA93,articles!Z93) -> BRUT | E96: =IF(articles!L93=0,"",articles!L93) -> 15713 | F96: =articles!O93 -> 
A97: =A96 -> PORTEUR LATERAL ALU | B97: =IF(articles!C94=0,"",articles!C94) -> L32 | C97: =IF(articles!D94=0,"",articles!D94) -> 2500 | D97: =IF(articles!AA94<>"",articles!AA94,articles!Z94) -> BRUT | E97: =IF(articles!L94=0,"",articles!L94) -> 14230 | F97: =articles!O94 -> 
A98: =A96 -> PORTEUR LATERAL ALU | B98: =IF(articles!C95=0,"",articles!C95) -> L32 | C98: =IF(articles!D95=0,"",articles!D95) -> 3000 | D98: =IF(articles!AA95<>"",articles!AA95,articles!Z95) -> BRUT | E98: =IF(articles!L95=0,"",articles!L95) -> 14231 | F98: =articles!O95 -> 
A99: =A98 -> PORTEUR LATERAL ALU | B99: =IF(articles!C96=0,"",articles!C96) -> L32 | C99: =IF(articles!D96=0,"",articles!D96) -> 3500 | D99: =IF(articles!AA96<>"",articles!AA96,articles!Z96) -> BRUT | E99: =IF(articles!L96=0,"",articles!L96) -> 14232 | F99: =articles!O96 -> 
A100: =A98 -> PORTEUR LATERAL ALU | B100: =IF(articles!C97=0,"",articles!C97) -> L32 | C100: =IF(articles!D97=0,"",articles!D97) -> 4000 | D100: =IF(articles!AA97<>"",articles!AA97,articles!Z97) -> BRUT | E100: =IF(articles!L97=0,"",articles!L97) -> 14233 | F100: =articles!O97 -> 
A101: =A100 -> PORTEUR LATERAL ALU | B101: =IF(articles!C98=0,"",articles!C98) -> L32 | C101: =IF(articles!D98=0,"",articles!D98) -> 5000 | D101: =IF(articles!AA98<>"",articles!AA98,articles!Z98) -> BRUT | E101: =IF(articles!L98=0,"",articles!L98) -> 14234 | F101: =articles!O98 -> 
A102: =A100 -> PORTEUR LATERAL ALU | B102: =IF(articles!C99=0,"",articles!C99) -> L32 | C102: =IF(articles!D99=0,"",articles!D99) -> 6000 | D102: =IF(articles!AA99<>"",articles!AA99,articles!Z99) -> BRUT | E102: =IF(articles!L99=0,"",articles!L99) -> 14235 | F102: =articles!O99 -> 
A103: =A102 -> PORTEUR LATERAL ALU | B103: =IF(articles!C100=0,"",articles!C100) -> L32 | C103: =IF(articles!D100=0,"",articles!D100) -> 7000 | D103: =IF(articles!AA100<>"",articles!AA100,articles!Z100) -> BRUT | E103: =IF(articles!L100=0,"",articles!L100) -> 14238 | F103: =articles!O100 -> 
A104: =articles!A101 -> PORTEUR LATERAL ALU | B104: =IF(articles!C101=0,"",articles!C101) -> LT32 | C104: =IF(articles!D101=0,"",articles!D101) -> 2000 | D104: =IF(articles!AA101<>"",articles!AA101,articles!Z101) -> RAL9010 | E104: =IF(articles!L101=0,"",articles!L101) -> 15770 | F104: =articles!O101 -> 
A105: =A104 -> PORTEUR LATERAL ALU | B105: =IF(articles!C102=0,"",articles!C102) -> LT32 | C105: =IF(articles!D102=0,"",articles!D102) -> 2500 | D105: =IF(articles!AA102<>"",articles!AA102,articles!Z102) -> RAL9010 | E105: =IF(articles!L102=0,"",articles!L102) -> 15556 | F105: =articles!O102 -> 
A106: =A104 -> PORTEUR LATERAL ALU | B106: =IF(articles!C103=0,"",articles!C103) -> LT32 | C106: =IF(articles!D103=0,"",articles!D103) -> 3000 | D106: =IF(articles!AA103<>"",articles!AA103,articles!Z103) -> RAL9010 | E106: =IF(articles!L103=0,"",articles!L103) -> 15557 | F106: =articles!O103 -> 
A107: =A106 -> PORTEUR LATERAL ALU | B107: =IF(articles!C104=0,"",articles!C104) -> LT32 | C107: =IF(articles!D104=0,"",articles!D104) -> 3500 | D107: =IF(articles!AA104<>"",articles!AA104,articles!Z104) -> RAL9010 | E107: =IF(articles!L104=0,"",articles!L104) -> 15558 | F107: =articles!O104 -> 
A108: =A106 -> PORTEUR LATERAL ALU | B108: =IF(articles!C105=0,"",articles!C105) -> LT32 | C108: =IF(articles!D105=0,"",articles!D105) -> 4000 | D108: =IF(articles!AA105<>"",articles!AA105,articles!Z105) -> RAL9010 | E108: =IF(articles!L105=0,"",articles!L105) -> 15569 | F108: =articles!O105 -> 
A109: =A108 -> PORTEUR LATERAL ALU | B109: =IF(articles!C106=0,"",articles!C106) -> LT32 | C109: =IF(articles!D106=0,"",articles!D106) -> 5000 | D109: =IF(articles!AA106<>"",articles!AA106,articles!Z106) -> RAL9010 | E109: =IF(articles!L106=0,"",articles!L106) -> 15570 | F109: =articles!O106 -> 
A110: =A104 -> PORTEUR LATERAL ALU | B110: =IF(articles!C107=0,"",articles!C107) -> LT32 | C110: =IF(articles!D107=0,"",articles!D107) -> 7000 | D110: =IF(articles!AA107<>"",articles!AA107,articles!Z107) -> RAL9010 | E110: =IF(articles!L107=0,"",articles!L107) -> 15572 | F110: =articles!O107 -> 
A111: =articles!A108 -> PORTEUR LATERAL THERMIQUE VERRE | B111: =IF(articles!C108=0,"",articles!C108) -> TPGL | C111: =IF(articles!D108=0,"",articles!D108) -> 4200 | D111: =IF(articles!AA108<>"",articles!AA108,articles!Z108) -> BLANC | E111: =IF(articles!L108=0,"",articles!L108) -> 25059 | F111: =articles!O108 -> 
A112: =A111 -> PORTEUR LATERAL THERMIQUE VERRE | B112: =IF(articles!C109=0,"",articles!C109) -> TPGL | C112: =IF(articles!D109=0,"",articles!D109) -> 5200 | D112: =IF(articles!AA109<>"",articles!AA109,articles!Z109) -> BLANC | E112: =IF(articles!L109=0,"",articles!L109) -> 25060 | F112: =articles!O109 -> 
A113: =A111 -> PORTEUR LATERAL THERMIQUE VERRE | B113: =IF(articles!C110=0,"",articles!C110) -> TPGL | C113: =IF(articles!D110=0,"",articles!D110) -> 6200 | D113: =IF(articles!AA110<>"",articles!AA110,articles!Z110) -> BLANC | E113: =IF(articles!L110=0,"",articles!L110) -> 25061 | F113: =articles!O110 -> 
A114: =A113 -> PORTEUR LATERAL THERMIQUE VERRE | B114: =IF(articles!C111=0,"",articles!C111) -> TPGL | C114: =IF(articles!D111=0,"",articles!D111) -> 7200 | D114: =IF(articles!AA111<>"",articles!AA111,articles!Z111) -> BLANC | E114: =IF(articles!L111=0,"",articles!L111) -> 25062 | F114: =articles!O111 -> 
A115: =articles!A112 -> PORTEUR LATERAL ALU POUR TPGL | B115: =IF(articles!C112=0,"",articles!C112) -> TPHL | C115: =IF(articles!D112=0,"",articles!D112) -> 4100 | D115: =IF(articles!AA112<>"",articles!AA112,articles!Z112) -> RAL9010 | E115: =IF(articles!L112=0,"",articles!L112) -> 25004 | F115: =articles!O112 -> 
A116: =A115 -> PORTEUR LATERAL ALU POUR TPGL | B116: =IF(articles!C113=0,"",articles!C113) -> TPHL | C116: =IF(articles!D113=0,"",articles!D113) -> 5100 | D116: =IF(articles!AA113<>"",articles!AA113,articles!Z113) -> RAL9010 | E116: =IF(articles!L113=0,"",articles!L113) -> 25005 | F116: =articles!O113 -> 
A117: =A115 -> PORTEUR LATERAL ALU POUR TPGL | B117: =IF(articles!C114=0,"",articles!C114) -> TPHL | C117: =IF(articles!D114=0,"",articles!D114) -> 6100 | D117: =IF(articles!AA114<>"",articles!AA114,articles!Z114) -> RAL9010 | E117: =IF(articles!L114=0,"",articles!L114) -> 25006 | F117: =articles!O114 -> 
A118: =A115 -> PORTEUR LATERAL ALU POUR TPGL | B118: =IF(articles!C115=0,"",articles!C115) -> TPHL | C118: =IF(articles!D115=0,"",articles!D115) -> 7100 | D118: =IF(articles!AA115<>"",articles!AA115,articles!Z115) -> RAL9010 | E118: =IF(articles!L115=0,"",articles!L115) -> 25007 | F118: =articles!O115 -> 
A119: =articles!A116 -> PROFILE D'ADAPTATION 8(10) MM | B119: =IF(articles!C116=0,"",articles!C116) -> Y10 | C119: =IF(articles!D116=0,"",articles!D116) -> 6540 | D119: =IF(articles!AA116<>"",articles!AA116,articles!Z116) -> RAL9010 | E119: =IF(articles!L116=0,"",articles!L116) -> 18403 | F119: =articles!O116 -> 
A120: =articles!A117 -> PROFILE D'ADAPTATION PLAQUES 32 MM | B120: =IF(articles!C117=0,"",articles!C117) -> Y32 | C120: =IF(articles!D117=0,"",articles!D117) -> 7000 | D120: =IF(articles!AA117<>"",articles!AA117,articles!Z117) -> BRUT | E120: =IF(articles!L117=0,"",articles!L117) -> 13314 | F120: =articles!O117 -> 
A121: =articles!A118 -> PROFILE DE REHAUSSE ALU 16 MM | B121: =IF(articles!C118=0,"",articles!C118) -> Y16A | C121: =IF(articles!D118=0,"",articles!D118) -> 3540 | D121: =IF(articles!AA118<>"",articles!AA118,articles!Z118) -> RAL9010 | E121: =IF(articles!L118=0,"",articles!L118) -> 21524 | F121: =articles!O118 -> 
A122: =A121 -> PROFILE DE REHAUSSE ALU 16 MM | B122: =IF(articles!C119=0,"",articles!C119) -> Y16A | C122: =IF(articles!D119=0,"",articles!D119) -> 7040 | D122: =IF(articles!AA119<>"",articles!AA119,articles!Z119) -> RAL9010 | E122: =IF(articles!L119=0,"",articles!L119) -> 21525 | F122: =articles!O119 -> 
A123: =articles!A120 -> Y16P RUPTURE THERMIQUE ABS 16 MM NOIR | B123: =IF(articles!C120=0,"",articles!C120) -> Y16P | C123: =IF(articles!D120=0,"",articles!D120) -> 1000 | D123: =IF(articles!AA120<>"",articles!AA120,articles!Z120) -> NOIR | E123: =IF(articles!L120=0,"",articles!L120) -> 21528 | F123: =articles!O120 -> 
A124: =A123 -> Y16P RUPTURE THERMIQUE ABS 16 MM NOIR | B124: =IF(articles!C121=0,"",articles!C121) -> Y16P | C124: =IF(articles!D121=0,"",articles!D121) -> 4000 | D124: =IF(articles!AA121<>"",articles!AA121,articles!Z121) -> NOIR | E124: =IF(articles!L121=0,"",articles!L121) -> 21529 | F124: =articles!O121 -> 
A125: =articles!A122 -> JOINT POUR CLIP MURAL | B125: =IF(articles!C122=0,"",articles!C122) -> C1CX | C125: =IF(articles!D122=0,"",articles!D122) -> W/G | D125: =IF(articles!AA122<>"",articles!AA122,articles!Z122) -> BLANC | E125: =IF(articles!L122=0,"",articles!L122) -> 17701 | F125: =articles!O122 -> 
A126: =articles!A123 -> JOINT POUR PORTEUR | B126: =IF(articles!C123=0,"",articles!C123) -> C2CX | C126: =IF(articles!D123=0,"",articles!D123) -> W/G | D126: =IF(articles!AA123<>"",articles!AA123,articles!Z123) -> BLANC | E126: =IF(articles!L123=0,"",articles!L123) -> 110589 | F126: =articles!O123 -> 
A127: =articles!A124 -> JOINT POUR PORTEUR (LATERAL) ALU | B127: =IF(articles!C124=0,"",articles!C124) -> C3 | C127: =IF(articles!D124=0,"",articles!D124) -> G | D127: =IF(articles!AA124<>"",articles!AA124,articles!Z124) -> GRIS | E127: =IF(articles!L124=0,"",articles!L124) -> 13319 | F127: =articles!O124 -> 
A128: =articles!A125 -> JOINT POUR PROFILES MURALS ET LATERALS | B128: =IF(articles!C125=0,"",articles!C125) -> C4CX | C128: =IF(articles!D125=0,"",articles!D125) -> W/G | D128: =IF(articles!AA125<>"",articles!AA125,articles!Z125) -> BLANC | E128: =IF(articles!L125=0,"",articles!L125) -> 110591 | F128: =articles!O125 -> 
A129: =articles!A126 -> JOINT D'ETANCHEITE CÔTÉ GOUTTIÈRE | B129: =IF(articles!C126=0,"",articles!C126) -> C6 | C129: =IF(articles!D126=0,"",articles!D126) -> G | D129: =IF(articles!AA126<>"",articles!AA126,articles!Z126) -> GRIS | E129: =IF(articles!L126=0,"",articles!L126) -> 13326 | F129: =articles!O126 -> 
A130: =articles!A127 -> JOINT POUR CLIPS ALU GRIS CLAIR | B130: =IF(articles!C127=0,"",articles!C127) -> C8 | C130: =IF(articles!D127=0,"",articles!D127) -> G | D130: =IF(articles!AA127<>"",articles!AA127,articles!Z127) -> GRIS | E130: =IF(articles!L127=0,"",articles!L127) -> 13328 | F130: =articles!O127 -> 
A131: =articles!A128 -> CY10 JOINT D'ADAPTATION VERRE 8(10) MM | B131: =IF(articles!C128=0,"",articles!C128) -> CY10 | C131: =IF(articles!D128=0,"",articles!D128) -> G | D131: =IF(articles!AA128<>"",articles!AA128,articles!Z128) -> GRIS | E131: =IF(articles!L128=0,"",articles!L128) -> 29509 | F131: =articles!O128 -> 
A132: =articles!A129 -> JOINT COEX/GOUTTIERE BLANC/NOIR | B132: =IF(articles!C129=0,"",articles!C129) -> C11CX | C132: =IF(articles!D129=0,"",articles!D129) -> W/Z | D132: =IF(articles!AA129<>"",articles!AA129,articles!Z129) -> BLANC | E132: =IF(articles!L129=0,"",articles!L129) -> 21557 | F132: =articles!O129 -> 
A133: =articles!A130 -> SUPPORT SUPPLEMENTAIRE POUR C1CX | B133: =IF(articles!C130=0,"",articles!C130) -> C12 | C133: =IF(articles!D130=0,"",articles!D130) -> G | D133: =IF(articles!AA130<>"",articles!AA130,articles!Z130) -> GRIS | E133: =IF(articles!L130=0,"",articles!L130) -> 23875 | F133: =articles!O130 -> 
A134: =articles!A131 -> JOINT D'APPUI POUR VERRE CÔTÉ GOUTTIÈRE | B134: =IF(articles!C131=0,"",articles!C131) -> C13 | C134: =IF(articles!D131=0,"",articles!D131) -> G | D134: =IF(articles!AA131<>"",articles!AA131,articles!Z131) -> GRIS | E134: =IF(articles!L131=0,"",articles!L131) -> 24328 | F134: =articles!O131 -> 
A135: =articles!A132 -> JOINT D'APPUI POUR PROFILE LATERAL/MURAL | B135: =IF(articles!C132=0,"",articles!C132) -> C31 | C135: =IF(articles!D132=0,"",articles!D132) -> G | D135: =IF(articles!AA132<>"",articles!AA132,articles!Z132) -> GRIS | E135: =IF(articles!L132=0,"",articles!L132) -> 28805 | F135: =articles!O132 -> 
A136: =articles!A133 -> CLIP MUR TOP | B136: =IF(articles!C133=0,"",articles!C133) -> CLM | C136: =IF(articles!D133=0,"",articles!D133) -> 3500 | D136: =IF(articles!AA133<>"",articles!AA133,articles!Z133) -> RAL9010 | E136: =IF(articles!L133=0,"",articles!L133) -> 17724 | F136: =articles!O133 -> 
A137: =A136 -> CLIP MUR TOP | B137: =IF(articles!C134=0,"",articles!C134) -> CLM | C137: =IF(articles!D134=0,"",articles!D134) -> 5000 | D137: =IF(articles!AA134<>"",articles!AA134,articles!Z134) -> RAL9010 | E137: =IF(articles!L134=0,"",articles!L134) -> 17725 | F137: =articles!O134 -> 
A138: =A136 -> CLIP MUR TOP | B138: =IF(articles!C135=0,"",articles!C135) -> CLM | C138: =IF(articles!D135=0,"",articles!D135) -> 7000 | D138: =IF(articles!AA135<>"",articles!AA135,articles!Z135) -> RAL9010 | E138: =IF(articles!L135=0,"",articles!L135) -> 17726 | F138: =articles!O135 -> 
A139: =articles!A136 -> CLIPS LATERAL CLL 16/25/32 MM | B139: =IF(articles!C136=0,"",articles!C136) -> CLL | C139: =IF(articles!D136=0,"",articles!D136) -> 2040 | D139: =IF(articles!AA136<>"",articles!AA136,articles!Z136) -> RAL9010 | E139: =IF(articles!L136=0,"",articles!L136) -> 17740 | F139: =articles!O136 -> 
A140: =A139 -> CLIPS LATERAL CLL 16/25/32 MM | B140: =IF(articles!C137=0,"",articles!C137) -> CLL | C140: =IF(articles!D137=0,"",articles!D137) -> 2540 | D140: =IF(articles!AA137<>"",articles!AA137,articles!Z137) -> RAL9010 | E140: =IF(articles!L137=0,"",articles!L137) -> 17741 | F140: =articles!O137 -> 
A141: =A139 -> CLIPS LATERAL CLL 16/25/32 MM | B141: =IF(articles!C138=0,"",articles!C138) -> CLL | C141: =IF(articles!D138=0,"",articles!D138) -> 3040 | D141: =IF(articles!AA138<>"",articles!AA138,articles!Z138) -> RAL9010 | E141: =IF(articles!L138=0,"",articles!L138) -> 17742 | F141: =articles!O138 -> 
A142: =A141 -> CLIPS LATERAL CLL 16/25/32 MM | B142: =IF(articles!C139=0,"",articles!C139) -> CLL | C142: =IF(articles!D139=0,"",articles!D139) -> 3540 | D142: =IF(articles!AA139<>"",articles!AA139,articles!Z139) -> RAL9010 | E142: =IF(articles!L139=0,"",articles!L139) -> 17743 | F142: =articles!O139 -> 
A143: =A141 -> CLIPS LATERAL CLL 16/25/32 MM | B143: =IF(articles!C140=0,"",articles!C140) -> CLL | C143: =IF(articles!D140=0,"",articles!D140) -> 4040 | D143: =IF(articles!AA140<>"",articles!AA140,articles!Z140) -> RAL9010 | E143: =IF(articles!L140=0,"",articles!L140) -> 17744 | F143: =articles!O140 -> 
A144: =A143 -> CLIPS LATERAL CLL 16/25/32 MM | B144: =IF(articles!C141=0,"",articles!C141) -> CLL | C144: =IF(articles!D141=0,"",articles!D141) -> 5040 | D144: =IF(articles!AA141<>"",articles!AA141,articles!Z141) -> RAL9010 | E144: =IF(articles!L141=0,"",articles!L141) -> 17745 | F144: =articles!O141 -> 
A145: =A143 -> CLIPS LATERAL CLL 16/25/32 MM | B145: =IF(articles!C142=0,"",articles!C142) -> CLL | C145: =IF(articles!D142=0,"",articles!D142) -> 6040 | D145: =IF(articles!AA142<>"",articles!AA142,articles!Z142) -> RAL9010 | E145: =IF(articles!L142=0,"",articles!L142) -> 17728 | F145: =articles!O142 -> 
A146: =A145 -> CLIPS LATERAL CLL 16/25/32 MM | B146: =IF(articles!C143=0,"",articles!C143) -> CLL | C146: =IF(articles!D143=0,"",articles!D143) -> 7040 | D146: =IF(articles!AA143<>"",articles!AA143,articles!Z143) -> RAL9010 | E146: =IF(articles!L143=0,"",articles!L143) -> 17746 | F146: =articles!O143 -> 
A147: =articles!A144 -> CLIPS ALU 16 MM | B147: =IF(articles!C144=0,"",articles!C144) -> CL16 | C147: =IF(articles!D144=0,"",articles!D144) -> 2040 | D147: =IF(articles!AA144<>"",articles!AA144,articles!Z144) -> RAL9010 | E147: =IF(articles!L144=0,"",articles!L144) -> 13336 | F147: =articles!O144 -> 
A148: =A147 -> CLIPS ALU 16 MM | B148: =IF(articles!C145=0,"",articles!C145) -> CL16 | C148: =IF(articles!D145=0,"",articles!D145) -> 2540 | D148: =IF(articles!AA145<>"",articles!AA145,articles!Z145) -> RAL9010 | E148: =IF(articles!L145=0,"",articles!L145) -> 13337 | F148: =articles!O145 -> 
A149: =A147 -> CLIPS ALU 16 MM | B149: =IF(articles!C146=0,"",articles!C146) -> CL16 | C149: =IF(articles!D146=0,"",articles!D146) -> 3040 | D149: =IF(articles!AA146<>"",articles!AA146,articles!Z146) -> RAL9010 | E149: =IF(articles!L146=0,"",articles!L146) -> 13338 | F149: =articles!O146 -> 
A150: =A149 -> CLIPS ALU 16 MM | B150: =IF(articles!C147=0,"",articles!C147) -> CL16 | C150: =IF(articles!D147=0,"",articles!D147) -> 3540 | D150: =IF(articles!AA147<>"",articles!AA147,articles!Z147) -> RAL9010 | E150: =IF(articles!L147=0,"",articles!L147) -> 13339 | F150: =articles!O147 -> 
A151: =A149 -> CLIPS ALU 16 MM | B151: =IF(articles!C148=0,"",articles!C148) -> CL16 | C151: =IF(articles!D148=0,"",articles!D148) -> 4040 | D151: =IF(articles!AA148<>"",articles!AA148,articles!Z148) -> RAL9010 | E151: =IF(articles!L148=0,"",articles!L148) -> 13340 | F151: =articles!O148 -> 
A152: =A151 -> CLIPS ALU 16 MM | B152: =IF(articles!C149=0,"",articles!C149) -> CL16 | C152: =IF(articles!D149=0,"",articles!D149) -> 5040 | D152: =IF(articles!AA149<>"",articles!AA149,articles!Z149) -> RAL9010 | E152: =IF(articles!L149=0,"",articles!L149) -> 13928 | F152: =articles!O149 -> 
A153: =A147 -> CLIPS ALU 16 MM | B153: =IF(articles!C150=0,"",articles!C150) -> CL16 | C153: =IF(articles!D150=0,"",articles!D150) -> 6040 | D153: =IF(articles!AA150<>"",articles!AA150,articles!Z150) -> RAL9010 | E153: =IF(articles!L150=0,"",articles!L150) -> 13341 | F153: =articles!O150 -> 
A154: =A147 -> CLIPS ALU 16 MM | B154: =IF(articles!C151=0,"",articles!C151) -> CL16 | C154: =IF(articles!D151=0,"",articles!D151) -> 7040 | D154: =IF(articles!AA151<>"",articles!AA151,articles!Z151) -> RAL9010 | E154: =IF(articles!L151=0,"",articles!L151) -> 13342 | F154: =articles!O151 -> 
A155: =articles!A152 -> CLIPS ALU 25/32 MM | B155: =IF(articles!C152=0,"",articles!C152) -> CL32 | C155: =IF(articles!D152=0,"",articles!D152) -> 2040 | D155: =IF(articles!AA152<>"",articles!AA152,articles!Z152) -> RAL9010 | E155: =IF(articles!L152=0,"",articles!L152) -> 13352 | F155: =articles!O152 -> 
A156: =A155 -> CLIPS ALU 25/32 MM | B156: =IF(articles!C153=0,"",articles!C153) -> CL32 | C156: =IF(articles!D153=0,"",articles!D153) -> 2540 | D156: =IF(articles!AA153<>"",articles!AA153,articles!Z153) -> RAL9010 | E156: =IF(articles!L153=0,"",articles!L153) -> 13353 | F156: =articles!O153 -> 
A157: =A155 -> CLIPS ALU 25/32 MM | B157: =IF(articles!C154=0,"",articles!C154) -> CL32 | C157: =IF(articles!D154=0,"",articles!D154) -> 3040 | D157: =IF(articles!AA154<>"",articles!AA154,articles!Z154) -> RAL9010 | E157: =IF(articles!L154=0,"",articles!L154) -> 13159 | F157: =articles!O154 -> 
A158: =A157 -> CLIPS ALU 25/32 MM | B158: =IF(articles!C155=0,"",articles!C155) -> CL32 | C158: =IF(articles!D155=0,"",articles!D155) -> 3540 | D158: =IF(articles!AA155<>"",articles!AA155,articles!Z155) -> RAL9010 | E158: =IF(articles!L155=0,"",articles!L155) -> 13160 | F158: =articles!O155 -> 
A159: =A157 -> CLIPS ALU 25/32 MM | B159: =IF(articles!C156=0,"",articles!C156) -> CL32 | C159: =IF(articles!D156=0,"",articles!D156) -> 4040 | D159: =IF(articles!AA156<>"",articles!AA156,articles!Z156) -> RAL9010 | E159: =IF(articles!L156=0,"",articles!L156) -> 13161 | F159: =articles!O156 -> 
A160: =A159 -> CLIPS ALU 25/32 MM | B160: =IF(articles!C157=0,"",articles!C157) -> CL32 | C160: =IF(articles!D157=0,"",articles!D157) -> 5040 | D160: =IF(articles!AA157<>"",articles!AA157,articles!Z157) -> RAL9010 | E160: =IF(articles!L157=0,"",articles!L157) -> 14373 | F160: =articles!O157 -> 
A161: =A159 -> CLIPS ALU 25/32 MM | B161: =IF(articles!C158=0,"",articles!C158) -> CL32 | C161: =IF(articles!D158=0,"",articles!D158) -> 6040 | D161: =IF(articles!AA158<>"",articles!AA158,articles!Z158) -> RAL9010 | E161: =IF(articles!L158=0,"",articles!L158) -> 13162 | F161: =articles!O158 -> 
A162: =A161 -> CLIPS ALU 25/32 MM | B162: =IF(articles!C159=0,"",articles!C159) -> CL32 | C162: =IF(articles!D159=0,"",articles!D159) -> 7040 | D162: =IF(articles!AA159<>"",articles!AA159,articles!Z159) -> RAL9010 | E162: =IF(articles!L159=0,"",articles!L159) -> 13163 | F162: =articles!O159 -> 
A163: =articles!A160 -> CLIPS PVC AVEC JOINTS EN COEX BLANC | B163: =IF(articles!C160=0,"",articles!C160) -> CLPV | C163: =IF(articles!D160=0,"",articles!D160) -> 2000 | D163: =IF(articles!AA160<>"",articles!AA160,articles!Z160) -> BLANC | E163: =IF(articles!L160=0,"",articles!L160) -> 15607 | F163: =articles!O160 -> 
A164: =A163 -> CLIPS PVC AVEC JOINTS EN COEX BLANC | B164: =IF(articles!C161=0,"",articles!C161) -> CLPV | C164: =IF(articles!D161=0,"",articles!D161) -> 2500 | D164: =IF(articles!AA161<>"",articles!AA161,articles!Z161) -> BLANC | E164: =IF(articles!L161=0,"",articles!L161) -> 15608 | F164: =articles!O161 -> 
A165: =A163 -> CLIPS PVC AVEC JOINTS EN COEX BLANC | B165: =IF(articles!C162=0,"",articles!C162) -> CLPV | C165: =IF(articles!D162=0,"",articles!D162) -> 3000 | D165: =IF(articles!AA162<>"",articles!AA162,articles!Z162) -> BLANC | E165: =IF(articles!L162=0,"",articles!L162) -> 15636 | F165: =articles!O162 -> 
A166: =A165 -> CLIPS PVC AVEC JOINTS EN COEX BLANC | B166: =IF(articles!C163=0,"",articles!C163) -> CLPV | C166: =IF(articles!D163=0,"",articles!D163) -> 3500 | D166: =IF(articles!AA163<>"",articles!AA163,articles!Z163) -> BLANC | E166: =IF(articles!L163=0,"",articles!L163) -> 15611 | F166: =articles!O163 -> 
A167: =A165 -> CLIPS PVC AVEC JOINTS EN COEX BLANC | B167: =IF(articles!C164=0,"",articles!C164) -> CLPV | C167: =IF(articles!D164=0,"",articles!D164) -> 4000 | D167: =IF(articles!AA164<>"",articles!AA164,articles!Z164) -> BLANC | E167: =IF(articles!L164=0,"",articles!L164) -> 15613 | F167: =articles!O164 -> 
A168: =A167 -> CLIPS PVC AVEC JOINTS EN COEX BLANC | B168: =IF(articles!C165=0,"",articles!C165) -> CLPV | C168: =IF(articles!D165=0,"",articles!D165) -> 5000 | D168: =IF(articles!AA165<>"",articles!AA165,articles!Z165) -> BLANC | E168: =IF(articles!L165=0,"",articles!L165) -> 15614 | F168: =articles!O165 -> 
A169: =A167 -> CLIPS PVC AVEC JOINTS EN COEX BLANC | B169: =IF(articles!C166=0,"",articles!C166) -> CLPV | C169: =IF(articles!D166=0,"",articles!D166) -> 6000 | D169: =IF(articles!AA166<>"",articles!AA166,articles!Z166) -> BLANC | E169: =IF(articles!L166=0,"",articles!L166) -> 15615 | F169: =articles!O166 -> 
A170: =A169 -> CLIPS PVC AVEC JOINTS EN COEX BLANC | B170: =IF(articles!C167=0,"",articles!C167) -> CLPV | C170: =IF(articles!D167=0,"",articles!D167) -> 7000 | D170: =IF(articles!AA167<>"",articles!AA167,articles!Z167) -> BLANC | E170: =IF(articles!L167=0,"",articles!L167) -> 15616 | F170: =articles!O167 -> 
A171: =articles!A168 -> BAS CLIPS A VISSER | B171: =IF(articles!C168=0,"",articles!C168) -> CLSB | C171: =IF(articles!D168=0,"",articles!D168) -> 4040 | D171: =IF(articles!AA168<>"",articles!AA168,articles!Z168) -> BRUT | E171: =IF(articles!L168=0,"",articles!L168) -> 23914 | F171: =articles!O168 -> 
A172: =A171 -> BAS CLIPS A VISSER | B172: =IF(articles!C169=0,"",articles!C169) -> CLSB | C172: =IF(articles!D169=0,"",articles!D169) -> 5040 | D172: =IF(articles!AA169<>"",articles!AA169,articles!Z169) -> BRUT | E172: =IF(articles!L169=0,"",articles!L169) -> 23915 | F172: =articles!O169 -> 
A173: =A171 -> BAS CLIPS A VISSER | B173: =IF(articles!C170=0,"",articles!C170) -> CLSB | C173: =IF(articles!D170=0,"",articles!D170) -> 6040 | D173: =IF(articles!AA170<>"",articles!AA170,articles!Z170) -> BRUT | E173: =IF(articles!L170=0,"",articles!L170) -> 23916 | F173: =articles!O170 -> 
A174: =A173 -> BAS CLIPS A VISSER | B174: =IF(articles!C171=0,"",articles!C171) -> CLSB | C174: =IF(articles!D171=0,"",articles!D171) -> 7040 | D174: =IF(articles!AA171<>"",articles!AA171,articles!Z171) -> BRUT | E174: =IF(articles!L171=0,"",articles!L171) -> 23917 | F174: =articles!O171 -> 
A175: =articles!A172 -> TOP SCHROEFBARE CLIPS | B175: =IF(articles!C172=0,"",articles!C172) -> CLST | C175: =IF(articles!D172=0,"",articles!D172) -> 2040 | D175: =IF(articles!AA172<>"",articles!AA172,articles!Z172) -> RAL9010 | E175: =IF(articles!L172=0,"",articles!L172) -> 23934 | F175: =articles!O172 -> 
A176: =A175 -> TOP SCHROEFBARE CLIPS | B176: =IF(articles!C173=0,"",articles!C173) -> CLST | C176: =IF(articles!D173=0,"",articles!D173) -> 2500 | D176: =IF(articles!AA173<>"",articles!AA173,articles!Z173) -> RAL9010 | E176: =IF(articles!L173=0,"",articles!L173) -> 23935 | F176: =articles!O173 -> 
A177: =A175 -> TOP SCHROEFBARE CLIPS | B177: =IF(articles!C174=0,"",articles!C174) -> CLST | C177: =IF(articles!D174=0,"",articles!D174) -> 3040 | D177: =IF(articles!AA174<>"",articles!AA174,articles!Z174) -> RAL9010 | E177: =IF(articles!L174=0,"",articles!L174) -> 23936 | F177: =articles!O174 -> 
A178: =A177 -> TOP SCHROEFBARE CLIPS | B178: =IF(articles!C175=0,"",articles!C175) -> CLST | C178: =IF(articles!D175=0,"",articles!D175) -> 3500 | D178: =IF(articles!AA175<>"",articles!AA175,articles!Z175) -> RAL9010 | E178: =IF(articles!L175=0,"",articles!L175) -> 23937 | F178: =articles!O175 -> 
A179: =A177 -> TOP SCHROEFBARE CLIPS | B179: =IF(articles!C176=0,"",articles!C176) -> CLST | C179: =IF(articles!D176=0,"",articles!D176) -> 4040 | D179: =IF(articles!AA176<>"",articles!AA176,articles!Z176) -> RAL9010 | E179: =IF(articles!L176=0,"",articles!L176) -> 23938 | F179: =articles!O176 -> 
A180: =A179 -> TOP SCHROEFBARE CLIPS | B180: =IF(articles!C177=0,"",articles!C177) -> CLST | C180: =IF(articles!D177=0,"",articles!D177) -> 5040 | D180: =IF(articles!AA177<>"",articles!AA177,articles!Z177) -> RAL9010 | E180: =IF(articles!L177=0,"",articles!L177) -> 23939 | F180: =articles!O177 -> 
A181: =A179 -> TOP SCHROEFBARE CLIPS | B181: =IF(articles!C178=0,"",articles!C178) -> CLST | C181: =IF(articles!D178=0,"",articles!D178) -> 6040 | D181: =IF(articles!AA178<>"",articles!AA178,articles!Z178) -> RAL9010 | E181: =IF(articles!L178=0,"",articles!L178) -> 23940 | F181: =articles!O178 -> 
A182: =A181 -> TOP SCHROEFBARE CLIPS | B182: =IF(articles!C179=0,"",articles!C179) -> CLST | C182: =IF(articles!D179=0,"",articles!D179) -> 7040 | D182: =IF(articles!AA179<>"",articles!AA179,articles!Z179) -> RAL9010 | E182: =IF(articles!L179=0,"",articles!L179) -> 23941 | F182: =articles!O179 -> 
A183: =articles!A180 -> HAUT CLIPS LATERAL A VISSER | B183: =IF(articles!C180=0,"",articles!C180) -> CLSL | C183: =IF(articles!D180=0,"",articles!D180) -> 4040 | D183: =IF(articles!AA180<>"",articles!AA180,articles!Z180) -> RAL9010 | E183: =IF(articles!L180=0,"",articles!L180) -> 25024 | F183: =articles!O180 -> 
A184: =A183 -> HAUT CLIPS LATERAL A VISSER | B184: =IF(articles!C181=0,"",articles!C181) -> CLSL | C184: =IF(articles!D181=0,"",articles!D181) -> 5040 | D184: =IF(articles!AA181<>"",articles!AA181,articles!Z181) -> RAL9010 | E184: =IF(articles!L181=0,"",articles!L181) -> 25025 | F184: =articles!O181 -> 
A185: =A183 -> HAUT CLIPS LATERAL A VISSER | B185: =IF(articles!C182=0,"",articles!C182) -> CLSL | C185: =IF(articles!D182=0,"",articles!D182) -> 6040 | D185: =IF(articles!AA182<>"",articles!AA182,articles!Z182) -> RAL9010 | E185: =IF(articles!L182=0,"",articles!L182) -> 25026 | F185: =articles!O182 -> 
A186: =A185 -> HAUT CLIPS LATERAL A VISSER | B186: =IF(articles!C183=0,"",articles!C183) -> CLSL | C186: =IF(articles!D183=0,"",articles!D183) -> 7040 | D186: =IF(articles!AA183<>"",articles!AA183,articles!Z183) -> RAL9010 | E186: =IF(articles!L183=0,"",articles!L183) -> 25027 | F186: =articles!O183 -> 
A187: =articles!A184 -> GVT CONNECTEUR VERRE TOP | B187: =IF(articles!C184=0,"",articles!C184) -> GVT | C187: =IF(articles!D184=0,"",articles!D184) -> 2000 | D187: =IF(articles!AA184<>"",articles!AA184,articles!Z184) -> RAL9010 | E187: =IF(articles!L184=0,"",articles!L184) -> 61300 | F187: =articles!O184 -> 
A188: =articles!A185&" IN" -> GVT CONNECTEUR VERRE TOP IN | B188: =IF(articles!C185=0,"",articles!C185) -> GVT | C188: =IF(articles!D185=0,"",articles!D185) -> 2000 | D188: =IF(articles!AA185<>"",articles!AA185,articles!Z185) -> RAL9010 | E188: =IF(articles!L185=0,"",articles!L185) -> 61300 | F188: =articles!O185 -> 
A189: =articles!A186 -> GVB CONNECTEUR VERRE BOTTOM | B189: =IF(articles!C186=0,"",articles!C186) -> GVB | C189: =IF(articles!D186=0,"",articles!D186) -> 2000 | D189: =IF(articles!AA186<>"",articles!AA186,articles!Z186) -> RAL9010 | E189: =IF(articles!L186=0,"",articles!L186) -> 61296 | F189: =articles!O186 -> 
A190: =articles!A187 -> GOUTTIERE 120 A | B190: =IF(articles!C187=0,"",articles!C187) -> G120A | C190: =IF(articles!D187=0,"",articles!D187) -> 3500 | D190: =IF(articles!AA187<>"BRUT",articles!AA187,articles!Z187) -> RAL9010 | E190: =IF(articles!L187=0,"",articles!L187) -> 13294 | F190: =articles!O187 -> 
A191: =A190 -> GOUTTIERE 120 A | B191: =IF(articles!C188=0,"",articles!C188) -> G120A | C191: =IF(articles!D188=0,"",articles!D188) -> 5000 | D191: =IF(articles!AA188<>"BRUT",articles!AA188,articles!Z188) -> RAL9010 | E191: =IF(articles!L188=0,"",articles!L188) -> 13295 | F191: =articles!O188 -> 
A192: =A190 -> GOUTTIERE 120 A | B192: =IF(articles!C189=0,"",articles!C189) -> G120A | C192: =IF(articles!D189=0,"",articles!D189) -> 7000 | D192: =IF(articles!AA189<>"BRUT",articles!AA189,articles!Z189) -> RAL9010 | E192: =IF(articles!L189=0,"",articles!L189) -> 13296 | F192: =articles!O189 -> 
A193: =articles!A190 -> PIECE DE REHAUSSE GOUTTIERE | B193: =IF(articles!C190=0,"",articles!C190) -> GR | C193: =IF(articles!D190=0,"",articles!D190) -> 3540 | D193: =IF(articles!AA190<>"",articles!AA190,articles!Z190) -> RAL9010 | E193: =IF(articles!L190=0,"",articles!L190) -> 17828 | F193: =articles!O190 -> 
A194: =A193 -> PIECE DE REHAUSSE GOUTTIERE | B194: =IF(articles!C191=0,"",articles!C191) -> GR | C194: =IF(articles!D191=0,"",articles!D191) -> 5040 | D194: =IF(articles!AA191<>"",articles!AA191,articles!Z191) -> RAL9010 | E194: =IF(articles!L191=0,"",articles!L191) -> 17830 | F194: =articles!O191 -> 
A195: =A193 -> PIECE DE REHAUSSE GOUTTIERE | B195: =IF(articles!C192=0,"",articles!C192) -> GR | C195: =IF(articles!D192=0,"",articles!D192) -> 7040 | D195: =IF(articles!AA192<>"",articles!AA192,articles!Z192) -> RAL9010 | E195: =IF(articles!L192=0,"",articles!L192) -> 17831 | F195: =articles!O192 -> 
A196: =articles!A193 -> GOUTTIERE | B196: =IF(articles!C193=0,"",articles!C193) -> G | C196: =IF(articles!D193=0,"",articles!D193) -> 3540 | D196: =IF(articles!AA193<>"",articles!AA193,articles!Z193) -> RAL9010 | E196: =IF(articles!L193=0,"",articles!L193) -> 21391 | F196: =articles!O193 -> 
A197: =A196 -> GOUTTIERE | B197: =IF(articles!C194=0,"",articles!C194) -> G | C197: =IF(articles!D194=0,"",articles!D194) -> 4250 | D197: =IF(articles!AA194<>"",articles!AA194,articles!Z194) -> RAL9010 | E197: =IF(articles!L194=0,"",articles!L194) -> 23391 | F197: =articles!O194 -> 
A198: =A196 -> GOUTTIERE | B198: =IF(articles!C195=0,"",articles!C195) -> G | C198: =IF(articles!D195=0,"",articles!D195) -> 5040 | D198: =IF(articles!AA195<>"",articles!AA195,articles!Z195) -> RAL9010 | E198: =IF(articles!L195=0,"",articles!L195) -> 21392 | F198: =articles!O195 -> 
A199: =A196 -> GOUTTIERE | B199: =IF(articles!C196=0,"",articles!C196) -> G | C199: =IF(articles!D196=0,"",articles!D196) -> 7040 | D199: =IF(articles!AA196<>"",articles!AA196,articles!Z196) -> RAL9010 | E199: =IF(articles!L196=0,"",articles!L196) -> 21393 | F199: =articles!O196 -> 
A200: =articles!A197 -> GI CONNECTEUR GOUTTIERE G | B200: =IF(articles!C197=0,"",articles!C197) -> GI 0 | C200: =IF(articles!D197=0,"",articles!D197) -> 300 | D200: =IF(articles!AA197<>"",articles!AA197,articles!Z197) -> BRUT | E200: =IF(articles!L197=0,"",articles!L197) -> 27732 | F200: =articles!O197 -> 
A201: =articles!A198 -> GI ANGLE EXTÉRIEUR POUR G 90° | B201: =IF(articles!C198=0,"",articles!C198) -> GI 90 | C201: =IF(articles!D198=0,"",articles!D198) -> 300 | D201: =IF(articles!AA198<>"",articles!AA198,articles!Z198) -> BRUT | E201: =IF(articles!L198=0,"",articles!L198) -> 27559 | F201: =articles!O198 -> 
... 185 more rows

Sheet BOM (hidden)
A2: =taal!A163 -> LISTE DES ARTICLES | B2: =taal!A165 -> PREPARE SOIGNEUSEMENT PAR:
B3: =taal!A148&" :" -> DELAI DE LIVRAISON : | E3: ='input data'!D4 -> 00:00:00 | F3: =IF(offer!F3=0,"",offer!F3) -> 
A4: =OO!A4 -> OUI / / | B4: =offer!E3 -> NUMERO D'OFFRE : | E4: =IF(offer!F3=0,"",offer!F3) -> 
A5: =OO!A5 -> COULEUR THERM | B5: =articles!C2 -> CODE | C5: =articles!D2 -> LONGUEUR | D5: =taal!A51 -> CHOIX DE COULEURS | E5: ART | F5: =articles!O2 -> COMMANDE
A6: =articles!A3 -> PROFILE MURAL BOTTOM PVC | B6: =IF(articles!C3=0,"",articles!C3) -> MP | C6: =IF(articles!D3=0,"",articles!D3) -> 3500 | D6: =IF(articles!AA3<>"",articles!AA3,articles!Z3) -> BLANC | E6: =IF(articles!L3=0,"",articles!L3) -> 17756 | F6: =articles!O3 -> 
A7: =A6 -> PROFILE MURAL BOTTOM PVC | B7: =IF(articles!C4=0,"",articles!C4) -> MP | C7: =IF(articles!D4=0,"",articles!D4) -> 5000 | D7: =IF(articles!AA4<>"",articles!AA4,articles!Z4) -> BLANC | E7: =IF(articles!L4=0,"",articles!L4) -> 17757 | F7: =articles!O4 -> 
A8: =A7 -> PROFILE MURAL BOTTOM PVC | B8: =IF(articles!C5=0,"",articles!C5) -> MP | C8: =IF(articles!D5=0,"",articles!D5) -> 7000 | D8: =IF(articles!AA5<>"",articles!AA5,articles!Z5) -> BLANC | E8: =IF(articles!L5=0,"",articles!L5) -> 17758 | F8: =articles!O5 -> 
A9: =articles!A6 -> PROFILE MURAL ALU | B9: =IF(articles!C6=0,"",articles!C6) -> M16 | C9: =IF(articles!D6=0,"",articles!D6) -> 3500 | D9: =IF(articles!AA6<>"",articles!AA6,articles!Z6) -> RAL9010 | E9: =IF(articles!L6=0,"",articles!L6) -> 15468 | F9: =articles!O6 -> 
A10: =A9 -> PROFILE MURAL ALU | B10: =IF(articles!C7=0,"",articles!C7) -> M16 | C10: =IF(articles!D7=0,"",articles!D7) -> 5000 | D10: =IF(articles!AA7<>"",articles!AA7,articles!Z7) -> RAL9010 | E10: =IF(articles!L7=0,"",articles!L7) -> 15469 | F10: =articles!O7 -> 
A11: =A10 -> PROFILE MURAL ALU | B11: =IF(articles!C8=0,"",articles!C8) -> M16 | C11: =IF(articles!D8=0,"",articles!D8) -> 7000 | D11: =IF(articles!AA8<>"",articles!AA8,articles!Z8) -> RAL9010 | E11: =IF(articles!L8=0,"",articles!L8) -> 15470 | F11: =articles!O8 -> 
A12: =articles!A9 -> MUR TOP ALU | B12: =IF(articles!C9=0,"",articles!C9) -> M32T | C12: =IF(articles!D9=0,"",articles!D9) -> 3500 | D12: =IF(articles!AA9<>"",articles!AA9,articles!Z9) -> RAL9010 | E12: =IF(articles!L9=0,"",articles!L9) -> 13501 | F12: =articles!O9 -> 
A13: =A12 -> MUR TOP ALU | B13: =IF(articles!C10=0,"",articles!C10) -> M32T | C13: =IF(articles!D10=0,"",articles!D10) -> 5000 | D13: =IF(articles!AA10<>"",articles!AA10,articles!Z10) -> RAL9010 | E13: =IF(articles!L10=0,"",articles!L10) -> 13502 | F13: =articles!O10 -> 
A14: =A13 -> MUR TOP ALU | B14: =IF(articles!C11=0,"",articles!C11) -> M32T | C14: =IF(articles!D11=0,"",articles!D11) -> 7000 | D14: =IF(articles!AA11<>"",articles!AA11,articles!Z11) -> RAL9010 | E14: =IF(articles!L11=0,"",articles!L11) -> 13503 | F14: =articles!O11 -> 
A15: =articles!A12 -> PROFILE MURAL BOTTOM ALU | B15: =IF(articles!C12=0,"",articles!C12) -> M32B | C15: =IF(articles!D12=0,"",articles!D12) -> 3500 | D15: =IF(articles!AA12<>"",articles!AA12,articles!Z12) -> BRUT | E15: =IF(articles!L12=0,"",articles!L12) -> 13277 | F15: =articles!O12 -> 
A16: =A15 -> PROFILE MURAL BOTTOM ALU | B16: =IF(articles!C13=0,"",articles!C13) -> M32B | C16: =IF(articles!D13=0,"",articles!D13) -> 5000 | D16: =IF(articles!AA13<>"",articles!AA13,articles!Z13) -> BRUT | E16: =IF(articles!L13=0,"",articles!L13) -> 13280 | F16: =articles!O13 -> 
A17: =A16 -> PROFILE MURAL BOTTOM ALU | B17: =IF(articles!C14=0,"",articles!C14) -> M32B | C17: =IF(articles!D14=0,"",articles!D14) -> 7000 | D17: =IF(articles!AA14<>"",articles!AA14,articles!Z14) -> BRUT | E17: =IF(articles!L14=0,"",articles!L14) -> 13281 | F17: =articles!O14 -> 
A18: =articles!A15 -> PORTEUR PVC | B18: =IF(articles!C15=0,"",articles!C15) -> T16P | C18: =IF(articles!D15=0,"",articles!D15) -> 2000 | D18: =IF(articles!AA15<>"",articles!AA15,articles!Z15) -> BLANC | E18: =IF(articles!L15=0,"",articles!L15) -> 13198 | F18: =articles!O15 -> 
A19: =A18 -> PORTEUR PVC | B19: =IF(articles!C16=0,"",articles!C16) -> T16P | C19: =IF(articles!D16=0,"",articles!D16) -> 2500 | D19: =IF(articles!AA16<>"",articles!AA16,articles!Z16) -> BLANC | E19: =IF(articles!L16=0,"",articles!L16) -> 13202 | F19: =articles!O16 -> 
A20: =A18 -> PORTEUR PVC | B20: =IF(articles!C17=0,"",articles!C17) -> T16P | C20: =IF(articles!D17=0,"",articles!D17) -> 3000 | D20: =IF(articles!AA17<>"",articles!AA17,articles!Z17) -> BLANC | E20: =IF(articles!L17=0,"",articles!L17) -> 13203 | F20: =articles!O17 -> 
A21: =A18 -> PORTEUR PVC | B21: =IF(articles!C18=0,"",articles!C18) -> T16P | C21: =IF(articles!D18=0,"",articles!D18) -> 3500 | D21: =IF(articles!AA18<>"",articles!AA18,articles!Z18) -> BLANC | E21: =IF(articles!L18=0,"",articles!L18) -> 13204 | F21: =articles!O18 -> 
A22: =A18 -> PORTEUR PVC | B22: =IF(articles!C19=0,"",articles!C19) -> T16P | C22: =IF(articles!D19=0,"",articles!D19) -> 4000 | D22: =IF(articles!AA19<>"",articles!AA19,articles!Z19) -> BLANC | E22: =IF(articles!L19=0,"",articles!L19) -> 13205 | F22: =articles!O19 -> 
A23: =A18 -> PORTEUR PVC | B23: =IF(articles!C20=0,"",articles!C20) -> T16P | C23: =IF(articles!D20=0,"",articles!D20) -> 5000 | D23: =IF(articles!AA20<>"",articles!AA20,articles!Z20) -> BLANC | E23: =IF(articles!L20=0,"",articles!L20) -> 15588 | F23: =articles!O20 -> 
A24: =A18 -> PORTEUR PVC | B24: =IF(articles!C21=0,"",articles!C21) -> T16P | C24: =IF(articles!D21=0,"",articles!D21) -> 6000 | D24: =IF(articles!AA21<>"",articles!AA21,articles!Z21) -> BLANC | E24: =IF(articles!L21=0,"",articles!L21) -> 13206 | F24: =articles!O21 -> 
A25: =A18 -> PORTEUR PVC | B25: =IF(articles!C22=0,"",articles!C22) -> T16P | C25: =IF(articles!D22=0,"",articles!D22) -> 7000 | D25: =IF(articles!AA22<>"",articles!AA22,articles!Z22) -> BLANC | E25: =IF(articles!L22=0,"",articles!L22) -> 13207 | F25: =articles!O22 -> 
A26: =articles!A23 -> PORTEUR ALU | B26: =IF(articles!C23=0,"",articles!C23) -> T16.1 | C26: =IF(articles!D23=0,"",articles!D23) -> 2000 | D26: =IF(articles!AA23<>"",articles!AA23,articles!Z23) -> BRUT | E26: =IF(articles!L23=0,"",articles!L23) -> 13169 | F26: =articles!O23 -> 
A27: =A26 -> PORTEUR ALU | B27: =IF(articles!C24=0,"",articles!C24) -> T16.1 | C27: =IF(articles!D24=0,"",articles!D24) -> 2500 | D27: =IF(articles!AA24<>"",articles!AA24,articles!Z24) -> BRUT | E27: =IF(articles!L24=0,"",articles!L24) -> 13170 | F27: =articles!O24 -> 
A28: =A26 -> PORTEUR ALU | B28: =IF(articles!C25=0,"",articles!C25) -> T16.1 | C28: =IF(articles!D25=0,"",articles!D25) -> 3000 | D28: =IF(articles!AA25<>"",articles!AA25,articles!Z25) -> BRUT | E28: =IF(articles!L25=0,"",articles!L25) -> 13171 | F28: =articles!O25 -> 
A29: =A26 -> PORTEUR ALU | B29: =IF(articles!C26=0,"",articles!C26) -> T16.1 | C29: =IF(articles!D26=0,"",articles!D26) -> 3500 | D29: =IF(articles!AA26<>"",articles!AA26,articles!Z26) -> BRUT | E29: =IF(articles!L26=0,"",articles!L26) -> 13172 | F29: =articles!O26 -> 
A30: =A26 -> PORTEUR ALU | B30: =IF(articles!C27=0,"",articles!C27) -> T16.1 | C30: =IF(articles!D27=0,"",articles!D27) -> 4000 | D30: =IF(articles!AA27<>"",articles!AA27,articles!Z27) -> BRUT | E30: =IF(articles!L27=0,"",articles!L27) -> 13173 | F30: =articles!O27 -> 
A31: =A26 -> PORTEUR ALU | B31: =IF(articles!C28=0,"",articles!C28) -> T16.1 | C31: =IF(articles!D28=0,"",articles!D28) -> 5000 | D31: =IF(articles!AA28<>"",articles!AA28,articles!Z28) -> BRUT | E31: =IF(articles!L28=0,"",articles!L28) -> 14537 | F31: =articles!O28 -> 
A32: =A26 -> PORTEUR ALU | B32: =IF(articles!C29=0,"",articles!C29) -> T16.1 | C32: =IF(articles!D29=0,"",articles!D29) -> 6000 | D32: =IF(articles!AA29<>"",articles!AA29,articles!Z29) -> BRUT | E32: =IF(articles!L29=0,"",articles!L29) -> 13174 | F32: =articles!O29 -> 
A33: =A26 -> PORTEUR ALU | B33: =IF(articles!C30=0,"",articles!C30) -> T16.1 | C33: =IF(articles!D30=0,"",articles!D30) -> 7000 | D33: =IF(articles!AA30<>"",articles!AA30,articles!Z30) -> BRUT | E33: =IF(articles!L30=0,"",articles!L30) -> 13175 | F33: =articles!O30 -> 
A34: =articles!A31 -> PORTEUR ALU | B34: =IF(articles!C31=0,"",articles!C31) -> T16.2 | C34: =IF(articles!D31=0,"",articles!D31) -> 2000 | D34: =IF(articles!AA31<>"",articles!AA31,articles!Z31) -> RAL9010 | E34: =IF(articles!L31=0,"",articles!L31) -> 13184 | F34: =articles!O31 -> 
A35: =A34 -> PORTEUR ALU | B35: =IF(articles!C32=0,"",articles!C32) -> T16.2 | C35: =IF(articles!D32=0,"",articles!D32) -> 2500 | D35: =IF(articles!AA32<>"",articles!AA32,articles!Z32) -> RAL9010 | E35: =IF(articles!L32=0,"",articles!L32) -> 13185 | F35: =articles!O32 -> 
A36: =A34 -> PORTEUR ALU | B36: =IF(articles!C33=0,"",articles!C33) -> T16.2 | C36: =IF(articles!D33=0,"",articles!D33) -> 3000 | D36: =IF(articles!AA33<>"",articles!AA33,articles!Z33) -> RAL9010 | E36: =IF(articles!L33=0,"",articles!L33) -> 13186 | F36: =articles!O33 -> 
A37: =A34 -> PORTEUR ALU | B37: =IF(articles!C34=0,"",articles!C34) -> T16.2 | C37: =IF(articles!D34=0,"",articles!D34) -> 3500 | D37: =IF(articles!AA34<>"",articles!AA34,articles!Z34) -> RAL9010 | E37: =IF(articles!L34=0,"",articles!L34) -> 13187 | F37: =articles!O34 -> 
A38: =A34 -> PORTEUR ALU | B38: =IF(articles!C35=0,"",articles!C35) -> T16.2 | C38: =IF(articles!D35=0,"",articles!D35) -> 4000 | D38: =IF(articles!AA35<>"",articles!AA35,articles!Z35) -> RAL9010 | E38: =IF(articles!L35=0,"",articles!L35) -> 13188 | F38: =articles!O35 -> 
A39: =A34 -> PORTEUR ALU | B39: =IF(articles!C36=0,"",articles!C36) -> T16.2 | C39: =IF(articles!D36=0,"",articles!D36) -> 5000 | D39: =IF(articles!AA36<>"",articles!AA36,articles!Z36) -> RAL9010 | E39: =IF(articles!L36=0,"",articles!L36) -> 14606 | F39: =articles!O36 -> 
A40: =A34 -> PORTEUR ALU | B40: =IF(articles!C37=0,"",articles!C37) -> T16.2 | C40: =IF(articles!D37=0,"",articles!D37) -> 6000 | D40: =IF(articles!AA37<>"",articles!AA37,articles!Z37) -> RAL9010 | E40: =IF(articles!L37=0,"",articles!L37) -> 13189 | F40: =articles!O37 -> 
A41: =A34 -> PORTEUR ALU | B41: =IF(articles!C38=0,"",articles!C38) -> T16.2 | C41: =IF(articles!D38=0,"",articles!D38) -> 7000 | D41: =IF(articles!AA38<>"",articles!AA38,articles!Z38) -> RAL9010 | E41: =IF(articles!L38=0,"",articles!L38) -> 13190 | F41: =articles!O38 -> 
A42: =articles!A39 -> PORTEUR ALU | B42: =IF(articles!C39=0,"",articles!C39) -> T32.1 | C42: =IF(articles!D39=0,"",articles!D39) -> 2000 | D42: =IF(articles!AA39<>"",articles!AA39,articles!Z39) -> RAL9010 | E42: =IF(articles!L39=0,"",articles!L39) -> 14391 | F42: =articles!O39 -> 
A43: =A42 -> PORTEUR ALU | B43: =IF(articles!C40=0,"",articles!C40) -> T32.1 | C43: =IF(articles!D40=0,"",articles!D40) -> 2500 | D43: =IF(articles!AA40<>"",articles!AA40,articles!Z40) -> RAL9010 | E43: =IF(articles!L40=0,"",articles!L40) -> 14392 | F43: =articles!O40 -> 
A44: =A42 -> PORTEUR ALU | B44: =IF(articles!C41=0,"",articles!C41) -> T32.1 | C44: =IF(articles!D41=0,"",articles!D41) -> 3000 | D44: =IF(articles!AA41<>"",articles!AA41,articles!Z41) -> RAL9010 | E44: =IF(articles!L41=0,"",articles!L41) -> 14393 | F44: =articles!O41 -> 
A45: =A42 -> PORTEUR ALU | B45: =IF(articles!C42=0,"",articles!C42) -> T32.1 | C45: =IF(articles!D42=0,"",articles!D42) -> 3500 | D45: =IF(articles!AA42<>"",articles!AA42,articles!Z42) -> RAL9010 | E45: =IF(articles!L42=0,"",articles!L42) -> 14394 | F45: =articles!O42 -> 
A46: =A42 -> PORTEUR ALU | B46: =IF(articles!C43=0,"",articles!C43) -> T32.1 | C46: =IF(articles!D43=0,"",articles!D43) -> 4000 | D46: =IF(articles!AA43<>"",articles!AA43,articles!Z43) -> RAL9010 | E46: =IF(articles!L43=0,"",articles!L43) -> 14395 | F46: =articles!O43 -> 
A47: =A42 -> PORTEUR ALU | B47: =IF(articles!C44=0,"",articles!C44) -> T32.1 | C47: =IF(articles!D44=0,"",articles!D44) -> 5000 | D47: =IF(articles!AA44<>"",articles!AA44,articles!Z44) -> RAL9010 | E47: =IF(articles!L44=0,"",articles!L44) -> 14396 | F47: =articles!O44 -> 
A48: =A42 -> PORTEUR ALU | B48: =IF(articles!C45=0,"",articles!C45) -> T32.1 | C48: =IF(articles!D45=0,"",articles!D45) -> 6000 | D48: =IF(articles!AA45<>"",articles!AA45,articles!Z45) -> RAL9010 | E48: =IF(articles!L45=0,"",articles!L45) -> 14397 | F48: =articles!O45 -> 
A49: =A42 -> PORTEUR ALU | B49: =IF(articles!C46=0,"",articles!C46) -> T32.1 | C49: =IF(articles!D46=0,"",articles!D46) -> 7000 | D49: =IF(articles!AA46<>"",articles!AA46,articles!Z46) -> RAL9010 | E49: =IF(articles!L46=0,"",articles!L46) -> 14398 | F49: =articles!O46 -> 
A50: =articles!A47 -> PORTEUR PLAQUE THERMIQUE BLANC | B50: =IF(articles!C47=0,"",articles!C47) -> TP | C50: =IF(articles!D47=0,"",articles!D47) -> 2700 | D50: =IF(articles!AA47<>"",articles!AA47,articles!Z47) -> BLANC | E50: =IF(articles!L47=0,"",articles!L47) -> 21277 | F50: =articles!O47 -> 
A51: =A50 -> PORTEUR PLAQUE THERMIQUE BLANC | B51: =IF(articles!C48=0,"",articles!C48) -> TP | C51: =IF(articles!D48=0,"",articles!D48) -> 3200 | D51: =IF(articles!AA48<>"",articles!AA48,articles!Z48) -> BLANC | E51: =IF(articles!L48=0,"",articles!L48) -> 21278 | F51: =articles!O48 -> 
A52: =A50 -> PORTEUR PLAQUE THERMIQUE BLANC | B52: =IF(articles!C49=0,"",articles!C49) -> TP | C52: =IF(articles!D49=0,"",articles!D49) -> 3700 | D52: =IF(articles!AA49<>"",articles!AA49,articles!Z49) -> BLANC | E52: =IF(articles!L49=0,"",articles!L49) -> 21279 | F52: =articles!O49 -> 
A53: =A50 -> PORTEUR PLAQUE THERMIQUE BLANC | B53: =IF(articles!C50=0,"",articles!C50) -> TP | C53: =IF(articles!D50=0,"",articles!D50) -> 4200 | D53: =IF(articles!AA50<>"",articles!AA50,articles!Z50) -> BLANC | E53: =IF(articles!L50=0,"",articles!L50) -> 21280 | F53: =articles!O50 -> 
A54: =A50 -> PORTEUR PLAQUE THERMIQUE BLANC | B54: =IF(articles!C51=0,"",articles!C51) -> TP | C54: =IF(articles!D51=0,"",articles!D51) -> 5200 | D54: =IF(articles!AA51<>"",articles!AA51,articles!Z51) -> BLANC | E54: =IF(articles!L51=0,"",articles!L51) -> 24468 | F54: =articles!O51 -> 
A55: =A50 -> PORTEUR PLAQUE THERMIQUE BLANC | B55: =IF(articles!C52=0,"",articles!C52) -> TP | C55: =IF(articles!D52=0,"",articles!D52) -> 6200 | D55: =IF(articles!AA52<>"",articles!AA52,articles!Z52) -> BLANC | E55: =IF(articles!L52=0,"",articles!L52) -> 21281 | F55: =articles!O52 -> 
A56: =articles!A53 -> PORTEUR PLAQUE THERMIQUE VERRE | B56: =IF(articles!C53=0,"",articles!C53) -> TPG | C56: =IF(articles!D53=0,"",articles!D53) -> 4200 | D56: =IF(articles!AA53<>"",articles!AA53,articles!Z53) -> BLANC | E56: =IF(articles!L53=0,"",articles!L53) -> 25055 | F56: =articles!O53 -> 
A57: =A56 -> PORTEUR PLAQUE THERMIQUE VERRE | B57: =IF(articles!C54=0,"",articles!C54) -> TPG | C57: =IF(articles!D54=0,"",articles!D54) -> 5200 | D57: =IF(articles!AA54<>"",articles!AA54,articles!Z54) -> BLANC | E57: =IF(articles!L54=0,"",articles!L54) -> 25056 | F57: =articles!O54 -> 
A58: =A56 -> PORTEUR PLAQUE THERMIQUE VERRE | B58: =IF(articles!C55=0,"",articles!C55) -> TPG | C58: =IF(articles!D55=0,"",articles!D55) -> 6200 | D58: =IF(articles!AA55<>"",articles!AA55,articles!Z55) -> BLANC | E58: =IF(articles!L55=0,"",articles!L55) -> 25057 | F58: =articles!O55 -> 
A59: =A56 -> PORTEUR PLAQUE THERMIQUE VERRE | B59: =IF(articles!C56=0,"",articles!C56) -> TPG | C59: =IF(articles!D56=0,"",articles!D56) -> 7200 | D59: =IF(articles!AA56<>"",articles!AA56,articles!Z56) -> BLANC | E59: =IF(articles!L56=0,"",articles!L56) -> 25058 | F59: =articles!O56 -> 
A60: =articles!A57 -> PORTEUR ALU POUR TP(G) | B60: =IF(articles!C57=0,"",articles!C57) -> TPH | C60: =IF(articles!D57=0,"",articles!D57) -> 2600 | D60: =IF(articles!AA57<>"",articles!AA57,articles!Z57) -> RAL9010 | E60: =IF(articles!L57=0,"",articles!L57) -> 22585 | F60: =articles!O57 -> 
A61: =A60 -> PORTEUR ALU POUR TP(G) | B61: =IF(articles!C58=0,"",articles!C58) -> TPH | C61: =IF(articles!D58=0,"",articles!D58) -> 3100 | D61: =IF(articles!AA58<>"",articles!AA58,articles!Z58) -> RAL9010 | E61: =IF(articles!L58=0,"",articles!L58) -> 22586 | F61: =articles!O58 -> 
A62: =A60 -> PORTEUR ALU POUR TP(G) | B62: =IF(articles!C59=0,"",articles!C59) -> TPH | C62: =IF(articles!D59=0,"",articles!D59) -> 3600 | D62: =IF(articles!AA59<>"",articles!AA59,articles!Z59) -> RAL9010 | E62: =IF(articles!L59=0,"",articles!L59) -> 22587 | F62: =articles!O59 -> 
A63: =A60 -> PORTEUR ALU POUR TP(G) | B63: =IF(articles!C60=0,"",articles!C60) -> TPH | C63: =IF(articles!D60=0,"",articles!D60) -> 4100 | D63: =IF(articles!AA60<>"",articles!AA60,articles!Z60) -> RAL9010 | E63: =IF(articles!L60=0,"",articles!L60) -> 22588 | F63: =articles!O60 -> 
A64: =A60 -> PORTEUR ALU POUR TP(G) | B64: =IF(articles!C61=0,"",articles!C61) -> TPH | C64: =IF(articles!D61=0,"",articles!D61) -> 5100 | D64: =IF(articles!AA61<>"",articles!AA61,articles!Z61) -> RAL9010 | E64: =IF(articles!L61=0,"",articles!L61) -> 25067 | F64: =articles!O61 -> 
A65: =A60 -> PORTEUR ALU POUR TP(G) | B65: =IF(articles!C62=0,"",articles!C62) -> TPH | C65: =IF(articles!D62=0,"",articles!D62) -> 6100 | D65: =IF(articles!AA62<>"",articles!AA62,articles!Z62) -> RAL9010 | E65: =IF(articles!L62=0,"",articles!L62) -> 22589 | F65: =articles!O62 -> 
A66: =articles!A63 -> PORTEUR LATERAL PVC | B66: =IF(articles!C63=0,"",articles!C63) -> LP | C66: =IF(articles!D63=0,"",articles!D63) -> 2000 | D66: =IF(articles!AA63<>"",articles!AA63,articles!Z63) -> BLANC | E66: =IF(articles!L63=0,"",articles!L63) -> 17766 | F66: =articles!O63 -> 
A67: =A66 -> PORTEUR LATERAL PVC | B67: =IF(articles!C64=0,"",articles!C64) -> LP | C67: =IF(articles!D64=0,"",articles!D64) -> 2500 | D67: =IF(articles!AA64<>"",articles!AA64,articles!Z64) -> BLANC | E67: =IF(articles!L64=0,"",articles!L64) -> 17767 | F67: =articles!O64 -> 
A68: =A66 -> PORTEUR LATERAL PVC | B68: =IF(articles!C65=0,"",articles!C65) -> LP | C68: =IF(articles!D65=0,"",articles!D65) -> 3000 | D68: =IF(articles!AA65<>"",articles!AA65,articles!Z65) -> BLANC | E68: =IF(articles!L65=0,"",articles!L65) -> 17768 | F68: =articles!O65 -> 
A69: =A66 -> PORTEUR LATERAL PVC | B69: =IF(articles!C66=0,"",articles!C66) -> LP | C69: =IF(articles!D66=0,"",articles!D66) -> 3500 | D69: =IF(articles!AA66<>"",articles!AA66,articles!Z66) -> BLANC | E69: =IF(articles!L66=0,"",articles!L66) -> 17769 | F69: =articles!O66 -> 
A70: =A66 -> PORTEUR LATERAL PVC | B70: =IF(articles!C67=0,"",articles!C67) -> LP | C70: =IF(articles!D67=0,"",articles!D67) -> 4000 | D70: =IF(articles!AA67<>"",articles!AA67,articles!Z67) -> BLANC | E70: =IF(articles!L67=0,"",articles!L67) -> 17770 | F70: =articles!O67 -> 
A71: =A66 -> PORTEUR LATERAL PVC | B71: =IF(articles!C68=0,"",articles!C68) -> LP | C71: =IF(articles!D68=0,"",articles!D68) -> 5000 | D71: =IF(articles!AA68<>"",articles!AA68,articles!Z68) -> BLANC | E71: =IF(articles!L68=0,"",articles!L68) -> 17771 | F71: =articles!O68 -> 
A72: =A66 -> PORTEUR LATERAL PVC | B72: =IF(articles!C69=0,"",articles!C69) -> LP | C72: =IF(articles!D69=0,"",articles!D69) -> 6000 | D72: =IF(articles!AA69<>"",articles!AA69,articles!Z69) -> BLANC | E72: =IF(articles!L69=0,"",articles!L69) -> 17772 | F72: =articles!O69 -> 
A73: =A66 -> PORTEUR LATERAL PVC | B73: =IF(articles!C70=0,"",articles!C70) -> LP | C73: =IF(articles!D70=0,"",articles!D70) -> 7000 | D73: =IF(articles!AA70<>"",articles!AA70,articles!Z70) -> BLANC | E73: =IF(articles!L70=0,"",articles!L70) -> 17773 | F73: =articles!O70 -> 
A74: =articles!A71 -> PORTEUR LATERAL ALU | B74: =IF(articles!C71=0,"",articles!C71) -> L16 | C74: =IF(articles!D71=0,"",articles!D71) -> 2000 | D74: =IF(articles!AA71<>"",articles!AA71,articles!Z71) -> BRUT | E74: =IF(articles!L71=0,"",articles!L71) -> 15679 | F74: =articles!O71 -> 
A75: =A74 -> PORTEUR LATERAL ALU | B75: =IF(articles!C72=0,"",articles!C72) -> L16 | C75: =IF(articles!D72=0,"",articles!D72) -> 2500 | D75: =IF(articles!AA72<>"",articles!AA72,articles!Z72) -> BRUT | E75: =IF(articles!L72=0,"",articles!L72) -> 13221 | F75: =articles!O72 -> 
A76: =A74 -> PORTEUR LATERAL ALU | B76: =IF(articles!C73=0,"",articles!C73) -> L16 | C76: =IF(articles!D73=0,"",articles!D73) -> 3000 | D76: =IF(articles!AA73<>"",articles!AA73,articles!Z73) -> BRUT | E76: =IF(articles!L73=0,"",articles!L73) -> 13222 | F76: =articles!O73 -> 
A77: =A74 -> PORTEUR LATERAL ALU | B77: =IF(articles!C74=0,"",articles!C74) -> L16 | C77: =IF(articles!D74=0,"",articles!D74) -> 3500 | D77: =IF(articles!AA74<>"",articles!AA74,articles!Z74) -> BRUT | E77: =IF(articles!L74=0,"",articles!L74) -> 13223 | F77: =articles!O74 -> 
A78: =A74 -> PORTEUR LATERAL ALU | B78: =IF(articles!C75=0,"",articles!C75) -> L16 | C78: =IF(articles!D75=0,"",articles!D75) -> 4000 | D78: =IF(articles!AA75<>"",articles!AA75,articles!Z75) -> BRUT | E78: =IF(articles!L75=0,"",articles!L75) -> 13224 | F78: =articles!O75 -> 
A79: =A74 -> PORTEUR LATERAL ALU | B79: =IF(articles!C76=0,"",articles!C76) -> L16 | C79: =IF(articles!D76=0,"",articles!D76) -> 5000 | D79: =IF(articles!AA76<>"",articles!AA76,articles!Z76) -> BRUT | E79: =IF(articles!L76=0,"",articles!L76) -> 14624 | F79: =articles!O76 -> 
A80: =A74 -> PORTEUR LATERAL ALU | B80: =IF(articles!C77=0,"",articles!C77) -> L16 | C80: =IF(articles!D77=0,"",articles!D77) -> 6000 | D80: =IF(articles!AA77<>"",articles!AA77,articles!Z77) -> BRUT | E80: =IF(articles!L77=0,"",articles!L77) -> 13225 | F80: =articles!O77 -> 
A81: =A74 -> PORTEUR LATERAL ALU | B81: =IF(articles!C78=0,"",articles!C78) -> L16 | C81: =IF(articles!D78=0,"",articles!D78) -> 7000 | D81: =IF(articles!AA78<>"",articles!AA78,articles!Z78) -> BRUT | E81: =IF(articles!L78=0,"",articles!L78) -> 13226 | F81: =articles!O78 -> 
A82: =articles!A79 -> FINITION LATERALE L16P | B82: =IF(articles!C79=0,"",articles!C79) -> L16P | C82: =IF(articles!D79=0,"",articles!D79) -> 2540 | D82: =IF(articles!AA79<>"",articles!AA79,articles!Z79) -> RAL9010 | E82: =IF(articles!L79=0,"",articles!L79) -> 15478 | F82: =articles!O79 -> 
A83: =A82 -> FINITION LATERALE L16P | B83: =IF(articles!C80=0,"",articles!C80) -> L16P | C83: =IF(articles!D80=0,"",articles!D80) -> 3040 | D83: =IF(articles!AA80<>"",articles!AA80,articles!Z80) -> RAL9010 | E83: =IF(articles!L80=0,"",articles!L80) -> 15479 | F83: =articles!O80 -> 
A84: =A82 -> FINITION LATERALE L16P | B84: =IF(articles!C81=0,"",articles!C81) -> L16P | C84: =IF(articles!D81=0,"",articles!D81) -> 3540 | D84: =IF(articles!AA81<>"",articles!AA81,articles!Z81) -> RAL9010 | E84: =IF(articles!L81=0,"",articles!L81) -> 15480 | F84: =articles!O81 -> 
A85: =A82 -> FINITION LATERALE L16P | B85: =IF(articles!C82=0,"",articles!C82) -> L16P | C85: =IF(articles!D82=0,"",articles!D82) -> 4040 | D85: =IF(articles!AA82<>"",articles!AA82,articles!Z82) -> RAL9010 | E85: =IF(articles!L82=0,"",articles!L82) -> 15481 | F85: =articles!O82 -> 
A86: =A82 -> FINITION LATERALE L16P | B86: =IF(articles!C83=0,"",articles!C83) -> L16P | C86: =IF(articles!D83=0,"",articles!D83) -> 5040 | D86: =IF(articles!AA83<>"",articles!AA83,articles!Z83) -> RAL9010 | E86: =IF(articles!L83=0,"",articles!L83) -> 15482 | F86: =articles!O83 -> 
A87: =A82 -> FINITION LATERALE L16P | B87: =IF(articles!C84=0,"",articles!C84) -> L16P | C87: =IF(articles!D84=0,"",articles!D84) -> 7040 | D87: =IF(articles!AA84<>"",articles!AA84,articles!Z84) -> RAL9010 | E87: =IF(articles!L84=0,"",articles!L84) -> 15483 | F87: =articles!O84 -> 
A88: =articles!A85 -> PORTEUR LATERAL ALU | B88: =IF(articles!C85=0,"",articles!C85) -> LT16 | C88: =IF(articles!D85=0,"",articles!D85) -> 2000 | D88: =IF(articles!AA85<>"",articles!AA85,articles!Z85) -> RAL9010 | E88: =IF(articles!L85=0,"",articles!L85) -> 16216 | F88: =articles!O85 -> 
A89: =A88 -> PORTEUR LATERAL ALU | B89: =IF(articles!C86=0,"",articles!C86) -> LT16 | C89: =IF(articles!D86=0,"",articles!D86) -> 2500 | D89: =IF(articles!AA86<>"",articles!AA86,articles!Z86) -> RAL9010 | E89: =IF(articles!L86=0,"",articles!L86) -> 15534 | F89: =articles!O86 -> 
A90: =A88 -> PORTEUR LATERAL ALU | B90: =IF(articles!C87=0,"",articles!C87) -> LT16 | C90: =IF(articles!D87=0,"",articles!D87) -> 3000 | D90: =IF(articles!AA87<>"",articles!AA87,articles!Z87) -> RAL9010 | E90: =IF(articles!L87=0,"",articles!L87) -> 15535 | F90: =articles!O87 -> 
A91: =A88 -> PORTEUR LATERAL ALU | B91: =IF(articles!C88=0,"",articles!C88) -> LT16 | C91: =IF(articles!D88=0,"",articles!D88) -> 3500 | D91: =IF(articles!AA88<>"",articles!AA88,articles!Z88) -> RAL9010 | E91: =IF(articles!L88=0,"",articles!L88) -> 15536 | F91: =articles!O88 -> 
A92: =A88 -> PORTEUR LATERAL ALU | B92: =IF(articles!C89=0,"",articles!C89) -> LT16 | C92: =IF(articles!D89=0,"",articles!D89) -> 4000 | D92: =IF(articles!AA89<>"",articles!AA89,articles!Z89) -> RAL9010 | E92: =IF(articles!L89=0,"",articles!L89) -> 15537 | F92: =articles!O89 -> 
A93: =A88 -> PORTEUR LATERAL ALU | B93: =IF(articles!C90=0,"",articles!C90) -> LT16 | C93: =IF(articles!D90=0,"",articles!D90) -> 5000 | D93: =IF(articles!AA90<>"",articles!AA90,articles!Z90) -> RAL9010 | E93: =IF(articles!L90=0,"",articles!L90) -> 15538 | F93: =articles!O90 -> 
A94: =A88 -> PORTEUR LATERAL ALU | B94: =IF(articles!C91=0,"",articles!C91) -> LT16 | C94: =IF(articles!D91=0,"",articles!D91) -> 6000 | D94: =IF(articles!AA91<>"",articles!AA91,articles!Z91) -> RAL9010 | E94: =IF(articles!L91=0,"",articles!L91) -> 15539 | F94: =articles!O91 -> 
A95: =A88 -> PORTEUR LATERAL ALU | B95: =IF(articles!C92=0,"",articles!C92) -> LT16 | C95: =IF(articles!D92=0,"",articles!D92) -> 7000 | D95: =IF(articles!AA92<>"",articles!AA92,articles!Z92) -> RAL9010 | E95: =IF(articles!L92=0,"",articles!L92) -> 15540 | F95: =articles!O92 -> 
A96: =articles!A93 -> PORTEUR LATERAL ALU | B96: =IF(articles!C93=0,"",articles!C93) -> L32 | C96: =IF(articles!D93=0,"",articles!D93) -> 2000 | D96: =IF(articles!AA93<>"",articles!AA93,articles!Z93) -> BRUT | E96: =IF(articles!L93=0,"",articles!L93) -> 15713 | F96: =articles!O93 -> 
A97: =A96 -> PORTEUR LATERAL ALU | B97: =IF(articles!C94=0,"",articles!C94) -> L32 | C97: =IF(articles!D94=0,"",articles!D94) -> 2500 | D97: =IF(articles!AA94<>"",articles!AA94,articles!Z94) -> BRUT | E97: =IF(articles!L94=0,"",articles!L94) -> 14230 | F97: =articles!O94 -> 
A98: =A96 -> PORTEUR LATERAL ALU | B98: =IF(articles!C95=0,"",articles!C95) -> L32 | C98: =IF(articles!D95=0,"",articles!D95) -> 3000 | D98: =IF(articles!AA95<>"",articles!AA95,articles!Z95) -> BRUT | E98: =IF(articles!L95=0,"",articles!L95) -> 14231 | F98: =articles!O95 -> 
A99: =A96 -> PORTEUR LATERAL ALU | B99: =IF(articles!C96=0,"",articles!C96) -> L32 | C99: =IF(articles!D96=0,"",articles!D96) -> 3500 | D99: =IF(articles!AA96<>"",articles!AA96,articles!Z96) -> BRUT | E99: =IF(articles!L96=0,"",articles!L96) -> 14232 | F99: =articles!O96 -> 
A100: =A96 -> PORTEUR LATERAL ALU | B100: =IF(articles!C97=0,"",articles!C97) -> L32 | C100: =IF(articles!D97=0,"",articles!D97) -> 4000 | D100: =IF(articles!AA97<>"",articles!AA97,articles!Z97) -> BRUT | E100: =IF(articles!L97=0,"",articles!L97) -> 14233 | F100: =articles!O97 -> 
A101: =A96 -> PORTEUR LATERAL ALU | B101: =IF(articles!C98=0,"",articles!C98) -> L32 | C101: =IF(articles!D98=0,"",articles!D98) -> 5000 | D101: =IF(articles!AA98<>"",articles!AA98,articles!Z98) -> BRUT | E101: =IF(articles!L98=0,"",articles!L98) -> 14234 | F101: =articles!O98 -> 
A102: =A96 -> PORTEUR LATERAL ALU | B102: =IF(articles!C99=0,"",articles!C99) -> L32 | C102: =IF(articles!D99=0,"",articles!D99) -> 6000 | D102: =IF(articles!AA99<>"",articles!AA99,articles!Z99) -> BRUT | E102: =IF(articles!L99=0,"",articles!L99) -> 14235 | F102: =articles!O99 -> 
A103: =A96 -> PORTEUR LATERAL ALU | B103: =IF(articles!C100=0,"",articles!C100) -> L32 | C103: =IF(articles!D100=0,"",articles!D100) -> 7000 | D103: =IF(articles!AA100<>"",articles!AA100,articles!Z100) -> BRUT | E103: =IF(articles!L100=0,"",articles!L100) -> 14238 | F103: =articles!O100 -> 
A104: =articles!A101 -> PORTEUR LATERAL ALU | B104: =IF(articles!C101=0,"",articles!C101) -> LT32 | C104: =IF(articles!D101=0,"",articles!D101) -> 2000 | D104: =IF(articles!AA101<>"",articles!AA101,articles!Z101) -> RAL9010 | E104: =IF(articles!L101=0,"",articles!L101) -> 15770 | F104: =articles!O101 -> 
A105: =A104 -> PORTEUR LATERAL ALU | B105: =IF(articles!C102=0,"",articles!C102) -> LT32 | C105: =IF(articles!D102=0,"",articles!D102) -> 2500 | D105: =IF(articles!AA102<>"",articles!AA102,articles!Z102) -> RAL9010 | E105: =IF(articles!L102=0,"",articles!L102) -> 15556 | F105: =articles!O102 -> 
A106: =A104 -> PORTEUR LATERAL ALU | B106: =IF(articles!C103=0,"",articles!C103) -> LT32 | C106: =IF(articles!D103=0,"",articles!D103) -> 3000 | D106: =IF(articles!AA103<>"",articles!AA103,articles!Z103) -> RAL9010 | E106: =IF(articles!L103=0,"",articles!L103) -> 15557 | F106: =articles!O103 -> 
A107: =A104 -> PORTEUR LATERAL ALU | B107: =IF(articles!C104=0,"",articles!C104) -> LT32 | C107: =IF(articles!D104=0,"",articles!D104) -> 3500 | D107: =IF(articles!AA104<>"",articles!AA104,articles!Z104) -> RAL9010 | E107: =IF(articles!L104=0,"",articles!L104) -> 15558 | F107: =articles!O104 -> 
A108: =A104 -> PORTEUR LATERAL ALU | B108: =IF(articles!C105=0,"",articles!C105) -> LT32 | C108: =IF(articles!D105=0,"",articles!D105) -> 4000 | D108: =IF(articles!AA105<>"",articles!AA105,articles!Z105) -> RAL9010 | E108: =IF(articles!L105=0,"",articles!L105) -> 15569 | F108: =articles!O105 -> 
A109: =A104 -> PORTEUR LATERAL ALU | B109: =IF(articles!C106=0,"",articles!C106) -> LT32 | C109: =IF(articles!D106=0,"",articles!D106) -> 5000 | D109: =IF(articles!AA106<>"",articles!AA106,articles!Z106) -> RAL9010 | E109: =IF(articles!L106=0,"",articles!L106) -> 15570 | F109: =articles!O106 -> 
A110: =A104 -> PORTEUR LATERAL ALU | B110: =IF(articles!C107=0,"",articles!C107) -> LT32 | C110: =IF(articles!D107=0,"",articles!D107) -> 7000 | D110: =IF(articles!AA107<>"",articles!AA107,articles!Z107) -> RAL9010 | E110: =IF(articles!L107=0,"",articles!L107) -> 15572 | F110: =articles!O107 -> 
A111: =articles!A108 -> PORTEUR LATERAL THERMIQUE VERRE | B111: =IF(articles!C108=0,"",articles!C108) -> TPGL | C111: =IF(articles!D108=0,"",articles!D108) -> 4200 | D111: =IF(articles!AA108<>"",articles!AA108,articles!Z108) -> BLANC | E111: =IF(articles!L108=0,"",articles!L108) -> 25059 | F111: =articles!O108 -> 
A112: =A111 -> PORTEUR LATERAL THERMIQUE VERRE | B112: =IF(articles!C109=0,"",articles!C109) -> TPGL | C112: =IF(articles!D109=0,"",articles!D109) -> 5200 | D112: =IF(articles!AA109<>"",articles!AA109,articles!Z109) -> BLANC | E112: =IF(articles!L109=0,"",articles!L109) -> 25060 | F112: =articles!O109 -> 
A113: =A111 -> PORTEUR LATERAL THERMIQUE VERRE | B113: =IF(articles!C110=0,"",articles!C110) -> TPGL | C113: =IF(articles!D110=0,"",articles!D110) -> 6200 | D113: =IF(articles!AA110<>"",articles!AA110,articles!Z110) -> BLANC | E113: =IF(articles!L110=0,"",articles!L110) -> 25061 | F113: =articles!O110 -> 
A114: =A111 -> PORTEUR LATERAL THERMIQUE VERRE | B114: =IF(articles!C111=0,"",articles!C111) -> TPGL | C114: =IF(articles!D111=0,"",articles!D111) -> 7200 | D114: =IF(articles!AA111<>"",articles!AA111,articles!Z111) -> BLANC | E114: =IF(articles!L111=0,"",articles!L111) -> 25062 | F114: =articles!O111 -> 
A115: =articles!A112 -> PORTEUR LATERAL ALU POUR TPGL | B115: =IF(articles!C112=0,"",articles!C112) -> TPHL | C115: =IF(articles!D112=0,"",articles!D112) -> 4100 | D115: =IF(articles!AA112<>"",articles!AA112,articles!Z112) -> RAL9010 | E115: =IF(articles!L112=0,"",articles!L112) -> 25004 | F115: =articles!O112 -> 
A116: =A115 -> PORTEUR LATERAL ALU POUR TPGL | B116: =IF(articles!C113=0,"",articles!C113) -> TPHL | C116: =IF(articles!D113=0,"",articles!D113) -> 5100 | D116: =IF(articles!AA113<>"",articles!AA113,articles!Z113) -> RAL9010 | E116: =IF(articles!L113=0,"",articles!L113) -> 25005 | F116: =articles!O113 -> 
A117: =A115 -> PORTEUR LATERAL ALU POUR TPGL | B117: =IF(articles!C114=0,"",articles!C114) -> TPHL | C117: =IF(articles!D114=0,"",articles!D114) -> 6100 | D117: =IF(articles!AA114<>"",articles!AA114,articles!Z114) -> RAL9010 | E117: =IF(articles!L114=0,"",articles!L114) -> 25006 | F117: =articles!O114 -> 
A118: =A115 -> PORTEUR LATERAL ALU POUR TPGL | B118: =IF(articles!C115=0,"",articles!C115) -> TPHL | C118: =IF(articles!D115=0,"",articles!D115) -> 7100 | D118: =IF(articles!AA115<>"",articles!AA115,articles!Z115) -> RAL9010 | E118: =IF(articles!L115=0,"",articles!L115) -> 25007 | F118: =articles!O115 -> 
A119: =articles!A116 -> PROFILE D'ADAPTATION 8(10) MM | B119: =IF(articles!C116=0,"",articles!C116) -> Y10 | C119: =IF(articles!D116=0,"",articles!D116) -> 6540 | D119: =IF(articles!AA116<>"",articles!AA116,articles!Z116) -> RAL9010 | E119: =IF(articles!L116=0,"",articles!L116) -> 18403 | F119: =articles!O116 -> 
A120: =articles!A117 -> PROFILE D'ADAPTATION PLAQUES 32 MM | B120: =IF(articles!C117=0,"",articles!C117) -> Y32 | C120: =IF(articles!D117=0,"",articles!D117) -> 7000 | D120: =IF(articles!AA117<>"",articles!AA117,articles!Z117) -> BRUT | E120: =IF(articles!L117=0,"",articles!L117) -> 13314 | F120: =articles!O117 -> 
A121: =articles!A118 -> PROFILE DE REHAUSSE ALU 16 MM | B121: =IF(articles!C118=0,"",articles!C118) -> Y16A | C121: =IF(articles!D118=0,"",articles!D118) -> 3540 | D121: =IF(articles!AA118<>"",articles!AA118,articles!Z118) -> RAL9010 | E121: =IF(articles!L118=0,"",articles!L118) -> 21524 | F121: =articles!O118 -> 
A122: =A121 -> PROFILE DE REHAUSSE ALU 16 MM | B122: =IF(articles!C119=0,"",articles!C119) -> Y16A | C122: =IF(articles!D119=0,"",articles!D119) -> 7040 | D122: =IF(articles!AA119<>"",articles!AA119,articles!Z119) -> RAL9010 | E122: =IF(articles!L119=0,"",articles!L119) -> 21525 | F122: =articles!O119 -> 
A123: =articles!A120 -> Y16P RUPTURE THERMIQUE ABS 16 MM NOIR | B123: =IF(articles!C120=0,"",articles!C120) -> Y16P | C123: =IF(articles!D120=0,"",articles!D120) -> 1000 | D123: =IF(articles!AA120<>"",articles!AA120,articles!Z120) -> NOIR | E123: =IF(articles!L120=0,"",articles!L120) -> 21528 | F123: =articles!O120 -> 
A124: =A123 -> Y16P RUPTURE THERMIQUE ABS 16 MM NOIR | B124: =IF(articles!C121=0,"",articles!C121) -> Y16P | C124: =IF(articles!D121=0,"",articles!D121) -> 4000 | D124: =IF(articles!AA121<>"",articles!AA121,articles!Z121) -> NOIR | E124: =IF(articles!L121=0,"",articles!L121) -> 21529 | F124: =articles!O121 -> 
A125: =articles!A122 -> JOINT POUR CLIP MURAL | B125: =IF(articles!C122=0,"",articles!C122) -> C1CX | C125: =IF(articles!D122=0,"",articles!D122) -> W/G | D125: =IF(articles!AA122<>"",articles!AA122,articles!Z122) -> BLANC | E125: =IF(articles!L122=0,"",articles!L122) -> 17701 | F125: =articles!O122 -> 
A126: =articles!A123 -> JOINT POUR PORTEUR | B126: =IF(articles!C123=0,"",articles!C123) -> C2CX | C126: =IF(articles!D123=0,"",articles!D123) -> W/G | D126: =IF(articles!AA123<>"",articles!AA123,articles!Z123) -> BLANC | E126: =IF(articles!L123=0,"",articles!L123) -> 110589 | F126: =articles!O123 -> 
A127: =articles!A124 -> JOINT POUR PORTEUR (LATERAL) ALU | B127: =IF(articles!C124=0,"",articles!C124) -> C3 | C127: =IF(articles!D124=0,"",articles!D124) -> G | D127: =IF(articles!AA124<>"",articles!AA124,articles!Z124) -> GRIS | E127: =IF(articles!L124=0,"",articles!L124) -> 13319 | F127: =articles!O124 -> 
A128: =articles!A125 -> JOINT POUR PROFILES MURALS ET LATERALS | B128: =IF(articles!C125=0,"",articles!C125) -> C4CX | C128: =IF(articles!D125=0,"",articles!D125) -> W/G | D128: =IF(articles!AA125<>"",articles!AA125,articles!Z125) -> BLANC | E128: =IF(articles!L125=0,"",articles!L125) -> 110591 | F128: =articles!O125 -> 
A129: =articles!A126 -> JOINT D'ETANCHEITE CÔTÉ GOUTTIÈRE | B129: =IF(articles!C126=0,"",articles!C126) -> C6 | C129: =IF(articles!D126=0,"",articles!D126) -> G | D129: =IF(articles!AA126<>"",articles!AA126,articles!Z126) -> GRIS | E129: =IF(articles!L126=0,"",articles!L126) -> 13326 | F129: =articles!O126 -> 
A130: =articles!A127 -> JOINT POUR CLIPS ALU GRIS CLAIR | B130: =IF(articles!C127=0,"",articles!C127) -> C8 | C130: =IF(articles!D127=0,"",articles!D127) -> G | D130: =IF(articles!AA127<>"",articles!AA127,articles!Z127) -> GRIS | E130: =IF(articles!L127=0,"",articles!L127) -> 13328 | F130: =articles!O127 -> 
A131: =articles!A128 -> CY10 JOINT D'ADAPTATION VERRE 8(10) MM | B131: =IF(articles!C128=0,"",articles!C128) -> CY10 | C131: =IF(articles!D128=0,"",articles!D128) -> G | D131: =IF(articles!AA128<>"",articles!AA128,articles!Z128) -> GRIS | E131: =IF(articles!L128=0,"",articles!L128) -> 29509 | F131: =articles!O128 -> 
A132: =articles!A129 -> JOINT COEX/GOUTTIERE BLANC/NOIR | B132: =IF(articles!C129=0,"",articles!C129) -> C11CX | C132: =IF(articles!D129=0,"",articles!D129) -> W/Z | D132: =IF(articles!AA129<>"",articles!AA129,articles!Z129) -> BLANC | E132: =IF(articles!L129=0,"",articles!L129) -> 21557 | F132: =articles!O129 -> 
A133: =articles!A130 -> SUPPORT SUPPLEMENTAIRE POUR C1CX | B133: =IF(articles!C130=0,"",articles!C130) -> C12 | C133: =IF(articles!D130=0,"",articles!D130) -> G | D133: =IF(articles!AA130<>"",articles!AA130,articles!Z130) -> GRIS | E133: =IF(articles!L130=0,"",articles!L130) -> 23875 | F133: =articles!O130 -> 
A134: =articles!A131 -> JOINT D'APPUI POUR VERRE CÔTÉ GOUTTIÈRE | B134: =IF(articles!C131=0,"",articles!C131) -> C13 | C134: =IF(articles!D131=0,"",articles!D131) -> G | D134: =IF(articles!AA131<>"",articles!AA131,articles!Z131) -> GRIS | E134: =IF(articles!L131=0,"",articles!L131) -> 24328 | F134: =articles!O131 -> 
A135: =articles!A132 -> JOINT D'APPUI POUR PROFILE LATERAL/MURAL | B135: =IF(articles!C132=0,"",articles!C132) -> C31 | C135: =IF(articles!D132=0,"",articles!D132) -> G | D135: =IF(articles!AA132<>"",articles!AA132,articles!Z132) -> GRIS | E135: =IF(articles!L132=0,"",articles!L132) -> 28805 | F135: =articles!O132 -> 
A136: =articles!A133 -> CLIP MUR TOP | B136: =IF(articles!C133=0,"",articles!C133) -> CLM | C136: =IF(articles!D133=0,"",articles!D133) -> 3500 | D136: =IF(articles!AA133<>"",articles!AA133,articles!Z133) -> RAL9010 | E136: =IF(articles!L133=0,"",articles!L133) -> 17724 | F136: =articles!O133 -> 
A137: =A136 -> CLIP MUR TOP | B137: =IF(articles!C134=0,"",articles!C134) -> CLM | C137: =IF(articles!D134=0,"",articles!D134) -> 5000 | D137: =IF(articles!AA134<>"",articles!AA134,articles!Z134) -> RAL9010 | E137: =IF(articles!L134=0,"",articles!L134) -> 17725 | F137: =articles!O134 -> 
A138: =A137 -> CLIP MUR TOP | B138: =IF(articles!C135=0,"",articles!C135) -> CLM | C138: =IF(articles!D135=0,"",articles!D135) -> 7000 | D138: =IF(articles!AA135<>"",articles!AA135,articles!Z135) -> RAL9010 | E138: =IF(articles!L135=0,"",articles!L135) -> 17726 | F138: =articles!O135 -> 
A139: =articles!A136 -> CLIPS LATERAL CLL 16/25/32 MM | B139: =IF(articles!C136=0,"",articles!C136) -> CLL | C139: =IF(articles!D136=0,"",articles!D136) -> 2040 | D139: =IF(articles!AA136<>"",articles!AA136,articles!Z136) -> RAL9010 | E139: =IF(articles!L136=0,"",articles!L136) -> 17740 | F139: =articles!O136 -> 
A140: =A139 -> CLIPS LATERAL CLL 16/25/32 MM | B140: =IF(articles!C137=0,"",articles!C137) -> CLL | C140: =IF(articles!D137=0,"",articles!D137) -> 2540 | D140: =IF(articles!AA137<>"",articles!AA137,articles!Z137) -> RAL9010 | E140: =IF(articles!L137=0,"",articles!L137) -> 17741 | F140: =articles!O137 -> 
A141: =A139 -> CLIPS LATERAL CLL 16/25/32 MM | B141: =IF(articles!C138=0,"",articles!C138) -> CLL | C141: =IF(articles!D138=0,"",articles!D138) -> 3040 | D141: =IF(articles!AA138<>"",articles!AA138,articles!Z138) -> RAL9010 | E141: =IF(articles!L138=0,"",articles!L138) -> 17742 | F141: =articles!O138 -> 
A142: =A139 -> CLIPS LATERAL CLL 16/25/32 MM | B142: =IF(articles!C139=0,"",articles!C139) -> CLL | C142: =IF(articles!D139=0,"",articles!D139) -> 3540 | D142: =IF(articles!AA139<>"",articles!AA139,articles!Z139) -> RAL9010 | E142: =IF(articles!L139=0,"",articles!L139) -> 17743 | F142: =articles!O139 -> 
A143: =A139 -> CLIPS LATERAL CLL 16/25/32 MM | B143: =IF(articles!C140=0,"",articles!C140) -> CLL | C143: =IF(articles!D140=0,"",articles!D140) -> 4040 | D143: =IF(articles!AA140<>"",articles!AA140,articles!Z140) -> RAL9010 | E143: =IF(articles!L140=0,"",articles!L140) -> 17744 | F143: =articles!O140 -> 
A144: =A139 -> CLIPS LATERAL CLL 16/25/32 MM | B144: =IF(articles!C141=0,"",articles!C141) -> CLL | C144: =IF(articles!D141=0,"",articles!D141) -> 5040 | D144: =IF(articles!AA141<>"",articles!AA141,articles!Z141) -> RAL9010 | E144: =IF(articles!L141=0,"",articles!L141) -> 17745 | F144: =articles!O141 -> 
A145: =A139 -> CLIPS LATERAL CLL 16/25/32 MM | B145: =IF(articles!C142=0,"",articles!C142) -> CLL | C145: =IF(articles!D142=0,"",articles!D142) -> 6040 | D145: =IF(articles!AA142<>"",articles!AA142,articles!Z142) -> RAL9010 | E145: =IF(articles!L142=0,"",articles!L142) -> 17728 | F145: =articles!O142 -> 
A146: =A139 -> CLIPS LATERAL CLL 16/25/32 MM | B146: =IF(articles!C143=0,"",articles!C143) -> CLL | C146: =IF(articles!D143=0,"",articles!D143) -> 7040 | D146: =IF(articles!AA143<>"",articles!AA143,articles!Z143) -> RAL9010 | E146: =IF(articles!L143=0,"",articles!L143) -> 17746 | F146: =articles!O143 -> 
A147: =articles!A144 -> CLIPS ALU 16 MM | B147: =IF(articles!C144=0,"",articles!C144) -> CL16 | C147: =IF(articles!D144=0,"",articles!D144) -> 2040 | D147: =IF(articles!AA144<>"",articles!AA144,articles!Z144) -> RAL9010 | E147: =IF(articles!L144=0,"",articles!L144) -> 13336 | F147: =articles!O144 -> 
A148: =A147 -> CLIPS ALU 16 MM | B148: =IF(articles!C145=0,"",articles!C145) -> CL16 | C148: =IF(articles!D145=0,"",articles!D145) -> 2540 | D148: =IF(articles!AA145<>"",articles!AA145,articles!Z145) -> RAL9010 | E148: =IF(articles!L145=0,"",articles!L145) -> 13337 | F148: =articles!O145 -> 
A149: =A147 -> CLIPS ALU 16 MM | B149: =IF(articles!C146=0,"",articles!C146) -> CL16 | C149: =IF(articles!D146=0,"",articles!D146) -> 3040 | D149: =IF(articles!AA146<>"",articles!AA146,articles!Z146) -> RAL9010 | E149: =IF(articles!L146=0,"",articles!L146) -> 13338 | F149: =articles!O146 -> 
A150: =A147 -> CLIPS ALU 16 MM | B150: =IF(articles!C147=0,"",articles!C147) -> CL16 | C150: =IF(articles!D147=0,"",articles!D147) -> 3540 | D150: =IF(articles!AA147<>"",articles!AA147,articles!Z147) -> RAL9010 | E150: =IF(articles!L147=0,"",articles!L147) -> 13339 | F150: =articles!O147 -> 
A151: =A147 -> CLIPS ALU 16 MM | B151: =IF(articles!C148=0,"",articles!C148) -> CL16 | C151: =IF(articles!D148=0,"",articles!D148) -> 4040 | D151: =IF(articles!AA148<>"",articles!AA148,articles!Z148) -> RAL9010 | E151: =IF(articles!L148=0,"",articles!L148) -> 13340 | F151: =articles!O148 -> 
A152: =A147 -> CLIPS ALU 16 MM | B152: =IF(articles!C149=0,"",articles!C149) -> CL16 | C152: =IF(articles!D149=0,"",articles!D149) -> 5040 | D152: =IF(articles!AA149<>"",articles!AA149,articles!Z149) -> RAL9010 | E152: =IF(articles!L149=0,"",articles!L149) -> 13928 | F152: =articles!O149 -> 
A153: =A147 -> CLIPS ALU 16 MM | B153: =IF(articles!C150=0,"",articles!C150) -> CL16 | C153: =IF(articles!D150=0,"",articles!D150) -> 6040 | D153: =IF(articles!AA150<>"",articles!AA150,articles!Z150) -> RAL9010 | E153: =IF(articles!L150=0,"",articles!L150) -> 13341 | F153: =articles!O150 -> 
A154: =A147 -> CLIPS ALU 16 MM | B154: =IF(articles!C151=0,"",articles!C151) -> CL16 | C154: =IF(articles!D151=0,"",articles!D151) -> 7040 | D154: =IF(articles!AA151<>"",articles!AA151,articles!Z151) -> RAL9010 | E154: =IF(articles!L151=0,"",articles!L151) -> 13342 | F154: =articles!O151 -> 
A155: =articles!A152 -> CLIPS ALU 25/32 MM | B155: =IF(articles!C152=0,"",articles!C152) -> CL32 | C155: =IF(articles!D152=0,"",articles!D152) -> 2040 | D155: =IF(articles!AA152<>"",articles!AA152,articles!Z152) -> RAL9010 | E155: =IF(articles!L152=0,"",articles!L152) -> 13352 | F155: =articles!O152 -> 
A156: =A155 -> CLIPS ALU 25/32 MM | B156: =IF(articles!C153=0,"",articles!C153) -> CL32 | C156: =IF(articles!D153=0,"",articles!D153) -> 2540 | D156: =IF(articles!AA153<>"",articles!AA153,articles!Z153) -> RAL9010 | E156: =IF(articles!L153=0,"",articles!L153) -> 13353 | F156: =articles!O153 -> 
A157: =A155 -> CLIPS ALU 25/32 MM | B157: =IF(articles!C154=0,"",articles!C154) -> CL32 | C157: =IF(articles!D154=0,"",articles!D154) -> 3040 | D157: =IF(articles!AA154<>"",articles!AA154,articles!Z154) -> RAL9010 | E157: =IF(articles!L154=0,"",articles!L154) -> 13159 | F157: =articles!O154 -> 
A158: =A155 -> CLIPS ALU 25/32 MM | B158: =IF(articles!C155=0,"",articles!C155) -> CL32 | C158: =IF(articles!D155=0,"",articles!D155) -> 3540 | D158: =IF(articles!AA155<>"",articles!AA155,articles!Z155) -> RAL9010 | E158: =IF(articles!L155=0,"",articles!L155) -> 13160 | F158: =articles!O155 -> 
A159: =A155 -> CLIPS ALU 25/32 MM | B159: =IF(articles!C156=0,"",articles!C156) -> CL32 | C159: =IF(articles!D156=0,"",articles!D156) -> 4040 | D159: =IF(articles!AA156<>"",articles!AA156,articles!Z156) -> RAL9010 | E159: =IF(articles!L156=0,"",articles!L156) -> 13161 | F159: =articles!O156 -> 
A160: =A155 -> CLIPS ALU 25/32 MM | B160: =IF(articles!C157=0,"",articles!C157) -> CL32 | C160: =IF(articles!D157=0,"",articles!D157) -> 5040 | D160: =IF(articles!AA157<>"",articles!AA157,articles!Z157) -> RAL9010 | E160: =IF(articles!L157=0,"",articles!L157) -> 14373 | F160: =articles!O157 -> 
A161: =A155 -> CLIPS ALU 25/32 MM | B161: =IF(articles!C158=0,"",articles!C158) -> CL32 | C161: =IF(articles!D158=0,"",articles!D158) -> 6040 | D161: =IF(articles!AA158<>"",articles!AA158,articles!Z158) -> RAL9010 | E161: =IF(articles!L158=0,"",articles!L158) -> 13162 | F161: =articles!O158 -> 
A162: =A155 -> CLIPS ALU 25/32 MM | B162: =IF(articles!C159=0,"",articles!C159) -> CL32 | C162: =IF(articles!D159=0,"",articles!D159) -> 7040 | D162: =IF(articles!AA159<>"",articles!AA159,articles!Z159) -> RAL9010 | E162: =IF(articles!L159=0,"",articles!L159) -> 13163 | F162: =articles!O159 -> 
A163: =articles!A160 -> CLIPS PVC AVEC JOINTS EN COEX BLANC | B163: =IF(articles!C160=0,"",articles!C160) -> CLPV | C163: =IF(articles!D160=0,"",articles!D160) -> 2000 | D163: =IF(articles!AA160<>"",articles!AA160,articles!Z160) -> BLANC | E163: =IF(articles!L160=0,"",articles!L160) -> 15607 | F163: =articles!O160 -> 
A164: =A163 -> CLIPS PVC AVEC JOINTS EN COEX BLANC | B164: =IF(articles!C161=0,"",articles!C161) -> CLPV | C164: =IF(articles!D161=0,"",articles!D161) -> 2500 | D164: =IF(articles!AA161<>"",articles!AA161,articles!Z161) -> BLANC | E164: =IF(articles!L161=0,"",articles!L161) -> 15608 | F164: =articles!O161 -> 
A165: =A163 -> CLIPS PVC AVEC JOINTS EN COEX BLANC | B165: =IF(articles!C162=0,"",articles!C162) -> CLPV | C165: =IF(articles!D162=0,"",articles!D162) -> 3000 | D165: =IF(articles!AA162<>"",articles!AA162,articles!Z162) -> BLANC | E165: =IF(articles!L162=0,"",articles!L162) -> 15636 | F165: =articles!O162 -> 
A166: =A163 -> CLIPS PVC AVEC JOINTS EN COEX BLANC | B166: =IF(articles!C163=0,"",articles!C163) -> CLPV | C166: =IF(articles!D163=0,"",articles!D163) -> 3500 | D166: =IF(articles!AA163<>"",articles!AA163,articles!Z163) -> BLANC | E166: =IF(articles!L163=0,"",articles!L163) -> 15611 | F166: =articles!O163 -> 
A167: =A163 -> CLIPS PVC AVEC JOINTS EN COEX BLANC | B167: =IF(articles!C164=0,"",articles!C164) -> CLPV | C167: =IF(articles!D164=0,"",articles!D164) -> 4000 | D167: =IF(articles!AA164<>"",articles!AA164,articles!Z164) -> BLANC | E167: =IF(articles!L164=0,"",articles!L164) -> 15613 | F167: =articles!O164 -> 
A168: =A163 -> CLIPS PVC AVEC JOINTS EN COEX BLANC | B168: =IF(articles!C165=0,"",articles!C165) -> CLPV | C168: =IF(articles!D165=0,"",articles!D165) -> 5000 | D168: =IF(articles!AA165<>"",articles!AA165,articles!Z165) -> BLANC | E168: =IF(articles!L165=0,"",articles!L165) -> 15614 | F168: =articles!O165 -> 
A169: =A163 -> CLIPS PVC AVEC JOINTS EN COEX BLANC | B169: =IF(articles!C166=0,"",articles!C166) -> CLPV | C169: =IF(articles!D166=0,"",articles!D166) -> 6000 | D169: =IF(articles!AA166<>"",articles!AA166,articles!Z166) -> BLANC | E169: =IF(articles!L166=0,"",articles!L166) -> 15615 | F169: =articles!O166 -> 
A170: =A163 -> CLIPS PVC AVEC JOINTS EN COEX BLANC | B170: =IF(articles!C167=0,"",articles!C167) -> CLPV | C170: =IF(articles!D167=0,"",articles!D167) -> 7000 | D170: =IF(articles!AA167<>"",articles!AA167,articles!Z167) -> BLANC | E170: =IF(articles!L167=0,"",articles!L167) -> 15616 | F170: =articles!O167 -> 
A171: =articles!A168 -> BAS CLIPS A VISSER | B171: =IF(articles!C168=0,"",articles!C168) -> CLSB | C171: =IF(articles!D168=0,"",articles!D168) -> 4040 | D171: =IF(articles!AA168<>"",articles!AA168,articles!Z168) -> BRUT | E171: =IF(articles!L168=0,"",articles!L168) -> 23914 | F171: =articles!O168 -> 
A172: =A171 -> BAS CLIPS A VISSER | B172: =IF(articles!C169=0,"",articles!C169) -> CLSB | C172: =IF(articles!D169=0,"",articles!D169) -> 5040 | D172: =IF(articles!AA169<>"",articles!AA169,articles!Z169) -> BRUT | E172: =IF(articles!L169=0,"",articles!L169) -> 23915 | F172: =articles!O169 -> 
A173: =A171 -> BAS CLIPS A VISSER | B173: =IF(articles!C170=0,"",articles!C170) -> CLSB | C173: =IF(articles!D170=0,"",articles!D170) -> 6040 | D173: =IF(articles!AA170<>"",articles!AA170,articles!Z170) -> BRUT | E173: =IF(articles!L170=0,"",articles!L170) -> 23916 | F173: =articles!O170 -> 
A174: =A171 -> BAS CLIPS A VISSER | B174: =IF(articles!C171=0,"",articles!C171) -> CLSB | C174: =IF(articles!D171=0,"",articles!D171) -> 7040 | D174: =IF(articles!AA171<>"",articles!AA171,articles!Z171) -> BRUT | E174: =IF(articles!L171=0,"",articles!L171) -> 23917 | F174: =articles!O171 -> 
A175: =articles!A172 -> TOP SCHROEFBARE CLIPS | B175: =IF(articles!C172=0,"",articles!C172) -> CLST | C175: =IF(articles!D172=0,"",articles!D172) -> 2040 | D175: =IF(articles!AA172<>"",articles!AA172,articles!Z172) -> RAL9010 | E175: =IF(articles!L172=0,"",articles!L172) -> 23934 | F175: =articles!O172 -> 
A176: =A175 -> TOP SCHROEFBARE CLIPS | B176: =IF(articles!C173=0,"",articles!C173) -> CLST | C176: =IF(articles!D173=0,"",articles!D173) -> 2500 | D176: =IF(articles!AA173<>"",articles!AA173,articles!Z173) -> RAL9010 | E176: =IF(articles!L173=0,"",articles!L173) -> 23935 | F176: =articles!O173 -> 
A177: =A175 -> TOP SCHROEFBARE CLIPS | B177: =IF(articles!C174=0,"",articles!C174) -> CLST | C177: =IF(articles!D174=0,"",articles!D174) -> 3040 | D177: =IF(articles!AA174<>"",articles!AA174,articles!Z174) -> RAL9010 | E177: =IF(articles!L174=0,"",articles!L174) -> 23936 | F177: =articles!O174 -> 
A178: =A175 -> TOP SCHROEFBARE CLIPS | B178: =IF(articles!C175=0,"",articles!C175) -> CLST | C178: =IF(articles!D175=0,"",articles!D175) -> 3500 | D178: =IF(articles!AA175<>"",articles!AA175,articles!Z175) -> RAL9010 | E178: =IF(articles!L175=0,"",articles!L175) -> 23937 | F178: =articles!O175 -> 
A179: =articles!A176 -> HAUT CLIPS A VISSER | B179: =IF(articles!C176=0,"",articles!C176) -> CLST | C179: =IF(articles!D176=0,"",articles!D176) -> 4040 | D179: =IF(articles!AA176<>"",articles!AA176,articles!Z176) -> RAL9010 | E179: =IF(articles!L176=0,"",articles!L176) -> 23938 | F179: =articles!O176 -> 
A180: =A179 -> HAUT CLIPS A VISSER | B180: =IF(articles!C177=0,"",articles!C177) -> CLST | C180: =IF(articles!D177=0,"",articles!D177) -> 5040 | D180: =IF(articles!AA177<>"",articles!AA177,articles!Z177) -> RAL9010 | E180: =IF(articles!L177=0,"",articles!L177) -> 23939 | F180: =articles!O177 -> 
A181: =A179 -> HAUT CLIPS A VISSER | B181: =IF(articles!C178=0,"",articles!C178) -> CLST | C181: =IF(articles!D178=0,"",articles!D178) -> 6040 | D181: =IF(articles!AA178<>"",articles!AA178,articles!Z178) -> RAL9010 | E181: =IF(articles!L178=0,"",articles!L178) -> 23940 | F181: =articles!O178 -> 
A182: =A179 -> HAUT CLIPS A VISSER | B182: =IF(articles!C179=0,"",articles!C179) -> CLST | C182: =IF(articles!D179=0,"",articles!D179) -> 7040 | D182: =IF(articles!AA179<>"",articles!AA179,articles!Z179) -> RAL9010 | E182: =IF(articles!L179=0,"",articles!L179) -> 23941 | F182: =articles!O179 -> 
A183: =articles!A180 -> HAUT CLIPS LATERAL A VISSER | B183: =IF(articles!C180=0,"",articles!C180) -> CLSL | C183: =IF(articles!D180=0,"",articles!D180) -> 4040 | D183: =IF(articles!AA180<>"",articles!AA180,articles!Z180) -> RAL9010 | E183: =IF(articles!L180=0,"",articles!L180) -> 25024 | F183: =articles!O180 -> 
A184: =A183 -> HAUT CLIPS LATERAL A VISSER | B184: =IF(articles!C181=0,"",articles!C181) -> CLSL | C184: =IF(articles!D181=0,"",articles!D181) -> 5040 | D184: =IF(articles!AA181<>"",articles!AA181,articles!Z181) -> RAL9010 | E184: =IF(articles!L181=0,"",articles!L181) -> 25025 | F184: =articles!O181 -> 
A185: =A183 -> HAUT CLIPS LATERAL A VISSER | B185: =IF(articles!C182=0,"",articles!C182) -> CLSL | C185: =IF(articles!D182=0,"",articles!D182) -> 6040 | D185: =IF(articles!AA182<>"",articles!AA182,articles!Z182) -> RAL9010 | E185: =IF(articles!L182=0,"",articles!L182) -> 25026 | F185: =articles!O182 -> 
A186: =A183 -> HAUT CLIPS LATERAL A VISSER | B186: =IF(articles!C183=0,"",articles!C183) -> CLSL | C186: =IF(articles!D183=0,"",articles!D183) -> 7040 | D186: =IF(articles!AA183<>"",articles!AA183,articles!Z183) -> RAL9010 | E186: =IF(articles!L183=0,"",articles!L183) -> 25027 | F186: =articles!O183 -> 
A187: =articles!A184 -> GVT CONNECTEUR VERRE TOP | B187: =IF(articles!C184=0,"",articles!C184) -> GVT | C187: =IF(articles!D184=0,"",articles!D184) -> 2000 | D187: =IF(articles!AA184<>"",articles!AA184,articles!Z184) -> RAL9010 | E187: =IF(articles!L184=0,"",articles!L184) -> 61300 | F187: =articles!O184 -> 
A188: =articles!A185&" IN" -> GVT CONNECTEUR VERRE TOP IN | B188: =IF(articles!C185=0,"",articles!C185) -> GVT | C188: =IF(articles!D185=0,"",articles!D185) -> 2000 | D188: =IF(articles!AA185<>"",articles!AA185,articles!Z185) -> RAL9010 | E188: =IF(articles!L185=0,"",articles!L185) -> 61300 | F188: =articles!O185 -> 
